Workbook

Sheet Report - ALL (DASHBOARD)
A2: Dashboard | B2: Select Parameter: | F2: Select Statistic: | I2: Select Seasonal Period: | L2: Do you want to convert CFS values to TAF/Mon? | W2: 38
W3: 1
W4: 14
L5: News | W5: TRUE
L6: - parameter list updated to include all items on the appendix list (in addition to other locations of interest)
L7: - year type sorting is now done by calendar year
L8: - year type sorting is provided for 60-20-20 index as well as 40-30-30 index
L9: - format modified to be consistent with appendix reports
L10: - check out the new spinners!
B13: =CONCATENATE('Report Data'!$P$7," / seasonal statistics (",$W$2,"-",$W$3,"-",$W$4,"-",IF(NOT($W$5),1,2),"a):") -> Total Sites Release / seasonal statistics (38-1-14-2a):
C17: ='Report Data'!P6 -> January-December
C18: ='Report Data'!P7 -> Total Sites Release
C19: ='Report Data'!P9 -> (C17604/FLOW-CHANNEL)
C20: ='Report Data'!P8 -> Averages
C21: ='Report Data'!P11 -> Volume (TAF) | F21: =CONCATENATE("Difference from ",'Report Data'!Q13) -> Difference from NAA 011221
C25: =IF('Report Data'!O14=0,"",'Report Data'!O14) -> NAA 011221 | E25: =IFERROR('Report Data'!P14,"") -> 0
C26: =IF('Report Data'!O15=0,"",'Report Data'!O15) -> Alt 1B 011221 | E26: =IFERROR('Report Data'!P15,"") -> 233.8163317 | F26: =IFERROR('Report Data'!Q15,"") -> 233.8163317
C27: =IF('Report Data'!O16=0,"",'Report Data'!O16) -> Alt 1B 011221 MM WS10.7 OF WS 8 | E27: =IFERROR('Report Data'!P16,"") -> 205.5864749 | F27: =IFERROR('Report Data'!Q16,"") -> 205.5864749
C28: =IF('Report Data'!O17=0,"",'Report Data'!O17) -> Alt 1B 011221 OM WS10700 | E28: =IFERROR('Report Data'!P17,"") -> 197.5973212 | F28: =IFERROR('Report Data'!Q17,"") -> 197.5973212
C29: =IF('Report Data'!O18=0,"",'Report Data'!O18) -> Alt 1B 011221 MM WS10.7 OF WS 6 | E29: =IFERROR('Report Data'!P18,"") -> 213.7575709 | F29: =IFERROR('Report Data'!Q18,"") -> 213.7575709
C30: =IF('Report Data'!O19=0,"",'Report Data'!O19) ->  | E30: =IFERROR('Report Data'!P19,"") ->  | F30: =IFERROR('Report Data'!Q19,"") -> 
B60: =CONCATENATE('Report Data'!$P$7," / monthly statistics (",$W$2,"-",$W$3,"-",$W$4,"-",IF(NOT($W$5),1,2),"b):") -> Total Sites Release / monthly statistics (38-1-14-2b):
B88: =CONCATENATE('Report Data'!$P$7," / time series (",$W$2,"-",$W$3,"-",$W$4,"-",IF(NOT($W$5),1,2),"c):") -> Total Sites Release / time series (38-1-14-2c):

Sheet Chart - Prob Exc
S2: Select Parameter: | X2: Select Statistic: | AB2: Select Seasonal Period: | AE2: Do you want to convert CFS values to TAF/Mon?

Sheet Chart - Pattern
S2: Select Parameter: | X2: Select Statistic: | AB2: Select Seasonal Period: | AE2: Do you want to convert CFS values to TAF/Mon?

Sheet Chart - WYT
S2: Select Parameter: | X2: Select Statistic: | AB2: Select Seasonal Period: | AE2: Do you want to convert CFS values to TAF/Mon?

Sheet Report Data
A2: Information, Tables and Calculations for Reports
A4: Table of Selected Values for Monthly Chart: | O4: Trend Evaluation: | U4: Water Year Type Averages:
A6: Title: | B6: ='Compile Data'!$B$5 -> Total Sites Release | O6: Title: | P6: =INDEX(Other!$B$9:$B$33,'Report - ALL (DASHBOARD)'!$W$4) -> January-December | U6: Title: | V6: =INDEX(Other!$B$9:$B$33,'Report - ALL (DASHBOARD)'!$W$4) -> January-December
B7: =INDEX(Other!$C$9:$C$35,'Report - ALL (DASHBOARD)'!$W$3) -> Averages | P7: ='Compile Data'!$B$5 -> Total Sites Release | V7: ='Compile Data'!$B$5 -> Total Sites Release
B8: =CONCATENATE("(",'Compile Data'!$B$6,"/",'Compile Data'!$B$7,")") -> (C17604/FLOW-CHANNEL) | P8: =CONCATENATE(INDEX(Other!$C$9:$C$35,'Report - ALL (DASHBOARD)'!$W$3)," ",IF('Report - ALL (DASHBOARD)'!$W$3>4,IF(AND('Compile Data'!$B$10="TAF",'Compile Data'!$B$8="PER-AVER"),"Totals","Averages"),"")) -> Averages | V8: =CONCATENATE(INDEX(Other!$C$9:$C$35,'Report - ALL (DASHBOARD)'!$W$3)," ",IF('Report - ALL (DASHBOARD)'!$W$3>4,IF(AND('Compile Data'!$B$10="TAF",'Compile Data'!$B$8="PER-AVER"),"Totals","Averages"),"")) -> Averages
P9: =CONCATENATE("(",'Compile Data'!$B$6,"/",'Compile Data'!$B$7,")") -> (C17604/FLOW-CHANNEL) | V9: =CONCATENATE("(",'Compile Data'!$B$6,"/",'Compile Data'!$B$7,")") -> (C17604/FLOW-CHANNEL)
A11: Y-axis: | B11: =IF('Compile Data'!$B$10="CFS","Flow (CFS)",IF('Compile Data'!$B$10="TAF","Volume (TAF)",IF('Compile Data'!$B$10="KM","POSITION (KM)",""))) -> Volume (TAF) | P11: =IF('Compile Data'!$B$10="CFS","Flow (CFS)",IF('Compile Data'!$B$10="TAF","Volume (TAF)",IF('Compile Data'!$B$10="KM","POSITION (KM)",""))) -> Volume (TAF) | V11: =IF('Compile Data'!$B$10="CFS","Flow (CFS)",IF('Compile Data'!$B$10="TAF","Volume (TAF)",IF('Compile Data'!$B$10="KM","POSITION (KM)",""))) -> Volume (TAF)
Q12: Diff from | R12: Diff from
B13: OCT | C13: NOV | D13: DEC | E13: JAN | F13: FEB | G13: MAR | H13: APR | I13: MAY | J13: JUN | K13: JUL | L13: AUG | M13: SEP | P13: Value | Q13: =$O$14 -> NAA 011221 | R13: =$O$15 -> Alt 1B 011221 | V13: Wet | W13: Above Normal | X13: Below Normal | Y13: Dry | Z13: Critically Dry
A14: ='Compile Data'!$B$1 -> NAA 011221 | B14: =INDEX('Compile Data'!L$95:L$120,'Report - ALL (DASHBOARD)'!$W$3) -> 0 | C14: =INDEX('Compile Data'!M$95:M$120,'Report - ALL (DASHBOARD)'!$W$3) -> 0 | D14: =INDEX('Compile Data'!N$95:N$120,'Report - ALL (DASHBOARD)'!$W$3) -> 0 | E14: =INDEX('Compile Data'!O$95:O$120,'Report - ALL (DASHBOARD)'!$W$3) -> 0 | F14: =INDEX('Compile Data'!P$95:P$120,'Report - ALL (DASHBOARD)'!$W$3) -> 0 | G14: =INDEX('Compile Data'!Q$95:Q$120,'Report - ALL (DASHBOARD)'!$W$3) -> 0 | H14: =INDEX('Compile Data'!R$95:R$120,'Report - ALL (DASHBOARD)'!$W$3) -> 0 | I14: =INDEX('Compile Data'!S$95:S$120,'Report - ALL (DASHBOARD)'!$W$3) -> 0 | J14: =INDEX('Compile Data'!T$95:T$120,'Report - ALL (DASHBOARD)'!$W$3) -> 0 | K14: =INDEX('Compile Data'!U$95:U$120,'Report - ALL (DASHBOARD)'!$W$3) -> 0 | L14: =INDEX('Compile Data'!V$95:V$120,'Report - ALL (DASHBOARD)'!$W$3) -> 0 | M14: =INDEX('Compile Data'!W$95:W$120,'Report - ALL (DASHBOARD)'!$W$3) -> 0 | O14: ='Compile Data'!$B$1 -> NAA 011221 | P14: =INDEX('Compile Data'!$L$95:$AI$120,'Report - ALL (DASHBOARD)'!$W$3,'Report - ALL (DASHBOARD)'!$W$4) -> 0 | U14: ='Compile Data'!$B$1 -> NAA 011221 | V14: =INDEX('Compile Data'!$L$95:$AI$120,14,'Report - ALL (DASHBOARD)'!$W$4) -> 0 | W14: =INDEX('Compile Data'!$L$95:$AI$120,15,'Report - ALL (DASHBOARD)'!$W$4) -> 0 | X14: =INDEX('Compile Data'!$L$95:$AI$120,16,'Report - ALL (DASHBOARD)'!$W$4) -> 0 | Y14: =INDEX('Compile Data'!$L$95:$AI$120,17,'Report - ALL (DASHBOARD)'!$W$4) -> 0 | Z14: =INDEX('Compile Data'!$L$95:$AI$120,18,'Report - ALL (DASHBOARD)'!$W$4) -> 0
A15: ='Compile Data'!$C$1 -> Alt 1B 011221 | B15: =INDEX('Compile Data'!AL$95:AL$120,'Report - ALL (DASHBOARD)'!$W$3) -> 22.95214369 | C15: =INDEX('Compile Data'!AM$95:AM$120,'Report - ALL (DASHBOARD)'!$W$3) -> 12.09176692 | D15: =INDEX('Compile Data'!AN$95:AN$120,'Report - ALL (DASHBOARD)'!$W$3) -> 3.636918269 | E15: =INDEX('Compile Data'!AO$95:AO$120,'Report - ALL (DASHBOARD)'!$W$3) -> 0.4067046714 | F15: =INDEX('Compile Data'!AP$95:AP$120,'Report - ALL (DASHBOARD)'!$W$3) -> 0.3726398932 | G15: =INDEX('Compile Data'!AQ$95:AQ$120,'Report - ALL (DASHBOARD)'!$W$3) -> 1.234279866 | H15: =INDEX('Compile Data'!AR$95:AR$120,'Report - ALL (DASHBOARD)'!$W$3) -> 9.150072909 | I15: =INDEX('Compile Data'!AS$95:AS$120,'Report - ALL (DASHBOARD)'!$W$3) -> 19.3440225 | J15: =INDEX('Compile Data'!AT$95:AT$120,'Report - ALL (DASHBOARD)'!$W$3) -> 35.12158665 | K15: =INDEX('Compile Data'!AU$95:AU$120,'Report - ALL (DASHBOARD)'!$W$3) -> 45.72811671 | L15: =INDEX('Compile Data'!AV$95:AV$120,'Report - ALL (DASHBOARD)'!$W$3) -> 48.92042467 | M15: =INDEX('Compile Data'!AW$95:AW$120,'Report - ALL (DASHBOARD)'!$W$3) -> 33.43399788 | O15: ='Compile Data'!$C$1 -> Alt 1B 011221 | P15: =INDEX('Compile Data'!$AL$95:$BI$120,'Report - ALL (DASHBOARD)'!$W$3,'Report - ALL (DASHBOARD)'!$W$4) -> 233.8163317 | Q15: =$P15-$P$14 -> 233.8163317 | U15: ='Compile Data'!$C$1 -> Alt 1B 011221 | V15: =INDEX('Compile Data'!$AL$95:$BI$120,14,'Report - ALL (DASHBOARD)'!$W$4) -> 81.75934183 | W15: =INDEX('Compile Data'!$AL$95:$BI$120,15,'Report - ALL (DASHBOARD)'!$W$4) -> 131.5714032 | X15: =INDEX('Compile Data'!$AL$95:$BI$120,16,'Report - ALL (DASHBOARD)'!$W$4) -> 221.5372597 | Y15: =INDEX('Compile Data'!$AL$95:$BI$120,17,'Report - ALL (DASHBOARD)'!$W$4) -> 448.6378073 | Z15: =INDEX('Compile Data'!$AL$95:$BI$120,18,'Report - ALL (DASHBOARD)'!$W$4) -> 338.1267476
A16: ='Compile Data'!$D$1 -> Alt 1B 011221 MM WS10.7 OF WS 8 | B16: =INDEX('Compile Data'!BL$95:BL$120,'Report - ALL (DASHBOARD)'!$W$3) -> 19.98682937 | C16: =INDEX('Compile Data'!BM$95:BM$120,'Report - ALL (DASHBOARD)'!$W$3) -> 10.97467321 | D16: =INDEX('Compile Data'!BN$95:BN$120,'Report - ALL (DASHBOARD)'!$W$3) -> 3.431361699 | E16: =INDEX('Compile Data'!BO$95:BO$120,'Report - ALL (DASHBOARD)'!$W$3) -> 0.01146341554 | F16: =INDEX('Compile Data'!BP$95:BP$120,'Report - ALL (DASHBOARD)'!$W$3) -> 0.2354011318 | G16: =INDEX('Compile Data'!BQ$95:BQ$120,'Report - ALL (DASHBOARD)'!$W$3) -> 0.707440771 | H16: =INDEX('Compile Data'!BR$95:BR$120,'Report - ALL (DASHBOARD)'!$W$3) -> 7.6274727 | I16: =INDEX('Compile Data'!BS$95:BS$120,'Report - ALL (DASHBOARD)'!$W$3) -> 16.30570822 | J16: =INDEX('Compile Data'!BT$95:BT$120,'Report - ALL (DASHBOARD)'!$W$3) -> 32.36663622 | K16: =INDEX('Compile Data'!BU$95:BU$120,'Report - ALL (DASHBOARD)'!$W$3) -> 40.54061072 | L16: =INDEX('Compile Data'!BV$95:BV$120,'Report - ALL (DASHBOARD)'!$W$3) -> 42.75503217 | M16: =INDEX('Compile Data'!BW$95:BW$120,'Report - ALL (DASHBOARD)'!$W$3) -> 29.5374515 | O16: ='Compile Data'!$D$1 -> Alt 1B 011221 MM WS10.7 OF WS 8 | P16: =INDEX('Compile Data'!$BL$95:$CI$120,'Report - ALL (DASHBOARD)'!$W$3,'Report - ALL (DASHBOARD)'!$W$4) -> 205.5864749 | Q16: 205.5864749 | R16: =$P16-$P$15 -> -28.22985677 | U16: ='Compile Data'!$D$1 -> Alt 1B 011221 MM WS10.7 OF WS 8 | V16: =INDEX('Compile Data'!$BL$95:$CI$120,14,'Report - ALL (DASHBOARD)'!$W$4) -> 85.76248839 | W16: =INDEX('Compile Data'!$BL$95:$CI$120,15,'Report - ALL (DASHBOARD)'!$W$4) -> 122.3285098 | X16: =INDEX('Compile Data'!$BL$95:$CI$120,16,'Report - ALL (DASHBOARD)'!$W$4) -> 180.2108971 | Y16: =INDEX('Compile Data'!$BL$95:$CI$120,17,'Report - ALL (DASHBOARD)'!$W$4) -> 386.102712 | Z16: =INDEX('Compile Data'!$BL$95:$CI$120,18,'Report - ALL (DASHBOARD)'!$W$4) -> 290.1613562
A17: ='Compile Data'!$E$1 -> Alt 1B 011221 OM WS10700 | B17: =INDEX('Compile Data'!CL$95:CL$120,'Report - ALL (DASHBOARD)'!$W$3) -> 18.99193431 | C17: =INDEX('Compile Data'!CM$95:CM$120,'Report - ALL (DASHBOARD)'!$W$3) -> 9.47861451 | D17: =INDEX('Compile Data'!CN$95:CN$120,'Report - ALL (DASHBOARD)'!$W$3) -> 3.212600923 | E17: =INDEX('Compile Data'!CO$95:CO$120,'Report - ALL (DASHBOARD)'!$W$3) -> 0.01146341554 | F17: =INDEX('Compile Data'!CP$95:CP$120,'Report - ALL (DASHBOARD)'!$W$3) -> 0.06935040044 | G17: =INDEX('Compile Data'!CQ$95:CQ$120,'Report - ALL (DASHBOARD)'!$W$3) -> 0.6657091163 | H17: =INDEX('Compile Data'!CR$95:CR$120,'Report - ALL (DASHBOARD)'!$W$3) -> 6.8028281 | I17: =INDEX('Compile Data'!CS$95:CS$120,'Report - ALL (DASHBOARD)'!$W$3) -> 17.11615348 | J17: =INDEX('Compile Data'!CT$95:CT$120,'Report - ALL (DASHBOARD)'!$W$3) -> 32.01314774 | K17: =INDEX('Compile Data'!CU$95:CU$120,'Report - ALL (DASHBOARD)'!$W$3) -> 39.10133094 | L17: =INDEX('Compile Data'!CV$95:CV$120,'Report - ALL (DASHBOARD)'!$W$3) -> 40.29921239 | M17: =INDEX('Compile Data'!CW$95:CW$120,'Report - ALL (DASHBOARD)'!$W$3) -> 28.7883518 | O17: ='Compile Data'!$E$1 -> Alt 1B 011221 OM WS10700 | P17: =INDEX('Compile Data'!$CL$95:$DI$120,'Report - ALL (DASHBOARD)'!$W$3,'Report - ALL (DASHBOARD)'!$W$4) -> 197.5973212 | Q17: 197.5973212 | R17: =$P17-$P$15 -> -36.21901044 | U17: ='Compile Data'!$E$1 -> Alt 1B 011221 OM WS10700 | V17: =INDEX('Compile Data'!$CL$95:$DI$120,14,'Report - ALL (DASHBOARD)'!$W$4) -> 87.8105838 | W17: =INDEX('Compile Data'!$CL$95:$DI$120,15,'Report - ALL (DASHBOARD)'!$W$4) -> 119.9041715 | X17: =INDEX('Compile Data'!$CL$95:$DI$120,16,'Report - ALL (DASHBOARD)'!$W$4) -> 162.1500462 | Y17: =INDEX('Compile Data'!$CL$95:$DI$120,17,'Report - ALL (DASHBOARD)'!$W$4) -> 374.2820009 | Z17: =INDEX('Compile Data'!$CL$95:$DI$120,18,'Report - ALL (DASHBOARD)'!$W$4) -> 273.0234265
A18: ='Compile Data'!$F$1 -> Alt 1B 011221 MM WS10.7 OF WS 6 | B18: =INDEX('Compile Data'!DL$95:DL$120,'Report - ALL (DASHBOARD)'!$W$3) -> 21.18886075 | C18: =INDEX('Compile Data'!DM$95:DM$120,'Report - ALL (DASHBOARD)'!$W$3) -> 11.13272767 | D18: =INDEX('Compile Data'!DN$95:DN$120,'Report - ALL (DASHBOARD)'!$W$3) -> 3.462417922 | E18: =INDEX('Compile Data'!DO$95:DO$120,'Report - ALL (DASHBOARD)'!$W$3) -> 0.1889143638 | F18: =INDEX('Compile Data'!DP$95:DP$120,'Report - ALL (DASHBOARD)'!$W$3) -> 0.3725436585 | G18: =INDEX('Compile Data'!DQ$95:DQ$120,'Report - ALL (DASHBOARD)'!$W$3) -> 0.9031455187 | H18: =INDEX('Compile Data'!DR$95:DR$120,'Report - ALL (DASHBOARD)'!$W$3) -> 8.234750891 | I18: =INDEX('Compile Data'!DS$95:DS$120,'Report - ALL (DASHBOARD)'!$W$3) -> 17.00626041 | J18: =INDEX('Compile Data'!DT$95:DT$120,'Report - ALL (DASHBOARD)'!$W$3) -> 33.50973938 | K18: =INDEX('Compile Data'!DU$95:DU$120,'Report - ALL (DASHBOARD)'!$W$3) -> 42.77523207 | L18: =INDEX('Compile Data'!DV$95:DV$120,'Report - ALL (DASHBOARD)'!$W$3) -> 43.51574438 | M18: =INDEX('Compile Data'!DW$95:DW$120,'Report - ALL (DASHBOARD)'!$W$3) -> 30.24270408 | O18: ='Compile Data'!$F$1 -> Alt 1B 011221 MM WS10.7 OF WS 6 | P18: =INDEX('Compile Data'!$DL$95:$EI$120,'Report - ALL (DASHBOARD)'!$W$3,'Report - ALL (DASHBOARD)'!$W$4) -> 213.7575709 | Q18: =$P18-$P$14 -> 213.7575709 | R18: =$P18-$P$15 -> -20.05876076 | U18: ='Compile Data'!$F$1 -> Alt 1B 011221 MM WS10.7 OF WS 6 | V18: =INDEX('Compile Data'!$DL$95:$EI$120,14,'Report - ALL (DASHBOARD)'!$W$4) -> 85.61431039 | W18: =INDEX('Compile Data'!$DL$95:$EI$120,15,'Report - ALL (DASHBOARD)'!$W$4) -> 123.0462334 | X18: =INDEX('Compile Data'!$DL$95:$EI$120,16,'Report - ALL (DASHBOARD)'!$W$4) -> 191.1308644 | Y18: =INDEX('Compile Data'!$DL$95:$EI$120,17,'Report - ALL (DASHBOARD)'!$W$4) -> 402.4317711 | Z18: =INDEX('Compile Data'!$DL$95:$EI$120,18,'Report - ALL (DASHBOARD)'!$W$4) -> 307.6860325
A19: ='Compile Data'!$G$1 -> 0 | B19: =INDEX('Compile Data'!EL$95:EL$120,'Report - ALL (DASHBOARD)'!$W$3) ->  | C19: =INDEX('Compile Data'!EM$95:EM$120,'Report - ALL (DASHBOARD)'!$W$3) ->  | D19: =INDEX('Compile Data'!EN$95:EN$120,'Report - ALL (DASHBOARD)'!$W$3) ->  | E19: =INDEX('Compile Data'!EO$95:EO$120,'Report - ALL (DASHBOARD)'!$W$3) ->  | F19: =INDEX('Compile Data'!EP$95:EP$120,'Report - ALL (DASHBOARD)'!$W$3) ->  | G19: =INDEX('Compile Data'!EQ$95:EQ$120,'Report - ALL (DASHBOARD)'!$W$3) ->  | H19: =INDEX('Compile Data'!ER$95:ER$120,'Report - ALL (DASHBOARD)'!$W$3) ->  | I19: =INDEX('Compile Data'!ES$95:ES$120,'Report - ALL (DASHBOARD)'!$W$3) ->  | J19: =INDEX('Compile Data'!ET$95:ET$120,'Report - ALL (DASHBOARD)'!$W$3) ->  | K19: =INDEX('Compile Data'!EU$95:EU$120,'Report - ALL (DASHBOARD)'!$W$3) ->  | L19: =INDEX('Compile Data'!EV$95:EV$120,'Report - ALL (DASHBOARD)'!$W$3) ->  | M19: =INDEX('Compile Data'!EW$95:EW$120,'Report - ALL (DASHBOARD)'!$W$3) ->  | O19: ='Compile Data'!$G$1 -> 0 | P19: =INDEX('Compile Data'!$EL$95:$FI$120,'Report - ALL (DASHBOARD)'!$W$3,'Report - ALL (DASHBOARD)'!$W$4) ->  | R19: =$P19-$P$15 ->  | U19: ='Compile Data'!$G$1 -> 0 | V19: =INDEX('Compile Data'!$EL$95:$FI$120,14,'Report - ALL (DASHBOARD)'!$W$4) ->  | W19: =INDEX('Compile Data'!$EL$95:$FI$120,15,'Report - ALL (DASHBOARD)'!$W$4) ->  | X19: =INDEX('Compile Data'!$EL$95:$FI$120,16,'Report - ALL (DASHBOARD)'!$W$4) ->  | Y19: =INDEX('Compile Data'!$EL$95:$FI$120,17,'Report - ALL (DASHBOARD)'!$W$4) ->  | Z19: =INDEX('Compile Data'!$EL$95:$FI$120,18,'Report - ALL (DASHBOARD)'!$W$4) -> 
A21: Annuals Plot: | O21: Exceedence Plot:
A23: Title: | B23: =INDEX(Other!$B$9:$B$33,'Report - ALL (DASHBOARD)'!$W$4) -> January-December | O23: Title: | P23: =INDEX(Other!$B$9:$B$33,'Report - ALL (DASHBOARD)'!$W$4) -> January-December
B24: ='Compile Data'!$B$5 -> Total Sites Release | P24: ='Compile Data'!$B$5 -> Total Sites Release
B25: =IF('Compile Data'!$B$10="CFS","Flow (CFS)",IF('Compile Data'!$B$10="TAF","Volume (TAF)",IF('Compile Data'!$B$10="KM","POSITION (KM)",""))) -> Volume (TAF) | P25: =IF('Compile Data'!$B$10="CFS","Flow (CFS)",IF('Compile Data'!$B$10="TAF","Volume (TAF)",IF('Compile Data'!$B$10="KM","POSITION (KM)",""))) -> Volume (TAF)
B27: ='Compile Data'!$B$1 -> NAA 011221 | C27: ='Compile Data'!$C$1 -> Alt 1B 011221 | D27: ='Compile Data'!$D$1 -> Alt 1B 011221 MM WS10.7 OF WS 8 | E27: ='Compile Data'!$E$1 -> Alt 1B 011221 OM WS10700 | F27: ='Compile Data'!$F$1 -> Alt 1B 011221 MM WS10.7 OF WS 6 | G27: ='Compile Data'!$G$1 -> 0 | Q27: ='Compile Data'!$B$1 -> NAA 011221 | R27: ='Compile Data'!$C$1 -> Alt 1B 011221 | S27: ='Compile Data'!$D$1 -> Alt 1B 011221 MM WS10.7 OF WS 8 | T27: ='Compile Data'!$E$1 -> Alt 1B 011221 OM WS10700 | U27: ='Compile Data'!$F$1 -> Alt 1B 011221 MM WS10.7 OF WS 6 | V27: ='Compile Data'!$G$1 -> 0
A28: 1922 | B28: =INDEX('Compile Data'!$L$12:$AI$93,$A28-1921,'Report - ALL (DASHBOARD)'!$W$4) -> 0 | C28: =INDEX('Compile Data'!$AL$12:$BI$93,$A28-1921,'Report - ALL (DASHBOARD)'!$W$4) -> 140.1448777 | D28: =INDEX('Compile Data'!$BL$12:$CI$93,$A28-1921,'Report - ALL (DASHBOARD)'!$W$4) -> 124.7449218 | E28: =INDEX('Compile Data'!$CL$12:$DI$93,$A28-1921,'Report - ALL (DASHBOARD)'!$W$4) -> 124.4354179 | F28: =INDEX('Compile Data'!$DL$12:$EI$93,$A28-1921,'Report - ALL (DASHBOARD)'!$W$4) -> 129.7480416 | G28: =INDEX('Compile Data'!$EL$12:$FI$93,$A28-1921,'Report - ALL (DASHBOARD)'!$W$4) ->  | O28: 1 | P28: =(O28-1)/81 -> 0 | Q28: =INDEX('Compile Data'!$L$123:$AI$204,$O28,'Report - ALL (DASHBOARD)'!$W$4) -> 0 | R28: =INDEX('Compile Data'!$AL$123:$BI$204,$O28,'Report - ALL (DASHBOARD)'!$W$4) -> 737.6821028 | S28: =INDEX('Compile Data'!$BL$123:$CI$204,$O28,'Report - ALL (DASHBOARD)'!$W$4) -> 737.6700897 | T28: =INDEX('Compile Data'!$CL$123:$DI$204,$O28,'Report - ALL (DASHBOARD)'!$W$4) -> 730.5837266 | U28: =INDEX('Compile Data'!$DL$123:$EI$204,$O28,'Report - ALL (DASHBOARD)'!$W$4) -> 737.5948055 | V28: =INDEX('Compile Data'!$EL$123:$FI$204,$O28,'Report - ALL (DASHBOARD)'!$W$4) -> 
A29: =A28+1 -> 1923 | B29: =INDEX('Compile Data'!$L$12:$AI$93,$A29-1921,'Report - ALL (DASHBOARD)'!$W$4) -> 0 | C29: =INDEX('Compile Data'!$AL$12:$BI$93,$A29-1921,'Report - ALL (DASHBOARD)'!$W$4) -> 230.3089938 | D29: =INDEX('Compile Data'!$BL$12:$CI$93,$A29-1921,'Report - ALL (DASHBOARD)'!$W$4) -> 223.3246054 | E29: =INDEX('Compile Data'!$CL$12:$DI$93,$A29-1921,'Report - ALL (DASHBOARD)'!$W$4) -> 218.7518508 | F29: =INDEX('Compile Data'!$DL$12:$EI$93,$A29-1921,'Report - ALL (DASHBOARD)'!$W$4) -> 230.3059624 | G29: =INDEX('Compile Data'!$EL$12:$FI$93,$A29-1921,'Report - ALL (DASHBOARD)'!$W$4) ->  | O29: 2 | P29: 0.01234567901 | Q29: =INDEX('Compile Data'!$L$123:$AI$204,$O29,'Report - ALL (DASHBOARD)'!$W$4) -> 0 | R29: =INDEX('Compile Data'!$AL$123:$BI$204,$O29,'Report - ALL (DASHBOARD)'!$W$4) -> 734.1975526 | S29: =INDEX('Compile Data'!$BL$123:$CI$204,$O29,'Report - ALL (DASHBOARD)'!$W$4) -> 731.7315772 | T29: =INDEX('Compile Data'!$CL$123:$DI$204,$O29,'Report - ALL (DASHBOARD)'!$W$4) -> 701.9717968 | U29: =INDEX('Compile Data'!$DL$123:$EI$204,$O29,'Report - ALL (DASHBOARD)'!$W$4) -> 723.7590669 | V29: =INDEX('Compile Data'!$EL$123:$FI$204,$O29,'Report - ALL (DASHBOARD)'!$W$4) -> 
A30: =A29+1 -> 1924 | B30: =INDEX('Compile Data'!$L$12:$AI$93,$A30-1921,'Report - ALL (DASHBOARD)'!$W$4) -> 0 | C30: =INDEX('Compile Data'!$AL$12:$BI$93,$A30-1921,'Report - ALL (DASHBOARD)'!$W$4) -> 567.6838502 | D30: =INDEX('Compile Data'!$BL$12:$CI$93,$A30-1921,'Report - ALL (DASHBOARD)'!$W$4) -> 525.4582509 | E30: =INDEX('Compile Data'!$CL$12:$DI$93,$A30-1921,'Report - ALL (DASHBOARD)'!$W$4) -> 505.3702051 | F30: =INDEX('Compile Data'!$DL$12:$EI$93,$A30-1921,'Report - ALL (DASHBOARD)'!$W$4) -> 570.6296774 | G30: =INDEX('Compile Data'!$EL$12:$FI$93,$A30-1921,'Report - ALL (DASHBOARD)'!$W$4) ->  | O30: 3 | P30: 0.02469135802 | Q30: =INDEX('Compile Data'!$L$123:$AI$204,$O30,'Report - ALL (DASHBOARD)'!$W$4) -> 0 | R30: =INDEX('Compile Data'!$AL$123:$BI$204,$O30,'Report - ALL (DASHBOARD)'!$W$4) -> 692.7978084 | S30: =INDEX('Compile Data'!$BL$123:$CI$204,$O30,'Report - ALL (DASHBOARD)'!$W$4) -> 696.3329786 | T30: =INDEX('Compile Data'!$CL$123:$DI$204,$O30,'Report - ALL (DASHBOARD)'!$W$4) -> 632.6448267 | U30: =INDEX('Compile Data'!$DL$123:$EI$204,$O30,'Report - ALL (DASHBOARD)'!$W$4) -> 693.7726851 | V30: =INDEX('Compile Data'!$EL$123:$FI$204,$O30,'Report - ALL (DASHBOARD)'!$W$4) -> 
A31: 1925 | B31: =INDEX('Compile Data'!$L$12:$AI$93,$A31-1921,'Report - ALL (DASHBOARD)'!$W$4) -> 0 | C31: =INDEX('Compile Data'!$AL$12:$BI$93,$A31-1921,'Report - ALL (DASHBOARD)'!$W$4) -> 305.1122582 | D31: =INDEX('Compile Data'!$BL$12:$CI$93,$A31-1921,'Report - ALL (DASHBOARD)'!$W$4) -> 110.8052628 | E31: =INDEX('Compile Data'!$CL$12:$DI$93,$A31-1921,'Report - ALL (DASHBOARD)'!$W$4) -> 110.6793513 | F31: =INDEX('Compile Data'!$DL$12:$EI$93,$A31-1921,'Report - ALL (DASHBOARD)'!$W$4) -> 143.3048413 | G31: =INDEX('Compile Data'!$EL$12:$FI$93,$A31-1921,'Report - ALL (DASHBOARD)'!$W$4) ->  | O31: 4 | P31: 0.03703703704 | Q31: =INDEX('Compile Data'!$L$123:$AI$204,$O31,'Report - ALL (DASHBOARD)'!$W$4) -> 0 | R31: =INDEX('Compile Data'!$AL$123:$BI$204,$O31,'Report - ALL (DASHBOARD)'!$W$4) -> 606.4877782 | S31: =INDEX('Compile Data'!$BL$123:$CI$204,$O31,'Report - ALL (DASHBOARD)'!$W$4) -> 599.0825714 | T31: =INDEX('Compile Data'!$CL$123:$DI$204,$O31,'Report - ALL (DASHBOARD)'!$W$4) -> 563.2579829 | U31: =INDEX('Compile Data'!$DL$123:$EI$204,$O31,'Report - ALL (DASHBOARD)'!$W$4) -> 623.2360824 | V31: =INDEX('Compile Data'!$EL$123:$FI$204,$O31,'Report - ALL (DASHBOARD)'!$W$4) -> 
A32: 1926 | B32: =INDEX('Compile Data'!$L$12:$AI$93,$A32-1921,'Report - ALL (DASHBOARD)'!$W$4) -> 0 | C32: =INDEX('Compile Data'!$AL$12:$BI$93,$A32-1921,'Report - ALL (DASHBOARD)'!$W$4) -> 110.1850611 | D32: =INDEX('Compile Data'!$BL$12:$CI$93,$A32-1921,'Report - ALL (DASHBOARD)'!$W$4) -> 62.94635771 | E32: =INDEX('Compile Data'!$CL$12:$DI$93,$A32-1921,'Report - ALL (DASHBOARD)'!$W$4) -> 62.84624453 | F32: =INDEX('Compile Data'!$DL$12:$EI$93,$A32-1921,'Report - ALL (DASHBOARD)'!$W$4) -> 87.49613389 | G32: =INDEX('Compile Data'!$EL$12:$FI$93,$A32-1921,'Report - ALL (DASHBOARD)'!$W$4) ->  | O32: 5 | P32: 0.04938271605 | Q32: =INDEX('Compile Data'!$L$123:$AI$204,$O32,'Report - ALL (DASHBOARD)'!$W$4) -> 0 | R32: =INDEX('Compile Data'!$AL$123:$BI$204,$O32,'Report - ALL (DASHBOARD)'!$W$4) -> 591.6584216 | S32: =INDEX('Compile Data'!$BL$123:$CI$204,$O32,'Report - ALL (DASHBOARD)'!$W$4) -> 574.3643872 | T32: =INDEX('Compile Data'!$CL$123:$DI$204,$O32,'Report - ALL (DASHBOARD)'!$W$4) -> 562.2563679 | U32: =INDEX('Compile Data'!$DL$123:$EI$204,$O32,'Report - ALL (DASHBOARD)'!$W$4) -> 604.3714544 | V32: =INDEX('Compile Data'!$EL$123:$FI$204,$O32,'Report - ALL (DASHBOARD)'!$W$4) -> 
A33: 1927 | B33: =INDEX('Compile Data'!$L$12:$AI$93,$A33-1921,'Report - ALL (DASHBOARD)'!$W$4) -> 0 | C33: =INDEX('Compile Data'!$AL$12:$BI$93,$A33-1921,'Report - ALL (DASHBOARD)'!$W$4) -> 68.62930501 | D33: =INDEX('Compile Data'!$BL$12:$CI$93,$A33-1921,'Report - ALL (DASHBOARD)'!$W$4) -> 77.23322448 | E33: =INDEX('Compile Data'!$CL$12:$DI$93,$A33-1921,'Report - ALL (DASHBOARD)'!$W$4) -> 74.13177665 | F33: =INDEX('Compile Data'!$DL$12:$EI$93,$A33-1921,'Report - ALL (DASHBOARD)'!$W$4) -> 83.40136998 | G33: =INDEX('Compile Data'!$EL$12:$FI$93,$A33-1921,'Report - ALL (DASHBOARD)'!$W$4) ->  | O33: 6 | P33: 0.06172839506 | Q33: =INDEX('Compile Data'!$L$123:$AI$204,$O33,'Report - ALL (DASHBOARD)'!$W$4) -> 0 | R33: =INDEX('Compile Data'!$AL$123:$BI$204,$O33,'Report - ALL (DASHBOARD)'!$W$4) -> 591.0117603 | S33: =INDEX('Compile Data'!$BL$123:$CI$204,$O33,'Report - ALL (DASHBOARD)'!$W$4) -> 560.9960428 | T33: =INDEX('Compile Data'!$CL$123:$DI$204,$O33,'Report - ALL (DASHBOARD)'!$W$4) -> 544.243018 | U33: =INDEX('Compile Data'!$DL$123:$EI$204,$O33,'Report - ALL (DASHBOARD)'!$W$4) -> 578.306254 | V33: =INDEX('Compile Data'!$EL$123:$FI$204,$O33,'Report - ALL (DASHBOARD)'!$W$4) -> 
A34: 1928 | B34: =INDEX('Compile Data'!$L$12:$AI$93,$A34-1921,'Report - ALL (DASHBOARD)'!$W$4) -> 0 | C34: =INDEX('Compile Data'!$AL$12:$BI$93,$A34-1921,'Report - ALL (DASHBOARD)'!$W$4) -> 89.399065 | D34: =INDEX('Compile Data'!$BL$12:$CI$93,$A34-1921,'Report - ALL (DASHBOARD)'!$W$4) -> 79.83150415 | E34: =INDEX('Compile Data'!$CL$12:$DI$93,$A34-1921,'Report - ALL (DASHBOARD)'!$W$4) -> 78.19190399 | F34: =INDEX('Compile Data'!$DL$12:$EI$93,$A34-1921,'Report - ALL (DASHBOARD)'!$W$4) -> 88.10223228 | G34: =INDEX('Compile Data'!$EL$12:$FI$93,$A34-1921,'Report - ALL (DASHBOARD)'!$W$4) ->  | O34: 7 | P34: 0.07407407407 | Q34: =INDEX('Compile Data'!$L$123:$AI$204,$O34,'Report - ALL (DASHBOARD)'!$W$4) -> 0 | R34: =INDEX('Compile Data'!$AL$123:$BI$204,$O34,'Report - ALL (DASHBOARD)'!$W$4) -> 582.6130526 | S34: =INDEX('Compile Data'!$BL$123:$CI$204,$O34,'Report - ALL (DASHBOARD)'!$W$4) -> 545.4549132 | T34: =INDEX('Compile Data'!$CL$123:$DI$204,$O34,'Report - ALL (DASHBOARD)'!$W$4) -> 540.9557256 | U34: =INDEX('Compile Data'!$DL$123:$EI$204,$O34,'Report - ALL (DASHBOARD)'!$W$4) -> 570.6296774 | V34: =INDEX('Compile Data'!$EL$123:$FI$204,$O34,'Report - ALL (DASHBOARD)'!$W$4) -> 
A35: 1929 | B35: =INDEX('Compile Data'!$L$12:$AI$93,$A35-1921,'Report - ALL (DASHBOARD)'!$W$4) -> 0 | C35: =INDEX('Compile Data'!$AL$12:$BI$93,$A35-1921,'Report - ALL (DASHBOARD)'!$W$4) -> 582.6130526 | D35: =INDEX('Compile Data'!$BL$12:$CI$93,$A35-1921,'Report - ALL (DASHBOARD)'!$W$4) -> 542.9007696 | E35: =INDEX('Compile Data'!$CL$12:$DI$93,$A35-1921,'Report - ALL (DASHBOARD)'!$W$4) -> 519.7010904 | F35: =INDEX('Compile Data'!$DL$12:$EI$93,$A35-1921,'Report - ALL (DASHBOARD)'!$W$4) -> 578.306254 | G35: =INDEX('Compile Data'!$EL$12:$FI$93,$A35-1921,'Report - ALL (DASHBOARD)'!$W$4) ->  | O35: 8 | P35: 0.08641975309 | Q35: =INDEX('Compile Data'!$L$123:$AI$204,$O35,'Report - ALL (DASHBOARD)'!$W$4) -> 0 | R35: =INDEX('Compile Data'!$AL$123:$BI$204,$O35,'Report - ALL (DASHBOARD)'!$W$4) -> 577.897407 | S35: =INDEX('Compile Data'!$BL$123:$CI$204,$O35,'Report - ALL (DASHBOARD)'!$W$4) -> 542.9007696 | T35: =INDEX('Compile Data'!$CL$123:$DI$204,$O35,'Report - ALL (DASHBOARD)'!$W$4) -> 530.3953322 | U35: =INDEX('Compile Data'!$DL$123:$EI$204,$O35,'Report - ALL (DASHBOARD)'!$W$4) -> 556.8252615 | V35: =INDEX('Compile Data'!$EL$123:$FI$204,$O35,'Report - ALL (DASHBOARD)'!$W$4) -> 
A36: 1930 | B36: =INDEX('Compile Data'!$L$12:$AI$93,$A36-1921,'Report - ALL (DASHBOARD)'!$W$4) -> 0 | C36: =INDEX('Compile Data'!$AL$12:$BI$93,$A36-1921,'Report - ALL (DASHBOARD)'!$W$4) -> 261.9335183 | D36: =INDEX('Compile Data'!$BL$12:$CI$93,$A36-1921,'Report - ALL (DASHBOARD)'!$W$4) -> 132.1943623 | E36: =INDEX('Compile Data'!$CL$12:$DI$93,$A36-1921,'Report - ALL (DASHBOARD)'!$W$4) -> 108.0898967 | F36: =INDEX('Compile Data'!$DL$12:$EI$93,$A36-1921,'Report - ALL (DASHBOARD)'!$W$4) -> 209.0466287 | G36: =INDEX('Compile Data'!$EL$12:$FI$93,$A36-1921,'Report - ALL (DASHBOARD)'!$W$4) ->  | O36: 9 | P36: 0.0987654321 | Q36: =INDEX('Compile Data'!$L$123:$AI$204,$O36,'Report - ALL (DASHBOARD)'!$W$4) -> 0 | R36: =INDEX('Compile Data'!$AL$123:$BI$204,$O36,'Report - ALL (DASHBOARD)'!$W$4) -> 570.8930373 | S36: =INDEX('Compile Data'!$BL$123:$CI$204,$O36,'Report - ALL (DASHBOARD)'!$W$4) -> 541.862983 | T36: =INDEX('Compile Data'!$CL$123:$DI$204,$O36,'Report - ALL (DASHBOARD)'!$W$4) -> 519.7010904 | U36: =INDEX('Compile Data'!$DL$123:$EI$204,$O36,'Report - ALL (DASHBOARD)'!$W$4) -> 548.8879927 | V36: =INDEX('Compile Data'!$EL$123:$FI$204,$O36,'Report - ALL (DASHBOARD)'!$W$4) -> 
A37: 1931 | B37: =INDEX('Compile Data'!$L$12:$AI$93,$A37-1921,'Report - ALL (DASHBOARD)'!$W$4) -> 0 | C37: =INDEX('Compile Data'!$AL$12:$BI$93,$A37-1921,'Report - ALL (DASHBOARD)'!$W$4) -> 76.9666507 | D37: =INDEX('Compile Data'!$BL$12:$CI$93,$A37-1921,'Report - ALL (DASHBOARD)'!$W$4) -> 59.18259152 | E37: =INDEX('Compile Data'!$CL$12:$DI$93,$A37-1921,'Report - ALL (DASHBOARD)'!$W$4) -> 56.29457976 | F37: =INDEX('Compile Data'!$DL$12:$EI$93,$A37-1921,'Report - ALL (DASHBOARD)'!$W$4) -> 70.21331217 | G37: =INDEX('Compile Data'!$EL$12:$FI$93,$A37-1921,'Report - ALL (DASHBOARD)'!$W$4) ->  | O37: 10 | P37: 0.1111111111 | Q37: =INDEX('Compile Data'!$L$123:$AI$204,$O37,'Report - ALL (DASHBOARD)'!$W$4) -> 0 | R37: =INDEX('Compile Data'!$AL$123:$BI$204,$O37,'Report - ALL (DASHBOARD)'!$W$4) -> 570.3568748 | S37: =INDEX('Compile Data'!$BL$123:$CI$204,$O37,'Report - ALL (DASHBOARD)'!$W$4) -> 525.4582509 | T37: =INDEX('Compile Data'!$CL$123:$DI$204,$O37,'Report - ALL (DASHBOARD)'!$W$4) -> 505.3702051 | U37: =INDEX('Compile Data'!$DL$123:$EI$204,$O37,'Report - ALL (DASHBOARD)'!$W$4) -> 545.4553366 | V37: =INDEX('Compile Data'!$EL$123:$FI$204,$O37,'Report - ALL (DASHBOARD)'!$W$4) -> 
A38: 1932 | B38: =INDEX('Compile Data'!$L$12:$AI$93,$A38-1921,'Report - ALL (DASHBOARD)'!$W$4) -> 0 | C38: =INDEX('Compile Data'!$AL$12:$BI$93,$A38-1921,'Report - ALL (DASHBOARD)'!$W$4) -> 102.95214 | D38: =INDEX('Compile Data'!$BL$12:$CI$93,$A38-1921,'Report - ALL (DASHBOARD)'!$W$4) -> 29.54885963 | E38: =INDEX('Compile Data'!$CL$12:$DI$93,$A38-1921,'Report - ALL (DASHBOARD)'!$W$4) -> 0.1746372801 | F38: =INDEX('Compile Data'!$DL$12:$EI$93,$A38-1921,'Report - ALL (DASHBOARD)'!$W$4) -> 79.64023761 | G38: =INDEX('Compile Data'!$EL$12:$FI$93,$A38-1921,'Report - ALL (DASHBOARD)'!$W$4) ->  | O38: 11 | P38: 0.1234567901 | Q38: =INDEX('Compile Data'!$L$123:$AI$204,$O38,'Report - ALL (DASHBOARD)'!$W$4) -> 0 | R38: =INDEX('Compile Data'!$AL$123:$BI$204,$O38,'Report - ALL (DASHBOARD)'!$W$4) -> 567.6838502 | S38: =INDEX('Compile Data'!$BL$123:$CI$204,$O38,'Report - ALL (DASHBOARD)'!$W$4) -> 510.6061379 | T38: =INDEX('Compile Data'!$CL$123:$DI$204,$O38,'Report - ALL (DASHBOARD)'!$W$4) -> 502.5195342 | U38: =INDEX('Compile Data'!$DL$123:$EI$204,$O38,'Report - ALL (DASHBOARD)'!$W$4) -> 510.6014633 | V38: =INDEX('Compile Data'!$EL$123:$FI$204,$O38,'Report - ALL (DASHBOARD)'!$W$4) -> 
A39: 1933 | B39: =INDEX('Compile Data'!$L$12:$AI$93,$A39-1921,'Report - ALL (DASHBOARD)'!$W$4) -> 0 | C39: =INDEX('Compile Data'!$AL$12:$BI$93,$A39-1921,'Report - ALL (DASHBOARD)'!$W$4) -> 83.18820141 | D39: =INDEX('Compile Data'!$BL$12:$CI$93,$A39-1921,'Report - ALL (DASHBOARD)'!$W$4) -> 0 | E39: =INDEX('Compile Data'!$CL$12:$DI$93,$A39-1921,'Report - ALL (DASHBOARD)'!$W$4) -> 0 | F39: =INDEX('Compile Data'!$DL$12:$EI$93,$A39-1921,'Report - ALL (DASHBOARD)'!$W$4) -> 42.0202563 | G39: =INDEX('Compile Data'!$EL$12:$FI$93,$A39-1921,'Report - ALL (DASHBOARD)'!$W$4) ->  | O39: 12 | P39: 0.1358024691 | Q39: =INDEX('Compile Data'!$L$123:$AI$204,$O39,'Report - ALL (DASHBOARD)'!$W$4) -> 0 | R39: =INDEX('Compile Data'!$AL$123:$BI$204,$O39,'Report - ALL (DASHBOARD)'!$W$4) -> 558.6862364 | S39: =INDEX('Compile Data'!$BL$123:$CI$204,$O39,'Report - ALL (DASHBOARD)'!$W$4) -> 444.5215954 | T39: =INDEX('Compile Data'!$CL$123:$DI$204,$O39,'Report - ALL (DASHBOARD)'!$W$4) -> 437.3757753 | U39: =INDEX('Compile Data'!$DL$123:$EI$204,$O39,'Report - ALL (DASHBOARD)'!$W$4) -> 466.0008555 | V39: =INDEX('Compile Data'!$EL$123:$FI$204,$O39,'Report - ALL (DASHBOARD)'!$W$4) -> 
A40: 1934 | B40: =INDEX('Compile Data'!$L$12:$AI$93,$A40-1921,'Report - ALL (DASHBOARD)'!$W$4) -> 0 | C40: =INDEX('Compile Data'!$AL$12:$BI$93,$A40-1921,'Report - ALL (DASHBOARD)'!$W$4) -> 72.65602399 | D40: =INDEX('Compile Data'!$BL$12:$CI$93,$A40-1921,'Report - ALL (DASHBOARD)'!$W$4) -> 8.519969242 | E40: =INDEX('Compile Data'!$CL$12:$DI$93,$A40-1921,'Report - ALL (DASHBOARD)'!$W$4) -> 0.1055726335 | F40: =INDEX('Compile Data'!$DL$12:$EI$93,$A40-1921,'Report - ALL (DASHBOARD)'!$W$4) -> 35.92189812 | G40: =INDEX('Compile Data'!$EL$12:$FI$93,$A40-1921,'Report - ALL (DASHBOARD)'!$W$4) ->  | O40: 13 | P40: 0.1481481481 | Q40: =INDEX('Compile Data'!$L$123:$AI$204,$O40,'Report - ALL (DASHBOARD)'!$W$4) -> 0 | R40: =INDEX('Compile Data'!$AL$123:$BI$204,$O40,'Report - ALL (DASHBOARD)'!$W$4) -> 540.5232871 | S40: =INDEX('Compile Data'!$BL$123:$CI$204,$O40,'Report - ALL (DASHBOARD)'!$W$4) -> 436.2374193 | T40: =INDEX('Compile Data'!$CL$123:$DI$204,$O40,'Report - ALL (DASHBOARD)'!$W$4) -> 435.8151748 | U40: =INDEX('Compile Data'!$DL$123:$EI$204,$O40,'Report - ALL (DASHBOARD)'!$W$4) -> 438.4075081 | V40: =INDEX('Compile Data'!$EL$123:$FI$204,$O40,'Report - ALL (DASHBOARD)'!$W$4) -> 
A41: 1935 | B41: =INDEX('Compile Data'!$L$12:$AI$93,$A41-1921,'Report - ALL (DASHBOARD)'!$W$4) -> 0 | C41: =INDEX('Compile Data'!$AL$12:$BI$93,$A41-1921,'Report - ALL (DASHBOARD)'!$W$4) -> 375.332277 | D41: =INDEX('Compile Data'!$BL$12:$CI$93,$A41-1921,'Report - ALL (DASHBOARD)'!$W$4) -> 265.148564 | E41: =INDEX('Compile Data'!$CL$12:$DI$93,$A41-1921,'Report - ALL (DASHBOARD)'!$W$4) -> 202.1607488 | F41: =INDEX('Compile Data'!$DL$12:$EI$93,$A41-1921,'Report - ALL (DASHBOARD)'!$W$4) -> 304.286946 | G41: =INDEX('Compile Data'!$EL$12:$FI$93,$A41-1921,'Report - ALL (DASHBOARD)'!$W$4) ->  | O41: 14 | P41: 0.1604938272 | Q41: =INDEX('Compile Data'!$L$123:$AI$204,$O41,'Report - ALL (DASHBOARD)'!$W$4) -> 0 | R41: =INDEX('Compile Data'!$AL$123:$BI$204,$O41,'Report - ALL (DASHBOARD)'!$W$4) -> 499.8350798 | S41: =INDEX('Compile Data'!$BL$123:$CI$204,$O41,'Report - ALL (DASHBOARD)'!$W$4) -> 424.8903801 | T41: =INDEX('Compile Data'!$CL$123:$DI$204,$O41,'Report - ALL (DASHBOARD)'!$W$4) -> 420.038383 | U41: =INDEX('Compile Data'!$DL$123:$EI$204,$O41,'Report - ALL (DASHBOARD)'!$W$4) -> 435.3254605 | V41: =INDEX('Compile Data'!$EL$123:$FI$204,$O41,'Report - ALL (DASHBOARD)'!$W$4) -> 
A42: 1936 | B42: =INDEX('Compile Data'!$L$12:$AI$93,$A42-1921,'Report - ALL (DASHBOARD)'!$W$4) -> 0 | C42: =INDEX('Compile Data'!$AL$12:$BI$93,$A42-1921,'Report - ALL (DASHBOARD)'!$W$4) -> 279.9274123 | D42: =INDEX('Compile Data'!$BL$12:$CI$93,$A42-1921,'Report - ALL (DASHBOARD)'!$W$4) -> 187.853831 | E42: =INDEX('Compile Data'!$CL$12:$DI$93,$A42-1921,'Report - ALL (DASHBOARD)'!$W$4) -> 123.5609041 | F42: =INDEX('Compile Data'!$DL$12:$EI$93,$A42-1921,'Report - ALL (DASHBOARD)'!$W$4) -> 189.0138162 | G42: =INDEX('Compile Data'!$EL$12:$FI$93,$A42-1921,'Report - ALL (DASHBOARD)'!$W$4) ->  | O42: 15 | P42: 0.1728395062 | Q42: =INDEX('Compile Data'!$L$123:$AI$204,$O42,'Report - ALL (DASHBOARD)'!$W$4) -> 0 | R42: =INDEX('Compile Data'!$AL$123:$BI$204,$O42,'Report - ALL (DASHBOARD)'!$W$4) -> 487.959368 | S42: =INDEX('Compile Data'!$BL$123:$CI$204,$O42,'Report - ALL (DASHBOARD)'!$W$4) -> 415.5942046 | T42: =INDEX('Compile Data'!$CL$123:$DI$204,$O42,'Report - ALL (DASHBOARD)'!$W$4) -> 417.4027075 | U42: =INDEX('Compile Data'!$DL$123:$EI$204,$O42,'Report - ALL (DASHBOARD)'!$W$4) -> 429.1836237 | V42: =INDEX('Compile Data'!$EL$123:$FI$204,$O42,'Report - ALL (DASHBOARD)'!$W$4) -> 
A43: 1937 | B43: =INDEX('Compile Data'!$L$12:$AI$93,$A43-1921,'Report - ALL (DASHBOARD)'!$W$4) -> 0 | C43: =INDEX('Compile Data'!$AL$12:$BI$93,$A43-1921,'Report - ALL (DASHBOARD)'!$W$4) -> 242.0984002 | D43: =INDEX('Compile Data'!$BL$12:$CI$93,$A43-1921,'Report - ALL (DASHBOARD)'!$W$4) -> 187.6760665 | E43: =INDEX('Compile Data'!$CL$12:$DI$93,$A43-1921,'Report - ALL (DASHBOARD)'!$W$4) -> 129.4907203 | F43: =INDEX('Compile Data'!$DL$12:$EI$93,$A43-1921,'Report - ALL (DASHBOARD)'!$W$4) -> 189.7096786 | G43: =INDEX('Compile Data'!$EL$12:$FI$93,$A43-1921,'Report - ALL (DASHBOARD)'!$W$4) ->  | O43: 16 | P43: 0.1851851852 | Q43: =INDEX('Compile Data'!$L$123:$AI$204,$O43,'Report - ALL (DASHBOARD)'!$W$4) -> 0 | R43: =INDEX('Compile Data'!$AL$123:$BI$204,$O43,'Report - ALL (DASHBOARD)'!$W$4) -> 453.3557695 | S43: =INDEX('Compile Data'!$BL$123:$CI$204,$O43,'Report - ALL (DASHBOARD)'!$W$4) -> 404.3667697 | T43: =INDEX('Compile Data'!$CL$123:$DI$204,$O43,'Report - ALL (DASHBOARD)'!$W$4) -> 365.5904042 | U43: =INDEX('Compile Data'!$DL$123:$EI$204,$O43,'Report - ALL (DASHBOARD)'!$W$4) -> 421.3819217 | V43: =INDEX('Compile Data'!$EL$123:$FI$204,$O43,'Report - ALL (DASHBOARD)'!$W$4) -> 
A44: 1938 | B44: =INDEX('Compile Data'!$L$12:$AI$93,$A44-1921,'Report - ALL (DASHBOARD)'!$W$4) -> 0 | C44: =INDEX('Compile Data'!$AL$12:$BI$93,$A44-1921,'Report - ALL (DASHBOARD)'!$W$4) -> 119.5100483 | D44: =INDEX('Compile Data'!$BL$12:$CI$93,$A44-1921,'Report - ALL (DASHBOARD)'!$W$4) -> 116.2904826 | E44: =INDEX('Compile Data'!$CL$12:$DI$93,$A44-1921,'Report - ALL (DASHBOARD)'!$W$4) -> 120.9611 | F44: =INDEX('Compile Data'!$DL$12:$EI$93,$A44-1921,'Report - ALL (DASHBOARD)'!$W$4) -> 119.4910554 | G44: =INDEX('Compile Data'!$EL$12:$FI$93,$A44-1921,'Report - ALL (DASHBOARD)'!$W$4) ->  | O44: 17 | P44: 0.1975308642 | Q44: =INDEX('Compile Data'!$L$123:$AI$204,$O44,'Report - ALL (DASHBOARD)'!$W$4) -> 0 | R44: =INDEX('Compile Data'!$AL$123:$BI$204,$O44,'Report - ALL (DASHBOARD)'!$W$4) -> 429.4671523 | S44: =INDEX('Compile Data'!$BL$123:$CI$204,$O44,'Report - ALL (DASHBOARD)'!$W$4) -> 372.4672265 | T44: =INDEX('Compile Data'!$CL$123:$DI$204,$O44,'Report - ALL (DASHBOARD)'!$W$4) -> 338.7109285 | U44: =INDEX('Compile Data'!$DL$123:$EI$204,$O44,'Report - ALL (DASHBOARD)'!$W$4) -> 411.300684 | V44: =INDEX('Compile Data'!$EL$123:$FI$204,$O44,'Report - ALL (DASHBOARD)'!$W$4) -> 
A45: 1939 | B45: =INDEX('Compile Data'!$L$12:$AI$93,$A45-1921,'Report - ALL (DASHBOARD)'!$W$4) -> 0 | C45: =INDEX('Compile Data'!$AL$12:$BI$93,$A45-1921,'Report - ALL (DASHBOARD)'!$W$4) -> 606.4877782 | D45: =INDEX('Compile Data'!$BL$12:$CI$93,$A45-1921,'Report - ALL (DASHBOARD)'!$W$4) -> 599.0825714 | E45: =INDEX('Compile Data'!$CL$12:$DI$93,$A45-1921,'Report - ALL (DASHBOARD)'!$W$4) -> 563.2579829 | F45: =INDEX('Compile Data'!$DL$12:$EI$93,$A45-1921,'Report - ALL (DASHBOARD)'!$W$4) -> 604.3714544 | G45: =INDEX('Compile Data'!$EL$12:$FI$93,$A45-1921,'Report - ALL (DASHBOARD)'!$W$4) ->  | O45: 18 | P45: 0.2098765432 | Q45: =INDEX('Compile Data'!$L$123:$AI$204,$O45,'Report - ALL (DASHBOARD)'!$W$4) -> 0 | R45: =INDEX('Compile Data'!$AL$123:$BI$204,$O45,'Report - ALL (DASHBOARD)'!$W$4) -> 396.0654554 | S45: =INDEX('Compile Data'!$BL$123:$CI$204,$O45,'Report - ALL (DASHBOARD)'!$W$4) -> 291.4052964 | T45: =INDEX('Compile Data'!$CL$123:$DI$204,$O45,'Report - ALL (DASHBOARD)'!$W$4) -> 291.4096907 | U45: =INDEX('Compile Data'!$DL$123:$EI$204,$O45,'Report - ALL (DASHBOARD)'!$W$4) -> 304.286946 | V45: =INDEX('Compile Data'!$EL$123:$FI$204,$O45,'Report - ALL (DASHBOARD)'!$W$4) -> 
A46: 1940 | B46: =INDEX('Compile Data'!$L$12:$AI$93,$A46-1921,'Report - ALL (DASHBOARD)'!$W$4) -> 0 | C46: =INDEX('Compile Data'!$AL$12:$BI$93,$A46-1921,'Report - ALL (DASHBOARD)'!$W$4) -> 95.28211885 | D46: =INDEX('Compile Data'!$BL$12:$CI$93,$A46-1921,'Report - ALL (DASHBOARD)'!$W$4) -> 95.20114176 | E46: =INDEX('Compile Data'!$CL$12:$DI$93,$A46-1921,'Report - ALL (DASHBOARD)'!$W$4) -> 94.69756019 | F46: =INDEX('Compile Data'!$DL$12:$EI$93,$A46-1921,'Report - ALL (DASHBOARD)'!$W$4) -> 95.24078373 | G46: =INDEX('Compile Data'!$EL$12:$FI$93,$A46-1921,'Report - ALL (DASHBOARD)'!$W$4) ->  | O46: 19 | P46: 0.2222222222 | Q46: =INDEX('Compile Data'!$L$123:$AI$204,$O46,'Report - ALL (DASHBOARD)'!$W$4) -> 0 | R46: =INDEX('Compile Data'!$AL$123:$BI$204,$O46,'Report - ALL (DASHBOARD)'!$W$4) -> 375.332277 | S46: =INDEX('Compile Data'!$BL$123:$CI$204,$O46,'Report - ALL (DASHBOARD)'!$W$4) -> 272.8025567 | T46: =INDEX('Compile Data'!$CL$123:$DI$204,$O46,'Report - ALL (DASHBOARD)'!$W$4) -> 272.7394374 | U46: =INDEX('Compile Data'!$DL$123:$EI$204,$O46,'Report - ALL (DASHBOARD)'!$W$4) -> 291.4097495 | V46: =INDEX('Compile Data'!$EL$123:$FI$204,$O46,'Report - ALL (DASHBOARD)'!$W$4) -> 
A47: 1941 | B47: =INDEX('Compile Data'!$L$12:$AI$93,$A47-1921,'Report - ALL (DASHBOARD)'!$W$4) -> 0 | C47: =INDEX('Compile Data'!$AL$12:$BI$93,$A47-1921,'Report - ALL (DASHBOARD)'!$W$4) -> 85.2586207 | D47: =INDEX('Compile Data'!$BL$12:$CI$93,$A47-1921,'Report - ALL (DASHBOARD)'!$W$4) -> 85.2586207 | E47: =INDEX('Compile Data'!$CL$12:$DI$93,$A47-1921,'Report - ALL (DASHBOARD)'!$W$4) -> 85.2586207 | F47: =INDEX('Compile Data'!$DL$12:$EI$93,$A47-1921,'Report - ALL (DASHBOARD)'!$W$4) -> 85.2586207 | G47: =INDEX('Compile Data'!$EL$12:$FI$93,$A47-1921,'Report - ALL (DASHBOARD)'!$W$4) ->  | O47: 20 | P47: 0.2345679012 | Q47: =INDEX('Compile Data'!$L$123:$AI$204,$O47,'Report - ALL (DASHBOARD)'!$W$4) -> 0 | R47: =INDEX('Compile Data'!$AL$123:$BI$204,$O47,'Report - ALL (DASHBOARD)'!$W$4) -> 340.9593192 | S47: =INDEX('Compile Data'!$BL$123:$CI$204,$O47,'Report - ALL (DASHBOARD)'!$W$4) -> 265.148564 | T47: =INDEX('Compile Data'!$CL$123:$DI$204,$O47,'Report - ALL (DASHBOARD)'!$W$4) -> 264.9619978 | U47: =INDEX('Compile Data'!$DL$123:$EI$204,$O47,'Report - ALL (DASHBOARD)'!$W$4) -> 275.9583489 | V47: =INDEX('Compile Data'!$EL$123:$FI$204,$O47,'Report - ALL (DASHBOARD)'!$W$4) -> 
A48: 1942 | B48: =INDEX('Compile Data'!$L$12:$AI$93,$A48-1921,'Report - ALL (DASHBOARD)'!$W$4) -> 0 | C48: =INDEX('Compile Data'!$AL$12:$BI$93,$A48-1921,'Report - ALL (DASHBOARD)'!$W$4) -> 85.2586207 | D48: =INDEX('Compile Data'!$BL$12:$CI$93,$A48-1921,'Report - ALL (DASHBOARD)'!$W$4) -> 85.2586207 | E48: =INDEX('Compile Data'!$CL$12:$DI$93,$A48-1921,'Report - ALL (DASHBOARD)'!$W$4) -> 85.2586207 | F48: =INDEX('Compile Data'!$DL$12:$EI$93,$A48-1921,'Report - ALL (DASHBOARD)'!$W$4) -> 85.2586207 | G48: =INDEX('Compile Data'!$EL$12:$FI$93,$A48-1921,'Report - ALL (DASHBOARD)'!$W$4) ->  | O48: 21 | P48: 0.2469135802 | Q48: =INDEX('Compile Data'!$L$123:$AI$204,$O48,'Report - ALL (DASHBOARD)'!$W$4) -> 0 | R48: =INDEX('Compile Data'!$AL$123:$BI$204,$O48,'Report - ALL (DASHBOARD)'!$W$4) -> 305.1122582 | S48: =INDEX('Compile Data'!$BL$123:$CI$204,$O48,'Report - ALL (DASHBOARD)'!$W$4) -> 262.8713801 | T48: =INDEX('Compile Data'!$CL$123:$DI$204,$O48,'Report - ALL (DASHBOARD)'!$W$4) -> 256.82 | U48: =INDEX('Compile Data'!$DL$123:$EI$204,$O48,'Report - ALL (DASHBOARD)'!$W$4) -> 272.8022764 | V48: =INDEX('Compile Data'!$EL$123:$FI$204,$O48,'Report - ALL (DASHBOARD)'!$W$4) -> 
A49: 1943 | B49: =INDEX('Compile Data'!$L$12:$AI$93,$A49-1921,'Report - ALL (DASHBOARD)'!$W$4) -> 0 | C49: =INDEX('Compile Data'!$AL$12:$BI$93,$A49-1921,'Report - ALL (DASHBOARD)'!$W$4) -> 109.4422722 | D49: =INDEX('Compile Data'!$BL$12:$CI$93,$A49-1921,'Report - ALL (DASHBOARD)'!$W$4) -> 109.4423105 | E49: =INDEX('Compile Data'!$CL$12:$DI$93,$A49-1921,'Report - ALL (DASHBOARD)'!$W$4) -> 109.4423095 | F49: =INDEX('Compile Data'!$DL$12:$EI$93,$A49-1921,'Report - ALL (DASHBOARD)'!$W$4) -> 109.4422921 | G49: =INDEX('Compile Data'!$EL$12:$FI$93,$A49-1921,'Report - ALL (DASHBOARD)'!$W$4) ->  | O49: 22 | P49: 0.2592592593 | Q49: =INDEX('Compile Data'!$L$123:$AI$204,$O49,'Report - ALL (DASHBOARD)'!$W$4) -> 0 | R49: =INDEX('Compile Data'!$AL$123:$BI$204,$O49,'Report - ALL (DASHBOARD)'!$W$4) -> 291.4105858 | S49: =INDEX('Compile Data'!$BL$123:$CI$204,$O49,'Report - ALL (DASHBOARD)'!$W$4) -> 258.5247003 | T49: =INDEX('Compile Data'!$CL$123:$DI$204,$O49,'Report - ALL (DASHBOARD)'!$W$4) -> 246.2451862 | U49: =INDEX('Compile Data'!$DL$123:$EI$204,$O49,'Report - ALL (DASHBOARD)'!$W$4) -> 256.8231171 | V49: =INDEX('Compile Data'!$EL$123:$FI$204,$O49,'Report - ALL (DASHBOARD)'!$W$4) -> 
A50: 1944 | B50: =INDEX('Compile Data'!$L$12:$AI$93,$A50-1921,'Report - ALL (DASHBOARD)'!$W$4) -> 0 | C50: =INDEX('Compile Data'!$AL$12:$BI$93,$A50-1921,'Report - ALL (DASHBOARD)'!$W$4) -> 570.3568748 | D50: =INDEX('Compile Data'!$BL$12:$CI$93,$A50-1921,'Report - ALL (DASHBOARD)'!$W$4) -> 545.4549132 | E50: =INDEX('Compile Data'!$CL$12:$DI$93,$A50-1921,'Report - ALL (DASHBOARD)'!$W$4) -> 530.3953322 | F50: =INDEX('Compile Data'!$DL$12:$EI$93,$A50-1921,'Report - ALL (DASHBOARD)'!$W$4) -> 545.4553366 | G50: =INDEX('Compile Data'!$EL$12:$FI$93,$A50-1921,'Report - ALL (DASHBOARD)'!$W$4) ->  | O50: 23 | P50: 0.2716049383 | Q50: =INDEX('Compile Data'!$L$123:$AI$204,$O50,'Report - ALL (DASHBOARD)'!$W$4) -> 0 | R50: =INDEX('Compile Data'!$AL$123:$BI$204,$O50,'Report - ALL (DASHBOARD)'!$W$4) -> 279.9274123 | S50: =INDEX('Compile Data'!$BL$123:$CI$204,$O50,'Report - ALL (DASHBOARD)'!$W$4) -> 256.8231221 | T50: =INDEX('Compile Data'!$CL$123:$DI$204,$O50,'Report - ALL (DASHBOARD)'!$W$4) -> 218.7518508 | U50: =INDEX('Compile Data'!$DL$123:$EI$204,$O50,'Report - ALL (DASHBOARD)'!$W$4) -> 238.5956959 | V50: =INDEX('Compile Data'!$EL$123:$FI$204,$O50,'Report - ALL (DASHBOARD)'!$W$4) -> 
A51: 1945 | B51: =INDEX('Compile Data'!$L$12:$AI$93,$A51-1921,'Report - ALL (DASHBOARD)'!$W$4) -> 0 | C51: =INDEX('Compile Data'!$AL$12:$BI$93,$A51-1921,'Report - ALL (DASHBOARD)'!$W$4) -> 249.998961 | D51: =INDEX('Compile Data'!$BL$12:$CI$93,$A51-1921,'Report - ALL (DASHBOARD)'!$W$4) -> 187.6834806 | E51: =INDEX('Compile Data'!$CL$12:$DI$93,$A51-1921,'Report - ALL (DASHBOARD)'!$W$4) -> 187.139243 | F51: =INDEX('Compile Data'!$DL$12:$EI$93,$A51-1921,'Report - ALL (DASHBOARD)'!$W$4) -> 187.8710684 | G51: =INDEX('Compile Data'!$EL$12:$FI$93,$A51-1921,'Report - ALL (DASHBOARD)'!$W$4) ->  | O51: 24 | P51: 0.2839506173 | Q51: =INDEX('Compile Data'!$L$123:$AI$204,$O51,'Report - ALL (DASHBOARD)'!$W$4) -> 0 | R51: =INDEX('Compile Data'!$AL$123:$BI$204,$O51,'Report - ALL (DASHBOARD)'!$W$4) -> 273.1211991 | S51: =INDEX('Compile Data'!$BL$123:$CI$204,$O51,'Report - ALL (DASHBOARD)'!$W$4) -> 223.3246054 | T51: =INDEX('Compile Data'!$CL$123:$DI$204,$O51,'Report - ALL (DASHBOARD)'!$W$4) -> 218.5146529 | U51: =INDEX('Compile Data'!$DL$123:$EI$204,$O51,'Report - ALL (DASHBOARD)'!$W$4) -> 230.3059624 | V51: =INDEX('Compile Data'!$EL$123:$FI$204,$O51,'Report - ALL (DASHBOARD)'!$W$4) -> 
A52: 1946 | B52: =INDEX('Compile Data'!$L$12:$AI$93,$A52-1921,'Report - ALL (DASHBOARD)'!$W$4) -> 0 | C52: =INDEX('Compile Data'!$AL$12:$BI$93,$A52-1921,'Report - ALL (DASHBOARD)'!$W$4) -> 109.8812096 | D52: =INDEX('Compile Data'!$BL$12:$CI$93,$A52-1921,'Report - ALL (DASHBOARD)'!$W$4) -> 102.6774969 | E52: =INDEX('Compile Data'!$CL$12:$DI$93,$A52-1921,'Report - ALL (DASHBOARD)'!$W$4) -> 101.651145 | F52: =INDEX('Compile Data'!$DL$12:$EI$93,$A52-1921,'Report - ALL (DASHBOARD)'!$W$4) -> 102.9792863 | G52: =INDEX('Compile Data'!$EL$12:$FI$93,$A52-1921,'Report - ALL (DASHBOARD)'!$W$4) ->  | O52: 25 | P52: 0.2962962963 | Q52: =INDEX('Compile Data'!$L$123:$AI$204,$O52,'Report - ALL (DASHBOARD)'!$W$4) -> 0 | R52: =INDEX('Compile Data'!$AL$123:$BI$204,$O52,'Report - ALL (DASHBOARD)'!$W$4) -> 261.9335183 | S52: =INDEX('Compile Data'!$BL$123:$CI$204,$O52,'Report - ALL (DASHBOARD)'!$W$4) -> 218.5146422 | T52: =INDEX('Compile Data'!$CL$123:$DI$204,$O52,'Report - ALL (DASHBOARD)'!$W$4) -> 202.1607488 | U52: =INDEX('Compile Data'!$DL$123:$EI$204,$O52,'Report - ALL (DASHBOARD)'!$W$4) -> 220.3246924 | V52: =INDEX('Compile Data'!$EL$123:$FI$204,$O52,'Report - ALL (DASHBOARD)'!$W$4) -> 
A53: 1947 | B53: =INDEX('Compile Data'!$L$12:$AI$93,$A53-1921,'Report - ALL (DASHBOARD)'!$W$4) -> 0 | C53: =INDEX('Compile Data'!$AL$12:$BI$93,$A53-1921,'Report - ALL (DASHBOARD)'!$W$4) -> 453.3557695 | D53: =INDEX('Compile Data'!$BL$12:$CI$93,$A53-1921,'Report - ALL (DASHBOARD)'!$W$4) -> 444.5215954 | E53: =INDEX('Compile Data'!$CL$12:$DI$93,$A53-1921,'Report - ALL (DASHBOARD)'!$W$4) -> 437.3757753 | F53: =INDEX('Compile Data'!$DL$12:$EI$93,$A53-1921,'Report - ALL (DASHBOARD)'!$W$4) -> 438.4075081 | G53: =INDEX('Compile Data'!$EL$12:$FI$93,$A53-1921,'Report - ALL (DASHBOARD)'!$W$4) ->  | O53: 26 | P53: 0.3086419753 | Q53: =INDEX('Compile Data'!$L$123:$AI$204,$O53,'Report - ALL (DASHBOARD)'!$W$4) -> 0 | R53: =INDEX('Compile Data'!$AL$123:$BI$204,$O53,'Report - ALL (DASHBOARD)'!$W$4) -> 256.8226006 | S53: =INDEX('Compile Data'!$BL$123:$CI$204,$O53,'Report - ALL (DASHBOARD)'!$W$4) -> 192.7386182 | T53: =INDEX('Compile Data'!$CL$123:$DI$204,$O53,'Report - ALL (DASHBOARD)'!$W$4) -> 192.779433 | U53: =INDEX('Compile Data'!$DL$123:$EI$204,$O53,'Report - ALL (DASHBOARD)'!$W$4) -> 209.0466287 | V53: =INDEX('Compile Data'!$EL$123:$FI$204,$O53,'Report - ALL (DASHBOARD)'!$W$4) -> 
A54: 1948 | B54: =INDEX('Compile Data'!$L$12:$AI$93,$A54-1921,'Report - ALL (DASHBOARD)'!$W$4) -> 0 | C54: =INDEX('Compile Data'!$AL$12:$BI$93,$A54-1921,'Report - ALL (DASHBOARD)'!$W$4) -> 97.04158632 | D54: =INDEX('Compile Data'!$BL$12:$CI$93,$A54-1921,'Report - ALL (DASHBOARD)'!$W$4) -> 41.14982438 | E54: =INDEX('Compile Data'!$CL$12:$DI$93,$A54-1921,'Report - ALL (DASHBOARD)'!$W$4) -> 41.09894896 | F54: =INDEX('Compile Data'!$DL$12:$EI$93,$A54-1921,'Report - ALL (DASHBOARD)'!$W$4) -> 70.48616713 | G54: =INDEX('Compile Data'!$EL$12:$FI$93,$A54-1921,'Report - ALL (DASHBOARD)'!$W$4) ->  | O54: 27 | P54: 0.3209876543 | Q54: =INDEX('Compile Data'!$L$123:$AI$204,$O54,'Report - ALL (DASHBOARD)'!$W$4) -> 0 | R54: =INDEX('Compile Data'!$AL$123:$BI$204,$O54,'Report - ALL (DASHBOARD)'!$W$4) -> 249.998961 | S54: =INDEX('Compile Data'!$BL$123:$CI$204,$O54,'Report - ALL (DASHBOARD)'!$W$4) -> 188.4488478 | T54: =INDEX('Compile Data'!$CL$123:$DI$204,$O54,'Report - ALL (DASHBOARD)'!$W$4) -> 187.139243 | U54: =INDEX('Compile Data'!$DL$123:$EI$204,$O54,'Report - ALL (DASHBOARD)'!$W$4) -> 190.5309247 | V54: =INDEX('Compile Data'!$EL$123:$FI$204,$O54,'Report - ALL (DASHBOARD)'!$W$4) -> 
A55: 1949 | B55: =INDEX('Compile Data'!$L$12:$AI$93,$A55-1921,'Report - ALL (DASHBOARD)'!$W$4) -> 0 | C55: =INDEX('Compile Data'!$AL$12:$BI$93,$A55-1921,'Report - ALL (DASHBOARD)'!$W$4) -> 396.0654554 | D55: =INDEX('Compile Data'!$BL$12:$CI$93,$A55-1921,'Report - ALL (DASHBOARD)'!$W$4) -> 262.8713801 | E55: =INDEX('Compile Data'!$CL$12:$DI$93,$A55-1921,'Report - ALL (DASHBOARD)'!$W$4) -> 264.9619978 | F55: =INDEX('Compile Data'!$DL$12:$EI$93,$A55-1921,'Report - ALL (DASHBOARD)'!$W$4) -> 238.5956959 | G55: =INDEX('Compile Data'!$EL$12:$FI$93,$A55-1921,'Report - ALL (DASHBOARD)'!$W$4) ->  | O55: 28 | P55: 0.3333333333 | Q55: =INDEX('Compile Data'!$L$123:$AI$204,$O55,'Report - ALL (DASHBOARD)'!$W$4) -> 0 | R55: =INDEX('Compile Data'!$AL$123:$BI$204,$O55,'Report - ALL (DASHBOARD)'!$W$4) -> 242.0984002 | S55: =INDEX('Compile Data'!$BL$123:$CI$204,$O55,'Report - ALL (DASHBOARD)'!$W$4) -> 187.853831 | T55: =INDEX('Compile Data'!$CL$123:$DI$204,$O55,'Report - ALL (DASHBOARD)'!$W$4) -> 185.0055239 | U55: =INDEX('Compile Data'!$DL$123:$EI$204,$O55,'Report - ALL (DASHBOARD)'!$W$4) -> 189.8904136 | V55: =INDEX('Compile Data'!$EL$123:$FI$204,$O55,'Report - ALL (DASHBOARD)'!$W$4) -> 
A56: 1950 | B56: =INDEX('Compile Data'!$L$12:$AI$93,$A56-1921,'Report - ALL (DASHBOARD)'!$W$4) -> 0 | C56: =INDEX('Compile Data'!$AL$12:$BI$93,$A56-1921,'Report - ALL (DASHBOARD)'!$W$4) -> 156.8399599 | D56: =INDEX('Compile Data'!$BL$12:$CI$93,$A56-1921,'Report - ALL (DASHBOARD)'!$W$4) -> 68.1104961 | E56: =INDEX('Compile Data'!$CL$12:$DI$93,$A56-1921,'Report - ALL (DASHBOARD)'!$W$4) -> 22.61037649 | F56: =INDEX('Compile Data'!$DL$12:$EI$93,$A56-1921,'Report - ALL (DASHBOARD)'!$W$4) -> 117.9612936 | G56: =INDEX('Compile Data'!$EL$12:$FI$93,$A56-1921,'Report - ALL (DASHBOARD)'!$W$4) ->  | O56: 29 | P56: 0.3456790123 | Q56: =INDEX('Compile Data'!$L$123:$AI$204,$O56,'Report - ALL (DASHBOARD)'!$W$4) -> 0 | R56: =INDEX('Compile Data'!$AL$123:$BI$204,$O56,'Report - ALL (DASHBOARD)'!$W$4) -> 230.3089938 | S56: =INDEX('Compile Data'!$BL$123:$CI$204,$O56,'Report - ALL (DASHBOARD)'!$W$4) -> 187.6834806 | T56: =INDEX('Compile Data'!$CL$123:$DI$204,$O56,'Report - ALL (DASHBOARD)'!$W$4) -> 172.8660301 | U56: =INDEX('Compile Data'!$DL$123:$EI$204,$O56,'Report - ALL (DASHBOARD)'!$W$4) -> 189.7096786 | V56: =INDEX('Compile Data'!$EL$123:$FI$204,$O56,'Report - ALL (DASHBOARD)'!$W$4) -> 
A57: 1951 | B57: =INDEX('Compile Data'!$L$12:$AI$93,$A57-1921,'Report - ALL (DASHBOARD)'!$W$4) -> 0 | C57: =INDEX('Compile Data'!$AL$12:$BI$93,$A57-1921,'Report - ALL (DASHBOARD)'!$W$4) -> 141.9839933 | D57: =INDEX('Compile Data'!$BL$12:$CI$93,$A57-1921,'Report - ALL (DASHBOARD)'!$W$4) -> 119.6200762 | E57: =INDEX('Compile Data'!$CL$12:$DI$93,$A57-1921,'Report - ALL (DASHBOARD)'!$W$4) -> 113.2181962 | F57: =INDEX('Compile Data'!$DL$12:$EI$93,$A57-1921,'Report - ALL (DASHBOARD)'!$W$4) -> 138.3826278 | G57: =INDEX('Compile Data'!$EL$12:$FI$93,$A57-1921,'Report - ALL (DASHBOARD)'!$W$4) ->  | O57: 30 | P57: 0.3580246914 | Q57: =INDEX('Compile Data'!$L$123:$AI$204,$O57,'Report - ALL (DASHBOARD)'!$W$4) -> 0 | R57: =INDEX('Compile Data'!$AL$123:$BI$204,$O57,'Report - ALL (DASHBOARD)'!$W$4) -> 220.3246924 | S57: =INDEX('Compile Data'!$BL$123:$CI$204,$O57,'Report - ALL (DASHBOARD)'!$W$4) -> 187.6760665 | T57: =INDEX('Compile Data'!$CL$123:$DI$204,$O57,'Report - ALL (DASHBOARD)'!$W$4) -> 166.4460088 | U57: =INDEX('Compile Data'!$DL$123:$EI$204,$O57,'Report - ALL (DASHBOARD)'!$W$4) -> 189.0138162 | V57: =INDEX('Compile Data'!$EL$123:$FI$204,$O57,'Report - ALL (DASHBOARD)'!$W$4) -> 
A58: 1952 | B58: =INDEX('Compile Data'!$L$12:$AI$93,$A58-1921,'Report - ALL (DASHBOARD)'!$W$4) -> 0 | C58: =INDEX('Compile Data'!$AL$12:$BI$93,$A58-1921,'Report - ALL (DASHBOARD)'!$W$4) -> 107.5652031 | D58: =INDEX('Compile Data'!$BL$12:$CI$93,$A58-1921,'Report - ALL (DASHBOARD)'!$W$4) -> 107.5652031 | E58: =INDEX('Compile Data'!$CL$12:$DI$93,$A58-1921,'Report - ALL (DASHBOARD)'!$W$4) -> 107.5652031 | F58: =INDEX('Compile Data'!$DL$12:$EI$93,$A58-1921,'Report - ALL (DASHBOARD)'!$W$4) -> 107.5652031 | G58: =INDEX('Compile Data'!$EL$12:$FI$93,$A58-1921,'Report - ALL (DASHBOARD)'!$W$4) ->  | O58: 31 | P58: 0.3703703704 | Q58: =INDEX('Compile Data'!$L$123:$AI$204,$O58,'Report - ALL (DASHBOARD)'!$W$4) -> 0 | R58: =INDEX('Compile Data'!$AL$123:$BI$204,$O58,'Report - ALL (DASHBOARD)'!$W$4) -> 213.2337513 | S58: =INDEX('Compile Data'!$BL$123:$CI$204,$O58,'Report - ALL (DASHBOARD)'!$W$4) -> 176.0436022 | T58: =INDEX('Compile Data'!$CL$123:$DI$204,$O58,'Report - ALL (DASHBOARD)'!$W$4) -> 158.3085341 | U58: =INDEX('Compile Data'!$DL$123:$EI$204,$O58,'Report - ALL (DASHBOARD)'!$W$4) -> 187.8710684 | V58: =INDEX('Compile Data'!$EL$123:$FI$204,$O58,'Report - ALL (DASHBOARD)'!$W$4) -> 
A59: 1953 | B59: =INDEX('Compile Data'!$L$12:$AI$93,$A59-1921,'Report - ALL (DASHBOARD)'!$W$4) -> 0 | C59: =INDEX('Compile Data'!$AL$12:$BI$93,$A59-1921,'Report - ALL (DASHBOARD)'!$W$4) -> 90.56843366 | D59: =INDEX('Compile Data'!$BL$12:$CI$93,$A59-1921,'Report - ALL (DASHBOARD)'!$W$4) -> 90.56843366 | E59: =INDEX('Compile Data'!$CL$12:$DI$93,$A59-1921,'Report - ALL (DASHBOARD)'!$W$4) -> 90.56843366 | F59: =INDEX('Compile Data'!$DL$12:$EI$93,$A59-1921,'Report - ALL (DASHBOARD)'!$W$4) -> 90.56843366 | G59: =INDEX('Compile Data'!$EL$12:$FI$93,$A59-1921,'Report - ALL (DASHBOARD)'!$W$4) ->  | O59: 32 | P59: 0.3827160494 | Q59: =INDEX('Compile Data'!$L$123:$AI$204,$O59,'Report - ALL (DASHBOARD)'!$W$4) -> 0 | R59: =INDEX('Compile Data'!$AL$123:$BI$204,$O59,'Report - ALL (DASHBOARD)'!$W$4) -> 212.2872522 | S59: =INDEX('Compile Data'!$BL$123:$CI$204,$O59,'Report - ALL (DASHBOARD)'!$W$4) -> 166.4452634 | T59: =INDEX('Compile Data'!$CL$123:$DI$204,$O59,'Report - ALL (DASHBOARD)'!$W$4) -> 155.9541745 | U59: =INDEX('Compile Data'!$DL$123:$EI$204,$O59,'Report - ALL (DASHBOARD)'!$W$4) -> 177.1278231 | V59: =INDEX('Compile Data'!$EL$123:$FI$204,$O59,'Report - ALL (DASHBOARD)'!$W$4) -> 
A60: 1954 | B60: =INDEX('Compile Data'!$L$12:$AI$93,$A60-1921,'Report - ALL (DASHBOARD)'!$W$4) -> 0 | C60: =INDEX('Compile Data'!$AL$12:$BI$93,$A60-1921,'Report - ALL (DASHBOARD)'!$W$4) -> 191.0996924 | D60: =INDEX('Compile Data'!$BL$12:$CI$93,$A60-1921,'Report - ALL (DASHBOARD)'!$W$4) -> 192.7386182 | E60: =INDEX('Compile Data'!$CL$12:$DI$93,$A60-1921,'Report - ALL (DASHBOARD)'!$W$4) -> 192.779433 | F60: =INDEX('Compile Data'!$DL$12:$EI$93,$A60-1921,'Report - ALL (DASHBOARD)'!$W$4) -> 190.5309247 | G60: =INDEX('Compile Data'!$EL$12:$FI$93,$A60-1921,'Report - ALL (DASHBOARD)'!$W$4) ->  | O60: 33 | P60: 0.3950617284 | Q60: =INDEX('Compile Data'!$L$123:$AI$204,$O60,'Report - ALL (DASHBOARD)'!$W$4) -> 0 | R60: =INDEX('Compile Data'!$AL$123:$BI$204,$O60,'Report - ALL (DASHBOARD)'!$W$4) -> 191.0996924 | S60: =INDEX('Compile Data'!$BL$123:$CI$204,$O60,'Report - ALL (DASHBOARD)'!$W$4) -> 157.0539922 | T60: =INDEX('Compile Data'!$CL$123:$DI$204,$O60,'Report - ALL (DASHBOARD)'!$W$4) -> 149.0943677 | U60: =INDEX('Compile Data'!$DL$123:$EI$204,$O60,'Report - ALL (DASHBOARD)'!$W$4) -> 173.6777452 | V60: =INDEX('Compile Data'!$EL$123:$FI$204,$O60,'Report - ALL (DASHBOARD)'!$W$4) -> 
A61: 1955 | B61: =INDEX('Compile Data'!$L$12:$AI$93,$A61-1921,'Report - ALL (DASHBOARD)'!$W$4) -> 0 | C61: =INDEX('Compile Data'!$AL$12:$BI$93,$A61-1921,'Report - ALL (DASHBOARD)'!$W$4) -> 577.897407 | D61: =INDEX('Compile Data'!$BL$12:$CI$93,$A61-1921,'Report - ALL (DASHBOARD)'!$W$4) -> 574.3643872 | E61: =INDEX('Compile Data'!$CL$12:$DI$93,$A61-1921,'Report - ALL (DASHBOARD)'!$W$4) -> 562.2563679 | F61: =INDEX('Compile Data'!$DL$12:$EI$93,$A61-1921,'Report - ALL (DASHBOARD)'!$W$4) -> 623.2360824 | G61: =INDEX('Compile Data'!$EL$12:$FI$93,$A61-1921,'Report - ALL (DASHBOARD)'!$W$4) ->  | O61: 34 | P61: 0.4074074074 | Q61: =INDEX('Compile Data'!$L$123:$AI$204,$O61,'Report - ALL (DASHBOARD)'!$W$4) -> 0 | R61: =INDEX('Compile Data'!$AL$123:$BI$204,$O61,'Report - ALL (DASHBOARD)'!$W$4) -> 190.3668853 | S61: =INDEX('Compile Data'!$BL$123:$CI$204,$O61,'Report - ALL (DASHBOARD)'!$W$4) -> 155.2581261 | T61: =INDEX('Compile Data'!$CL$123:$DI$204,$O61,'Report - ALL (DASHBOARD)'!$W$4) -> 137.9101126 | U61: =INDEX('Compile Data'!$DL$123:$EI$204,$O61,'Report - ALL (DASHBOARD)'!$W$4) -> 166.4453508 | V61: =INDEX('Compile Data'!$EL$123:$FI$204,$O61,'Report - ALL (DASHBOARD)'!$W$4) -> 
A62: 1956 | B62: =INDEX('Compile Data'!$L$12:$AI$93,$A62-1921,'Report - ALL (DASHBOARD)'!$W$4) -> 0 | C62: =INDEX('Compile Data'!$AL$12:$BI$93,$A62-1921,'Report - ALL (DASHBOARD)'!$W$4) -> 69.02924856 | D62: =INDEX('Compile Data'!$BL$12:$CI$93,$A62-1921,'Report - ALL (DASHBOARD)'!$W$4) -> 64.44573463 | E62: =INDEX('Compile Data'!$CL$12:$DI$93,$A62-1921,'Report - ALL (DASHBOARD)'!$W$4) -> 65.39009651 | F62: =INDEX('Compile Data'!$DL$12:$EI$93,$A62-1921,'Report - ALL (DASHBOARD)'!$W$4) -> 64.36223359 | G62: =INDEX('Compile Data'!$EL$12:$FI$93,$A62-1921,'Report - ALL (DASHBOARD)'!$W$4) ->  | O62: 35 | P62: 0.4197530864 | Q62: =INDEX('Compile Data'!$L$123:$AI$204,$O62,'Report - ALL (DASHBOARD)'!$W$4) -> 0 | R62: =INDEX('Compile Data'!$AL$123:$BI$204,$O62,'Report - ALL (DASHBOARD)'!$W$4) -> 183.1388507 | S62: =INDEX('Compile Data'!$BL$123:$CI$204,$O62,'Report - ALL (DASHBOARD)'!$W$4) -> 154.9355528 | T62: =INDEX('Compile Data'!$CL$123:$DI$204,$O62,'Report - ALL (DASHBOARD)'!$W$4) -> 129.4907203 | U62: =INDEX('Compile Data'!$DL$123:$EI$204,$O62,'Report - ALL (DASHBOARD)'!$W$4) -> 154.7080463 | V62: =INDEX('Compile Data'!$EL$123:$FI$204,$O62,'Report - ALL (DASHBOARD)'!$W$4) -> 
A63: 1957 | B63: =INDEX('Compile Data'!$L$12:$AI$93,$A63-1921,'Report - ALL (DASHBOARD)'!$W$4) -> 0 | C63: =INDEX('Compile Data'!$AL$12:$BI$93,$A63-1921,'Report - ALL (DASHBOARD)'!$W$4) -> 137.3933909 | D63: =INDEX('Compile Data'!$BL$12:$CI$93,$A63-1921,'Report - ALL (DASHBOARD)'!$W$4) -> 157.0539922 | E63: =INDEX('Compile Data'!$CL$12:$DI$93,$A63-1921,'Report - ALL (DASHBOARD)'!$W$4) -> 158.3085341 | F63: =INDEX('Compile Data'!$DL$12:$EI$93,$A63-1921,'Report - ALL (DASHBOARD)'!$W$4) -> 108.9181946 | G63: =INDEX('Compile Data'!$EL$12:$FI$93,$A63-1921,'Report - ALL (DASHBOARD)'!$W$4) ->  | O63: 36 | P63: 0.4320987654 | Q63: =INDEX('Compile Data'!$L$123:$AI$204,$O63,'Report - ALL (DASHBOARD)'!$W$4) -> 0 | R63: =INDEX('Compile Data'!$AL$123:$BI$204,$O63,'Report - ALL (DASHBOARD)'!$W$4) -> 182.3865765 | S63: =INDEX('Compile Data'!$BL$123:$CI$204,$O63,'Report - ALL (DASHBOARD)'!$W$4) -> 137.9095184 | T63: =INDEX('Compile Data'!$CL$123:$DI$204,$O63,'Report - ALL (DASHBOARD)'!$W$4) -> 124.4354179 | U63: =INDEX('Compile Data'!$DL$123:$EI$204,$O63,'Report - ALL (DASHBOARD)'!$W$4) -> 143.3048413 | V63: =INDEX('Compile Data'!$EL$123:$FI$204,$O63,'Report - ALL (DASHBOARD)'!$W$4) -> 
A64: 1958 | B64: =INDEX('Compile Data'!$L$12:$AI$93,$A64-1921,'Report - ALL (DASHBOARD)'!$W$4) -> 0 | C64: =INDEX('Compile Data'!$AL$12:$BI$93,$A64-1921,'Report - ALL (DASHBOARD)'!$W$4) -> 103.1098604 | D64: =INDEX('Compile Data'!$BL$12:$CI$93,$A64-1921,'Report - ALL (DASHBOARD)'!$W$4) -> 103.1098604 | E64: =INDEX('Compile Data'!$CL$12:$DI$93,$A64-1921,'Report - ALL (DASHBOARD)'!$W$4) -> 103.1098604 | F64: =INDEX('Compile Data'!$DL$12:$EI$93,$A64-1921,'Report - ALL (DASHBOARD)'!$W$4) -> 103.1098604 | G64: =INDEX('Compile Data'!$EL$12:$FI$93,$A64-1921,'Report - ALL (DASHBOARD)'!$W$4) ->  | O64: 37 | P64: 0.4444444444 | Q64: =INDEX('Compile Data'!$L$123:$AI$204,$O64,'Report - ALL (DASHBOARD)'!$W$4) -> 0 | R64: =INDEX('Compile Data'!$AL$123:$BI$204,$O64,'Report - ALL (DASHBOARD)'!$W$4) -> 166.4466652 | S64: =INDEX('Compile Data'!$BL$123:$CI$204,$O64,'Report - ALL (DASHBOARD)'!$W$4) -> 132.1943623 | T64: =INDEX('Compile Data'!$CL$123:$DI$204,$O64,'Report - ALL (DASHBOARD)'!$W$4) -> 123.5609041 | U64: =INDEX('Compile Data'!$DL$123:$EI$204,$O64,'Report - ALL (DASHBOARD)'!$W$4) -> 138.3826278 | V64: =INDEX('Compile Data'!$EL$123:$FI$204,$O64,'Report - ALL (DASHBOARD)'!$W$4) -> 
A65: 1959 | B65: =INDEX('Compile Data'!$L$12:$AI$93,$A65-1921,'Report - ALL (DASHBOARD)'!$W$4) -> 0 | C65: =INDEX('Compile Data'!$AL$12:$BI$93,$A65-1921,'Report - ALL (DASHBOARD)'!$W$4) -> 291.4105858 | D65: =INDEX('Compile Data'!$BL$12:$CI$93,$A65-1921,'Report - ALL (DASHBOARD)'!$W$4) -> 291.4052964 | E65: =INDEX('Compile Data'!$CL$12:$DI$93,$A65-1921,'Report - ALL (DASHBOARD)'!$W$4) -> 291.4096907 | F65: =INDEX('Compile Data'!$DL$12:$EI$93,$A65-1921,'Report - ALL (DASHBOARD)'!$W$4) -> 291.4097495 | G65: =INDEX('Compile Data'!$EL$12:$FI$93,$A65-1921,'Report - ALL (DASHBOARD)'!$W$4) ->  | O65: 38 | P65: 0.4567901235 | Q65: =INDEX('Compile Data'!$L$123:$AI$204,$O65,'Report - ALL (DASHBOARD)'!$W$4) -> 0 | R65: =INDEX('Compile Data'!$AL$123:$BI$204,$O65,'Report - ALL (DASHBOARD)'!$W$4) -> 156.8399599 | S65: =INDEX('Compile Data'!$BL$123:$CI$204,$O65,'Report - ALL (DASHBOARD)'!$W$4) -> 124.7449218 | T65: =INDEX('Compile Data'!$CL$123:$DI$204,$O65,'Report - ALL (DASHBOARD)'!$W$4) -> 120.9611 | U65: =INDEX('Compile Data'!$DL$123:$EI$204,$O65,'Report - ALL (DASHBOARD)'!$W$4) -> 137.9098148 | V65: =INDEX('Compile Data'!$EL$123:$FI$204,$O65,'Report - ALL (DASHBOARD)'!$W$4) -> 
A66: 1960 | B66: =INDEX('Compile Data'!$L$12:$AI$93,$A66-1921,'Report - ALL (DASHBOARD)'!$W$4) -> 0 | C66: =INDEX('Compile Data'!$AL$12:$BI$93,$A66-1921,'Report - ALL (DASHBOARD)'!$W$4) -> 591.6584216 | D66: =INDEX('Compile Data'!$BL$12:$CI$93,$A66-1921,'Report - ALL (DASHBOARD)'!$W$4) -> 510.6061379 | E66: =INDEX('Compile Data'!$CL$12:$DI$93,$A66-1921,'Report - ALL (DASHBOARD)'!$W$4) -> 502.5195342 | F66: =INDEX('Compile Data'!$DL$12:$EI$93,$A66-1921,'Report - ALL (DASHBOARD)'!$W$4) -> 510.6014633 | G66: =INDEX('Compile Data'!$EL$12:$FI$93,$A66-1921,'Report - ALL (DASHBOARD)'!$W$4) ->  | O66: 39 | P66: 0.4691358025 | Q66: =INDEX('Compile Data'!$L$123:$AI$204,$O66,'Report - ALL (DASHBOARD)'!$W$4) -> 0 | R66: =INDEX('Compile Data'!$AL$123:$BI$204,$O66,'Report - ALL (DASHBOARD)'!$W$4) -> 154.7416355 | S66: =INDEX('Compile Data'!$BL$123:$CI$204,$O66,'Report - ALL (DASHBOARD)'!$W$4) -> 119.6200762 | T66: =INDEX('Compile Data'!$CL$123:$DI$204,$O66,'Report - ALL (DASHBOARD)'!$W$4) -> 119.1600171 | U66: =INDEX('Compile Data'!$DL$123:$EI$204,$O66,'Report - ALL (DASHBOARD)'!$W$4) -> 134.1940569 | V66: =INDEX('Compile Data'!$EL$123:$FI$204,$O66,'Report - ALL (DASHBOARD)'!$W$4) -> 
A67: 1961 | B67: =INDEX('Compile Data'!$L$12:$AI$93,$A67-1921,'Report - ALL (DASHBOARD)'!$W$4) -> 0 | C67: =INDEX('Compile Data'!$AL$12:$BI$93,$A67-1921,'Report - ALL (DASHBOARD)'!$W$4) -> 591.0117603 | D67: =INDEX('Compile Data'!$BL$12:$CI$93,$A67-1921,'Report - ALL (DASHBOARD)'!$W$4) -> 560.9960428 | E67: =INDEX('Compile Data'!$CL$12:$DI$93,$A67-1921,'Report - ALL (DASHBOARD)'!$W$4) -> 540.9557256 | F67: =INDEX('Compile Data'!$DL$12:$EI$93,$A67-1921,'Report - ALL (DASHBOARD)'!$W$4) -> 548.8879927 | G67: =INDEX('Compile Data'!$EL$12:$FI$93,$A67-1921,'Report - ALL (DASHBOARD)'!$W$4) ->  | O67: 40 | P67: 0.4814814815 | Q67: =INDEX('Compile Data'!$L$123:$AI$204,$O67,'Report - ALL (DASHBOARD)'!$W$4) -> 0 | R67: =INDEX('Compile Data'!$AL$123:$BI$204,$O67,'Report - ALL (DASHBOARD)'!$W$4) -> 141.9839933 | S67: =INDEX('Compile Data'!$BL$123:$CI$204,$O67,'Report - ALL (DASHBOARD)'!$W$4) -> 119.1600171 | T67: =INDEX('Compile Data'!$CL$123:$DI$204,$O67,'Report - ALL (DASHBOARD)'!$W$4) -> 118.4611 | U67: =INDEX('Compile Data'!$DL$123:$EI$204,$O67,'Report - ALL (DASHBOARD)'!$W$4) -> 129.7480416 | V67: =INDEX('Compile Data'!$EL$123:$FI$204,$O67,'Report - ALL (DASHBOARD)'!$W$4) -> 
A68: 1962 | B68: =INDEX('Compile Data'!$L$12:$AI$93,$A68-1921,'Report - ALL (DASHBOARD)'!$W$4) -> 0 | C68: =INDEX('Compile Data'!$AL$12:$BI$93,$A68-1921,'Report - ALL (DASHBOARD)'!$W$4) -> 212.2872522 | D68: =INDEX('Compile Data'!$BL$12:$CI$93,$A68-1921,'Report - ALL (DASHBOARD)'!$W$4) -> 155.2581261 | E68: =INDEX('Compile Data'!$CL$12:$DI$93,$A68-1921,'Report - ALL (DASHBOARD)'!$W$4) -> 149.0943677 | F68: =INDEX('Compile Data'!$DL$12:$EI$93,$A68-1921,'Report - ALL (DASHBOARD)'!$W$4) -> 177.1278231 | G68: =INDEX('Compile Data'!$EL$12:$FI$93,$A68-1921,'Report - ALL (DASHBOARD)'!$W$4) ->  | O68: 41 | P68: 0.4938271605 | Q68: =INDEX('Compile Data'!$L$123:$AI$204,$O68,'Report - ALL (DASHBOARD)'!$W$4) -> 0 | R68: =INDEX('Compile Data'!$AL$123:$BI$204,$O68,'Report - ALL (DASHBOARD)'!$W$4) -> 140.1448777 | S68: =INDEX('Compile Data'!$BL$123:$CI$204,$O68,'Report - ALL (DASHBOARD)'!$W$4) -> 118.4611 | T68: =INDEX('Compile Data'!$CL$123:$DI$204,$O68,'Report - ALL (DASHBOARD)'!$W$4) -> 118.0455326 | U68: =INDEX('Compile Data'!$DL$123:$EI$204,$O68,'Report - ALL (DASHBOARD)'!$W$4) -> 119.4910554 | V68: =INDEX('Compile Data'!$EL$123:$FI$204,$O68,'Report - ALL (DASHBOARD)'!$W$4) -> 
A69: 1963 | B69: =INDEX('Compile Data'!$L$12:$AI$93,$A69-1921,'Report - ALL (DASHBOARD)'!$W$4) -> 0 | C69: =INDEX('Compile Data'!$AL$12:$BI$93,$A69-1921,'Report - ALL (DASHBOARD)'!$W$4) -> 72.88514719 | D69: =INDEX('Compile Data'!$BL$12:$CI$93,$A69-1921,'Report - ALL (DASHBOARD)'!$W$4) -> 79.14562979 | E69: =INDEX('Compile Data'!$CL$12:$DI$93,$A69-1921,'Report - ALL (DASHBOARD)'!$W$4) -> 75.52365347 | F69: =INDEX('Compile Data'!$DL$12:$EI$93,$A69-1921,'Report - ALL (DASHBOARD)'!$W$4) -> 54.00179123 | G69: =INDEX('Compile Data'!$EL$12:$FI$93,$A69-1921,'Report - ALL (DASHBOARD)'!$W$4) ->  | O69: 42 | P69: 0.5061728395 | Q69: =INDEX('Compile Data'!$L$123:$AI$204,$O69,'Report - ALL (DASHBOARD)'!$W$4) -> 0 | R69: =INDEX('Compile Data'!$AL$123:$BI$204,$O69,'Report - ALL (DASHBOARD)'!$W$4) -> 137.9093073 | S69: =INDEX('Compile Data'!$BL$123:$CI$204,$O69,'Report - ALL (DASHBOARD)'!$W$4) -> 116.2904826 | T69: =INDEX('Compile Data'!$CL$123:$DI$204,$O69,'Report - ALL (DASHBOARD)'!$W$4) -> 113.2181962 | U69: =INDEX('Compile Data'!$DL$123:$EI$204,$O69,'Report - ALL (DASHBOARD)'!$W$4) -> 119.1600171 | V69: =INDEX('Compile Data'!$EL$123:$FI$204,$O69,'Report - ALL (DASHBOARD)'!$W$4) -> 
A70: 1964 | B70: =INDEX('Compile Data'!$L$12:$AI$93,$A70-1921,'Report - ALL (DASHBOARD)'!$W$4) -> 0 | C70: =INDEX('Compile Data'!$AL$12:$BI$93,$A70-1921,'Report - ALL (DASHBOARD)'!$W$4) -> 570.8930373 | D70: =INDEX('Compile Data'!$BL$12:$CI$93,$A70-1921,'Report - ALL (DASHBOARD)'!$W$4) -> 372.4672265 | E70: =INDEX('Compile Data'!$CL$12:$DI$93,$A70-1921,'Report - ALL (DASHBOARD)'!$W$4) -> 365.5904042 | F70: =INDEX('Compile Data'!$DL$12:$EI$93,$A70-1921,'Report - ALL (DASHBOARD)'!$W$4) -> 435.3254605 | G70: =INDEX('Compile Data'!$EL$12:$FI$93,$A70-1921,'Report - ALL (DASHBOARD)'!$W$4) ->  | O70: 43 | P70: 0.5185185185 | Q70: =INDEX('Compile Data'!$L$123:$AI$204,$O70,'Report - ALL (DASHBOARD)'!$W$4) -> 0 | R70: =INDEX('Compile Data'!$AL$123:$BI$204,$O70,'Report - ALL (DASHBOARD)'!$W$4) -> 137.3933909 | S70: =INDEX('Compile Data'!$BL$123:$CI$204,$O70,'Report - ALL (DASHBOARD)'!$W$4) -> 113.9204971 | T70: =INDEX('Compile Data'!$CL$123:$DI$204,$O70,'Report - ALL (DASHBOARD)'!$W$4) -> 112.3592783 | U70: =INDEX('Compile Data'!$DL$123:$EI$204,$O70,'Report - ALL (DASHBOARD)'!$W$4) -> 118.4611 | V70: =INDEX('Compile Data'!$EL$123:$FI$204,$O70,'Report - ALL (DASHBOARD)'!$W$4) -> 
A71: 1965 | B71: =INDEX('Compile Data'!$L$12:$AI$93,$A71-1921,'Report - ALL (DASHBOARD)'!$W$4) -> 0 | C71: =INDEX('Compile Data'!$AL$12:$BI$93,$A71-1921,'Report - ALL (DASHBOARD)'!$W$4) -> 62.25369978 | D71: =INDEX('Compile Data'!$BL$12:$CI$93,$A71-1921,'Report - ALL (DASHBOARD)'!$W$4) -> 51.7083877 | E71: =INDEX('Compile Data'!$CL$12:$DI$93,$A71-1921,'Report - ALL (DASHBOARD)'!$W$4) -> 50.90134641 | F71: =INDEX('Compile Data'!$DL$12:$EI$93,$A71-1921,'Report - ALL (DASHBOARD)'!$W$4) -> 53.2080353 | G71: =INDEX('Compile Data'!$EL$12:$FI$93,$A71-1921,'Report - ALL (DASHBOARD)'!$W$4) ->  | O71: 44 | P71: 0.5308641975 | Q71: =INDEX('Compile Data'!$L$123:$AI$204,$O71,'Report - ALL (DASHBOARD)'!$W$4) -> 0 | R71: =INDEX('Compile Data'!$AL$123:$BI$204,$O71,'Report - ALL (DASHBOARD)'!$W$4) -> 119.5100483 | S71: =INDEX('Compile Data'!$BL$123:$CI$204,$O71,'Report - ALL (DASHBOARD)'!$W$4) -> 112.3592778 | T71: =INDEX('Compile Data'!$CL$123:$DI$204,$O71,'Report - ALL (DASHBOARD)'!$W$4) -> 110.6793513 | U71: =INDEX('Compile Data'!$DL$123:$EI$204,$O71,'Report - ALL (DASHBOARD)'!$W$4) -> 117.9612936 | V71: =INDEX('Compile Data'!$EL$123:$FI$204,$O71,'Report - ALL (DASHBOARD)'!$W$4) -> 
A72: 1966 | B72: =INDEX('Compile Data'!$L$12:$AI$93,$A72-1921,'Report - ALL (DASHBOARD)'!$W$4) -> 0 | C72: =INDEX('Compile Data'!$AL$12:$BI$93,$A72-1921,'Report - ALL (DASHBOARD)'!$W$4) -> 213.2337513 | D72: =INDEX('Compile Data'!$BL$12:$CI$93,$A72-1921,'Report - ALL (DASHBOARD)'!$W$4) -> 188.4488478 | E72: =INDEX('Compile Data'!$CL$12:$DI$93,$A72-1921,'Report - ALL (DASHBOARD)'!$W$4) -> 185.0055239 | F72: =INDEX('Compile Data'!$DL$12:$EI$93,$A72-1921,'Report - ALL (DASHBOARD)'!$W$4) -> 189.8904136 | G72: =INDEX('Compile Data'!$EL$12:$FI$93,$A72-1921,'Report - ALL (DASHBOARD)'!$W$4) ->  | O72: 45 | P72: 0.5432098765 | Q72: =INDEX('Compile Data'!$L$123:$AI$204,$O72,'Report - ALL (DASHBOARD)'!$W$4) -> 0 | R72: =INDEX('Compile Data'!$AL$123:$BI$204,$O72,'Report - ALL (DASHBOARD)'!$W$4) -> 119.1600171 | S72: =INDEX('Compile Data'!$BL$123:$CI$204,$O72,'Report - ALL (DASHBOARD)'!$W$4) -> 110.8052628 | T72: =INDEX('Compile Data'!$CL$123:$DI$204,$O72,'Report - ALL (DASHBOARD)'!$W$4) -> 109.4423095 | U72: =INDEX('Compile Data'!$DL$123:$EI$204,$O72,'Report - ALL (DASHBOARD)'!$W$4) -> 113.1533588 | V72: =INDEX('Compile Data'!$EL$123:$FI$204,$O72,'Report - ALL (DASHBOARD)'!$W$4) -> 
A73: 1967 | B73: =INDEX('Compile Data'!$L$12:$AI$93,$A73-1921,'Report - ALL (DASHBOARD)'!$W$4) -> 0 | C73: =INDEX('Compile Data'!$AL$12:$BI$93,$A73-1921,'Report - ALL (DASHBOARD)'!$W$4) -> 73.02365347 | D73: =INDEX('Compile Data'!$BL$12:$CI$93,$A73-1921,'Report - ALL (DASHBOARD)'!$W$4) -> 118.4611 | E73: =INDEX('Compile Data'!$CL$12:$DI$93,$A73-1921,'Report - ALL (DASHBOARD)'!$W$4) -> 118.4611 | F73: =INDEX('Compile Data'!$DL$12:$EI$93,$A73-1921,'Report - ALL (DASHBOARD)'!$W$4) -> 118.4611 | G73: =INDEX('Compile Data'!$EL$12:$FI$93,$A73-1921,'Report - ALL (DASHBOARD)'!$W$4) ->  | O73: 46 | P73: 0.5555555556 | Q73: =INDEX('Compile Data'!$L$123:$AI$204,$O73,'Report - ALL (DASHBOARD)'!$W$4) -> 0 | R73: =INDEX('Compile Data'!$AL$123:$BI$204,$O73,'Report - ALL (DASHBOARD)'!$W$4) -> 116.9133553 | S73: =INDEX('Compile Data'!$BL$123:$CI$204,$O73,'Report - ALL (DASHBOARD)'!$W$4) -> 109.4423105 | T73: =INDEX('Compile Data'!$CL$123:$DI$204,$O73,'Report - ALL (DASHBOARD)'!$W$4) -> 109.258555 | U73: =INDEX('Compile Data'!$DL$123:$EI$204,$O73,'Report - ALL (DASHBOARD)'!$W$4) -> 109.4422921 | V73: =INDEX('Compile Data'!$EL$123:$FI$204,$O73,'Report - ALL (DASHBOARD)'!$W$4) -> 
A74: 1968 | B74: =INDEX('Compile Data'!$L$12:$AI$93,$A74-1921,'Report - ALL (DASHBOARD)'!$W$4) -> 0 | C74: =INDEX('Compile Data'!$AL$12:$BI$93,$A74-1921,'Report - ALL (DASHBOARD)'!$W$4) -> 273.1211991 | D74: =INDEX('Compile Data'!$BL$12:$CI$93,$A74-1921,'Report - ALL (DASHBOARD)'!$W$4) -> 272.8025567 | E74: =INDEX('Compile Data'!$CL$12:$DI$93,$A74-1921,'Report - ALL (DASHBOARD)'!$W$4) -> 272.7394374 | F74: =INDEX('Compile Data'!$DL$12:$EI$93,$A74-1921,'Report - ALL (DASHBOARD)'!$W$4) -> 272.8022764 | G74: =INDEX('Compile Data'!$EL$12:$FI$93,$A74-1921,'Report - ALL (DASHBOARD)'!$W$4) ->  | O74: 47 | P74: 0.5679012346 | Q74: =INDEX('Compile Data'!$L$123:$AI$204,$O74,'Report - ALL (DASHBOARD)'!$W$4) -> 0 | R74: =INDEX('Compile Data'!$AL$123:$BI$204,$O74,'Report - ALL (DASHBOARD)'!$W$4) -> 113.2174473 | S74: =INDEX('Compile Data'!$BL$123:$CI$204,$O74,'Report - ALL (DASHBOARD)'!$W$4) -> 109.258555 | T74: =INDEX('Compile Data'!$CL$123:$DI$204,$O74,'Report - ALL (DASHBOARD)'!$W$4) -> 108.2668682 | U74: =INDEX('Compile Data'!$DL$123:$EI$204,$O74,'Report - ALL (DASHBOARD)'!$W$4) -> 109.258555 | V74: =INDEX('Compile Data'!$EL$123:$FI$204,$O74,'Report - ALL (DASHBOARD)'!$W$4) -> 
A75: 1969 | B75: =INDEX('Compile Data'!$L$12:$AI$93,$A75-1921,'Report - ALL (DASHBOARD)'!$W$4) -> 0 | C75: =INDEX('Compile Data'!$AL$12:$BI$93,$A75-1921,'Report - ALL (DASHBOARD)'!$W$4) -> 91.4073153 | D75: =INDEX('Compile Data'!$BL$12:$CI$93,$A75-1921,'Report - ALL (DASHBOARD)'!$W$4) -> 109.258555 | E75: =INDEX('Compile Data'!$CL$12:$DI$93,$A75-1921,'Report - ALL (DASHBOARD)'!$W$4) -> 109.258555 | F75: =INDEX('Compile Data'!$DL$12:$EI$93,$A75-1921,'Report - ALL (DASHBOARD)'!$W$4) -> 109.258555 | G75: =INDEX('Compile Data'!$EL$12:$FI$93,$A75-1921,'Report - ALL (DASHBOARD)'!$W$4) ->  | O75: 48 | P75: 0.5802469136 | Q75: =INDEX('Compile Data'!$L$123:$AI$204,$O75,'Report - ALL (DASHBOARD)'!$W$4) -> 0 | R75: =INDEX('Compile Data'!$AL$123:$BI$204,$O75,'Report - ALL (DASHBOARD)'!$W$4) -> 112.2800485 | S75: =INDEX('Compile Data'!$BL$123:$CI$204,$O75,'Report - ALL (DASHBOARD)'!$W$4) -> 108.2668682 | T75: =INDEX('Compile Data'!$CL$123:$DI$204,$O75,'Report - ALL (DASHBOARD)'!$W$4) -> 108.0898967 | U75: =INDEX('Compile Data'!$DL$123:$EI$204,$O75,'Report - ALL (DASHBOARD)'!$W$4) -> 108.9181946 | V75: =INDEX('Compile Data'!$EL$123:$FI$204,$O75,'Report - ALL (DASHBOARD)'!$W$4) -> 
A76: 1970 | B76: =INDEX('Compile Data'!$L$12:$AI$93,$A76-1921,'Report - ALL (DASHBOARD)'!$W$4) -> 0 | C76: =INDEX('Compile Data'!$AL$12:$BI$93,$A76-1921,'Report - ALL (DASHBOARD)'!$W$4) -> 30.97373267 | D76: =INDEX('Compile Data'!$BL$12:$CI$93,$A76-1921,'Report - ALL (DASHBOARD)'!$W$4) -> 30.97373267 | E76: =INDEX('Compile Data'!$CL$12:$DI$93,$A76-1921,'Report - ALL (DASHBOARD)'!$W$4) -> 30.97373267 | F76: =INDEX('Compile Data'!$DL$12:$EI$93,$A76-1921,'Report - ALL (DASHBOARD)'!$W$4) -> 30.97373267 | G76: =INDEX('Compile Data'!$EL$12:$FI$93,$A76-1921,'Report - ALL (DASHBOARD)'!$W$4) ->  | O76: 49 | P76: 0.5925925926 | Q76: =INDEX('Compile Data'!$L$123:$AI$204,$O76,'Report - ALL (DASHBOARD)'!$W$4) -> 0 | R76: =INDEX('Compile Data'!$AL$123:$BI$204,$O76,'Report - ALL (DASHBOARD)'!$W$4) -> 110.1850611 | S76: =INDEX('Compile Data'!$BL$123:$CI$204,$O76,'Report - ALL (DASHBOARD)'!$W$4) -> 107.5652031 | T76: =INDEX('Compile Data'!$CL$123:$DI$204,$O76,'Report - ALL (DASHBOARD)'!$W$4) -> 107.5652031 | U76: =INDEX('Compile Data'!$DL$123:$EI$204,$O76,'Report - ALL (DASHBOARD)'!$W$4) -> 107.5652031 | V76: =INDEX('Compile Data'!$EL$123:$FI$204,$O76,'Report - ALL (DASHBOARD)'!$W$4) -> 
A77: 1971 | B77: =INDEX('Compile Data'!$L$12:$AI$93,$A77-1921,'Report - ALL (DASHBOARD)'!$W$4) -> 0 | C77: =INDEX('Compile Data'!$AL$12:$BI$93,$A77-1921,'Report - ALL (DASHBOARD)'!$W$4) -> 112.2800485 | D77: =INDEX('Compile Data'!$BL$12:$CI$93,$A77-1921,'Report - ALL (DASHBOARD)'!$W$4) -> 112.3592778 | E77: =INDEX('Compile Data'!$CL$12:$DI$93,$A77-1921,'Report - ALL (DASHBOARD)'!$W$4) -> 112.3592783 | F77: =INDEX('Compile Data'!$DL$12:$EI$93,$A77-1921,'Report - ALL (DASHBOARD)'!$W$4) -> 113.1533588 | G77: =INDEX('Compile Data'!$EL$12:$FI$93,$A77-1921,'Report - ALL (DASHBOARD)'!$W$4) ->  | O77: 50 | P77: 0.6049382716 | Q77: =INDEX('Compile Data'!$L$123:$AI$204,$O77,'Report - ALL (DASHBOARD)'!$W$4) -> 0 | R77: =INDEX('Compile Data'!$AL$123:$BI$204,$O77,'Report - ALL (DASHBOARD)'!$W$4) -> 109.8812096 | S77: =INDEX('Compile Data'!$BL$123:$CI$204,$O77,'Report - ALL (DASHBOARD)'!$W$4) -> 104.5307668 | T77: =INDEX('Compile Data'!$CL$123:$DI$204,$O77,'Report - ALL (DASHBOARD)'!$W$4) -> 104.5308931 | U77: =INDEX('Compile Data'!$DL$123:$EI$204,$O77,'Report - ALL (DASHBOARD)'!$W$4) -> 104.5404833 | V77: =INDEX('Compile Data'!$EL$123:$FI$204,$O77,'Report - ALL (DASHBOARD)'!$W$4) -> 
A78: 1972 | B78: =INDEX('Compile Data'!$L$12:$AI$93,$A78-1921,'Report - ALL (DASHBOARD)'!$W$4) -> 0 | C78: =INDEX('Compile Data'!$AL$12:$BI$93,$A78-1921,'Report - ALL (DASHBOARD)'!$W$4) -> 256.8226006 | D78: =INDEX('Compile Data'!$BL$12:$CI$93,$A78-1921,'Report - ALL (DASHBOARD)'!$W$4) -> 256.8231221 | E78: =INDEX('Compile Data'!$CL$12:$DI$93,$A78-1921,'Report - ALL (DASHBOARD)'!$W$4) -> 256.82 | F78: =INDEX('Compile Data'!$DL$12:$EI$93,$A78-1921,'Report - ALL (DASHBOARD)'!$W$4) -> 256.8231171 | G78: =INDEX('Compile Data'!$EL$12:$FI$93,$A78-1921,'Report - ALL (DASHBOARD)'!$W$4) ->  | O78: 51 | P78: 0.6172839506 | Q78: =INDEX('Compile Data'!$L$123:$AI$204,$O78,'Report - ALL (DASHBOARD)'!$W$4) -> 0 | R78: =INDEX('Compile Data'!$AL$123:$BI$204,$O78,'Report - ALL (DASHBOARD)'!$W$4) -> 109.4422722 | S78: =INDEX('Compile Data'!$BL$123:$CI$204,$O78,'Report - ALL (DASHBOARD)'!$W$4) -> 103.1098604 | T78: =INDEX('Compile Data'!$CL$123:$DI$204,$O78,'Report - ALL (DASHBOARD)'!$W$4) -> 103.1098604 | U78: =INDEX('Compile Data'!$DL$123:$EI$204,$O78,'Report - ALL (DASHBOARD)'!$W$4) -> 104.5307668 | V78: =INDEX('Compile Data'!$EL$123:$FI$204,$O78,'Report - ALL (DASHBOARD)'!$W$4) -> 
A79: 1973 | B79: =INDEX('Compile Data'!$L$12:$AI$93,$A79-1921,'Report - ALL (DASHBOARD)'!$W$4) -> 0 | C79: =INDEX('Compile Data'!$AL$12:$BI$93,$A79-1921,'Report - ALL (DASHBOARD)'!$W$4) -> 166.4466652 | D79: =INDEX('Compile Data'!$BL$12:$CI$93,$A79-1921,'Report - ALL (DASHBOARD)'!$W$4) -> 166.4452634 | E79: =INDEX('Compile Data'!$CL$12:$DI$93,$A79-1921,'Report - ALL (DASHBOARD)'!$W$4) -> 166.4460088 | F79: =INDEX('Compile Data'!$DL$12:$EI$93,$A79-1921,'Report - ALL (DASHBOARD)'!$W$4) -> 166.4453508 | G79: =INDEX('Compile Data'!$EL$12:$FI$93,$A79-1921,'Report - ALL (DASHBOARD)'!$W$4) ->  | O79: 52 | P79: 0.6296296296 | Q79: =INDEX('Compile Data'!$L$123:$AI$204,$O79,'Report - ALL (DASHBOARD)'!$W$4) -> 0 | R79: =INDEX('Compile Data'!$AL$123:$BI$204,$O79,'Report - ALL (DASHBOARD)'!$W$4) -> 107.5652031 | S79: =INDEX('Compile Data'!$BL$123:$CI$204,$O79,'Report - ALL (DASHBOARD)'!$W$4) -> 102.6774969 | T79: =INDEX('Compile Data'!$CL$123:$DI$204,$O79,'Report - ALL (DASHBOARD)'!$W$4) -> 101.651145 | U79: =INDEX('Compile Data'!$DL$123:$EI$204,$O79,'Report - ALL (DASHBOARD)'!$W$4) -> 103.1098604 | V79: =INDEX('Compile Data'!$EL$123:$FI$204,$O79,'Report - ALL (DASHBOARD)'!$W$4) -> 
A80: 1974 | B80: =INDEX('Compile Data'!$L$12:$AI$93,$A80-1921,'Report - ALL (DASHBOARD)'!$W$4) -> 0 | C80: =INDEX('Compile Data'!$AL$12:$BI$93,$A80-1921,'Report - ALL (DASHBOARD)'!$W$4) -> 86.67952692 | D80: =INDEX('Compile Data'!$BL$12:$CI$93,$A80-1921,'Report - ALL (DASHBOARD)'!$W$4) -> 104.5307668 | E80: =INDEX('Compile Data'!$CL$12:$DI$93,$A80-1921,'Report - ALL (DASHBOARD)'!$W$4) -> 104.5308931 | F80: =INDEX('Compile Data'!$DL$12:$EI$93,$A80-1921,'Report - ALL (DASHBOARD)'!$W$4) -> 104.5307668 | G80: =INDEX('Compile Data'!$EL$12:$FI$93,$A80-1921,'Report - ALL (DASHBOARD)'!$W$4) ->  | O80: 53 | P80: 0.6419753086 | Q80: =INDEX('Compile Data'!$L$123:$AI$204,$O80,'Report - ALL (DASHBOARD)'!$W$4) -> 0 | R80: =INDEX('Compile Data'!$AL$123:$BI$204,$O80,'Report - ALL (DASHBOARD)'!$W$4) -> 103.1098604 | S80: =INDEX('Compile Data'!$BL$123:$CI$204,$O80,'Report - ALL (DASHBOARD)'!$W$4) -> 100.4566234 | T80: =INDEX('Compile Data'!$CL$123:$DI$204,$O80,'Report - ALL (DASHBOARD)'!$W$4) -> 98.08651587 | U80: =INDEX('Compile Data'!$DL$123:$EI$204,$O80,'Report - ALL (DASHBOARD)'!$W$4) -> 102.9792863 | V80: =INDEX('Compile Data'!$EL$123:$FI$204,$O80,'Report - ALL (DASHBOARD)'!$W$4) -> 
A81: 1975 | B81: =INDEX('Compile Data'!$L$12:$AI$93,$A81-1921,'Report - ALL (DASHBOARD)'!$W$4) -> 0 | C81: =INDEX('Compile Data'!$AL$12:$BI$93,$A81-1921,'Report - ALL (DASHBOARD)'!$W$4) -> 70.21609177 | D81: =INDEX('Compile Data'!$BL$12:$CI$93,$A81-1921,'Report - ALL (DASHBOARD)'!$W$4) -> 61.51842476 | E81: =INDEX('Compile Data'!$CL$12:$DI$93,$A81-1921,'Report - ALL (DASHBOARD)'!$W$4) -> 61.51842476 | F81: =INDEX('Compile Data'!$DL$12:$EI$93,$A81-1921,'Report - ALL (DASHBOARD)'!$W$4) -> 61.51842476 | G81: =INDEX('Compile Data'!$EL$12:$FI$93,$A81-1921,'Report - ALL (DASHBOARD)'!$W$4) ->  | O81: 54 | P81: 0.6543209877 | Q81: =INDEX('Compile Data'!$L$123:$AI$204,$O81,'Report - ALL (DASHBOARD)'!$W$4) -> 0 | R81: =INDEX('Compile Data'!$AL$123:$BI$204,$O81,'Report - ALL (DASHBOARD)'!$W$4) -> 102.95214 | S81: =INDEX('Compile Data'!$BL$123:$CI$204,$O81,'Report - ALL (DASHBOARD)'!$W$4) -> 99.41483683 | T81: =INDEX('Compile Data'!$CL$123:$DI$204,$O81,'Report - ALL (DASHBOARD)'!$W$4) -> 94.69756019 | U81: =INDEX('Compile Data'!$DL$123:$EI$204,$O81,'Report - ALL (DASHBOARD)'!$W$4) -> 100.127413 | V81: =INDEX('Compile Data'!$EL$123:$FI$204,$O81,'Report - ALL (DASHBOARD)'!$W$4) -> 
A82: 1976 | B82: =INDEX('Compile Data'!$L$12:$AI$93,$A82-1921,'Report - ALL (DASHBOARD)'!$W$4) -> 0 | C82: =INDEX('Compile Data'!$AL$12:$BI$93,$A82-1921,'Report - ALL (DASHBOARD)'!$W$4) -> 692.7978084 | D82: =INDEX('Compile Data'!$BL$12:$CI$93,$A82-1921,'Report - ALL (DASHBOARD)'!$W$4) -> 696.3329786 | E82: =INDEX('Compile Data'!$CL$12:$DI$93,$A82-1921,'Report - ALL (DASHBOARD)'!$W$4) -> 632.6448267 | F82: =INDEX('Compile Data'!$DL$12:$EI$93,$A82-1921,'Report - ALL (DASHBOARD)'!$W$4) -> 693.7726851 | G82: =INDEX('Compile Data'!$EL$12:$FI$93,$A82-1921,'Report - ALL (DASHBOARD)'!$W$4) ->  | O82: 55 | P82: 0.6666666667 | Q82: =INDEX('Compile Data'!$L$123:$AI$204,$O82,'Report - ALL (DASHBOARD)'!$W$4) -> 0 | R82: =INDEX('Compile Data'!$AL$123:$BI$204,$O82,'Report - ALL (DASHBOARD)'!$W$4) -> 97.04158632 | S82: =INDEX('Compile Data'!$BL$123:$CI$204,$O82,'Report - ALL (DASHBOARD)'!$W$4) -> 95.20114176 | T82: =INDEX('Compile Data'!$CL$123:$DI$204,$O82,'Report - ALL (DASHBOARD)'!$W$4) -> 90.56843366 | U82: =INDEX('Compile Data'!$DL$123:$EI$204,$O82,'Report - ALL (DASHBOARD)'!$W$4) -> 95.24078373 | V82: =INDEX('Compile Data'!$EL$123:$FI$204,$O82,'Report - ALL (DASHBOARD)'!$W$4) -> 
A83: 1977 | B83: =INDEX('Compile Data'!$L$12:$AI$93,$A83-1921,'Report - ALL (DASHBOARD)'!$W$4) -> 0 | C83: =INDEX('Compile Data'!$AL$12:$BI$93,$A83-1921,'Report - ALL (DASHBOARD)'!$W$4) -> 558.6862364 | D83: =INDEX('Compile Data'!$BL$12:$CI$93,$A83-1921,'Report - ALL (DASHBOARD)'!$W$4) -> 541.862983 | E83: =INDEX('Compile Data'!$CL$12:$DI$93,$A83-1921,'Report - ALL (DASHBOARD)'!$W$4) -> 544.243018 | F83: =INDEX('Compile Data'!$DL$12:$EI$93,$A83-1921,'Report - ALL (DASHBOARD)'!$W$4) -> 556.8252615 | G83: =INDEX('Compile Data'!$EL$12:$FI$93,$A83-1921,'Report - ALL (DASHBOARD)'!$W$4) ->  | O83: 56 | P83: 0.6790123457 | Q83: =INDEX('Compile Data'!$L$123:$AI$204,$O83,'Report - ALL (DASHBOARD)'!$W$4) -> 0 | R83: =INDEX('Compile Data'!$AL$123:$BI$204,$O83,'Report - ALL (DASHBOARD)'!$W$4) -> 96.73013654 | S83: =INDEX('Compile Data'!$BL$123:$CI$204,$O83,'Report - ALL (DASHBOARD)'!$W$4) -> 94.59024607 | T83: =INDEX('Compile Data'!$CL$123:$DI$204,$O83,'Report - ALL (DASHBOARD)'!$W$4) -> 88.56769007 | U83: =INDEX('Compile Data'!$DL$123:$EI$204,$O83,'Report - ALL (DASHBOARD)'!$W$4) -> 95.16450336 | V83: =INDEX('Compile Data'!$EL$123:$FI$204,$O83,'Report - ALL (DASHBOARD)'!$W$4) -> 
A84: 1978 | B84: =INDEX('Compile Data'!$L$12:$AI$93,$A84-1921,'Report - ALL (DASHBOARD)'!$W$4) -> 0 | C84: =INDEX('Compile Data'!$AL$12:$BI$93,$A84-1921,'Report - ALL (DASHBOARD)'!$W$4) -> 116.9133553 | D84: =INDEX('Compile Data'!$BL$12:$CI$93,$A84-1921,'Report - ALL (DASHBOARD)'!$W$4) -> 100.4566234 | E84: =INDEX('Compile Data'!$CL$12:$DI$93,$A84-1921,'Report - ALL (DASHBOARD)'!$W$4) -> 76.12630285 | F84: =INDEX('Compile Data'!$DL$12:$EI$93,$A84-1921,'Report - ALL (DASHBOARD)'!$W$4) -> 104.5404833 | G84: =INDEX('Compile Data'!$EL$12:$FI$93,$A84-1921,'Report - ALL (DASHBOARD)'!$W$4) ->  | O84: 57 | P84: 0.6913580247 | Q84: =INDEX('Compile Data'!$L$123:$AI$204,$O84,'Report - ALL (DASHBOARD)'!$W$4) -> 0 | R84: =INDEX('Compile Data'!$AL$123:$BI$204,$O84,'Report - ALL (DASHBOARD)'!$W$4) -> 95.28211885 | S84: =INDEX('Compile Data'!$BL$123:$CI$204,$O84,'Report - ALL (DASHBOARD)'!$W$4) -> 90.56843366 | T84: =INDEX('Compile Data'!$CL$123:$DI$204,$O84,'Report - ALL (DASHBOARD)'!$W$4) -> 85.2586207 | U84: =INDEX('Compile Data'!$DL$123:$EI$204,$O84,'Report - ALL (DASHBOARD)'!$W$4) -> 90.56843366 | V84: =INDEX('Compile Data'!$EL$123:$FI$204,$O84,'Report - ALL (DASHBOARD)'!$W$4) -> 
A85: 1979 | B85: =INDEX('Compile Data'!$L$12:$AI$93,$A85-1921,'Report - ALL (DASHBOARD)'!$W$4) -> 0 | C85: =INDEX('Compile Data'!$AL$12:$BI$93,$A85-1921,'Report - ALL (DASHBOARD)'!$W$4) -> 113.2174473 | D85: =INDEX('Compile Data'!$BL$12:$CI$93,$A85-1921,'Report - ALL (DASHBOARD)'!$W$4) -> 94.59024607 | E85: =INDEX('Compile Data'!$CL$12:$DI$93,$A85-1921,'Report - ALL (DASHBOARD)'!$W$4) -> 88.56769007 | F85: =INDEX('Compile Data'!$DL$12:$EI$93,$A85-1921,'Report - ALL (DASHBOARD)'!$W$4) -> 95.16450336 | G85: =INDEX('Compile Data'!$EL$12:$FI$93,$A85-1921,'Report - ALL (DASHBOARD)'!$W$4) ->  | O85: 58 | P85: 0.7037037037 | Q85: =INDEX('Compile Data'!$L$123:$AI$204,$O85,'Report - ALL (DASHBOARD)'!$W$4) -> 0 | R85: =INDEX('Compile Data'!$AL$123:$BI$204,$O85,'Report - ALL (DASHBOARD)'!$W$4) -> 91.4073153 | S85: =INDEX('Compile Data'!$BL$123:$CI$204,$O85,'Report - ALL (DASHBOARD)'!$W$4) -> 85.2586207 | T85: =INDEX('Compile Data'!$CL$123:$DI$204,$O85,'Report - ALL (DASHBOARD)'!$W$4) -> 85.2586207 | U85: =INDEX('Compile Data'!$DL$123:$EI$204,$O85,'Report - ALL (DASHBOARD)'!$W$4) -> 90.41562858 | V85: =INDEX('Compile Data'!$EL$123:$FI$204,$O85,'Report - ALL (DASHBOARD)'!$W$4) -> 
A86: 1980 | B86: =INDEX('Compile Data'!$L$12:$AI$93,$A86-1921,'Report - ALL (DASHBOARD)'!$W$4) -> 0 | C86: =INDEX('Compile Data'!$AL$12:$BI$93,$A86-1921,'Report - ALL (DASHBOARD)'!$W$4) -> 183.1388507 | D86: =INDEX('Compile Data'!$BL$12:$CI$93,$A86-1921,'Report - ALL (DASHBOARD)'!$W$4) -> 99.41483683 | E86: =INDEX('Compile Data'!$CL$12:$DI$93,$A86-1921,'Report - ALL (DASHBOARD)'!$W$4) -> 98.08651587 | F86: =INDEX('Compile Data'!$DL$12:$EI$93,$A86-1921,'Report - ALL (DASHBOARD)'!$W$4) -> 100.127413 | G86: =INDEX('Compile Data'!$EL$12:$FI$93,$A86-1921,'Report - ALL (DASHBOARD)'!$W$4) ->  | O86: 59 | P86: 0.7160493827 | Q86: =INDEX('Compile Data'!$L$123:$AI$204,$O86,'Report - ALL (DASHBOARD)'!$W$4) -> 0 | R86: =INDEX('Compile Data'!$AL$123:$BI$204,$O86,'Report - ALL (DASHBOARD)'!$W$4) -> 90.56843366 | S86: =INDEX('Compile Data'!$BL$123:$CI$204,$O86,'Report - ALL (DASHBOARD)'!$W$4) -> 85.2586207 | T86: =INDEX('Compile Data'!$CL$123:$DI$204,$O86,'Report - ALL (DASHBOARD)'!$W$4) -> 81.84114463 | U86: =INDEX('Compile Data'!$DL$123:$EI$204,$O86,'Report - ALL (DASHBOARD)'!$W$4) -> 88.10223228 | V86: =INDEX('Compile Data'!$EL$123:$FI$204,$O86,'Report - ALL (DASHBOARD)'!$W$4) -> 
A87: 1981 | B87: =INDEX('Compile Data'!$L$12:$AI$93,$A87-1921,'Report - ALL (DASHBOARD)'!$W$4) -> 0 | C87: =INDEX('Compile Data'!$AL$12:$BI$93,$A87-1921,'Report - ALL (DASHBOARD)'!$W$4) -> 340.9593192 | D87: =INDEX('Compile Data'!$BL$12:$CI$93,$A87-1921,'Report - ALL (DASHBOARD)'!$W$4) -> 258.5247003 | E87: =INDEX('Compile Data'!$CL$12:$DI$93,$A87-1921,'Report - ALL (DASHBOARD)'!$W$4) -> 246.2451862 | F87: =INDEX('Compile Data'!$DL$12:$EI$93,$A87-1921,'Report - ALL (DASHBOARD)'!$W$4) -> 275.9583489 | G87: =INDEX('Compile Data'!$EL$12:$FI$93,$A87-1921,'Report - ALL (DASHBOARD)'!$W$4) ->  | O87: 60 | P87: 0.7283950617 | Q87: =INDEX('Compile Data'!$L$123:$AI$204,$O87,'Report - ALL (DASHBOARD)'!$W$4) -> 0 | R87: =INDEX('Compile Data'!$AL$123:$BI$204,$O87,'Report - ALL (DASHBOARD)'!$W$4) -> 90.41562858 | S87: =INDEX('Compile Data'!$BL$123:$CI$204,$O87,'Report - ALL (DASHBOARD)'!$W$4) -> 81.84831155 | T87: =INDEX('Compile Data'!$CL$123:$DI$204,$O87,'Report - ALL (DASHBOARD)'!$W$4) -> 78.19190399 | U87: =INDEX('Compile Data'!$DL$123:$EI$204,$O87,'Report - ALL (DASHBOARD)'!$W$4) -> 87.49613389 | V87: =INDEX('Compile Data'!$EL$123:$FI$204,$O87,'Report - ALL (DASHBOARD)'!$W$4) -> 
A88: 1982 | B88: =INDEX('Compile Data'!$L$12:$AI$93,$A88-1921,'Report - ALL (DASHBOARD)'!$W$4) -> 0 | C88: =INDEX('Compile Data'!$AL$12:$BI$93,$A88-1921,'Report - ALL (DASHBOARD)'!$W$4) -> 119.1600171 | D88: =INDEX('Compile Data'!$BL$12:$CI$93,$A88-1921,'Report - ALL (DASHBOARD)'!$W$4) -> 119.1600171 | E88: =INDEX('Compile Data'!$CL$12:$DI$93,$A88-1921,'Report - ALL (DASHBOARD)'!$W$4) -> 119.1600171 | F88: =INDEX('Compile Data'!$DL$12:$EI$93,$A88-1921,'Report - ALL (DASHBOARD)'!$W$4) -> 119.1600171 | G88: =INDEX('Compile Data'!$EL$12:$FI$93,$A88-1921,'Report - ALL (DASHBOARD)'!$W$4) ->  | O88: 61 | P88: 0.7407407407 | Q88: =INDEX('Compile Data'!$L$123:$AI$204,$O88,'Report - ALL (DASHBOARD)'!$W$4) -> 0 | R88: =INDEX('Compile Data'!$AL$123:$BI$204,$O88,'Report - ALL (DASHBOARD)'!$W$4) -> 89.399065 | S88: =INDEX('Compile Data'!$BL$123:$CI$204,$O88,'Report - ALL (DASHBOARD)'!$W$4) -> 79.83150415 | T88: =INDEX('Compile Data'!$CL$123:$DI$204,$O88,'Report - ALL (DASHBOARD)'!$W$4) -> 76.12630285 | U88: =INDEX('Compile Data'!$DL$123:$EI$204,$O88,'Report - ALL (DASHBOARD)'!$W$4) -> 85.2586207 | V88: =INDEX('Compile Data'!$EL$123:$FI$204,$O88,'Report - ALL (DASHBOARD)'!$W$4) -> 
A89: 1983 | B89: =INDEX('Compile Data'!$L$12:$AI$93,$A89-1921,'Report - ALL (DASHBOARD)'!$W$4) -> 0 | C89: =INDEX('Compile Data'!$AL$12:$BI$93,$A89-1921,'Report - ALL (DASHBOARD)'!$W$4) -> 75.0944647 | D89: =INDEX('Compile Data'!$BL$12:$CI$93,$A89-1921,'Report - ALL (DASHBOARD)'!$W$4) -> 75.0944647 | E89: =INDEX('Compile Data'!$CL$12:$DI$93,$A89-1921,'Report - ALL (DASHBOARD)'!$W$4) -> 75.0944647 | F89: =INDEX('Compile Data'!$DL$12:$EI$93,$A89-1921,'Report - ALL (DASHBOARD)'!$W$4) -> 75.0944647 | G89: =INDEX('Compile Data'!$EL$12:$FI$93,$A89-1921,'Report - ALL (DASHBOARD)'!$W$4) ->  | O89: 62 | P89: 0.7530864198 | Q89: =INDEX('Compile Data'!$L$123:$AI$204,$O89,'Report - ALL (DASHBOARD)'!$W$4) -> 0 | R89: =INDEX('Compile Data'!$AL$123:$BI$204,$O89,'Report - ALL (DASHBOARD)'!$W$4) -> 86.67952692 | S89: =INDEX('Compile Data'!$BL$123:$CI$204,$O89,'Report - ALL (DASHBOARD)'!$W$4) -> 79.14562979 | T89: =INDEX('Compile Data'!$CL$123:$DI$204,$O89,'Report - ALL (DASHBOARD)'!$W$4) -> 75.52365347 | U89: =INDEX('Compile Data'!$DL$123:$EI$204,$O89,'Report - ALL (DASHBOARD)'!$W$4) -> 85.2586207 | V89: =INDEX('Compile Data'!$EL$123:$FI$204,$O89,'Report - ALL (DASHBOARD)'!$W$4) -> 
A90: 1984 | B90: =INDEX('Compile Data'!$L$12:$AI$93,$A90-1921,'Report - ALL (DASHBOARD)'!$W$4) -> 0 | C90: =INDEX('Compile Data'!$AL$12:$BI$93,$A90-1921,'Report - ALL (DASHBOARD)'!$W$4) -> 37.33094669 | D90: =INDEX('Compile Data'!$BL$12:$CI$93,$A90-1921,'Report - ALL (DASHBOARD)'!$W$4) -> 37.33094669 | E90: =INDEX('Compile Data'!$CL$12:$DI$93,$A90-1921,'Report - ALL (DASHBOARD)'!$W$4) -> 64.91715359 | F90: =INDEX('Compile Data'!$DL$12:$EI$93,$A90-1921,'Report - ALL (DASHBOARD)'!$W$4) -> 64.91715359 | G90: =INDEX('Compile Data'!$EL$12:$FI$93,$A90-1921,'Report - ALL (DASHBOARD)'!$W$4) ->  | O90: 63 | P90: 0.7654320988 | Q90: =INDEX('Compile Data'!$L$123:$AI$204,$O90,'Report - ALL (DASHBOARD)'!$W$4) -> 0 | R90: =INDEX('Compile Data'!$AL$123:$BI$204,$O90,'Report - ALL (DASHBOARD)'!$W$4) -> 85.2586207 | S90: =INDEX('Compile Data'!$BL$123:$CI$204,$O90,'Report - ALL (DASHBOARD)'!$W$4) -> 77.23322448 | T90: =INDEX('Compile Data'!$CL$123:$DI$204,$O90,'Report - ALL (DASHBOARD)'!$W$4) -> 75.0944647 | U90: =INDEX('Compile Data'!$DL$123:$EI$204,$O90,'Report - ALL (DASHBOARD)'!$W$4) -> 83.40136998 | V90: =INDEX('Compile Data'!$EL$123:$FI$204,$O90,'Report - ALL (DASHBOARD)'!$W$4) -> 
A91: 1985 | B91: =INDEX('Compile Data'!$L$12:$AI$93,$A91-1921,'Report - ALL (DASHBOARD)'!$W$4) -> 0 | C91: =INDEX('Compile Data'!$AL$12:$BI$93,$A91-1921,'Report - ALL (DASHBOARD)'!$W$4) -> 429.4671523 | D91: =INDEX('Compile Data'!$BL$12:$CI$93,$A91-1921,'Report - ALL (DASHBOARD)'!$W$4) -> 424.8903801 | E91: =INDEX('Compile Data'!$CL$12:$DI$93,$A91-1921,'Report - ALL (DASHBOARD)'!$W$4) -> 417.4027075 | F91: =INDEX('Compile Data'!$DL$12:$EI$93,$A91-1921,'Report - ALL (DASHBOARD)'!$W$4) -> 421.3819217 | G91: =INDEX('Compile Data'!$EL$12:$FI$93,$A91-1921,'Report - ALL (DASHBOARD)'!$W$4) ->  | O91: 64 | P91: 0.7777777778 | Q91: =INDEX('Compile Data'!$L$123:$AI$204,$O91,'Report - ALL (DASHBOARD)'!$W$4) -> 0 | R91: =INDEX('Compile Data'!$AL$123:$BI$204,$O91,'Report - ALL (DASHBOARD)'!$W$4) -> 85.2586207 | S91: =INDEX('Compile Data'!$BL$123:$CI$204,$O91,'Report - ALL (DASHBOARD)'!$W$4) -> 75.0944647 | T91: =INDEX('Compile Data'!$CL$123:$DI$204,$O91,'Report - ALL (DASHBOARD)'!$W$4) -> 74.13177665 | U91: =INDEX('Compile Data'!$DL$123:$EI$204,$O91,'Report - ALL (DASHBOARD)'!$W$4) -> 81.82533128 | V91: =INDEX('Compile Data'!$EL$123:$FI$204,$O91,'Report - ALL (DASHBOARD)'!$W$4) -> 
A92: 1986 | B92: =INDEX('Compile Data'!$L$12:$AI$93,$A92-1921,'Report - ALL (DASHBOARD)'!$W$4) -> 0 | C92: =INDEX('Compile Data'!$AL$12:$BI$93,$A92-1921,'Report - ALL (DASHBOARD)'!$W$4) -> 137.9093073 | D92: =INDEX('Compile Data'!$BL$12:$CI$93,$A92-1921,'Report - ALL (DASHBOARD)'!$W$4) -> 137.9095184 | E92: =INDEX('Compile Data'!$CL$12:$DI$93,$A92-1921,'Report - ALL (DASHBOARD)'!$W$4) -> 137.9101126 | F92: =INDEX('Compile Data'!$DL$12:$EI$93,$A92-1921,'Report - ALL (DASHBOARD)'!$W$4) -> 137.9098148 | G92: =INDEX('Compile Data'!$EL$12:$FI$93,$A92-1921,'Report - ALL (DASHBOARD)'!$W$4) ->  | O92: 65 | P92: =(O92-1)/81 -> 0.7901234568 | Q92: =INDEX('Compile Data'!$L$123:$AI$204,$O92,'Report - ALL (DASHBOARD)'!$W$4) -> 0 | R92: =INDEX('Compile Data'!$AL$123:$BI$204,$O92,'Report - ALL (DASHBOARD)'!$W$4) -> 83.18820141 | S92: =INDEX('Compile Data'!$BL$123:$CI$204,$O92,'Report - ALL (DASHBOARD)'!$W$4) -> 73.40778992 | T92: =INDEX('Compile Data'!$CL$123:$DI$204,$O92,'Report - ALL (DASHBOARD)'!$W$4) -> 73.02365347 | U92: =INDEX('Compile Data'!$DL$123:$EI$204,$O92,'Report - ALL (DASHBOARD)'!$W$4) -> 79.64023761 | V92: =INDEX('Compile Data'!$EL$123:$FI$204,$O92,'Report - ALL (DASHBOARD)'!$W$4) -> 
A93: 1987 | B93: =INDEX('Compile Data'!$L$12:$AI$93,$A93-1921,'Report - ALL (DASHBOARD)'!$W$4) -> 0 | C93: =INDEX('Compile Data'!$AL$12:$BI$93,$A93-1921,'Report - ALL (DASHBOARD)'!$W$4) -> 737.6821028 | D93: =INDEX('Compile Data'!$BL$12:$CI$93,$A93-1921,'Report - ALL (DASHBOARD)'!$W$4) -> 737.6700897 | E93: =INDEX('Compile Data'!$CL$12:$DI$93,$A93-1921,'Report - ALL (DASHBOARD)'!$W$4) -> 701.9717968 | F93: =INDEX('Compile Data'!$DL$12:$EI$93,$A93-1921,'Report - ALL (DASHBOARD)'!$W$4) -> 737.5948055 | G93: =INDEX('Compile Data'!$EL$12:$FI$93,$A93-1921,'Report - ALL (DASHBOARD)'!$W$4) ->  | O93: 66 | P93: 0.8024691358 | Q93: =INDEX('Compile Data'!$L$123:$AI$204,$O93,'Report - ALL (DASHBOARD)'!$W$4) -> 0 | R93: =INDEX('Compile Data'!$AL$123:$BI$204,$O93,'Report - ALL (DASHBOARD)'!$W$4) -> 76.9666507 | S93: =INDEX('Compile Data'!$BL$123:$CI$204,$O93,'Report - ALL (DASHBOARD)'!$W$4) -> 73.02365347 | T93: =INDEX('Compile Data'!$CL$123:$DI$204,$O93,'Report - ALL (DASHBOARD)'!$W$4) -> 68.34343688 | U93: =INDEX('Compile Data'!$DL$123:$EI$204,$O93,'Report - ALL (DASHBOARD)'!$W$4) -> 75.0944647 | V93: =INDEX('Compile Data'!$EL$123:$FI$204,$O93,'Report - ALL (DASHBOARD)'!$W$4) -> 
A94: =A93+1 -> 1988 | B94: =INDEX('Compile Data'!$L$12:$AI$93,$A94-1921,'Report - ALL (DASHBOARD)'!$W$4) -> 0 | C94: =INDEX('Compile Data'!$AL$12:$BI$93,$A94-1921,'Report - ALL (DASHBOARD)'!$W$4) -> 487.959368 | D94: =INDEX('Compile Data'!$BL$12:$CI$93,$A94-1921,'Report - ALL (DASHBOARD)'!$W$4) -> 404.3667697 | E94: =INDEX('Compile Data'!$CL$12:$DI$93,$A94-1921,'Report - ALL (DASHBOARD)'!$W$4) -> 338.7109285 | F94: =INDEX('Compile Data'!$DL$12:$EI$93,$A94-1921,'Report - ALL (DASHBOARD)'!$W$4) -> 411.300684 | G94: =INDEX('Compile Data'!$EL$12:$FI$93,$A94-1921,'Report - ALL (DASHBOARD)'!$W$4) ->  | O94: 67 | P94: 0.8148148148 | Q94: =INDEX('Compile Data'!$L$123:$AI$204,$O94,'Report - ALL (DASHBOARD)'!$W$4) -> 0 | R94: =INDEX('Compile Data'!$AL$123:$BI$204,$O94,'Report - ALL (DASHBOARD)'!$W$4) -> 75.0944647 | S94: =INDEX('Compile Data'!$BL$123:$CI$204,$O94,'Report - ALL (DASHBOARD)'!$W$4) -> 68.1104961 | T94: =INDEX('Compile Data'!$CL$123:$DI$204,$O94,'Report - ALL (DASHBOARD)'!$W$4) -> 65.39009651 | U94: =INDEX('Compile Data'!$DL$123:$EI$204,$O94,'Report - ALL (DASHBOARD)'!$W$4) -> 73.02365347 | V94: =INDEX('Compile Data'!$EL$123:$FI$204,$O94,'Report - ALL (DASHBOARD)'!$W$4) -> 
A95: 1989 | B95: =INDEX('Compile Data'!$L$12:$AI$93,$A95-1921,'Report - ALL (DASHBOARD)'!$W$4) -> 0 | C95: =INDEX('Compile Data'!$AL$12:$BI$93,$A95-1921,'Report - ALL (DASHBOARD)'!$W$4) -> 154.7416355 | D95: =INDEX('Compile Data'!$BL$12:$CI$93,$A95-1921,'Report - ALL (DASHBOARD)'!$W$4) -> 154.9355528 | E95: =INDEX('Compile Data'!$CL$12:$DI$93,$A95-1921,'Report - ALL (DASHBOARD)'!$W$4) -> 155.9541745 | F95: =INDEX('Compile Data'!$DL$12:$EI$93,$A95-1921,'Report - ALL (DASHBOARD)'!$W$4) -> 154.7080463 | G95: =INDEX('Compile Data'!$EL$12:$FI$93,$A95-1921,'Report - ALL (DASHBOARD)'!$W$4) ->  | O95: 68 | P95: 0.8271604938 | Q95: =INDEX('Compile Data'!$L$123:$AI$204,$O95,'Report - ALL (DASHBOARD)'!$W$4) -> 0 | R95: =INDEX('Compile Data'!$AL$123:$BI$204,$O95,'Report - ALL (DASHBOARD)'!$W$4) -> 73.02365347 | S95: =INDEX('Compile Data'!$BL$123:$CI$204,$O95,'Report - ALL (DASHBOARD)'!$W$4) -> 64.44573463 | T95: =INDEX('Compile Data'!$CL$123:$DI$204,$O95,'Report - ALL (DASHBOARD)'!$W$4) -> 64.91715359 | U95: =INDEX('Compile Data'!$DL$123:$EI$204,$O95,'Report - ALL (DASHBOARD)'!$W$4) -> 72.62379692 | V95: =INDEX('Compile Data'!$EL$123:$FI$204,$O95,'Report - ALL (DASHBOARD)'!$W$4) -> 
A96: 1990 | B96: =INDEX('Compile Data'!$L$12:$AI$93,$A96-1921,'Report - ALL (DASHBOARD)'!$W$4) -> 0 | C96: =INDEX('Compile Data'!$AL$12:$BI$93,$A96-1921,'Report - ALL (DASHBOARD)'!$W$4) -> 62.38123792 | D96: =INDEX('Compile Data'!$BL$12:$CI$93,$A96-1921,'Report - ALL (DASHBOARD)'!$W$4) -> 38.26636556 | E96: =INDEX('Compile Data'!$CL$12:$DI$93,$A96-1921,'Report - ALL (DASHBOARD)'!$W$4) -> 17.96304722 | F96: =INDEX('Compile Data'!$DL$12:$EI$93,$A96-1921,'Report - ALL (DASHBOARD)'!$W$4) -> 57.75719571 | G96: =INDEX('Compile Data'!$EL$12:$FI$93,$A96-1921,'Report - ALL (DASHBOARD)'!$W$4) ->  | O96: 69 | P96: 0.8395061728 | Q96: =INDEX('Compile Data'!$L$123:$AI$204,$O96,'Report - ALL (DASHBOARD)'!$W$4) -> 0 | R96: =INDEX('Compile Data'!$AL$123:$BI$204,$O96,'Report - ALL (DASHBOARD)'!$W$4) -> 73.02365347 | S96: =INDEX('Compile Data'!$BL$123:$CI$204,$O96,'Report - ALL (DASHBOARD)'!$W$4) -> 62.94635771 | T96: =INDEX('Compile Data'!$CL$123:$DI$204,$O96,'Report - ALL (DASHBOARD)'!$W$4) -> 62.84624453 | U96: =INDEX('Compile Data'!$DL$123:$EI$204,$O96,'Report - ALL (DASHBOARD)'!$W$4) -> 70.48616713 | V96: =INDEX('Compile Data'!$EL$123:$FI$204,$O96,'Report - ALL (DASHBOARD)'!$W$4) -> 
A97: 1991 | B97: =INDEX('Compile Data'!$L$12:$AI$93,$A97-1921,'Report - ALL (DASHBOARD)'!$W$4) -> 0 | C97: =INDEX('Compile Data'!$AL$12:$BI$93,$A97-1921,'Report - ALL (DASHBOARD)'!$W$4) -> 182.3865765 | D97: =INDEX('Compile Data'!$BL$12:$CI$93,$A97-1921,'Report - ALL (DASHBOARD)'!$W$4) -> 176.0436022 | E97: =INDEX('Compile Data'!$CL$12:$DI$93,$A97-1921,'Report - ALL (DASHBOARD)'!$W$4) -> 172.8660301 | F97: =INDEX('Compile Data'!$DL$12:$EI$93,$A97-1921,'Report - ALL (DASHBOARD)'!$W$4) -> 173.6777452 | G97: =INDEX('Compile Data'!$EL$12:$FI$93,$A97-1921,'Report - ALL (DASHBOARD)'!$W$4) ->  | O97: 70 | P97: 0.8518518519 | Q97: =INDEX('Compile Data'!$L$123:$AI$204,$O97,'Report - ALL (DASHBOARD)'!$W$4) -> 0 | R97: =INDEX('Compile Data'!$AL$123:$BI$204,$O97,'Report - ALL (DASHBOARD)'!$W$4) -> 72.88514719 | S97: =INDEX('Compile Data'!$BL$123:$CI$204,$O97,'Report - ALL (DASHBOARD)'!$W$4) -> 61.51842476 | T97: =INDEX('Compile Data'!$CL$123:$DI$204,$O97,'Report - ALL (DASHBOARD)'!$W$4) -> 61.51842476 | U97: =INDEX('Compile Data'!$DL$123:$EI$204,$O97,'Report - ALL (DASHBOARD)'!$W$4) -> 70.21331217 | V97: =INDEX('Compile Data'!$EL$123:$FI$204,$O97,'Report - ALL (DASHBOARD)'!$W$4) -> 
A98: 1992 | B98: =INDEX('Compile Data'!$L$12:$AI$93,$A98-1921,'Report - ALL (DASHBOARD)'!$W$4) -> 0 | C98: =INDEX('Compile Data'!$AL$12:$BI$93,$A98-1921,'Report - ALL (DASHBOARD)'!$W$4) -> 190.3668853 | D98: =INDEX('Compile Data'!$BL$12:$CI$93,$A98-1921,'Report - ALL (DASHBOARD)'!$W$4) -> 73.40778992 | E98: =INDEX('Compile Data'!$CL$12:$DI$93,$A98-1921,'Report - ALL (DASHBOARD)'!$W$4) -> 68.34343688 | F98: =INDEX('Compile Data'!$DL$12:$EI$93,$A98-1921,'Report - ALL (DASHBOARD)'!$W$4) -> 72.62379692 | G98: =INDEX('Compile Data'!$EL$12:$FI$93,$A98-1921,'Report - ALL (DASHBOARD)'!$W$4) ->  | O98: 71 | P98: 0.8641975309 | Q98: =INDEX('Compile Data'!$L$123:$AI$204,$O98,'Report - ALL (DASHBOARD)'!$W$4) -> 0 | R98: =INDEX('Compile Data'!$AL$123:$BI$204,$O98,'Report - ALL (DASHBOARD)'!$W$4) -> 72.65602399 | S98: =INDEX('Compile Data'!$BL$123:$CI$204,$O98,'Report - ALL (DASHBOARD)'!$W$4) -> 59.18259152 | T98: =INDEX('Compile Data'!$CL$123:$DI$204,$O98,'Report - ALL (DASHBOARD)'!$W$4) -> 59.97634576 | U98: =INDEX('Compile Data'!$DL$123:$EI$204,$O98,'Report - ALL (DASHBOARD)'!$W$4) -> 64.91715359 | V98: =INDEX('Compile Data'!$EL$123:$FI$204,$O98,'Report - ALL (DASHBOARD)'!$W$4) -> 
A99: 1993 | B99: =INDEX('Compile Data'!$L$12:$AI$93,$A99-1921,'Report - ALL (DASHBOARD)'!$W$4) -> 0 | C99: =INDEX('Compile Data'!$AL$12:$BI$93,$A99-1921,'Report - ALL (DASHBOARD)'!$W$4) -> 96.73013654 | D99: =INDEX('Compile Data'!$BL$12:$CI$93,$A99-1921,'Report - ALL (DASHBOARD)'!$W$4) -> 113.9204971 | E99: =INDEX('Compile Data'!$CL$12:$DI$93,$A99-1921,'Report - ALL (DASHBOARD)'!$W$4) -> 118.0455326 | F99: =INDEX('Compile Data'!$DL$12:$EI$93,$A99-1921,'Report - ALL (DASHBOARD)'!$W$4) -> 134.1940569 | G99: =INDEX('Compile Data'!$EL$12:$FI$93,$A99-1921,'Report - ALL (DASHBOARD)'!$W$4) ->  | O99: 72 | P99: 0.8765432099 | Q99: =INDEX('Compile Data'!$L$123:$AI$204,$O99,'Report - ALL (DASHBOARD)'!$W$4) -> 0 | R99: =INDEX('Compile Data'!$AL$123:$BI$204,$O99,'Report - ALL (DASHBOARD)'!$W$4) -> 70.21609177 | S99: =INDEX('Compile Data'!$BL$123:$CI$204,$O99,'Report - ALL (DASHBOARD)'!$W$4) -> 57.6724138 | T99: =INDEX('Compile Data'!$CL$123:$DI$204,$O99,'Report - ALL (DASHBOARD)'!$W$4) -> 57.6724138 | U99: =INDEX('Compile Data'!$DL$123:$EI$204,$O99,'Report - ALL (DASHBOARD)'!$W$4) -> 64.36223359 | V99: =INDEX('Compile Data'!$EL$123:$FI$204,$O99,'Report - ALL (DASHBOARD)'!$W$4) -> 
A100: 1994 | B100: =INDEX('Compile Data'!$L$12:$AI$93,$A100-1921,'Report - ALL (DASHBOARD)'!$W$4) -> 0 | C100: =INDEX('Compile Data'!$AL$12:$BI$93,$A100-1921,'Report - ALL (DASHBOARD)'!$W$4) -> 499.8350798 | D100: =INDEX('Compile Data'!$BL$12:$CI$93,$A100-1921,'Report - ALL (DASHBOARD)'!$W$4) -> 415.5942046 | E100: =INDEX('Compile Data'!$CL$12:$DI$93,$A100-1921,'Report - ALL (DASHBOARD)'!$W$4) -> 420.038383 | F100: =INDEX('Compile Data'!$DL$12:$EI$93,$A100-1921,'Report - ALL (DASHBOARD)'!$W$4) -> 429.1836237 | G100: =INDEX('Compile Data'!$EL$12:$FI$93,$A100-1921,'Report - ALL (DASHBOARD)'!$W$4) ->  | O100: 73 | P100: 0.8888888889 | Q100: =INDEX('Compile Data'!$L$123:$AI$204,$O100,'Report - ALL (DASHBOARD)'!$W$4) -> 0 | R100: =INDEX('Compile Data'!$AL$123:$BI$204,$O100,'Report - ALL (DASHBOARD)'!$W$4) -> 69.02924856 | S100: =INDEX('Compile Data'!$BL$123:$CI$204,$O100,'Report - ALL (DASHBOARD)'!$W$4) -> 51.7083877 | T100: =INDEX('Compile Data'!$CL$123:$DI$204,$O100,'Report - ALL (DASHBOARD)'!$W$4) -> 56.29457976 | U100: =INDEX('Compile Data'!$DL$123:$EI$204,$O100,'Report - ALL (DASHBOARD)'!$W$4) -> 61.51842476 | V100: =INDEX('Compile Data'!$EL$123:$FI$204,$O100,'Report - ALL (DASHBOARD)'!$W$4) -> 
A101: 1995 | B101: =INDEX('Compile Data'!$L$12:$AI$93,$A101-1921,'Report - ALL (DASHBOARD)'!$W$4) -> 0 | C101: =INDEX('Compile Data'!$AL$12:$BI$93,$A101-1921,'Report - ALL (DASHBOARD)'!$W$4) -> 73.02365347 | D101: =INDEX('Compile Data'!$BL$12:$CI$93,$A101-1921,'Report - ALL (DASHBOARD)'!$W$4) -> 73.02365347 | E101: =INDEX('Compile Data'!$CL$12:$DI$93,$A101-1921,'Report - ALL (DASHBOARD)'!$W$4) -> 73.02365347 | F101: =INDEX('Compile Data'!$DL$12:$EI$93,$A101-1921,'Report - ALL (DASHBOARD)'!$W$4) -> 73.02365347 | G101: =INDEX('Compile Data'!$EL$12:$FI$93,$A101-1921,'Report - ALL (DASHBOARD)'!$W$4) ->  | O101: 74 | P101: 0.9012345679 | Q101: =INDEX('Compile Data'!$L$123:$AI$204,$O101,'Report - ALL (DASHBOARD)'!$W$4) -> 0 | R101: =INDEX('Compile Data'!$AL$123:$BI$204,$O101,'Report - ALL (DASHBOARD)'!$W$4) -> 68.62930501 | S101: =INDEX('Compile Data'!$BL$123:$CI$204,$O101,'Report - ALL (DASHBOARD)'!$W$4) -> 41.14982438 | T101: =INDEX('Compile Data'!$CL$123:$DI$204,$O101,'Report - ALL (DASHBOARD)'!$W$4) -> 50.90134641 | U101: =INDEX('Compile Data'!$DL$123:$EI$204,$O101,'Report - ALL (DASHBOARD)'!$W$4) -> 57.75719571 | V101: =INDEX('Compile Data'!$EL$123:$FI$204,$O101,'Report - ALL (DASHBOARD)'!$W$4) -> 
A102: 1996 | B102: =INDEX('Compile Data'!$L$12:$AI$93,$A102-1921,'Report - ALL (DASHBOARD)'!$W$4) -> 0 | C102: =INDEX('Compile Data'!$AL$12:$BI$93,$A102-1921,'Report - ALL (DASHBOARD)'!$W$4) -> 57.6724138 | D102: =INDEX('Compile Data'!$BL$12:$CI$93,$A102-1921,'Report - ALL (DASHBOARD)'!$W$4) -> 57.6724138 | E102: =INDEX('Compile Data'!$CL$12:$DI$93,$A102-1921,'Report - ALL (DASHBOARD)'!$W$4) -> 57.6724138 | F102: =INDEX('Compile Data'!$DL$12:$EI$93,$A102-1921,'Report - ALL (DASHBOARD)'!$W$4) -> 57.6724138 | G102: =INDEX('Compile Data'!$EL$12:$FI$93,$A102-1921,'Report - ALL (DASHBOARD)'!$W$4) ->  | O102: 75 | P102: 0.9135802469 | Q102: =INDEX('Compile Data'!$L$123:$AI$204,$O102,'Report - ALL (DASHBOARD)'!$W$4) -> 0 | R102: =INDEX('Compile Data'!$AL$123:$BI$204,$O102,'Report - ALL (DASHBOARD)'!$W$4) -> 64.65548896 | S102: =INDEX('Compile Data'!$BL$123:$CI$204,$O102,'Report - ALL (DASHBOARD)'!$W$4) -> 38.26636556 | T102: =INDEX('Compile Data'!$CL$123:$DI$204,$O102,'Report - ALL (DASHBOARD)'!$W$4) -> 41.09894896 | U102: =INDEX('Compile Data'!$DL$123:$EI$204,$O102,'Report - ALL (DASHBOARD)'!$W$4) -> 57.6724138 | V102: =INDEX('Compile Data'!$EL$123:$FI$204,$O102,'Report - ALL (DASHBOARD)'!$W$4) -> 
A103: 1997 | B103: =INDEX('Compile Data'!$L$12:$AI$93,$A103-1921,'Report - ALL (DASHBOARD)'!$W$4) -> 0 | C103: =INDEX('Compile Data'!$AL$12:$BI$93,$A103-1921,'Report - ALL (DASHBOARD)'!$W$4) -> 64.65548896 | D103: =INDEX('Compile Data'!$BL$12:$CI$93,$A103-1921,'Report - ALL (DASHBOARD)'!$W$4) -> 81.84831155 | E103: =INDEX('Compile Data'!$CL$12:$DI$93,$A103-1921,'Report - ALL (DASHBOARD)'!$W$4) -> 81.84114463 | F103: =INDEX('Compile Data'!$DL$12:$EI$93,$A103-1921,'Report - ALL (DASHBOARD)'!$W$4) -> 81.82533128 | G103: =INDEX('Compile Data'!$EL$12:$FI$93,$A103-1921,'Report - ALL (DASHBOARD)'!$W$4) ->  | O103: 76 | P103: 0.9259259259 | Q103: =INDEX('Compile Data'!$L$123:$AI$204,$O103,'Report - ALL (DASHBOARD)'!$W$4) -> 0 | R103: =INDEX('Compile Data'!$AL$123:$BI$204,$O103,'Report - ALL (DASHBOARD)'!$W$4) -> 62.38123792 | S103: =INDEX('Compile Data'!$BL$123:$CI$204,$O103,'Report - ALL (DASHBOARD)'!$W$4) -> 37.33094669 | T103: =INDEX('Compile Data'!$CL$123:$DI$204,$O103,'Report - ALL (DASHBOARD)'!$W$4) -> 30.97373267 | U103: =INDEX('Compile Data'!$DL$123:$EI$204,$O103,'Report - ALL (DASHBOARD)'!$W$4) -> 54.00179123 | V103: =INDEX('Compile Data'!$EL$123:$FI$204,$O103,'Report - ALL (DASHBOARD)'!$W$4) -> 
A104: 1998 | B104: =INDEX('Compile Data'!$L$12:$AI$93,$A104-1921,'Report - ALL (DASHBOARD)'!$W$4) -> 0 | C104: =INDEX('Compile Data'!$AL$12:$BI$93,$A104-1921,'Report - ALL (DASHBOARD)'!$W$4) -> 32.39013887 | D104: =INDEX('Compile Data'!$BL$12:$CI$93,$A104-1921,'Report - ALL (DASHBOARD)'!$W$4) -> 32.39013887 | E104: =INDEX('Compile Data'!$CL$12:$DI$93,$A104-1921,'Report - ALL (DASHBOARD)'!$W$4) -> 59.97634576 | F104: =INDEX('Compile Data'!$DL$12:$EI$93,$A104-1921,'Report - ALL (DASHBOARD)'!$W$4) -> 32.39013887 | G104: =INDEX('Compile Data'!$EL$12:$FI$93,$A104-1921,'Report - ALL (DASHBOARD)'!$W$4) ->  | O104: 77 | P104: 0.9382716049 | Q104: =INDEX('Compile Data'!$L$123:$AI$204,$O104,'Report - ALL (DASHBOARD)'!$W$4) -> 0 | R104: =INDEX('Compile Data'!$AL$123:$BI$204,$O104,'Report - ALL (DASHBOARD)'!$W$4) -> 62.25369978 | S104: =INDEX('Compile Data'!$BL$123:$CI$204,$O104,'Report - ALL (DASHBOARD)'!$W$4) -> 32.39013887 | T104: =INDEX('Compile Data'!$CL$123:$DI$204,$O104,'Report - ALL (DASHBOARD)'!$W$4) -> 22.61037649 | U104: =INDEX('Compile Data'!$DL$123:$EI$204,$O104,'Report - ALL (DASHBOARD)'!$W$4) -> 53.2080353 | V104: =INDEX('Compile Data'!$EL$123:$FI$204,$O104,'Report - ALL (DASHBOARD)'!$W$4) -> 
A105: 1999 | B105: =INDEX('Compile Data'!$L$12:$AI$93,$A105-1921,'Report - ALL (DASHBOARD)'!$W$4) -> 0 | C105: =INDEX('Compile Data'!$AL$12:$BI$93,$A105-1921,'Report - ALL (DASHBOARD)'!$W$4) -> 90.41562858 | D105: =INDEX('Compile Data'!$BL$12:$CI$93,$A105-1921,'Report - ALL (DASHBOARD)'!$W$4) -> 108.2668682 | E105: =INDEX('Compile Data'!$CL$12:$DI$93,$A105-1921,'Report - ALL (DASHBOARD)'!$W$4) -> 108.2668682 | F105: =INDEX('Compile Data'!$DL$12:$EI$93,$A105-1921,'Report - ALL (DASHBOARD)'!$W$4) -> 90.41562858 | G105: =INDEX('Compile Data'!$EL$12:$FI$93,$A105-1921,'Report - ALL (DASHBOARD)'!$W$4) ->  | O105: 78 | P105: 0.950617284 | Q105: =INDEX('Compile Data'!$L$123:$AI$204,$O105,'Report - ALL (DASHBOARD)'!$W$4) -> 0 | R105: =INDEX('Compile Data'!$AL$123:$BI$204,$O105,'Report - ALL (DASHBOARD)'!$W$4) -> 57.6724138 | S105: =INDEX('Compile Data'!$BL$123:$CI$204,$O105,'Report - ALL (DASHBOARD)'!$W$4) -> 30.97373267 | T105: =INDEX('Compile Data'!$CL$123:$DI$204,$O105,'Report - ALL (DASHBOARD)'!$W$4) -> 17.96304722 | U105: =INDEX('Compile Data'!$DL$123:$EI$204,$O105,'Report - ALL (DASHBOARD)'!$W$4) -> 42.0202563 | V105: =INDEX('Compile Data'!$EL$123:$FI$204,$O105,'Report - ALL (DASHBOARD)'!$W$4) -> 
A106: 2000 | B106: =INDEX('Compile Data'!$L$12:$AI$93,$A106-1921,'Report - ALL (DASHBOARD)'!$W$4) -> 0 | C106: =INDEX('Compile Data'!$AL$12:$BI$93,$A106-1921,'Report - ALL (DASHBOARD)'!$W$4) -> 220.3246924 | D106: =INDEX('Compile Data'!$BL$12:$CI$93,$A106-1921,'Report - ALL (DASHBOARD)'!$W$4) -> 218.5146422 | E106: =INDEX('Compile Data'!$CL$12:$DI$93,$A106-1921,'Report - ALL (DASHBOARD)'!$W$4) -> 218.5146529 | F106: =INDEX('Compile Data'!$DL$12:$EI$93,$A106-1921,'Report - ALL (DASHBOARD)'!$W$4) -> 220.3246924 | G106: =INDEX('Compile Data'!$EL$12:$FI$93,$A106-1921,'Report - ALL (DASHBOARD)'!$W$4) ->  | O106: 79 | P106: 0.962962963 | Q106: =INDEX('Compile Data'!$L$123:$AI$204,$O106,'Report - ALL (DASHBOARD)'!$W$4) -> 0 | R106: =INDEX('Compile Data'!$AL$123:$BI$204,$O106,'Report - ALL (DASHBOARD)'!$W$4) -> 37.33094669 | S106: =INDEX('Compile Data'!$BL$123:$CI$204,$O106,'Report - ALL (DASHBOARD)'!$W$4) -> 29.54885963 | T106: =INDEX('Compile Data'!$CL$123:$DI$204,$O106,'Report - ALL (DASHBOARD)'!$W$4) -> 0.1746372801 | U106: =INDEX('Compile Data'!$DL$123:$EI$204,$O106,'Report - ALL (DASHBOARD)'!$W$4) -> 35.92189812 | V106: =INDEX('Compile Data'!$EL$123:$FI$204,$O106,'Report - ALL (DASHBOARD)'!$W$4) -> 
A107: 2001 | B107: =INDEX('Compile Data'!$L$12:$AI$93,$A107-1921,'Report - ALL (DASHBOARD)'!$W$4) -> 0 | C107: =INDEX('Compile Data'!$AL$12:$BI$93,$A107-1921,'Report - ALL (DASHBOARD)'!$W$4) -> 734.1975526 | D107: =INDEX('Compile Data'!$BL$12:$CI$93,$A107-1921,'Report - ALL (DASHBOARD)'!$W$4) -> 731.7315772 | E107: =INDEX('Compile Data'!$CL$12:$DI$93,$A107-1921,'Report - ALL (DASHBOARD)'!$W$4) -> 730.5837266 | F107: =INDEX('Compile Data'!$DL$12:$EI$93,$A107-1921,'Report - ALL (DASHBOARD)'!$W$4) -> 723.7590669 | G107: =INDEX('Compile Data'!$EL$12:$FI$93,$A107-1921,'Report - ALL (DASHBOARD)'!$W$4) ->  | O107: 80 | P107: 0.975308642 | Q107: =INDEX('Compile Data'!$L$123:$AI$204,$O107,'Report - ALL (DASHBOARD)'!$W$4) -> 0 | R107: =INDEX('Compile Data'!$AL$123:$BI$204,$O107,'Report - ALL (DASHBOARD)'!$W$4) -> 32.39013887 | S107: =INDEX('Compile Data'!$BL$123:$CI$204,$O107,'Report - ALL (DASHBOARD)'!$W$4) -> 8.519969242 | T107: =INDEX('Compile Data'!$CL$123:$DI$204,$O107,'Report - ALL (DASHBOARD)'!$W$4) -> 0.1055726335 | U107: =INDEX('Compile Data'!$DL$123:$EI$204,$O107,'Report - ALL (DASHBOARD)'!$W$4) -> 32.39013887 | V107: =INDEX('Compile Data'!$EL$123:$FI$204,$O107,'Report - ALL (DASHBOARD)'!$W$4) -> 
A108: 2002 | B108: =INDEX('Compile Data'!$L$12:$AI$93,$A108-1921,'Report - ALL (DASHBOARD)'!$W$4) -> 0 | C108: =INDEX('Compile Data'!$AL$12:$BI$93,$A108-1921,'Report - ALL (DASHBOARD)'!$W$4) -> 540.5232871 | D108: =INDEX('Compile Data'!$BL$12:$CI$93,$A108-1921,'Report - ALL (DASHBOARD)'!$W$4) -> 436.2374193 | E108: =INDEX('Compile Data'!$CL$12:$DI$93,$A108-1921,'Report - ALL (DASHBOARD)'!$W$4) -> 435.8151748 | F108: =INDEX('Compile Data'!$DL$12:$EI$93,$A108-1921,'Report - ALL (DASHBOARD)'!$W$4) -> 466.0008555 | G108: =INDEX('Compile Data'!$EL$12:$FI$93,$A108-1921,'Report - ALL (DASHBOARD)'!$W$4) ->  | O108: 81 | P108: 0.987654321 | Q108: =INDEX('Compile Data'!$L$123:$AI$204,$O108,'Report - ALL (DASHBOARD)'!$W$4) -> 0 | R108: =INDEX('Compile Data'!$AL$123:$BI$204,$O108,'Report - ALL (DASHBOARD)'!$W$4) -> 30.97373267 | S108: =INDEX('Compile Data'!$BL$123:$CI$204,$O108,'Report - ALL (DASHBOARD)'!$W$4) -> 0 | T108: =INDEX('Compile Data'!$CL$123:$DI$204,$O108,'Report - ALL (DASHBOARD)'!$W$4) -> 0 | U108: =INDEX('Compile Data'!$DL$123:$EI$204,$O108,'Report - ALL (DASHBOARD)'!$W$4) -> 30.97373267 | V108: =INDEX('Compile Data'!$EL$123:$FI$204,$O108,'Report - ALL (DASHBOARD)'!$W$4) -> 
A109: 2003 | B109: =INDEX('Compile Data'!$L$12:$AI$93,$A109-1921,'Report - ALL (DASHBOARD)'!$W$4) -> 0 | C109: =INDEX('Compile Data'!$AL$12:$BI$93,$A109-1921,'Report - ALL (DASHBOARD)'!$W$4) -> 0 | D109: =INDEX('Compile Data'!$BL$12:$CI$93,$A109-1921,'Report - ALL (DASHBOARD)'!$W$4) -> 0 | E109: =INDEX('Compile Data'!$CL$12:$DI$93,$A109-1921,'Report - ALL (DASHBOARD)'!$W$4) -> 0 | F109: =INDEX('Compile Data'!$DL$12:$EI$93,$A109-1921,'Report - ALL (DASHBOARD)'!$W$4) -> 0 | G109: =INDEX('Compile Data'!$EL$12:$FI$93,$A109-1921,'Report - ALL (DASHBOARD)'!$W$4) -> 0 | O109: 82 | P109: 1 | Q109: =INDEX('Compile Data'!$L$123:$AI$204,$O109,'Report - ALL (DASHBOARD)'!$W$4) -> 0 | R109: =INDEX('Compile Data'!$AL$123:$BI$204,$O109,'Report - ALL (DASHBOARD)'!$W$4) -> 0 | S109: =INDEX('Compile Data'!$BL$123:$CI$204,$O109,'Report - ALL (DASHBOARD)'!$W$4) -> 0 | T109: =INDEX('Compile Data'!$CL$123:$DI$204,$O109,'Report - ALL (DASHBOARD)'!$W$4) -> 0 | U109: =INDEX('Compile Data'!$DL$123:$EI$204,$O109,'Report - ALL (DASHBOARD)'!$W$4) -> 0 | V109: =INDEX('Compile Data'!$EL$123:$FI$204,$O109,'Report - ALL (DASHBOARD)'!$W$4) -> 0

Sheet Compile Data
B1: =Control!$B$5 -> NAA 011221 | C1: =Control!$B$6 -> Alt 1B 011221 | D1: =Control!$B$7 -> Alt 1B 011221 MM WS10.7 OF WS 8 | E1: =Control!$B$8 -> Alt 1B 011221 OM WS10700 | F1: =Control!$B$9 -> Alt 1B 011221 MM WS10.7 OF WS 6 | G1: =Control!$B$10 -> 0 | AE1: =$B$8 -> PER-AVER | BE1: =$C$8 -> PER-AVER | CE1: =$D$8 -> PER-AVER | DE1: =$E$8 -> PER-AVER | EE1: =$F$8 -> PER-AVER | FE1: =$G$8 -> PER-AVER
A2: Index: | B2: ='Report - ALL (DASHBOARD)'!W2 -> 38 | C2: =B2 -> 38 | D2: 38 | E2: 38 | F2: 38 | G2: 38
A3: Convert? | B3: =IF('Report - ALL (DASHBOARD)'!W5,1,0) -> 1 | C3: 1 | D3: 1 | E3: 1 | F3: 1 | G3: 1
A4: Column: | B4: =TRIM(VLOOKUP(B$2+2,DSSPathnames!$H$7:$K$178,2)) -> AN | C4: AN | D4: AN | E4: AN | F4: AN | G4: AN
A5: Title: | B5: =TRIM(VLOOKUP(B$2+2,DSSPathnames!$H$7:$K$178,4)) -> Total Sites Release | C5: =TRIM(VLOOKUP(C$2+2,DSSPathnames!$H$7:$K$178,4)) -> Total Sites Release | D5: =TRIM(VLOOKUP(D$2+2,DSSPathnames!$H$7:$K$178,4)) -> Total Sites Release | E5: =TRIM(VLOOKUP(E$2+2,DSSPathnames!$H$7:$K$178,4)) -> Total Sites Release | F5: =TRIM(VLOOKUP(F$2+2,DSSPathnames!$H$7:$K$178,4)) -> Total Sites Release | G5: =TRIM(VLOOKUP(G$2+2,DSSPathnames!$H$7:$K$178,4)) -> Total Sites Release
A6: Parameter: | B6: =INDIRECT(CONCATENATE("'",B$1,"'!",B$4,2)) -> C17604 | C6: C17604 | D6: C17604 | E6: C17604 | F6: C17604
B7: =INDIRECT(CONCATENATE("'",B$1,"'!",B$4,3)) -> FLOW-CHANNEL | C7: FLOW-CHANNEL | D7: FLOW-CHANNEL | E7: FLOW-CHANNEL | F7: FLOW-CHANNEL
A8: Type: | B8: =TRIM(VLOOKUP(B$2+2,DSSPathnames!$H$7:$K$178,3)) -> PER-AVER | C8: =TRIM(VLOOKUP(C$2+2,DSSPathnames!$H$7:$K$178,3)) -> PER-AVER | D8: =TRIM(VLOOKUP(D$2+2,DSSPathnames!$H$7:$K$178,3)) -> PER-AVER | E8: =TRIM(VLOOKUP(E$2+2,DSSPathnames!$H$7:$K$178,3)) -> PER-AVER | F8: =TRIM(VLOOKUP(F$2+2,DSSPathnames!$H$7:$K$178,3)) -> PER-AVER | G8: =TRIM(VLOOKUP(G$2+2,DSSPathnames!$H$7:$K$178,3)) -> PER-AVER | K8: =CONCATENATE(TRIM(B$1),": ",TRIM(B$5)," - ",TRIM(B$6)," ",TRIM(B$7)," (",TRIM(B$10),") ",TRIM(B$11)) -> NAA 011221: Total Sites Release - C17604 FLOW-CHANNEL (TAF) | AK8: =CONCATENATE(TRIM(C$1),": ",TRIM(C$5)," - ",TRIM(C$6)," ",TRIM(C$7)," (",TRIM(C$10),") ",TRIM(C$11)) -> Alt 1B 011221: Total Sites Release - C17604 FLOW-CHANNEL (TAF) | BK8: =CONCATENATE(TRIM(D$1),": ",TRIM(D$5)," - ",TRIM(D$6)," ",TRIM(D$7)," (",TRIM(D$10),") ",TRIM(D$11)) -> Alt 1B 011221 MM WS10.7 OF WS 8: Total Sites Release - C17604 FLOW-CHANNEL (TAF) | CK8: =CONCATENATE(TRIM(E$1),": ",TRIM(E$5)," - ",TRIM(E$6)," ",TRIM(E$7)," (",TRIM(E$10),") ",TRIM(E$11)) -> Alt 1B 011221 OM WS10700: Total Sites Release - C17604 FLOW-CHANNEL (TAF) | DK8: =CONCATENATE(TRIM(F$1),": ",TRIM(F$5)," - ",TRIM(F$6)," ",TRIM(F$7)," (",TRIM(F$10),") ",TRIM(F$11)) -> Alt 1B 011221 MM WS10.7 OF WS 6: Total Sites Release - C17604 FLOW-CHANNEL (TAF) | EK8: =CONCATENATE(TRIM(G$1),": ",TRIM(G$5)," - ",TRIM(G$6)," ",TRIM(G$7)," (",TRIM(G$10),") ",TRIM(G$11)) -> 
A9: Units-native: | B9: =TRIM(INDIRECT(CONCATENATE("'",B$1,"'!",B$4,11))) -> CFS | C9: CFS | D9: CFS | E9: CFS | F9: CFS
A10: Units-shown: | B10: =IF(AND(B$3>0,B$9="CFS"),"TAF",B$9) -> TAF | C10: TAF | D10: TAF | E10: TAF | F10: TAF | Y10: Jan-Dec | Z10: Mar-Feb | AA10: Oct-Sep | AC10: Nov-Mar | AD10: Aug-Oct | AE10: Oct-Jan | AF10: Dec-Feb | AG10: Mar-Jun | AH10: Jun-Sep | AI10: Sep-Nov | AY10: Jan-Dec | AZ10: Mar-Feb | BA10: Oct-Sep | BC10: Nov-Mar | BD10: Aug-Oct | BE10: Oct-Jan | BF10: Dec-Feb | BG10: Mar-Jun | BH10: Jun-Sep | BI10: Sep-Nov | BY10: Jan-Dec | BZ10: Mar-Feb | CA10: Oct-Sep | CC10: Nov-Mar | CD10: Aug-Oct | CE10: Oct-Jan | CF10: Dec-Feb | CG10: Mar-Jun | CH10: Jun-Sep | CI10: Sep-Nov | CY10: Jan-Dec | CZ10: Mar-Feb | DA10: Oct-Sep | DC10: Nov-Mar | DD10: Aug-Oct | DE10: Oct-Jan | DF10: Dec-Feb | DG10: Mar-Jun | DH10: Jun-Sep | DI10: Sep-Nov | DY10: Jan-Dec | DZ10: Mar-Feb | EA10: Oct-Sep | EC10: Nov-Mar | ED10: Aug-Oct | EE10: Oct-Jan | EF10: Dec-Feb | EG10: Mar-Jun | EH10: Jun-Sep | EI10: Sep-Nov | EY10: Jan-Dec | EZ10: Mar-Feb | FA10: Oct-Sep | FC10: Nov-Mar | FD10: Aug-Oct | FE10: Oct-Jan | FF10: Dec-Feb | FG10: Mar-Jun | FH10: Jun-Sep | FI10: Sep-Nov
A11: Date | B11: =IF(ISNUMBER(FIND("PRV",B$6)),"SHIFTED","") ->  | C11: =IF(ISNUMBER(FIND("PRV",C$6)),"SHIFTED","") ->  | D11: =IF(ISNUMBER(FIND("PRV",D$6)),"SHIFTED","") ->  | E11: =IF(ISNUMBER(FIND("PRV",E$6)),"SHIFTED","") ->  | F11: =IF(ISNUMBER(FIND("PRV",F$6)),"SHIFTED","") ->  | K11: YEAR | L11: OCT | M11: NOV | N11: DEC | O11: JAN | P11: FEB | Q11: MAR | R11: APR | S11: MAY | T11: JUN | U11: JUL | V11: AUG | W11: SEP | Y11: =IF(AND($B$10="TAF",$B$8="PER-AVER"),"TOT","AVG") -> TOT | Z11: =IF(AND($B$10="TAF",$B$8="PER-AVER"),"TOT","AVG") -> TOT | AA11: =IF(AND($B$10="TAF",$B$8="PER-AVER"),"TOT","AVG") -> TOT | AC11: =IF(AND($B$10="TAF",$B$8="PER-AVER"),"TOT","AVG") -> TOT | AD11: TOT | AE11: TOT | AF11: TOT | AG11: TOT | AH11: TOT | AI11: TOT | AK11: YEAR | AL11: OCT | AM11: NOV | AN11: DEC | AO11: JAN | AP11: FEB | AQ11: MAR | AR11: APR | AS11: MAY | AT11: JUN | AU11: JUL | AV11: AUG | AW11: SEP | AY11: =IF(AND($C$10="TAF",$C$8="PER-AVER"),"TOT","AVG") -> TOT | AZ11: =IF(AND($C$10="TAF",$C$8="PER-AVER"),"TOT","AVG") -> TOT | BA11: =IF(AND($C$10="TAF",$C$8="PER-AVER"),"TOT","AVG") -> TOT | BC11: =IF(AND($B$10="TAF",$B$8="PER-AVER"),"TOT","AVG") -> TOT | BD11: =IF(AND($B$10="TAF",$B$8="PER-AVER"),"TOT","AVG") -> TOT | BE11: =IF(AND($C$10="TAF",$C$8="PER-AVER"),"TOT","AVG") -> TOT | BF11: =IF(AND($C$10="TAF",$C$8="PER-AVER"),"TOT","AVG") -> TOT | BG11: =IF(AND($C$10="TAF",$C$8="PER-AVER"),"TOT","AVG") -> TOT | BH11: =IF(AND($C$10="TAF",$C$8="PER-AVER"),"TOT","AVG") -> TOT | BI11: =IF(AND($C$10="TAF",$C$8="PER-AVER"),"TOT","AVG") -> TOT | BK11: YEAR | BL11: OCT | BM11: NOV | BN11: DEC | BO11: JAN | BP11: FEB | BQ11: MAR | BR11: APR | BS11: MAY | BT11: JUN | BU11: JUL | BV11: AUG | BW11: SEP | BY11: =IF(AND($D$10="TAF",$D$8="PER-AVER"),"TOT","AVG") -> TOT | BZ11: =IF(AND($D$10="TAF",$D$8="PER-AVER"),"TOT","AVG") -> TOT | CA11: =IF(AND($D$10="TAF",$D$8="PER-AVER"),"TOT","AVG") -> TOT | CC11: =IF(AND($B$10="TAF",$B$8="PER-AVER"),"TOT","AVG") -> TOT | CD11: =IF(AND($B$10="TAF",$B$8="PER-AVER"),"TOT","AVG") -> TOT | CE11: =IF(AND($D$10="TAF",$D$8="PER-AVER"),"TOT","AVG") -> TOT | CF11: =IF(AND($D$10="TAF",$D$8="PER-AVER"),"TOT","AVG") -> TOT | CG11: =IF(AND($D$10="TAF",$D$8="PER-AVER"),"TOT","AVG") -> TOT | CH11: =IF(AND($D$10="TAF",$D$8="PER-AVER"),"TOT","AVG") -> TOT | CI11: =IF(AND($D$10="TAF",$D$8="PER-AVER"),"TOT","AVG") -> TOT | CK11: YEAR | CL11: OCT | CM11: NOV | CN11: DEC | CO11: JAN | CP11: FEB | CQ11: MAR | CR11: APR | CS11: MAY | CT11: JUN | CU11: JUL | CV11: AUG | CW11: SEP | CY11: =IF(AND($E$10="TAF",$E$8="PER-AVER"),"TOT","AVG") -> TOT | CZ11: =IF(AND($E$10="TAF",$E$8="PER-AVER"),"TOT","AVG") -> TOT | DA11: =IF(AND($E$10="TAF",$E$8="PER-AVER"),"TOT","AVG") -> TOT | DC11: =IF(AND($B$10="TAF",$B$8="PER-AVER"),"TOT","AVG") -> TOT | DD11: =IF(AND($B$10="TAF",$B$8="PER-AVER"),"TOT","AVG") -> TOT | DE11: =IF(AND($E$10="TAF",$E$8="PER-AVER"),"TOT","AVG") -> TOT | DF11: =IF(AND($E$10="TAF",$E$8="PER-AVER"),"TOT","AVG") -> TOT | DG11: =IF(AND($E$10="TAF",$E$8="PER-AVER"),"TOT","AVG") -> TOT | DH11: =IF(AND($E$10="TAF",$E$8="PER-AVER"),"TOT","AVG") -> TOT | DI11: =IF(AND($E$10="TAF",$E$8="PER-AVER"),"TOT","AVG") -> TOT | DK11: YEAR | DL11: OCT | DM11: NOV | DN11: DEC | DO11: JAN | DP11: FEB | DQ11: MAR | DR11: APR | DS11: MAY | DT11: JUN | DU11: JUL | DV11: AUG | DW11: SEP | DY11: =IF(AND($F$10="TAF",$F$8="PER-AVER"),"TOT","AVG") -> TOT | DZ11: =IF(AND($F$10="TAF",$F$8="PER-AVER"),"TOT","AVG") -> TOT | EA11: =IF(AND($F$10="TAF",$F$8="PER-AVER"),"TOT","AVG") -> TOT | EC11: =IF(AND($B$10="TAF",$B$8="PER-AVER"),"TOT","AVG") -> TOT | ED11: =IF(AND($B$10="TAF",$B$8="PER-AVER"),"TOT","AVG") -> TOT | EE11: =IF(AND($F$10="TAF",$F$8="PER-AVER"),"TOT","AVG") -> TOT | EF11: =IF(AND($F$10="TAF",$F$8="PER-AVER"),"TOT","AVG") -> TOT | EG11: =IF(AND($F$10="TAF",$F$8="PER-AVER"),"TOT","AVG") -> TOT | EH11: =IF(AND($F$10="TAF",$F$8="PER-AVER"),"TOT","AVG") -> TOT | EI11: =IF(AND($F$10="TAF",$F$8="PER-AVER"),"TOT","AVG") -> TOT | EK11: YEAR | EL11: OCT | EM11: NOV | EN11: DEC | EO11: JAN | EP11: FEB | EQ11: MAR | ER11: APR | ES11: MAY | ET11: JUN | EU11: JUL | EV11: AUG | EW11: SEP | EY11: =IF(AND($F$10="TAF",$F$8="PER-AVER"),"TOT","AVG") -> TOT | EZ11: =IF(AND($F$10="TAF",$F$8="PER-AVER"),"TOT","AVG") -> TOT | FA11: =IF(AND($F$10="TAF",$F$8="PER-AVER"),"TOT","AVG") -> TOT | FC11: =IF(AND($B$10="TAF",$B$8="PER-AVER"),"TOT","AVG") -> TOT | FD11: =IF(AND($B$10="TAF",$B$8="PER-AVER"),"TOT","AVG") -> TOT | FE11: =IF(AND($F$10="TAF",$F$8="PER-AVER"),"TOT","AVG") -> TOT | FF11: =IF(AND($F$10="TAF",$F$8="PER-AVER"),"TOT","AVG") -> TOT | FG11: =IF(AND($F$10="TAF",$F$8="PER-AVER"),"TOT","AVG") -> TOT | FH11: =IF(AND($F$10="TAF",$F$8="PER-AVER"),"TOT","AVG") -> TOT | FI11: =IF(AND($F$10="TAF",$F$8="PER-AVER"),"TOT","AVG") -> TOT
A12: 1921-09-30 | K12: 1922 | L12: =B13 -> 0 | M12: =B14 -> 0 | N12: =B15 -> 0 | O12: =B16 -> 0 | P12: =B17 -> 0 | Q12: =B18 -> 0 | R12: =B19 -> 0 | S12: =B20 -> 0 | T12: =B21 -> 0 | U12: =B22 -> 0 | V12: =B23 -> 0 | W12: =B24 -> 0 | Y12: =IF(Y$11="AVG",AVERAGE(O12:W12,L13:N13),SUM(O12:W12,L13:N13)) -> 0 | Z12: =IF(Z$11="AVG",AVERAGE(Q12:W12,L13:P13),SUM(Q12:W12,L13:P13)) -> 0 | AA12: =IF(AA$11="AVG",AVERAGE(L12:W12),SUM(L12:W12)) -> 0 | AC12: =IF(AC$11="AVG",IF(AE$1="INST-VAL",AVERAGE(L12:P12,M12:Q12),AVERAGE(M12:Q12)),SUM(M12:Q12)) -> 0 | AD12: =IF(AD$11="AVG",IF(AE$1="INST-VAL",AVERAGE(U12:W12,V12:W12,L13),AVERAGE(V12:W12,L13)),SUM(V12:W12,L13)) -> 0 | AE12: =IF(AE$11="AVG",IF(AE$1="INST-VAL",AVERAGE(W11,L12:N12,L12:O12),AVERAGE(L12:O12)),SUM(L12:O12)) -> 0 | AF12: =IF(AF$11="AVG",IF(AE$1="INST-VAL",AVERAGE(M12:O12,N12:P12),AVERAGE(N12:P12)),SUM(N12:P12)) -> 0 | AG12: =IF(AG$11="AVG",IF(AE$1="INST-VAL",AVERAGE(P12:S12,Q12:T12),AVERAGE(Q12:T12)),SUM(Q12:T12)) -> 0 | AH12: =IF(AH$11="AVG",IF(AE$1="INST-VAL",AVERAGE(S12:V12,T12:W12),AVERAGE(T12:W12)),SUM(T12:W12)) -> 0 | AI12: =IF(AI$11="AVG",IF(AE$1="INST-VAL",AVERAGE(V12:W12,L13,W12,L13:M13),AVERAGE(W12,L13:M13)),SUM(W12,L13:M13)) -> 0 | AK12: 1922 | AL12: =C13 -> 17.85123967 | AM12: =C14 -> 18.34924492 | AN12: =C15 -> 0 | AO12: =C16 -> 5.960470852e-08 | AP12: =C17 -> 0 | AQ12: =C18 -> 0 | AR12: =C19 -> 0 | AS12: =C20 -> 0 | AT12: =C21 -> 2.5 | AU12: =C22 -> 43.56947941 | AV12: =C23 -> 31.3362069 | AW12: =C24 -> 31.00298448 | AY12: =IF(AY$11="AVG",AVERAGE(AO12:AW12,AL13:AN13),SUM(AO12:AW12,AL13:AN13)) -> 140.1448777 | AZ12: =IF(AZ$11="AVG",AVERAGE(AQ12:AW12,AL13:AP13),SUM(AQ12:AW12,AL13:AP13)) -> 147.1555236 | BA12: =IF(BA$11="AVG",AVERAGE(AL12:AW12),SUM(AL12:AW12)) -> 144.6091554 | BC12: =IF(BC$11="AVG",IF(BE$1="INST-VAL",AVERAGE(AL12:AP12,AM12:AQ12),AVERAGE(AM12:AQ12)),SUM(AM12:AQ12)) -> 18.34924498 | BD12: =IF(BD$11="AVG",IF(BE$1="INST-VAL",AVERAGE(AU12:AW12,AV12:AW12,AL13),AVERAGE(AV12:AW12,AL13)),SUM(AV12:AW12,AL13)) -> 92.41539828 | BE12: =IF(BE$11="AVG",IF(BE$1="INST-VAL",AVERAGE(AW11,AL12:AN12,AL12:AO12),AVERAGE(AL12:AO12)),SUM(AL12:AO12)) -> 36.20048465 | BF12: =IF(BF$11="AVG",IF(BE$1="INST-VAL",AVERAGE(AM12:AO12,AN12:AP12),AVERAGE(AN12:AP12)),SUM(AN12:AP12)) -> 5.960470852e-08 | BG12: =IF(BG$11="AVG",IF(BE$1="INST-VAL",AVERAGE(AP12:AS12,AQ12:AT12),AVERAGE(AQ12:AT12)),SUM(AQ12:AT12)) -> 2.5 | BH12: =IF(BH$11="AVG",IF(BE$1="INST-VAL",AVERAGE(AS12:AV12,AT12:AW12),AVERAGE(AT12:AW12)),SUM(AT12:AW12)) -> 108.4086708 | BI12: =IF(BI$11="AVG",IF(BE$1="INST-VAL",AVERAGE(AV12:AW12,AL13,AW12,AL13:AM13),AVERAGE(AW12,AL13:AM13)),SUM(AW12,AL13:AM13)) -> 61.07919138 | BK12: 1922 | BL12: =D13 -> 17.85123967 | BM12: =D14 -> 18.34924492 | BN12: =D15 -> 0 | BO12: =D16 -> 5.960482036e-08 | BP12: =D17 -> 0 | BQ12: =D18 -> 0 | BR12: =D19 -> 0 | BS12: =D20 -> 0 | BT12: =D21 -> 2.5 | BU12: =D22 -> 29.38193366 | BV12: =D23 -> 31.3362069 | BW12: =D24 -> 31.00298448 | BY12: =IF(BY$11="AVG",AVERAGE(BO12:BW12,BL13:BN13),SUM(BO12:BW12,BL13:BN13)) -> 124.7449218 | BZ12: =IF(BZ$11="AVG",AVERAGE(BQ12:BW12,BL13:BP13),SUM(BQ12:BW12,BL13:BP13)) -> 124.7449217 | CA12: =IF(CA$11="AVG",AVERAGE(BL12:BW12),SUM(BL12:BW12)) -> 130.4216097 | CC12: =IF(CC$11="AVG",IF(CE$1="INST-VAL",AVERAGE(BL12:BP12,BM12:BQ12),AVERAGE(BM12:BQ12)),SUM(BM12:BQ12)) -> 18.34924498 | CD12: =IF(CD$11="AVG",IF(CE$1="INST-VAL",AVERAGE(BU12:BW12,BV12:BW12,BL13),AVERAGE(BV12:BW12,BL13)),SUM(BV12:BW12,BL13)) -> 89.46298807 | CE12: =IF(CE$11="AVG",IF(CE$1="INST-VAL",AVERAGE(BW11,BL12:BN12,BL12:BO12),AVERAGE(BL12:BO12)),SUM(BL12:BO12)) -> 36.20048465 | CF12: =IF(CF$11="AVG",IF(CE$1="INST-VAL",AVERAGE(BM12:BO12,BN12:BP12),AVERAGE(BN12:BP12)),SUM(BN12:BP12)) -> 5.960482036e-08 | CG12: =IF(CG$11="AVG",IF(CE$1="INST-VAL",AVERAGE(BP12:BS12,BQ12:BT12),AVERAGE(BQ12:BT12)),SUM(BQ12:BT12)) -> 2.5 | CH12: =IF(CH$11="AVG",IF(CE$1="INST-VAL",AVERAGE(BS12:BV12,BT12:BW12),AVERAGE(BT12:BW12)),SUM(BT12:BW12)) -> 94.22112504 | CI12: =IF(CI$11="AVG",IF(CE$1="INST-VAL",AVERAGE(BV12:BW12,BL13,BW12,BL13:BM13),AVERAGE(BW12,BL13:BM13)),SUM(BW12,BL13:BM13)) -> 59.86678117 | CK12: 1922 | CL12: =E13 -> 17.85123967 | CM12: =E14 -> 18.34924492 | CN12: =E15 -> 0 | CO12: =E16 -> 5.960431706e-08 | CP12: =E17 -> 0 | CQ12: =E18 -> 0 | CR12: =E19 -> 0 | CS12: =E20 -> 0 | CT12: =E21 -> 2.5 | CU12: =E22 -> 29.07595467 | CV12: =E23 -> 31.3362069 | CW12: =E24 -> 31.00298448 | CY12: =IF(CY$11="AVG",AVERAGE(CO12:CW12,CL13:CN13),SUM(CO12:CW12,CL13:CN13)) -> 124.4354179 | CZ12: =IF(CZ$11="AVG",AVERAGE(CQ12:CW12,CL13:CP13),SUM(CQ12:CW12,CL13:CP13)) -> 124.4354179 | DA12: =IF(DA$11="AVG",AVERAGE(CL12:CW12),SUM(CL12:CW12)) -> 130.1156307 | DC12: =IF(DC$11="AVG",IF(DE$1="INST-VAL",AVERAGE(CL12:CP12,CM12:CQ12),AVERAGE(CM12:CQ12)),SUM(CM12:CQ12)) -> 18.34924498 | DD12: =IF(DD$11="AVG",IF(DE$1="INST-VAL",AVERAGE(CU12:CW12,CV12:CW12,CL13),AVERAGE(CV12:CW12,CL13)),SUM(CV12:CW12,CL13)) -> 89.4594632 | DE12: =IF(DE$11="AVG",IF(DE$1="INST-VAL",AVERAGE(CW11,CL12:CN12,CL12:CO12),AVERAGE(CL12:CO12)),SUM(CL12:CO12)) -> 36.20048465 | DF12: =IF(DF$11="AVG",IF(DE$1="INST-VAL",AVERAGE(CM12:CO12,CN12:CP12),AVERAGE(CN12:CP12)),SUM(CN12:CP12)) -> 5.960431706e-08 | DG12: =IF(DG$11="AVG",IF(DE$1="INST-VAL",AVERAGE(CP12:CS12,CQ12:CT12),AVERAGE(CQ12:CT12)),SUM(CQ12:CT12)) -> 2.5 | DH12: =IF(DH$11="AVG",IF(DE$1="INST-VAL",AVERAGE(CS12:CV12,CT12:CW12),AVERAGE(CT12:CW12)),SUM(CT12:CW12)) -> 93.91514605 | DI12: =IF(DI$11="AVG",IF(DE$1="INST-VAL",AVERAGE(CV12:CW12,CL13,CW12,CL13:CM13),AVERAGE(CW12,CL13:CM13)),SUM(CW12,CL13:CM13)) -> 59.8632563 | DK12: 1922 | DL12: =F13 -> 17.85123967 | DM12: =F14 -> 18.34924492 | DN12: =F15 -> 0 | DO12: =F16 -> 5.960454075e-08 | DP12: =F17 -> 0 | DQ12: =F18 -> 0 | DR12: =F19 -> 0 | DS12: =F20 -> 0 | DT12: =F21 -> 2.5 | DU12: =F22 -> 33.1726433 | DV12: =F23 -> 31.3362069 | DW12: =F24 -> 31.00298448 | DY12: =IF(DY$11="AVG",AVERAGE(DO12:DW12,DL13:DN13),SUM(DO12:DW12,DL13:DN13)) -> 129.7480416 | DZ12: =IF(DZ$11="AVG",AVERAGE(DQ12:DW12,DL13:DP13),SUM(DQ12:DW12,DL13:DP13)) -> 136.7598059 | EA12: =IF(EA$11="AVG",AVERAGE(DL12:DW12),SUM(DL12:DW12)) -> 134.2123193 | EC12: =IF(EC$11="AVG",IF(EE$1="INST-VAL",AVERAGE(DL12:DP12,DM12:DQ12),AVERAGE(DM12:DQ12)),SUM(DM12:DQ12)) -> 18.34924498 | ED12: =IF(ED$11="AVG",IF(EE$1="INST-VAL",AVERAGE(DU12:DW12,DV12:DW12,DL13),AVERAGE(DV12:DW12,DL13)),SUM(DV12:DW12,DL13)) -> 92.41539828 | EE12: =IF(EE$11="AVG",IF(EE$1="INST-VAL",AVERAGE(DW11,DL12:DN12,DL12:DO12),AVERAGE(DL12:DO12)),SUM(DL12:DO12)) -> 36.20048465 | EF12: =IF(EF$11="AVG",IF(EE$1="INST-VAL",AVERAGE(DM12:DO12,DN12:DP12),AVERAGE(DN12:DP12)),SUM(DN12:DP12)) -> 5.960454075e-08 | EG12: =IF(EG$11="AVG",IF(EE$1="INST-VAL",AVERAGE(DP12:DS12,DQ12:DT12),AVERAGE(DQ12:DT12)),SUM(DQ12:DT12)) -> 2.5 | EH12: =IF(EH$11="AVG",IF(EE$1="INST-VAL",AVERAGE(DS12:DV12,DT12:DW12),AVERAGE(DT12:DW12)),SUM(DT12:DW12)) -> 98.01183468 | EI12: =IF(EI$11="AVG",IF(EE$1="INST-VAL",AVERAGE(DV12:DW12,DL13,DW12,DL13:DM13),AVERAGE(DW12,DL13:DM13)),SUM(DW12,DL13:DM13)) -> 61.07919138 | EK12: 1922 | EL12: =G13 ->  | EM12: =G14 ->  | EN12: =G15 ->  | EO12: =G16 ->  | EP12: =G17 ->  | EQ12: =G18 ->  | ER12: =G19 ->  | ES12: =G20 ->  | ET12: =G21 ->  | EU12: =G22 ->  | EV12: =G23 ->  | EW12: =G24 ->  | EY12: =IF(EY$11="AVG",AVERAGE(EO12:EW12,EL13:EN13),SUM(EO12:EW12,EL13:EN13)) ->  | EZ12: =IF(EZ$11="AVG",AVERAGE(EQ12:EW12,EL13:EP13),SUM(EQ12:EW12,EL13:EP13)) ->  | FA12: =IF(FA$11="AVG",AVERAGE(EL12:EW12),SUM(EL12:EW12)) ->  | FC12: =IF(FC$11="AVG",IF(FE$1="INST-VAL",AVERAGE(EL12:EP12,EM12:EQ12),AVERAGE(EM12:EQ12)),SUM(EM12:EQ12)) ->  | FD12: =IF(FD$11="AVG",IF(FE$1="INST-VAL",AVERAGE(EU12:EW12,EV12:EW12,EL13),AVERAGE(EV12:EW12,EL13)),SUM(EV12:EW12,EL13)) ->  | FE12: =IF(FE$11="AVG",IF(FE$1="INST-VAL",AVERAGE(EW11,EL12:EN12,EL12:EO12),AVERAGE(EL12:EO12)),SUM(EL12:EO12)) ->  | FF12: =IF(FF$11="AVG",IF(FE$1="INST-VAL",AVERAGE(EM12:EO12,EN12:EP12),AVERAGE(EN12:EP12)),SUM(EN12:EP12)) ->  | FG12: =IF(FG$11="AVG",IF(FE$1="INST-VAL",AVERAGE(EP12:ES12,EQ12:ET12),AVERAGE(EQ12:ET12)),SUM(EQ12:ET12)) ->  | FH12: =IF(FH$11="AVG",IF(FE$1="INST-VAL",AVERAGE(ES12:EV12,ET12:EW12),AVERAGE(ET12:EW12)),SUM(ET12:EW12)) ->  | FI12: =IF(FI$11="AVG",IF(FE$1="INST-VAL",AVERAGE(EV12:EW12,EL13,EW12,EL13:EM13),AVERAGE(EW12,EL13:EM13)),SUM(EW12,EL13:EM13)) -> 
A13: 1921-10-31 | B13: =INDIRECT(CONCATENATE("'",B$1,"'!",B$4,(YEAR($A13)-1921)*12+MONTH($A13)+3+IF(ISNUMBER(FIND("PRV",B$6)),1,0)))*IF(AND(B$3>0,TRIM(B$9)="CFS"),Conversions!$C13,1) -> 0 | C13: =INDIRECT(CONCATENATE("'",C$1,"'!",C$4,(YEAR($A13)-1921)*12+MONTH($A13)+3+IF(ISNUMBER(FIND("PRV",C$6)),1,0)))*IF(AND(C$3>0,TRIM(C$9)="CFS"),Conversions!$C13,1) -> 17.85123967 | D13: =INDIRECT(CONCATENATE("'",D$1,"'!",D$4,(YEAR($A13)-1921)*12+MONTH($A13)+3+IF(ISNUMBER(FIND("PRV",D$6)),1,0)))*IF(AND(D$3>0,TRIM(D$9)="CFS"),Conversions!$C13,1) -> 17.85123967 | E13: =INDIRECT(CONCATENATE("'",E$1,"'!",E$4,(YEAR($A13)-1921)*12+MONTH($A13)+3+IF(ISNUMBER(FIND("PRV",E$6)),1,0)))*IF(AND(E$3>0,TRIM(E$9)="CFS"),Conversions!$C13,1) -> 17.85123967 | F13: =INDIRECT(CONCATENATE("'",F$1,"'!",F$4,(YEAR($A13)-1921)*12+MONTH($A13)+3+IF(ISNUMBER(FIND("PRV",F$6)),1,0)))*IF(AND(F$3>0,TRIM(F$9)="CFS"),Conversions!$C13,1) -> 17.85123967 | G13: =INDIRECT(CONCATENATE("'",G$1,"'!",G$4,(YEAR($A13)-1921)*12+MONTH($A13)+3+IF(ISNUMBER(FIND("PRV",G$6)),1,0)))*IF(AND(G$3>0,TRIM(G$9)="CFS"),Conversions!$C13,1) ->  | K13: 1923 | L13: =B25 -> 0 | M13: =B26 -> 0 | N13: =B27 -> 0 | O13: =B28 -> 0 | P13: =B29 -> 0 | Q13: =B30 -> 0 | R13: =B31 -> 0 | S13: =B32 -> 0 | T13: =B33 -> 0 | U13: =B34 -> 0 | V13: =B35 -> 0 | W13: =B36 -> 0 | Y13: 0 | Z13: 0 | AA13: 0 | AC13: =IF(AC$11="AVG",IF(AE$1="INST-VAL",AVERAGE(L13:P13,M13:Q13),AVERAGE(M13:Q13)),SUM(M13:Q13)) -> 0 | AD13: =IF(AD$11="AVG",IF(AE$1="INST-VAL",AVERAGE(U13:W13,V13:W13,L14),AVERAGE(V13:W13,L14)),SUM(V13:W13,L14)) -> 0 | AE13: =IF(AE$11="AVG",IF(AE$1="INST-VAL",AVERAGE(W12,L13:N13,L13:O13),AVERAGE(L13:O13)),SUM(L13:O13)) -> 0 | AF13: 0 | AG13: 0 | AH13: 0 | AI13: 0 | AK13: 1923 | AL13: =C25 -> 30.0762069 | AM13: =C26 -> 0 | AN13: =C27 -> 1.66 | AO13: =C28 -> 0 | AP13: =C29 -> 7.010645899 | AQ13: =C30 -> 0.5032110825 | AR13: =C31 -> 2.442351901 | AS13: =C32 -> 0 | AT13: =C33 -> 2.5 | AU13: =C34 -> 47.42257665 | AV13: =C35 -> 69.90840515 | AW13: =C36 -> 3.985617379 | AY13: 230.3089938 | AZ13: 223.2983479 | BA13: 165.509015 | BC13: =IF(BC$11="AVG",IF(BE$1="INST-VAL",AVERAGE(AL13:AP13,AM13:AQ13),AVERAGE(AM13:AQ13)),SUM(AM13:AQ13)) -> 9.173856982 | BD13: =IF(BD$11="AVG",IF(BE$1="INST-VAL",AVERAGE(AU13:AW13,AV13:AW13,AL14),AVERAGE(AV13:AW13,AL14)),SUM(AV13:AW13,AL14)) -> 121.0741037 | BE13: 31.7362069 | BF13: 8.670645899 | BG13: 5.445562983 | BH13: 123.8165992 | BI13: 83.95387102 | BK13: 1923 | BL13: =D25 -> 27.12379669 | BM13: =D26 -> 1.74 | BN13: =D27 -> 1.66 | BO13: =D28 -> 0 | BP13: =D29 -> 0 | BQ13: =D30 -> 0.5094333146 | BR13: =D31 -> 2.472551713 | BS13: =D32 -> 0 | BT13: =D33 -> 2.5 | BU13: =D34 -> 50.9654291 | BV13: =D35 -> 69.90873235 | BW13: =D36 -> 3.985617379 | BY13: 223.3246054 | BZ13: 223.3246054 | CA13: 160.8655605 | CC13: =IF(CC$11="AVG",IF(CE$1="INST-VAL",AVERAGE(BL13:BP13,BM13:BQ13),AVERAGE(BM13:BQ13)),SUM(BM13:BQ13)) -> 3.909433315 | CD13: =IF(CD$11="AVG",IF(CE$1="INST-VAL",AVERAGE(BU13:BW13,BV13:BW13,BL14),AVERAGE(BV13:BW13,BL14)),SUM(BV13:BW13,BL14)) -> 121.6891692 | CE13: 30.52379669 | CF13: 1.66 | CG13: 5.481985027 | CH13: 127.3597788 | CI13: 83.95387259 | CK13: 1923 | CL13: =E25 -> 27.12027181 | CM13: =E26 -> 1.74 | CN13: =E27 -> 1.66 | CO13: =E28 -> 0 | CP13: =E29 -> 0 | CQ13: =E30 -> 0.5098766288 | CR13: =E31 -> 2.474703354 | CS13: =E32 -> 0 | CT13: =E33 -> 2.5 | CU13: =E34 -> 49.04108902 | CV13: =E35 -> 69.83136143 | CW13: =E36 -> 3.985617379 | CY13: 218.7518508 | CZ13: 218.7518508 | DA13: 158.8629196 | DC13: 3.909876629 | DD13: 121.7398252 | DE13: 30.52027181 | DF13: 1.66 | DG13: 5.484579983 | DH13: 125.3580678 | DI13: 83.95387552 | DK13: 1923 | DL13: =F25 -> 30.0762069 | DM13: =F26 -> 0 | DN13: =F27 -> 1.66 | DO13: =F28 -> 0 | DP13: =F29 -> 7.011764291 | DQ13: =F30 -> 0.5028500952 | DR13: =F31 -> 2.440599837 | DS13: =F32 -> 0 | DT13: =F33 -> 2.5 | DU13: =F34 -> 47.42135449 | DV13: =F35 -> 69.90842445 | DW13: =F36 -> 3.985617379 | DY13: 230.3059624 | DZ13: 223.2941981 | EA13: 165.5068174 | EC13: 9.174614387 | ED13: 121.6894449 | EE13: 31.7362069 | EF13: 8.671764291 | EG13: 5.443449932 | EH13: 123.8153963 | EI13: 83.95386839 | EK13: 1923 | EL13: =G25 ->  | EM13: =G26 ->  | EN13: =G27 ->  | EO13: =G28 ->  | EP13: =G29 ->  | EQ13: =G30 ->  | ER13: =G31 ->  | ES13: =G32 ->  | ET13: =G33 ->  | EU13: =G34 ->  | EV13: =G35 ->  | EW13: =G36 -> 
A14: 1921-11-30 | B14: =INDIRECT(CONCATENATE("'",B$1,"'!",B$4,(YEAR($A14)-1921)*12+MONTH($A14)+3+IF(ISNUMBER(FIND("PRV",B$6)),1,0)))*IF(AND(B$3>0,TRIM(B$9)="CFS"),Conversions!$C14,1) -> 0 | C14: =INDIRECT(CONCATENATE("'",C$1,"'!",C$4,(YEAR($A14)-1921)*12+MONTH($A14)+3+IF(ISNUMBER(FIND("PRV",C$6)),1,0)))*IF(AND(C$3>0,TRIM(C$9)="CFS"),Conversions!$C14,1) -> 18.34924492 | D14: =INDIRECT(CONCATENATE("'",D$1,"'!",D$4,(YEAR($A14)-1921)*12+MONTH($A14)+3+IF(ISNUMBER(FIND("PRV",D$6)),1,0)))*IF(AND(D$3>0,TRIM(D$9)="CFS"),Conversions!$C14,1) -> 18.34924492 | E14: =INDIRECT(CONCATENATE("'",E$1,"'!",E$4,(YEAR($A14)-1921)*12+MONTH($A14)+3+IF(ISNUMBER(FIND("PRV",E$6)),1,0)))*IF(AND(E$3>0,TRIM(E$9)="CFS"),Conversions!$C14,1) -> 18.34924492 | F14: =INDIRECT(CONCATENATE("'",F$1,"'!",F$4,(YEAR($A14)-1921)*12+MONTH($A14)+3+IF(ISNUMBER(FIND("PRV",F$6)),1,0)))*IF(AND(F$3>0,TRIM(F$9)="CFS"),Conversions!$C14,1) -> 18.34924492 | G14: =INDIRECT(CONCATENATE("'",G$1,"'!",G$4,(YEAR($A14)-1921)*12+MONTH($A14)+3+IF(ISNUMBER(FIND("PRV",G$6)),1,0)))*IF(AND(G$3>0,TRIM(G$9)="CFS"),Conversions!$C14,1) ->  | K14: 1924 | L14: =B37 -> 0 | M14: =B38 -> 0 | N14: =B39 -> 0 | O14: =B40 -> 0 | P14: =B41 -> 0 | Q14: =B42 -> 0 | R14: =B43 -> 0 | S14: =B44 -> 0 | T14: =B45 -> 0 | U14: =B46 -> 0 | V14: =B47 -> 0 | W14: =B48 -> 0 | Y14: 0 | Z14: 0 | AA14: 0 | AC14: =IF(AC$11="AVG",IF(AE$1="INST-VAL",AVERAGE(L14:P14,M14:Q14),AVERAGE(M14:Q14)),SUM(M14:Q14)) -> 0 | AD14: =IF(AD$11="AVG",IF(AE$1="INST-VAL",AVERAGE(U14:W14,V14:W14,L15),AVERAGE(V14:W14,L15)),SUM(V14:W14,L15)) -> 0 | AE14: =IF(AE$11="AVG",IF(AE$1="INST-VAL",AVERAGE(W13,L14:N14,L14:O14),AVERAGE(L14:O14)),SUM(L14:O14)) -> 0 | AF14: 0 | AG14: 0 | AH14: 0 | AI14: 0 | AK14: 1924 | AL14: =C37 -> 47.18008112 | AM14: =C38 -> 32.78817252 | AN14: =C39 -> 16.56793208 | AO14: =C40 -> 0 | AP14: =C41 -> 0 | AQ14: =C42 -> 3.989358421 | AR14: =C43 -> 26.27248351 | AS14: =C44 -> 29.22974294 | AT14: =C45 -> 92.69625478 | AU14: =C46 -> 149.1699158 | AV14: =C47 -> 112.219391 | AW14: =C48 -> 76.05948421 | AY14: 567.6838502 | AZ14: 567.6838502 | BA14: 586.1728164 | BC14: =IF(BC$11="AVG",IF(BE$1="INST-VAL",AVERAGE(AL14:AP14,AM14:AQ14),AVERAGE(AM14:AQ14)),SUM(AM14:AQ14)) -> 53.34546302 | BD14: 257.1934382 | BE14: 96.53618572 | BF14: 16.56793208 | BG14: 152.1878397 | BH14: 430.1450458 | BI14: 154.1067037 | BK14: 1924 | BL14: =D37 -> 47.79481943 | BM14: =D38 -> 32.17343578 | BN14: =D39 -> 13.01458634 | BO14: =D40 -> 0 | BP14: =D41 -> 0 | BQ14: =D42 -> 3.992721306 | BR14: =D43 -> 24.23036909 | BS14: =D44 -> 28.99024361 | BT14: =D45 -> 88.14341695 | BU14: =D46 -> 149.1950728 | BV14: =D47 -> 130.5631958 | BW14: =D48 -> 72.02654821 | BY14: 525.4582509 | BZ14: 525.4582509 | CA14: 590.1244093 | CC14: =IF(CC$11="AVG",IF(CE$1="INST-VAL",AVERAGE(BL14:BP14,BM14:BQ14),AVERAGE(BM14:BQ14)),SUM(BM14:BQ14)) -> 49.18074343 | CD14: 230.8607047 | CE14: 92.98284156 | CF14: 13.01458634 | CG14: 145.3567509 | CH14: 439.9282337 | CI14: 100.3432313 | CK14: 1924 | CL14: =E37 -> 47.92284641 | CM14: =E38 -> 32.04541173 | CN14: =E39 -> 10.44094486 | CO14: =E40 -> 0 | CP14: =E41 -> 0 | CQ14: =E42 -> 3.994928873 | CR14: =E43 -> 24.24107324 | CS14: =E44 -> 29.00370128 | CT14: =E45 -> 85.49299636 | CU14: =E46 -> 149.2115871 | CV14: =E47 -> 127.7249544 | CW14: =E48 -> 72.02654821 | CY14: 505.3702051 | CZ14: 505.3702051 | DA14: 582.1049924 | DC14: 46.48128546 | DD14: 213.3936892 | DE14: 90.40920299 | DF14: 10.44094486 | DG14: 142.7326998 | DH14: 434.456086 | DI14: 85.70096387 | DK14: 1924 | DL14: =F37 -> 47.79540307 | DM14: =F38 -> 32.17284794 | DN14: =F39 -> 16.56710083 | DO14: =F40 -> 0 | DP14: =F41 -> 0 | DQ14: =F42 -> 3.989704166 | DR14: =F43 -> 25.94645865 | DS14: =F44 -> 28.97185066 | DT14: =F45 -> 92.16849548 | DU14: =F46 -> 149.1725022 | DV14: =F47 -> 133.6333614 | DW14: =F48 -> 74.98523012 | DY14: 570.6296774 | DZ14: 570.6296774 | EA14: 605.4029545 | EC14: 52.72965294 | ED14: 270.3186227 | EE14: 96.53535185 | EF14: 16.56710083 | EG14: 151.076509 | EH14: 449.9595892 | EI14: 136.7473049 | EK14: 1924 | EL14: =G37 ->  | EM14: =G38 ->  | EN14: =G39 ->  | EO14: =G40 ->  | EP14: =G41 ->  | EQ14: =G42 ->  | ER14: =G43 ->  | ES14: =G44 ->  | ET14: =G45 ->  | EU14: =G46 ->  | EV14: =G47 ->  | EW14: =G48 -> 
A15: 1921-12-31 | B15: =INDIRECT(CONCATENATE("'",B$1,"'!",B$4,(YEAR($A15)-1921)*12+MONTH($A15)+3+IF(ISNUMBER(FIND("PRV",B$6)),1,0)))*IF(AND(B$3>0,TRIM(B$9)="CFS"),Conversions!$C15,1) -> 0 | C15: =INDIRECT(CONCATENATE("'",C$1,"'!",C$4,(YEAR($A15)-1921)*12+MONTH($A15)+3+IF(ISNUMBER(FIND("PRV",C$6)),1,0)))*IF(AND(C$3>0,TRIM(C$9)="CFS"),Conversions!$C15,1) -> 0 | D15: =INDIRECT(CONCATENATE("'",D$1,"'!",D$4,(YEAR($A15)-1921)*12+MONTH($A15)+3+IF(ISNUMBER(FIND("PRV",D$6)),1,0)))*IF(AND(D$3>0,TRIM(D$9)="CFS"),Conversions!$C15,1) -> 0 | E15: =INDIRECT(CONCATENATE("'",E$1,"'!",E$4,(YEAR($A15)-1921)*12+MONTH($A15)+3+IF(ISNUMBER(FIND("PRV",E$6)),1,0)))*IF(AND(E$3>0,TRIM(E$9)="CFS"),Conversions!$C15,1) -> 0 | F15: =INDIRECT(CONCATENATE("'",F$1,"'!",F$4,(YEAR($A15)-1921)*12+MONTH($A15)+3+IF(ISNUMBER(FIND("PRV",F$6)),1,0)))*IF(AND(F$3>0,TRIM(F$9)="CFS"),Conversions!$C15,1) -> 0 | G15: =INDIRECT(CONCATENATE("'",G$1,"'!",G$4,(YEAR($A15)-1921)*12+MONTH($A15)+3+IF(ISNUMBER(FIND("PRV",G$6)),1,0)))*IF(AND(G$3>0,TRIM(G$9)="CFS"),Conversions!$C15,1) ->  | K15: 1925 | L15: =B49 -> 0 | M15: =B50 -> 0 | N15: =B51 -> 0 | O15: =B52 -> 0 | P15: =B53 -> 0 | Q15: =B54 -> 0 | R15: =B55 -> 0 | S15: =B56 -> 0 | T15: =B57 -> 0 | U15: =B58 -> 0 | V15: =B59 -> 0 | W15: =B60 -> 0 | Y15: 0 | Z15: 0 | AA15: 0 | AC15: =IF(AC$11="AVG",IF(AE$1="INST-VAL",AVERAGE(L15:P15,M15:Q15),AVERAGE(M15:Q15)),SUM(M15:Q15)) -> 0 | AD15: 0 | AE15: 0 | AF15: 0 | AG15: 0 | AH15: 0 | AI15: 0 | AK15: 1925 | AL15: =C49 -> 68.91456298 | AM15: =C50 -> 9.132656497 | AN15: =C51 -> 0 | AO15: =C52 -> 0 | AP15: =C53 -> 0 | AQ15: =C54 -> 0 | AR15: =C55 -> 0 | AS15: =C56 -> 0 | AT15: =C57 -> 49.36878788 | AU15: =C58 -> 117.0700205 | AV15: =C59 -> 113.0080081 | AW15: =C60 -> 18.14323502 | AY15: 305.1122582 | AZ15: 305.1122582 | BA15: 375.637271 | BC15: =IF(BC$11="AVG",IF(BE$1="INST-VAL",AVERAGE(AL15:AP15,AM15:AQ15),AVERAGE(AM15:AQ15)),SUM(AM15:AQ15)) -> 9.132656497 | BD15: =IF(BD$11="AVG",IF(BE$1="INST-VAL",AVERAGE(AU15:AW15,AV15:AW15,AL16),AVERAGE(AV15:AW15,AL16)),SUM(AV15:AW15,AL16)) -> 138.6734498 | BE15: 78.04721948 | BF15: 0 | BG15: 49.36878788 | BH15: 297.5900515 | BI15: 25.66544168 | BK15: 1925 | BL15: =D49 -> 28.2709607 | BM15: =D50 -> 0.0457224346 | BN15: =D51 -> 0 | BO15: =D52 -> 0 | BP15: =D53 -> 0 | BQ15: =D54 -> 0 | BR15: =D55 -> 0 | BS15: =D56 -> 0 | BT15: =D57 -> 23.25782465 | BU15: =D58 -> 74.93324299 | BV15: =D59 -> 4.793906612 | BW15: =D60 -> 0 | BY15: 110.8052628 | BZ15: 110.8052628 | CA15: 131.3016574 | CC15: 0.0457224346 | CD15: 4.793906612 | CE15: 28.31668313 | CF15: 0 | CG15: 23.25782465 | CH15: 102.9849743 | CI15: 4.741160691 | CK15: 1925 | CL15: =E49 -> 13.6421866 | CM15: =E50 -> 0.03222906423 | CN15: =E51 -> 0 | CO15: =E52 -> 0 | CP15: =E53 -> 0 | CQ15: =E54 -> 0 | CR15: =E55 -> 0 | CS15: =E56 -> 0 | CT15: =E57 -> 23.24928945 | CU15: =E58 -> 74.82670557 | CV15: =E59 -> 4.795088747 | CW15: =E60 -> 0 | CY15: 110.6793513 | CZ15: 110.6793513 | DA15: 116.5454994 | DC15: 0.03222906423 | DD15: 4.795088747 | DE15: 13.67441566 | DF15: 0 | DG15: 23.24928945 | DH15: 102.8710838 | DI15: 4.740050022 | DK15: 1925 | DL15: =F49 -> 61.70003124 | DM15: =F50 -> 0.06204349827 | DN15: =F51 -> 0 | DO15: =F52 -> 0 | DP15: =F53 -> 0 | DQ15: =F54 -> 0 | DR15: =F55 -> 0 | DS15: =F56 -> 0 | DT15: =F57 -> 36.69400145 | DU15: =F58 -> 95.01172663 | DV15: =F59 -> 3.65622207 | DW15: =F60 -> 5.104279726 | DY15: 143.3048413 | DZ15: 143.3048413 | EA15: 202.2283046 | EC15: 0.06204349827 | ED15: 8.760501796 | EE15: 61.76207474 | EF15: 0 | EG15: 36.69400145 | EH15: 140.4662299 | EI15: 7.942891181 | EK15: 1925 | EL15: =G49 ->  | EM15: =G50 ->  | EN15: =G51 ->  | EO15: =G52 ->  | EP15: =G53 ->  | EQ15: =G54 ->  | ER15: =G55 ->  | ES15: =G56 ->  | ET15: =G57 ->  | EU15: =G58 ->  | EV15: =G59 ->  | EW15: =G60 -> 
A16: 1922-01-31 | B16: =INDIRECT(CONCATENATE("'",B$1,"'!",B$4,(YEAR($A16)-1921)*12+MONTH($A16)+3+IF(ISNUMBER(FIND("PRV",B$6)),1,0)))*IF(AND(B$3>0,TRIM(B$9)="CFS"),Conversions!$C16,1) -> 0 | C16: =INDIRECT(CONCATENATE("'",C$1,"'!",C$4,(YEAR($A16)-1921)*12+MONTH($A16)+3+IF(ISNUMBER(FIND("PRV",C$6)),1,0)))*IF(AND(C$3>0,TRIM(C$9)="CFS"),Conversions!$C16,1) -> 5.960470852e-08 | D16: =INDIRECT(CONCATENATE("'",D$1,"'!",D$4,(YEAR($A16)-1921)*12+MONTH($A16)+3+IF(ISNUMBER(FIND("PRV",D$6)),1,0)))*IF(AND(D$3>0,TRIM(D$9)="CFS"),Conversions!$C16,1) -> 5.960482036e-08 | E16: =INDIRECT(CONCATENATE("'",E$1,"'!",E$4,(YEAR($A16)-1921)*12+MONTH($A16)+3+IF(ISNUMBER(FIND("PRV",E$6)),1,0)))*IF(AND(E$3>0,TRIM(E$9)="CFS"),Conversions!$C16,1) -> 5.960431706e-08 | F16: =INDIRECT(CONCATENATE("'",F$1,"'!",F$4,(YEAR($A16)-1921)*12+MONTH($A16)+3+IF(ISNUMBER(FIND("PRV",F$6)),1,0)))*IF(AND(F$3>0,TRIM(F$9)="CFS"),Conversions!$C16,1) -> 5.960454075e-08 | G16: =INDIRECT(CONCATENATE("'",G$1,"'!",G$4,(YEAR($A16)-1921)*12+MONTH($A16)+3+IF(ISNUMBER(FIND("PRV",G$6)),1,0)))*IF(AND(G$3>0,TRIM(G$9)="CFS"),Conversions!$C16,1) ->  | K16: 1926 | L16: =B61 -> 0 | M16: =B62 -> 0 | N16: =B63 -> 0 | O16: =B64 -> 0 | P16: =B65 -> 0 | Q16: =B66 -> 0 | R16: =B67 -> 0 | S16: =B68 -> 0 | T16: =B69 -> 0 | U16: =B70 -> 0 | V16: =B71 -> 0 | W16: =B72 -> 0 | Y16: 0 | Z16: 0 | AA16: 0 | AC16: 0 | AD16: 0 | AE16: 0 | AF16: 0 | AG16: 0 | AH16: 0 | AI16: 0 | AK16: 1926 | AL16: =C61 -> 7.522206659 | AM16: =C62 -> 0 | AN16: =C63 -> 0 | AO16: =C64 -> 0 | AP16: =C65 -> 0 | AQ16: =C66 -> 19.40937552 | AR16: =C67 -> 2.037960565 | AS16: =C68 -> 5.178905075 | AT16: =C69 -> 13.59037918 | AU16: =C70 -> 59.25807091 | AV16: =C71 -> 2.5 | AW16: =C72 -> 2.5 | AY16: 110.1850611 | AZ16: 110.1850611 | BA16: 111.9968979 | BC16: 19.40937552 | BD16: 10.71036989 | BE16: 7.522206659 | BF16: 0 | BG16: 40.21662034 | BH16: 77.84845008 | BI16: 8.21036989 | BK16: 1926 | BL16: =D61 -> 0 | BM16: =D62 -> 4.741160691 | BN16: =D63 -> 3.079127903 | BO16: =D64 -> 0 | BP16: =D65 -> 0 | BQ16: =D66 -> 0.7241979071 | BR16: =D67 -> 2.082097862 | BS16: =D68 -> 3.681972833 | BT16: =D69 -> 9.238628799 | BU16: =D70 -> 39.82441798 | BV16: =D71 -> 2.5 | BW16: =D72 -> 0.793300461 | BY16: 62.94635771 | BZ16: 62.94635771 | CA16: 66.66490444 | CC16: 8.5444865 | CD16: 7.395042325 | CE16: 7.820288593 | CF16: 3.079127903 | CG16: 15.7268974 | CH16: 52.35634724 | CI16: 4.895042325 | CK16: 1926 | CL16: =E61 -> 0 | CM16: =E62 -> 4.740050022 | CN16: =E63 -> 3.068217511 | CO16: =E64 -> 0 | CP16: =E65 -> 0 | CQ16: =E66 -> 0.751786845 | CR16: =E67 -> 2.161412598 | CS16: =E68 -> 3.77799214 | CT16: =E69 -> 9.28943828 | CU16: =E70 -> 40.12182286 | CV16: =E71 -> 2.5 | CW16: =E72 -> 0 | CY16: 62.84624453 | CZ16: 62.84624453 | DA16: 66.41072026 | DC16: 8.560054378 | DD16: 6.743791804 | DE16: 7.808267533 | DF16: 3.068217511 | DG16: 15.98062986 | DH16: 51.91126114 | DI16: 4.243791804 | DK16: 1926 | DL16: =F61 -> 0 | DM16: =F62 -> 2.838611456 | DN16: =F63 -> 0 | DO16: =F64 -> 0 | DP16: =F65 -> 0 | DQ16: =F66 -> 12.19868535 | DR16: =F67 -> 2.041214319 | DS16: =F68 -> 5.115964221 | DT16: =F69 -> 11.30041883 | DU16: =F70 -> 46.14951748 | DV16: =F71 -> 2.5 | DW16: =F72 -> 2.5 | DY16: 87.49613389 | DZ16: 87.49613389 | EA16: 84.64441166 | EC16: 15.03729681 | ED16: 10.69033368 | EE16: 2.838611456 | EF16: 0 | EG16: 30.65628273 | EH16: 62.44993631 | EI16: 8.190333682 | EK16: 1926 | EL16: =G61 ->  | EM16: =G62 ->  | EN16: =G63 ->  | EO16: =G64 ->  | EP16: =G65 ->  | EQ16: =G66 ->  | ER16: =G67 ->  | ES16: =G68 ->  | ET16: =G69 ->  | EU16: =G70 ->  | EV16: =G71 ->  | EW16: =G72 -> 
A17: 1922-02-28 | B17: =INDIRECT(CONCATENATE("'",B$1,"'!",B$4,(YEAR($A17)-1921)*12+MONTH($A17)+3+IF(ISNUMBER(FIND("PRV",B$6)),1,0)))*IF(AND(B$3>0,TRIM(B$9)="CFS"),Conversions!$C17,1) -> 0 | C17: =INDIRECT(CONCATENATE("'",C$1,"'!",C$4,(YEAR($A17)-1921)*12+MONTH($A17)+3+IF(ISNUMBER(FIND("PRV",C$6)),1,0)))*IF(AND(C$3>0,TRIM(C$9)="CFS"),Conversions!$C17,1) -> 0 | D17: =INDIRECT(CONCATENATE("'",D$1,"'!",D$4,(YEAR($A17)-1921)*12+MONTH($A17)+3+IF(ISNUMBER(FIND("PRV",D$6)),1,0)))*IF(AND(D$3>0,TRIM(D$9)="CFS"),Conversions!$C17,1) -> 0 | E17: =INDIRECT(CONCATENATE("'",E$1,"'!",E$4,(YEAR($A17)-1921)*12+MONTH($A17)+3+IF(ISNUMBER(FIND("PRV",E$6)),1,0)))*IF(AND(E$3>0,TRIM(E$9)="CFS"),Conversions!$C17,1) -> 0 | F17: =INDIRECT(CONCATENATE("'",F$1,"'!",F$4,(YEAR($A17)-1921)*12+MONTH($A17)+3+IF(ISNUMBER(FIND("PRV",F$6)),1,0)))*IF(AND(F$3>0,TRIM(F$9)="CFS"),Conversions!$C17,1) -> 0 | G17: =INDIRECT(CONCATENATE("'",G$1,"'!",G$4,(YEAR($A17)-1921)*12+MONTH($A17)+3+IF(ISNUMBER(FIND("PRV",G$6)),1,0)))*IF(AND(G$3>0,TRIM(G$9)="CFS"),Conversions!$C17,1) ->  | K17: 1927 | L17: =B73 -> 0 | M17: =B74 -> 0 | N17: =B75 -> 0 | O17: =B76 -> 0 | P17: =B77 -> 0 | Q17: =B78 -> 0 | R17: =B79 -> 0 | S17: =B80 -> 0 | T17: =B81 -> 0 | U17: =B82 -> 0 | V17: =B83 -> 0 | W17: =B84 -> 0 | Y17: 0 | Z17: 0 | AA17: 0 | AC17: 0 | AD17: 0 | AE17: 0 | AF17: 0 | AG17: 0 | AH17: 0 | AI17: 0 | AK17: 1927 | AL17: =C73 -> 5.71036989 | AM17: =C74 -> 0 | AN17: =C75 -> 0 | AO17: =C76 -> 0 | AP17: =C77 -> 0 | AQ17: =C78 -> 0 | AR17: =C79 -> 0 | AS17: =C80 -> 0 | AT17: =C81 -> 1.966778492 | AU17: =C82 -> 2.5 | AV17: =C83 -> 30.0862069 | AW17: =C84 -> 28.45005914 | AY17: 68.62930501 | AZ17: 68.62930501 | BA17: 68.71341443 | BC17: 0 | BD17: 64.16252652 | BE17: 5.71036989 | BF17: 0 | BG17: 1.966778492 | BH17: 63.00304454 | BI17: 34.07631962 | BK17: 1927 | BL17: =D73 -> 4.101741864 | BM17: =D74 -> 0 | BN17: =D75 -> 0 | BO17: =D76 -> 0 | BP17: =D77 -> 0 | BQ17: =D78 -> 0 | BR17: =D79 -> 0 | BS17: =D80 -> 0 | BT17: =D81 -> 1.966778492 | BU17: =D82 -> 2.5 | BV17: =D83 -> 30.0862069 | BW17: =D84 -> 28.45005914 | BY17: 77.23322448 | BZ17: 77.23322448 | CA17: 67.1047864 | CC17: =IF(CC$11="AVG",IF(CE$1="INST-VAL",AVERAGE(BL17:BP17,BM17:BQ17),AVERAGE(BM17:BQ17)),SUM(BM17:BQ17)) -> 0 | CD17: =IF(CD$11="AVG",IF(CE$1="INST-VAL",AVERAGE(BU17:BW17,BV17:BW17,BL18),AVERAGE(BV17:BW17,BL18)),SUM(BV17:BW17,BL18)) -> 72.76644598 | CE17: 4.101741864 | CF17: 0 | CG17: 1.966778492 | CH17: 63.00304454 | CI17: 42.68023909 | CK17: 1927 | CL17: =E73 -> 4.243791804 | CM17: =E74 -> 0 | CN17: =E75 -> 0 | CO17: =E76 -> 0 | CP17: =E77 -> 0 | CQ17: =E78 -> 0 | CR17: =E79 -> 0 | CS17: =E80 -> 0 | CT17: =E81 -> 1.966778492 | CU17: =E82 -> 2.5 | CV17: =E83 -> 30.0862069 | CW17: =E84 -> 28.45005914 | CY17: 74.13177665 | CZ17: 74.13177665 | DA17: 67.24683634 | DC17: 0 | DD17: 69.66499816 | DE17: 4.243791804 | DF17: 0 | DG17: 1.966778492 | DH17: 63.00304454 | DI17: 39.57879126 | DK17: 1927 | DL17: =F73 -> 5.690333682 | DM17: =F74 -> 0 | DN17: =F75 -> 0 | DO17: =F76 -> 0 | DP17: =F77 -> 0 | DQ17: =F78 -> 0 | DR17: =F79 -> 0 | DS17: =F80 -> 0 | DT17: =F81 -> 1.966778492 | DU17: =F82 -> 2.5 | DV17: =F83 -> 30.0862069 | DW17: =F84 -> 28.45005914 | DY17: 83.40136998 | DZ17: 83.40136998 | EA17: 68.69337822 | EC17: 0 | ED17: 78.93459149 | EE17: 5.690333682 | EF17: 0 | EG17: 1.966778492 | EH17: 63.00304454 | EI17: 48.84838459 | EK17: 1927 | EL17: =G73 ->  | EM17: =G74 ->  | EN17: =G75 ->  | EO17: =G76 ->  | EP17: =G77 ->  | EQ17: =G78 ->  | ER17: =G79 ->  | ES17: =G80 ->  | ET17: =G81 ->  | EU17: =G82 ->  | EV17: =G83 ->  | EW17: =G84 -> 
A18: 1922-03-31 | B18: =INDIRECT(CONCATENATE("'",B$1,"'!",B$4,(YEAR($A18)-1921)*12+MONTH($A18)+3+IF(ISNUMBER(FIND("PRV",B$6)),1,0)))*IF(AND(B$3>0,TRIM(B$9)="CFS"),Conversions!$C18,1) -> 0 | C18: =INDIRECT(CONCATENATE("'",C$1,"'!",C$4,(YEAR($A18)-1921)*12+MONTH($A18)+3+IF(ISNUMBER(FIND("PRV",C$6)),1,0)))*IF(AND(C$3>0,TRIM(C$9)="CFS"),Conversions!$C18,1) -> 0 | D18: =INDIRECT(CONCATENATE("'",D$1,"'!",D$4,(YEAR($A18)-1921)*12+MONTH($A18)+3+IF(ISNUMBER(FIND("PRV",D$6)),1,0)))*IF(AND(D$3>0,TRIM(D$9)="CFS"),Conversions!$C18,1) -> 0 | E18: =INDIRECT(CONCATENATE("'",E$1,"'!",E$4,(YEAR($A18)-1921)*12+MONTH($A18)+3+IF(ISNUMBER(FIND("PRV",E$6)),1,0)))*IF(AND(E$3>0,TRIM(E$9)="CFS"),Conversions!$C18,1) -> 0 | F18: =INDIRECT(CONCATENATE("'",F$1,"'!",F$4,(YEAR($A18)-1921)*12+MONTH($A18)+3+IF(ISNUMBER(FIND("PRV",F$6)),1,0)))*IF(AND(F$3>0,TRIM(F$9)="CFS"),Conversions!$C18,1) -> 0 | G18: =INDIRECT(CONCATENATE("'",G$1,"'!",G$4,(YEAR($A18)-1921)*12+MONTH($A18)+3+IF(ISNUMBER(FIND("PRV",G$6)),1,0)))*IF(AND(G$3>0,TRIM(G$9)="CFS"),Conversions!$C18,1) ->  | K18: 1928 | L18: =B85 -> 0 | M18: =B86 -> 0 | N18: =B87 -> 0 | O18: =B88 -> 0 | P18: =B89 -> 0 | Q18: =B90 -> 0 | R18: =B91 -> 0 | S18: =B92 -> 0 | T18: =B93 -> 0 | U18: =B94 -> 0 | V18: =B95 -> 0 | W18: =B96 -> 0 | Y18: 0 | Z18: 0 | AA18: 0 | AC18: 0 | AD18: 0 | AE18: 0 | AF18: 0 | AG18: 0 | AH18: 0 | AI18: 0 | AK18: 1928 | AL18: =C85 -> 5.626260477 | AM18: =C86 -> 0 | AN18: =C87 -> 0 | AO18: =C88 -> 0 | AP18: =C89 -> 0 | AQ18: =C90 -> 0 | AR18: =C91 -> 2.058570849 | AS18: =C92 -> 0 | AT18: =C93 -> 64.15040225 | AU18: =C94 -> 7.336829269 | AV18: =C95 -> 2.228910387 | AW18: =C96 -> 3.903460549 | AY18: 89.399065 | AZ18: 89.399065 | BA18: 85.30443378 | BC18: 0 | BD18: 8.622370936 | BE18: 5.626260477 | BF18: 0 | BG18: 66.2089731 | BH18: 77.61960245 | BI18: 11.96435225 | BK18: 1928 | BL18: =D85 -> 14.23017994 | BM18: =D86 -> 0 | BN18: =D87 -> 0 | BO18: =D88 -> 0 | BP18: =D89 -> 0 | BQ18: =D90 -> 0 | BR18: =D91 -> 2.058285213 | BS18: =D92 -> 0 | BT18: =D93 -> 54.77594013 | BU18: =D94 -> 7.145269407 | BV18: =D95 -> 2.228910387 | BW18: =D96 -> 3.902665865 | BY18: 79.83150415 | BZ18: 79.83150415 | CA18: 84.34125094 | CC18: 0 | CD18: 8.621576253 | CE18: 14.23017994 | CF18: 0 | CG18: 56.83422534 | CH18: 68.05278579 | CI18: 11.96309901 | CK18: 1928 | CL18: =E85 -> 11.12873211 | CM18: =E86 -> 0 | CN18: =E87 -> 0 | CO18: =E88 -> 0 | CP18: =E89 -> 0 | CQ18: =E90 -> 0 | CR18: =E91 -> 2.078864057 | CS18: =E92 -> 0 | CT18: =E93 -> 53.17621037 | CU18: =E94 -> 7.083941579 | CV18: =E95 -> 2.228910387 | CW18: =E96 -> 3.902525133 | CY18: 78.19190399 | CZ18: 78.19190399 | DA18: 79.59918364 | DC18: =IF(DC$11="AVG",IF(DE$1="INST-VAL",AVERAGE(CL18:CP18,CM18:CQ18),AVERAGE(CM18:CQ18)),SUM(CM18:CQ18)) -> 0 | DD18: =IF(DD$11="AVG",IF(DE$1="INST-VAL",AVERAGE(CU18:CW18,CV18:CW18,CL19),AVERAGE(CV18:CW18,CL19)),SUM(CV18:CW18,CL19)) -> 8.621435521 | DE18: 11.12873211 | DF18: 0 | DG18: 55.25507443 | DH18: 66.39158747 | DI18: 11.9639776 | DK18: 1928 | DL18: =F85 -> 20.39832545 | DM18: =F86 -> 0 | DN18: =F87 -> 0 | DO18: =F88 -> 0 | DP18: =F89 -> 0 | DQ18: =F90 -> 0 | DR18: =F91 -> 2.077713926 | DS18: =F92 -> 0 | DT18: =F93 -> 62.83239042 | DU18: =F94 -> 7.336829269 | DV18: =F95 -> 2.228910387 | DW18: =F96 -> 3.903247414 | DY18: 88.10223228 | DZ18: 88.10223228 | EA18: 98.77741686 | EC18: =IF(EC$11="AVG",IF(EE$1="INST-VAL",AVERAGE(DL18:DP18,DM18:DQ18),AVERAGE(DM18:DQ18)),SUM(DM18:DQ18)) -> 0 | ED18: =IF(ED$11="AVG",IF(EE$1="INST-VAL",AVERAGE(DU18:DW18,DV18:DW18,DL19),AVERAGE(DV18:DW18,DL19)),SUM(DV18:DW18,DL19)) -> 8.622157802 | EE18: 20.39832545 | EF18: 0 | EG18: 64.91010435 | EH18: 76.30137749 | EI18: 11.96638827 | EK18: 1928 | EL18: =G85 ->  | EM18: =G86 ->  | EN18: =G87 ->  | EO18: =G88 ->  | EP18: =G89 ->  | EQ18: =G90 ->  | ER18: =G91 ->  | ES18: =G92 ->  | ET18: =G93 ->  | EU18: =G94 ->  | EV18: =G95 ->  | EW18: =G96 ->  | FC18: =IF(FC$11="AVG",IF(FE$1="INST-VAL",AVERAGE(EL18:EP18,EM18:EQ18),AVERAGE(EM18:EQ18)),SUM(EM18:EQ18)) -> 
A19: 1922-04-30 | B19: =INDIRECT(CONCATENATE("'",B$1,"'!",B$4,(YEAR($A19)-1921)*12+MONTH($A19)+3+IF(ISNUMBER(FIND("PRV",B$6)),1,0)))*IF(AND(B$3>0,TRIM(B$9)="CFS"),Conversions!$C19,1) -> 0 | C19: =INDIRECT(CONCATENATE("'",C$1,"'!",C$4,(YEAR($A19)-1921)*12+MONTH($A19)+3+IF(ISNUMBER(FIND("PRV",C$6)),1,0)))*IF(AND(C$3>0,TRIM(C$9)="CFS"),Conversions!$C19,1) -> 0 | D19: =INDIRECT(CONCATENATE("'",D$1,"'!",D$4,(YEAR($A19)-1921)*12+MONTH($A19)+3+IF(ISNUMBER(FIND("PRV",D$6)),1,0)))*IF(AND(D$3>0,TRIM(D$9)="CFS"),Conversions!$C19,1) -> 0 | E19: =INDIRECT(CONCATENATE("'",E$1,"'!",E$4,(YEAR($A19)-1921)*12+MONTH($A19)+3+IF(ISNUMBER(FIND("PRV",E$6)),1,0)))*IF(AND(E$3>0,TRIM(E$9)="CFS"),Conversions!$C19,1) -> 0 | F19: =INDIRECT(CONCATENATE("'",F$1,"'!",F$4,(YEAR($A19)-1921)*12+MONTH($A19)+3+IF(ISNUMBER(FIND("PRV",F$6)),1,0)))*IF(AND(F$3>0,TRIM(F$9)="CFS"),Conversions!$C19,1) -> 0 | G19: =INDIRECT(CONCATENATE("'",G$1,"'!",G$4,(YEAR($A19)-1921)*12+MONTH($A19)+3+IF(ISNUMBER(FIND("PRV",G$6)),1,0)))*IF(AND(G$3>0,TRIM(G$9)="CFS"),Conversions!$C19,1) ->  | K19: 1929 | L19: =B97 -> 0 | M19: =B98 -> 0 | N19: =B99 -> 0 | O19: =B100 -> 0 | P19: =B101 -> 0 | Q19: =B102 -> 0 | R19: =B103 -> 0 | S19: =B104 -> 0 | T19: =B105 -> 0 | U19: =B106 -> 0 | V19: =B107 -> 0 | W19: =B108 -> 0 | Y19: 0 | Z19: 0 | AA19: 0 | AC19: 0 | AD19: 0 | AE19: 0 | AF19: 0 | AG19: 0 | AH19: 0 | AI19: 0 | AK19: 1929 | AL19: =C97 -> 2.49 | AM19: =C98 -> 5.570891697 | AN19: =C99 -> 1.66 | AO19: =C100 -> 0 | AP19: =C101 -> 0 | AQ19: =C102 -> 0.7750867823 | AR19: =C103 -> 18.89273731 | AS19: =C104 -> 147.4422678 | AT19: =C105 -> 87.50016323 | AU19: =C106 -> 129.8511408 | AV19: =C107 -> 111.9984813 | AW19: =C108 -> 61.34128803 | AY19: 582.6130526 | AZ19: 582.6130526 | BA19: 567.5220569 | BC19: 8.005978479 | BD19: 192.3310512 | BE19: 9.720891697 | BF19: 1.66 | BG19: 254.6102551 | BH19: 390.6910733 | BI19: 86.15317538 | BK19: 1929 | BL19: =D97 -> 2.49 | BM19: =D98 -> 5.570433147 | BN19: =D99 -> 1.66 | BO19: =D100 -> 0 | BP19: =D101 -> 0 | BQ19: =D102 -> 0.7758192296 | BR19: =D103 -> 18.91059071 | BS19: =D104 -> 147.4711994 | BT19: =D105 -> 82.10669158 | BU19: =D106 -> 122.3185544 | BV19: =D107 -> 111.8272049 | BW19: =D108 -> 42.23331081 | BY19: 542.9007696 | BZ19: 542.9007696 | CA19: 535.3638041 | CC19: 8.006252376 | CD19: 171.3179143 | CE19: 9.720433147 | CF19: 1.66 | CG19: 249.2643009 | CH19: 358.4857617 | CI19: 59.4907094 | CK19: 1929 | CL19: =E97 -> 2.49 | CM19: =E98 -> 5.571452468 | CN19: =E99 -> 1.66 | CO19: =E100 -> 0 | CP19: =E101 -> 0 | CQ19: =E102 -> 0.7756788891 | CR19: =E103 -> 18.90716991 | CS19: =E104 -> 147.4656559 | CT19: =E105 -> 79.24829872 | CU19: =E106 -> 122.3253785 | CV19: =E107 -> 111.8115222 | CW19: =E108 -> 22.49243457 | CY19: 519.7010904 | CZ19: 519.7010904 | DA19: 512.7475912 | DC19: 8.007131357 | DD19: 150.9789085 | DE19: 9.721452469 | DF19: 1.66 | DG19: 246.3968035 | DH19: 335.877634 | DI19: 39.16738629 | DK19: 1929 | DL19: =F97 -> 2.49 | DM19: =F98 -> 5.57314086 | DN19: =F99 -> 1.66 | DO19: =F100 -> 0 | DP19: =F101 -> 0 | DQ19: =F102 -> 0.7749469082 | DR19: =F103 -> 18.88932788 | DS19: =F104 -> 147.4367428 | DT19: =F105 -> 87.49551242 | DU19: =F106 -> 127.6680681 | DV19: =F107 -> 111.9764648 | DW19: =F108 -> 60.44644138 | DY19: 578.306254 | DZ19: 578.306254 | EA19: 564.4106451 | EC19: 8.008087769 | ED19: 191.4150448 | EE19: 9.723140861 | EF19: 1.66 | EG19: 254.59653 | EH19: 387.5864867 | EI19: 84.06519105 | EK19: 1929 | EL19: =G97 ->  | EM19: =G98 ->  | EN19: =G99 ->  | EO19: =G100 ->  | EP19: =G101 ->  | EQ19: =G102 ->  | ER19: =G103 ->  | ES19: =G104 ->  | ET19: =G105 ->  | EU19: =G106 ->  | EV19: =G107 ->  | EW19: =G108 -> 
A20: 1922-05-31 | B20: =INDIRECT(CONCATENATE("'",B$1,"'!",B$4,(YEAR($A20)-1921)*12+MONTH($A20)+3+IF(ISNUMBER(FIND("PRV",B$6)),1,0)))*IF(AND(B$3>0,TRIM(B$9)="CFS"),Conversions!$C20,1) -> 0 | C20: =INDIRECT(CONCATENATE("'",C$1,"'!",C$4,(YEAR($A20)-1921)*12+MONTH($A20)+3+IF(ISNUMBER(FIND("PRV",C$6)),1,0)))*IF(AND(C$3>0,TRIM(C$9)="CFS"),Conversions!$C20,1) -> 0 | D20: =INDIRECT(CONCATENATE("'",D$1,"'!",D$4,(YEAR($A20)-1921)*12+MONTH($A20)+3+IF(ISNUMBER(FIND("PRV",D$6)),1,0)))*IF(AND(D$3>0,TRIM(D$9)="CFS"),Conversions!$C20,1) -> 0 | E20: =INDIRECT(CONCATENATE("'",E$1,"'!",E$4,(YEAR($A20)-1921)*12+MONTH($A20)+3+IF(ISNUMBER(FIND("PRV",E$6)),1,0)))*IF(AND(E$3>0,TRIM(E$9)="CFS"),Conversions!$C20,1) -> 0 | F20: =INDIRECT(CONCATENATE("'",F$1,"'!",F$4,(YEAR($A20)-1921)*12+MONTH($A20)+3+IF(ISNUMBER(FIND("PRV",F$6)),1,0)))*IF(AND(F$3>0,TRIM(F$9)="CFS"),Conversions!$C20,1) -> 0 | G20: =INDIRECT(CONCATENATE("'",G$1,"'!",G$4,(YEAR($A20)-1921)*12+MONTH($A20)+3+IF(ISNUMBER(FIND("PRV",G$6)),1,0)))*IF(AND(G$3>0,TRIM(G$9)="CFS"),Conversions!$C20,1) ->  | K20: 1930 | L20: =B109 -> 0 | M20: =B110 -> 0 | N20: =B111 -> 0 | O20: =B112 -> 0 | P20: =B113 -> 0 | Q20: =B114 -> 0 | R20: =B115 -> 0 | S20: =B116 -> 0 | T20: =B117 -> 0 | U20: =B118 -> 0 | V20: =B119 -> 0 | W20: =B120 -> 0 | Y20: 0 | Z20: 0 | AA20: 0 | AC20: 0 | AD20: 0 | AE20: 0 | AF20: 0 | AG20: 0 | AH20: 0 | AI20: 0 | AK20: 1930 | AL20: =C109 -> 18.99128188 | AM20: =C110 -> 5.820605465 | AN20: =C111 -> 0 | AO20: =C112 -> 0 | AP20: =C113 -> 0 | AQ20: =C114 -> 0 | AR20: =C115 -> 4.671605672 | AS20: =C116 -> 22.32953137 | AT20: =C117 -> 29.30946853 | AU20: =C118 -> 65.9132743 | AV20: =C119 -> 111.2679619 | AW20: =C120 -> 24.1332172 | AY20: 261.9335183 | AZ20: 261.9335183 | BA20: 282.4369463 | BC20: 5.820605465 | BD20: 139.7096384 | BE20: 24.81188735 | BF20: 0 | BG20: 56.31060557 | BH20: 230.6239219 | BI20: 28.44167652 | BK20: 1930 | BL20: =D109 -> 17.25739859 | BM20: =D110 -> 0 | BN20: =D111 -> 0 | BO20: =D112 -> 0 | BP20: =D113 -> 0 | BQ20: =D114 -> 0 | BR20: =D115 -> 4.67572068 | BS20: =D116 -> 27.27656041 | BT20: =D117 -> 15.92846206 | BU20: =D118 -> 64.77074919 | BV20: =D119 -> 9.101877386 | BW20: =D120 -> 8.054786843 | BY20: 132.1943623 | BZ20: 132.1943623 | CA20: 147.0655552 | CC20: 0 | CD20: 19.54286998 | CE20: 17.25739859 | CF20: 0 | CG20: 47.88074315 | CH20: 97.85587547 | CI20: 10.44099259 | CK20: 1930 | CL20: =E109 -> 16.67495172 | CM20: =E110 -> 0 | CN20: =E111 -> 0 | CO20: =E112 -> 0 | CP20: =E113 -> 0 | CQ20: =E114 -> 0 | CR20: =E115 -> 4.662884231 | CS20: =E116 -> 14.51392294 | CT20: =E117 -> 14.44964127 | CU20: =E118 -> 63.04269951 | CV20: =E119 -> 2.5 | CW20: =E120 -> 6.696109554 | CY20: 108.0898967 | CZ20: 108.0898967 | DA20: 122.5402092 | DC20: 0 | DD20: 11.42074874 | DE20: 16.67495172 | DF20: 0 | DG20: 33.62644844 | DH20: 86.68845033 | DI20: 8.920748739 | DK20: 1930 | DL20: =F109 -> 18.99213861 | DM20: =F110 -> 4.626611064 | DN20: =F111 -> 0 | DO20: =F112 -> 0 | DP20: =F113 -> 0 | DQ20: =F114 -> 0 | DR20: =F115 -> 4.671162059 | DS20: =F116 -> 18.12166381 | DT20: =F117 -> 23.73067626 | DU20: =F118 -> 64.8185973 | DV20: =F119 -> 80.60677382 | DW20: =F120 -> 14.49067409 | DY20: 209.0466287 | DZ20: 209.0466287 | EA20: 230.058297 | EC20: 4.626611064 | ED20: 97.70452931 | EE20: 23.61874967 | EF20: 0 | EG20: 46.52350213 | EH20: 183.6467215 | EI20: 17.09775549 | EK20: 1930 | EL20: =G109 ->  | EM20: =G110 ->  | EN20: =G111 ->  | EO20: =G112 ->  | EP20: =G113 ->  | EQ20: =G114 ->  | ER20: =G115 ->  | ES20: =G116 ->  | ET20: =G117 ->  | EU20: =G118 ->  | EV20: =G119 ->  | EW20: =G120 -> 
A21: 1922-06-30 | B21: =INDIRECT(CONCATENATE("'",B$1,"'!",B$4,(YEAR($A21)-1921)*12+MONTH($A21)+3+IF(ISNUMBER(FIND("PRV",B$6)),1,0)))*IF(AND(B$3>0,TRIM(B$9)="CFS"),Conversions!$C21,1) -> 0 | C21: =INDIRECT(CONCATENATE("'",C$1,"'!",C$4,(YEAR($A21)-1921)*12+MONTH($A21)+3+IF(ISNUMBER(FIND("PRV",C$6)),1,0)))*IF(AND(C$3>0,TRIM(C$9)="CFS"),Conversions!$C21,1) -> 2.5 | D21: =INDIRECT(CONCATENATE("'",D$1,"'!",D$4,(YEAR($A21)-1921)*12+MONTH($A21)+3+IF(ISNUMBER(FIND("PRV",D$6)),1,0)))*IF(AND(D$3>0,TRIM(D$9)="CFS"),Conversions!$C21,1) -> 2.5 | E21: =INDIRECT(CONCATENATE("'",E$1,"'!",E$4,(YEAR($A21)-1921)*12+MONTH($A21)+3+IF(ISNUMBER(FIND("PRV",E$6)),1,0)))*IF(AND(E$3>0,TRIM(E$9)="CFS"),Conversions!$C21,1) -> 2.5 | F21: =INDIRECT(CONCATENATE("'",F$1,"'!",F$4,(YEAR($A21)-1921)*12+MONTH($A21)+3+IF(ISNUMBER(FIND("PRV",F$6)),1,0)))*IF(AND(F$3>0,TRIM(F$9)="CFS"),Conversions!$C21,1) -> 2.5 | G21: =INDIRECT(CONCATENATE("'",G$1,"'!",G$4,(YEAR($A21)-1921)*12+MONTH($A21)+3+IF(ISNUMBER(FIND("PRV",G$6)),1,0)))*IF(AND(G$3>0,TRIM(G$9)="CFS"),Conversions!$C21,1) ->  | K21: 1931 | L21: =B121 -> 0 | M21: =B122 -> 0 | N21: =B123 -> 0 | O21: =B124 -> 0 | P21: =B125 -> 0 | Q21: =B126 -> 0 | R21: =B127 -> 0 | S21: =B128 -> 0 | T21: =B129 -> 0 | U21: =B130 -> 0 | V21: =B131 -> 0 | W21: =B132 -> 0 | Y21: 0 | Z21: 0 | AA21: 0 | AC21: 0 | AD21: 0 | AE21: 0 | AF21: 0 | AG21: 0 | AH21: 0 | AI21: 0 | AK21: 1931 | AL21: =C121 -> 4.308459321 | AM21: =C122 -> 0 | AN21: =C123 -> 0 | AO21: =C124 -> 0 | AP21: =C125 -> 0 | AQ21: =C126 -> 0 | AR21: =C127 -> 30.02779045 | AS21: =C128 -> 29.92939224 | AT21: =C129 -> 9.509468002 | AU21: =C130 -> 2.5 | AV21: =C131 -> 2.5 | AW21: =C132 -> 2.5 | AY21: 76.9666507 | AZ21: 76.9666507 | BA21: 81.27511002 | BC21: 0 | BD21: 5 | BE21: 4.308459321 | BF21: 0 | BG21: 69.4666507 | BH21: 17.009468 | BI21: 2.5 | BK21: 1931 | BL21: =D121 -> 2.386205747 | BM21: =D122 -> 0 | BN21: =D123 -> 0 | BO21: =D124 -> 0 | BP21: =D125 -> 0 | BQ21: =D126 -> 0 | BR21: =D127 -> 28.61347865 | BS21: =D128 -> 25.27939224 | BT21: =D129 -> 5.28972063 | BU21: =D130 -> 0 | BV21: =D131 -> 0 | BW21: =D132 -> 0 | BY21: 59.18259152 | BZ21: 59.18259152 | CA21: 61.56879727 | CC21: 0 | CD21: 0 | CE21: 2.386205747 | CF21: 0 | CG21: 59.18259152 | CH21: 5.28972063 | CI21: 0 | CK21: 1931 | CL21: =E121 -> 2.224639185 | CM21: =E122 -> 0 | CN21: =E123 -> 0 | CO21: =E124 -> 0 | CP21: =E125 -> 0 | CQ21: =E126 -> 0 | CR21: =E127 -> 25.62884578 | CS21: =E128 -> 25.27939224 | CT21: =E129 -> 5.385606328 | CU21: =E130 -> 0.0007354093823 | CV21: =E131 -> 0 | CW21: =E132 -> 0 | CY21: 56.29457976 | CZ21: 56.29457976 | DA21: 58.51921894 | DC21: 0 | DD21: 0 | DE21: 2.224639185 | DF21: 0 | DG21: 56.29384435 | DH21: 5.386341737 | DI21: 0 | DK21: 1931 | DL21: =F121 -> 2.607081398 | DM21: =F122 -> 0 | DN21: =F123 -> 0 | DO21: =F124 -> 0 | DP21: =F125 -> 0 | DQ21: =F126 -> 0 | DR21: =F127 -> 30.02779045 | DS21: =F128 -> 28.87631246 | DT21: =F129 -> 8.809209258 | DU21: =F130 -> 2.5 | DV21: =F131 -> 0 | DW21: =F132 -> 0 | DY21: 70.21331217 | DZ21: 70.21331217 | EA21: 72.82039357 | EC21: 0 | ED21: 0 | EE21: 2.607081398 | EF21: 0 | EG21: 67.71331217 | EH21: 11.30920926 | EI21: 0 | EK21: 1931 | EL21: =G121 ->  | EM21: =G122 ->  | EN21: =G123 ->  | EO21: =G124 ->  | EP21: =G125 ->  | EQ21: =G126 ->  | ER21: =G127 ->  | ES21: =G128 ->  | ET21: =G129 ->  | EU21: =G130 ->  | EV21: =G131 ->  | EW21: =G132 -> 
A22: 1922-07-31 | B22: =INDIRECT(CONCATENATE("'",B$1,"'!",B$4,(YEAR($A22)-1921)*12+MONTH($A22)+3+IF(ISNUMBER(FIND("PRV",B$6)),1,0)))*IF(AND(B$3>0,TRIM(B$9)="CFS"),Conversions!$C22,1) -> 0 | C22: =INDIRECT(CONCATENATE("'",C$1,"'!",C$4,(YEAR($A22)-1921)*12+MONTH($A22)+3+IF(ISNUMBER(FIND("PRV",C$6)),1,0)))*IF(AND(C$3>0,TRIM(C$9)="CFS"),Conversions!$C22,1) -> 43.56947941 | D22: =INDIRECT(CONCATENATE("'",D$1,"'!",D$4,(YEAR($A22)-1921)*12+MONTH($A22)+3+IF(ISNUMBER(FIND("PRV",D$6)),1,0)))*IF(AND(D$3>0,TRIM(D$9)="CFS"),Conversions!$C22,1) -> 29.38193366 | E22: =INDIRECT(CONCATENATE("'",E$1,"'!",E$4,(YEAR($A22)-1921)*12+MONTH($A22)+3+IF(ISNUMBER(FIND("PRV",E$6)),1,0)))*IF(AND(E$3>0,TRIM(E$9)="CFS"),Conversions!$C22,1) -> 29.07595467 | F22: =INDIRECT(CONCATENATE("'",F$1,"'!",F$4,(YEAR($A22)-1921)*12+MONTH($A22)+3+IF(ISNUMBER(FIND("PRV",F$6)),1,0)))*IF(AND(F$3>0,TRIM(F$9)="CFS"),Conversions!$C22,1) -> 33.1726433 | G22: =INDIRECT(CONCATENATE("'",G$1,"'!",G$4,(YEAR($A22)-1921)*12+MONTH($A22)+3+IF(ISNUMBER(FIND("PRV",G$6)),1,0)))*IF(AND(G$3>0,TRIM(G$9)="CFS"),Conversions!$C22,1) ->  | K22: 1932 | L22: =B133 -> 0 | M22: =B134 -> 0 | N22: =B135 -> 0 | O22: =B136 -> 0 | P22: =B137 -> 0 | Q22: =B138 -> 0 | R22: =B139 -> 0 | S22: =B140 -> 0 | T22: =B141 -> 0 | U22: =B142 -> 0 | V22: =B143 -> 0 | W22: =B144 -> 0 | Y22: 0 | Z22: 0 | AA22: 0 | AC22: 0 | AD22: 0 | AE22: 0 | AF22: 0 | AG22: 0 | AH22: 0 | AI22: 0 | AK22: 1932 | AL22: =C133 -> 0 | AM22: =C134 -> 0 | AN22: =C135 -> 0 | AO22: =C136 -> 0 | AP22: =C137 -> 0 | AQ22: =C138 -> 0.2142587155 | AR22: =C139 -> 29.56495297 | AS22: =C140 -> 1.66622362 | AT22: =C141 -> 13.04915196 | AU22: =C142 -> 55.0521201 | AV22: =C143 -> 2.5 | AW22: =C144 -> 0.9054326389 | AY22: 102.95214 | AZ22: 102.95214 | BA22: 102.95214 | BC22: 0.2142587155 | BD22: 3.405432639 | BE22: 0 | BF22: 0 | BG22: 44.49458726 | BH22: 71.5067047 | BI22: 0.9054326389 | BK22: 1932 | BL22: =D133 -> 0 | BM22: =D134 -> 0 | BN22: =D135 -> 0 | BO22: =D136 -> 0 | BP22: =D137 -> 0 | BQ22: =D138 -> 0.2142587155 | BR22: =D139 -> 8.156759107 | BS22: =D140 -> 0 | BT22: =D141 -> 5.293733099 | BU22: =D142 -> 15.88410871 | BV22: =D143 -> 0 | BW22: =D144 -> 0 | BY22: 29.54885963 | BZ22: 29.54885963 | CA22: 29.54885963 | CC22: 0.2142587155 | CD22: 0 | CE22: 0 | CF22: 0 | CG22: 13.66475092 | CH22: 21.17784181 | CI22: 0 | CK22: 1932 | CL22: =E133 -> 0 | CM22: =E134 -> 0 | CN22: =E135 -> 0 | CO22: =E136 -> 0 | CP22: =E137 -> 0 | CQ22: =E138 -> 0.1746372801 | CR22: =E139 -> 0 | CS22: =E140 -> 0 | CT22: =E141 -> 0 | CU22: =E142 -> 0 | CV22: =E143 -> 0 | CW22: =E144 -> 0 | CY22: 0.1746372801 | CZ22: 0.1746372801 | DA22: 0.1746372801 | DC22: 0.1746372801 | DD22: 0 | DE22: 0 | DF22: 0 | DG22: 0.1746372801 | DH22: 0 | DI22: 0 | DK22: 1932 | DL22: =F133 -> 0 | DM22: =F134 -> 0 | DN22: =F135 -> 0 | DO22: =F136 -> 0 | DP22: =F137 -> 0 | DQ22: =F138 -> 0.2142587155 | DR22: =F139 -> 25.60526168 | DS22: =F140 -> 0 | DT22: =F141 -> 11.05733843 | DU22: =F142 -> 42.76337879 | DV22: =F143 -> 0 | DW22: =F144 -> 0 | DY22: 79.64023761 | DZ22: 79.64023761 | EA22: 79.64023761 | EC22: 0.2142587155 | ED22: 0 | EE22: 0 | EF22: 0 | EG22: 36.87685882 | EH22: 53.82071722 | EI22: 0 | EK22: 1932 | EL22: =G133 ->  | EM22: =G134 ->  | EN22: =G135 ->  | EO22: =G136 ->  | EP22: =G137 ->  | EQ22: =G138 ->  | ER22: =G139 ->  | ES22: =G140 ->  | ET22: =G141 ->  | EU22: =G142 ->  | EV22: =G143 ->  | EW22: =G144 -> 
A23: 1922-08-31 | B23: =INDIRECT(CONCATENATE("'",B$1,"'!",B$4,(YEAR($A23)-1921)*12+MONTH($A23)+3+IF(ISNUMBER(FIND("PRV",B$6)),1,0)))*IF(AND(B$3>0,TRIM(B$9)="CFS"),Conversions!$C23,1) -> 0 | C23: =INDIRECT(CONCATENATE("'",C$1,"'!",C$4,(YEAR($A23)-1921)*12+MONTH($A23)+3+IF(ISNUMBER(FIND("PRV",C$6)),1,0)))*IF(AND(C$3>0,TRIM(C$9)="CFS"),Conversions!$C23,1) -> 31.3362069 | D23: =INDIRECT(CONCATENATE("'",D$1,"'!",D$4,(YEAR($A23)-1921)*12+MONTH($A23)+3+IF(ISNUMBER(FIND("PRV",D$6)),1,0)))*IF(AND(D$3>0,TRIM(D$9)="CFS"),Conversions!$C23,1) -> 31.3362069 | E23: =INDIRECT(CONCATENATE("'",E$1,"'!",E$4,(YEAR($A23)-1921)*12+MONTH($A23)+3+IF(ISNUMBER(FIND("PRV",E$6)),1,0)))*IF(AND(E$3>0,TRIM(E$9)="CFS"),Conversions!$C23,1) -> 31.3362069 | F23: =INDIRECT(CONCATENATE("'",F$1,"'!",F$4,(YEAR($A23)-1921)*12+MONTH($A23)+3+IF(ISNUMBER(FIND("PRV",F$6)),1,0)))*IF(AND(F$3>0,TRIM(F$9)="CFS"),Conversions!$C23,1) -> 31.3362069 | G23: =INDIRECT(CONCATENATE("'",G$1,"'!",G$4,(YEAR($A23)-1921)*12+MONTH($A23)+3+IF(ISNUMBER(FIND("PRV",G$6)),1,0)))*IF(AND(G$3>0,TRIM(G$9)="CFS"),Conversions!$C23,1) ->  | K23: 1933 | L23: =B145 -> 0 | M23: =B146 -> 0 | N23: =B147 -> 0 | O23: =B148 -> 0 | P23: =B149 -> 0 | Q23: =B150 -> 0 | R23: =B151 -> 0 | S23: =B152 -> 0 | T23: =B153 -> 0 | U23: =B154 -> 0 | V23: =B155 -> 0 | W23: =B156 -> 0 | Y23: 0 | Z23: 0 | AA23: 0 | AC23: 0 | AD23: 0 | AE23: 0 | AF23: 0 | AG23: 0 | AH23: 0 | AI23: 0 | AK23: 1933 | AL23: =C145 -> 0 | AM23: =C146 -> 0 | AN23: =C147 -> 0 | AO23: =C148 -> 0 | AP23: =C149 -> 0 | AQ23: =C150 -> 4.19999981 | AR23: =C151 -> 25.57198492 | AS23: =C152 -> 51.25051717 | AT23: =C153 -> 2.165699514 | AU23: =C154 -> 0 | AV23: =C155 -> 0 | AW23: =C156 -> 0 | AY23: 83.18820141 | AZ23: 83.18820141 | BA23: 83.18820141 | BC23: 4.19999981 | BD23: 0 | BE23: 0 | BF23: 0 | BG23: 83.18820141 | BH23: 2.165699514 | BI23: 0 | BK23: 1933 | BL23: =D145 -> 0 | BM23: =D146 -> 0 | BN23: =D147 -> 0 | BO23: =D148 -> 0 | BP23: =D149 -> 0 | BQ23: =D150 -> 0 | BR23: =D151 -> 0 | BS23: =D152 -> 0 | BT23: =D153 -> 0 | BU23: =D154 -> 0 | BV23: =D155 -> 0 | BW23: =D156 -> 0 | BY23: 0 | BZ23: 0 | CA23: 0 | CC23: 0 | CD23: 0 | CE23: 0 | CF23: 0 | CG23: 0 | CH23: 0 | CI23: 0 | CK23: 1933 | CL23: =E145 -> 0 | CM23: =E146 -> 0 | CN23: =E147 -> 0 | CO23: =E148 -> 0 | CP23: =E149 -> 0 | CQ23: =E150 -> 0 | CR23: =E151 -> 0 | CS23: =E152 -> 0 | CT23: =E153 -> 0 | CU23: =E154 -> 0 | CV23: =E155 -> 0 | CW23: =E156 -> 0 | CY23: 0 | CZ23: 0 | DA23: 0 | DC23: 0 | DD23: 0 | DE23: 0 | DF23: 0 | DG23: 0 | DH23: 0 | DI23: 0 | DK23: 1933 | DL23: =F145 -> 0 | DM23: =F146 -> 0 | DN23: =F147 -> 0 | DO23: =F148 -> 0 | DP23: =F149 -> 0 | DQ23: =F150 -> 4.19999981 | DR23: =F151 -> 9.550847618 | DS23: =F152 -> 26.97446501 | DT23: =F153 -> 1.294943868 | DU23: =F154 -> 0 | DV23: =F155 -> 0 | DW23: =F156 -> 0 | DY23: 42.0202563 | DZ23: 42.0202563 | EA23: 42.0202563 | EC23: 4.19999981 | ED23: 0 | EE23: 0 | EF23: 0 | EG23: 42.0202563 | EH23: 1.294943868 | EI23: 0 | EK23: 1933 | EL23: =G145 ->  | EM23: =G146 ->  | EN23: =G147 ->  | EO23: =G148 ->  | EP23: =G149 ->  | EQ23: =G150 ->  | ER23: =G151 ->  | ES23: =G152 ->  | ET23: =G153 ->  | EU23: =G154 ->  | EV23: =G155 ->  | EW23: =G156 -> 
A24: 1922-09-30 | B24: =INDIRECT(CONCATENATE("'",B$1,"'!",B$4,(YEAR($A24)-1921)*12+MONTH($A24)+3+IF(ISNUMBER(FIND("PRV",B$6)),1,0)))*IF(AND(B$3>0,TRIM(B$9)="CFS"),Conversions!$C24,1) -> 0 | C24: =INDIRECT(CONCATENATE("'",C$1,"'!",C$4,(YEAR($A24)-1921)*12+MONTH($A24)+3+IF(ISNUMBER(FIND("PRV",C$6)),1,0)))*IF(AND(C$3>0,TRIM(C$9)="CFS"),Conversions!$C24,1) -> 31.00298448 | D24: =INDIRECT(CONCATENATE("'",D$1,"'!",D$4,(YEAR($A24)-1921)*12+MONTH($A24)+3+IF(ISNUMBER(FIND("PRV",D$6)),1,0)))*IF(AND(D$3>0,TRIM(D$9)="CFS"),Conversions!$C24,1) -> 31.00298448 | E24: =INDIRECT(CONCATENATE("'",E$1,"'!",E$4,(YEAR($A24)-1921)*12+MONTH($A24)+3+IF(ISNUMBER(FIND("PRV",E$6)),1,0)))*IF(AND(E$3>0,TRIM(E$9)="CFS"),Conversions!$C24,1) -> 31.00298448 | F24: =INDIRECT(CONCATENATE("'",F$1,"'!",F$4,(YEAR($A24)-1921)*12+MONTH($A24)+3+IF(ISNUMBER(FIND("PRV",F$6)),1,0)))*IF(AND(F$3>0,TRIM(F$9)="CFS"),Conversions!$C24,1) -> 31.00298448 | G24: =INDIRECT(CONCATENATE("'",G$1,"'!",G$4,(YEAR($A24)-1921)*12+MONTH($A24)+3+IF(ISNUMBER(FIND("PRV",G$6)),1,0)))*IF(AND(G$3>0,TRIM(G$9)="CFS"),Conversions!$C24,1) ->  | K24: 1934 | L24: =B157 -> 0 | M24: =B158 -> 0 | N24: =B159 -> 0 | O24: =B160 -> 0 | P24: =B161 -> 0 | Q24: =B162 -> 0 | R24: =B163 -> 0 | S24: =B164 -> 0 | T24: =B165 -> 0 | U24: =B166 -> 0 | V24: =B167 -> 0 | W24: =B168 -> 0 | Y24: 0 | Z24: 0 | AA24: 0 | AC24: 0 | AD24: 0 | AE24: 0 | AF24: 0 | AG24: 0 | AH24: 0 | AI24: 0 | AK24: 1934 | AL24: =C157 -> 0 | AM24: =C158 -> 0 | AN24: =C159 -> 0 | AO24: =C160 -> 0 | AP24: =C161 -> 0 | AQ24: =C162 -> 11.27517723 | AR24: =C163 -> 19.83637392 | AS24: =C164 -> 39.91336868 | AT24: =C165 -> 1.631104158 | AU24: =C166 -> 0 | AV24: =C167 -> 0 | AW24: =C168 -> 0 | AY24: 72.65602399 | AZ24: 72.65602399 | BA24: 72.65602399 | BC24: 11.27517723 | BD24: 0 | BE24: 0 | BF24: 0 | BG24: 72.65602399 | BH24: 1.631104158 | BI24: 0 | BK24: 1934 | BL24: =D157 -> 0 | BM24: =D158 -> 0 | BN24: =D159 -> 0 | BO24: =D160 -> 0 | BP24: =D161 -> 0 | BQ24: =D162 -> 0.1055726335 | BR24: =D163 -> 2.639172087 | BS24: =D164 -> 5.775224522 | BT24: =D165 -> 0 | BU24: =D166 -> 0 | BV24: =D167 -> 0 | BW24: =D168 -> 0 | BY24: 8.519969242 | BZ24: 8.519969242 | CA24: 8.519969242 | CC24: 0.1055726335 | CD24: 0 | CE24: 0 | CF24: 0 | CG24: 8.519969242 | CH24: 0 | CI24: 0 | CK24: 1934 | CL24: =E157 -> 0 | CM24: =E158 -> 0 | CN24: =E159 -> 0 | CO24: =E160 -> 0 | CP24: =E161 -> 0 | CQ24: =E162 -> 0.1055726335 | CR24: =E163 -> 0 | CS24: =E164 -> 0 | CT24: =E165 -> 0 | CU24: =E166 -> 0 | CV24: =E167 -> 0 | CW24: =E168 -> 0 | CY24: 0.1055726335 | CZ24: 0.1055726335 | DA24: 0.1055726335 | DC24: 0.1055726335 | DD24: 0 | DE24: 0 | DF24: 0 | DG24: 0.1055726335 | DH24: 0 | DI24: 0 | DK24: 1934 | DL24: =F157 -> 0 | DM24: =F158 -> 0 | DN24: =F159 -> 0 | DO24: =F160 -> 0 | DP24: =F161 -> 0 | DQ24: =F162 -> 0.1055726335 | DR24: =F163 -> 15.1663595 | DS24: =F164 -> 20.51114307 | DT24: =F165 -> 0.1388229197 | DU24: =F166 -> 0 | DV24: =F167 -> 0 | DW24: =F168 -> 0 | DY24: 35.92189812 | DZ24: 35.92189812 | EA24: 35.92189812 | EC24: 0.1055726335 | ED24: 0 | EE24: 0 | EF24: 0 | EG24: 35.92189812 | EH24: 0.1388229197 | EI24: 0 | EK24: 1934 | EL24: =G157 ->  | EM24: =G158 ->  | EN24: =G159 ->  | EO24: =G160 ->  | EP24: =G161 ->  | EQ24: =G162 ->  | ER24: =G163 ->  | ES24: =G164 ->  | ET24: =G165 ->  | EU24: =G166 ->  | EV24: =G167 ->  | EW24: =G168 -> 
A25: 1922-10-31 | B25: =INDIRECT(CONCATENATE("'",B$1,"'!",B$4,(YEAR($A25)-1921)*12+MONTH($A25)+3+IF(ISNUMBER(FIND("PRV",B$6)),1,0)))*IF(AND(B$3>0,TRIM(B$9)="CFS"),Conversions!$C25,1) -> 0 | C25: =INDIRECT(CONCATENATE("'",C$1,"'!",C$4,(YEAR($A25)-1921)*12+MONTH($A25)+3+IF(ISNUMBER(FIND("PRV",C$6)),1,0)))*IF(AND(C$3>0,TRIM(C$9)="CFS"),Conversions!$C25,1) -> 30.0762069 | D25: =INDIRECT(CONCATENATE("'",D$1,"'!",D$4,(YEAR($A25)-1921)*12+MONTH($A25)+3+IF(ISNUMBER(FIND("PRV",D$6)),1,0)))*IF(AND(D$3>0,TRIM(D$9)="CFS"),Conversions!$C25,1) -> 27.12379669 | E25: =INDIRECT(CONCATENATE("'",E$1,"'!",E$4,(YEAR($A25)-1921)*12+MONTH($A25)+3+IF(ISNUMBER(FIND("PRV",E$6)),1,0)))*IF(AND(E$3>0,TRIM(E$9)="CFS"),Conversions!$C25,1) -> 27.12027181 | F25: =INDIRECT(CONCATENATE("'",F$1,"'!",F$4,(YEAR($A25)-1921)*12+MONTH($A25)+3+IF(ISNUMBER(FIND("PRV",F$6)),1,0)))*IF(AND(F$3>0,TRIM(F$9)="CFS"),Conversions!$C25,1) -> 30.0762069 | G25: =INDIRECT(CONCATENATE("'",G$1,"'!",G$4,(YEAR($A25)-1921)*12+MONTH($A25)+3+IF(ISNUMBER(FIND("PRV",G$6)),1,0)))*IF(AND(G$3>0,TRIM(G$9)="CFS"),Conversions!$C25,1) ->  | K25: 1935 | L25: =B169 -> 0 | M25: =B170 -> 0 | N25: =B171 -> 0 | O25: =B172 -> 0 | P25: =B173 -> 0 | Q25: =B174 -> 0 | R25: =B175 -> 0 | S25: =B176 -> 0 | T25: =B177 -> 0 | U25: =B178 -> 0 | V25: =B179 -> 0 | W25: =B180 -> 0 | Y25: 0 | Z25: 0 | AA25: 0 | AC25: 0 | AD25: 0 | AE25: 0 | AF25: 0 | AG25: 0 | AH25: 0 | AI25: 0 | AK25: 1935 | AL25: =C169 -> 0 | AM25: =C170 -> 0 | AN25: =C171 -> 0 | AO25: =C172 -> 0 | AP25: =C173 -> 0 | AQ25: =C174 -> 0 | AR25: =C175 -> 1.185263179 | AS25: =C176 -> 12.16613288 | AT25: =C177 -> 78.64822766 | AU25: =C178 -> 84.87788568 | AV25: =C179 -> 68.37214268 | AW25: =C180 -> 47.99129811 | AY25: 375.332277 | AZ25: 375.332277 | BA25: 293.2409502 | BC25: 0 | BD25: 136.6853459 | BE25: 0 | BF25: 0 | BG25: 91.99962372 | BH25: 279.8895541 | BI25: 130.0826249 | BK25: 1935 | BL25: =D169 -> 0 | BM25: =D170 -> 0 | BN25: =D171 -> 0 | BO25: =D172 -> 0 | BP25: =D173 -> 0 | BQ25: =D174 -> 0 | BR25: =D175 -> 1.378904327 | BS25: =D176 -> 13.62096423 | BT25: =D177 -> 59.14260471 | BU25: =D178 -> 64.89760331 | BV25: =D179 -> 68.48630929 | BW25: =D180 -> 32.80467944 | BY25: 265.148564 | BZ25: 265.148564 | CA25: 240.3310653 | CC25: 0 | CD25: 111.57899 | CE25: 0 | CF25: 0 | CG25: 74.14247327 | CH25: 225.3311967 | CI25: 57.62217818 | CK25: 1935 | CL25: =E169 -> 0 | CM25: =E170 -> 0 | CN25: =E171 -> 0 | CO25: =E172 -> 0 | CP25: =E173 -> 0 | CQ25: =E174 -> 0 | CR25: =E175 -> 0.9403636033 | CS25: =E176 -> 13.25432711 | CT25: =E177 -> 38.36385433 | CU25: =E178 -> 64.89760331 | CV25: =E179 -> 67.40511561 | CW25: =E180 -> 11.48779963 | CY25: 202.1607488 | CZ25: 202.1607488 | DA25: 196.3490636 | DC25: 0 | DD25: 84.70460048 | DE25: 0 | DF25: 0 | DG25: 52.55854505 | DH25: 182.1543729 | DI25: 17.29948487 | DK25: 1935 | DL25: =F169 -> 0 | DM25: =F170 -> 0 | DN25: =F171 -> 0 | DO25: =F172 -> 0 | DP25: =F173 -> 0 | DQ25: =F174 -> 0 | DR25: =F175 -> 1.335947402 | DS25: =F176 -> 13.32914028 | DT25: =F177 -> 69.5563662 | DU25: =F178 -> 65.97154667 | DV25: =F179 -> 69.58915009 | DW25: =F180 -> 36.4389496 | DY25: 304.286946 | DZ25: 304.286946 | EA25: 256.2211002 | EC25: 0 | ED25: 120.6629003 | EE25: 0 | EF25: 0 | EG25: 84.22145388 | EH25: 241.5560126 | EI25: 84.50479534 | EK25: 1935 | EL25: =G169 ->  | EM25: =G170 ->  | EN25: =G171 ->  | EO25: =G172 ->  | EP25: =G173 ->  | EQ25: =G174 ->  | ER25: =G175 ->  | ES25: =G176 ->  | ET25: =G177 ->  | EU25: =G178 ->  | EV25: =G179 ->  | EW25: =G180 -> 
A26: 1922-11-30 | B26: =INDIRECT(CONCATENATE("'",B$1,"'!",B$4,(YEAR($A26)-1921)*12+MONTH($A26)+3+IF(ISNUMBER(FIND("PRV",B$6)),1,0)))*IF(AND(B$3>0,TRIM(B$9)="CFS"),Conversions!$C26,1) -> 0 | C26: =INDIRECT(CONCATENATE("'",C$1,"'!",C$4,(YEAR($A26)-1921)*12+MONTH($A26)+3+IF(ISNUMBER(FIND("PRV",C$6)),1,0)))*IF(AND(C$3>0,TRIM(C$9)="CFS"),Conversions!$C26,1) -> 0 | D26: =INDIRECT(CONCATENATE("'",D$1,"'!",D$4,(YEAR($A26)-1921)*12+MONTH($A26)+3+IF(ISNUMBER(FIND("PRV",D$6)),1,0)))*IF(AND(D$3>0,TRIM(D$9)="CFS"),Conversions!$C26,1) -> 1.74 | E26: =INDIRECT(CONCATENATE("'",E$1,"'!",E$4,(YEAR($A26)-1921)*12+MONTH($A26)+3+IF(ISNUMBER(FIND("PRV",E$6)),1,0)))*IF(AND(E$3>0,TRIM(E$9)="CFS"),Conversions!$C26,1) -> 1.74 | F26: =INDIRECT(CONCATENATE("'",F$1,"'!",F$4,(YEAR($A26)-1921)*12+MONTH($A26)+3+IF(ISNUMBER(FIND("PRV",F$6)),1,0)))*IF(AND(F$3>0,TRIM(F$9)="CFS"),Conversions!$C26,1) -> 0 | G26: =INDIRECT(CONCATENATE("'",G$1,"'!",G$4,(YEAR($A26)-1921)*12+MONTH($A26)+3+IF(ISNUMBER(FIND("PRV",G$6)),1,0)))*IF(AND(G$3>0,TRIM(G$9)="CFS"),Conversions!$C26,1) ->  | K26: 1936 | L26: =B181 -> 0 | M26: =B182 -> 0 | N26: =B183 -> 0 | O26: =B184 -> 0 | P26: =B185 -> 0 | Q26: =B186 -> 0 | R26: =B187 -> 0 | S26: =B188 -> 0 | T26: =B189 -> 0 | U26: =B190 -> 0 | V26: =B191 -> 0 | W26: =B192 -> 0 | Y26: 0 | Z26: 0 | AA26: 0 | AC26: 0 | AD26: 0 | AE26: 0 | AF26: 0 | AG26: 0 | AH26: 0 | AI26: 0 | AK26: 1936 | AL26: =C181 -> 20.32190516 | AM26: =C182 -> 61.76942168 | AN26: =C183 -> 0 | AO26: =C184 -> 0 | AP26: =C185 -> 0 | AQ26: =C186 -> 0 | AR26: =C187 -> 3.649773806 | AS26: =C188 -> 6.541754262 | AT26: =C189 -> 8.200732785 | AU26: =C190 -> 111.8251005 | AV26: =C191 -> 70.54418836 | AW26: =C192 -> 5.573333334 | AY26: 279.9274123 | AZ26: 279.9274123 | BA26: 288.4262099 | BC26: 61.76942168 | BD26: 86.73443332 | BE26: 82.09132683 | BF26: 0 | BG26: 18.39226085 | BH26: 196.143355 | BI26: 79.16586254 | BK26: 1936 | BL26: =D181 -> 10.2880013 | BM26: =D182 -> 14.52949744 | BN26: =D183 -> 0 | BO26: =D184 -> 0 | BP26: =D185 -> 0 | BQ26: =D186 -> 0 | BR26: =D187 -> 3.996687603 | BS26: =D188 -> 7.687810148 | BT26: =D189 -> 9.557365149 | BU26: =D190 -> 78.9953052 | BV26: =D191 -> 66.44672823 | BW26: =D192 -> 5.573333334 | BY26: 187.853831 | BZ26: 187.853831 | CA26: 197.0747284 | CC26: 14.52949744 | CD26: 80.62919654 | CE26: 24.81749874 | CF26: 0 | CG26: 21.2418629 | CH26: 160.5727319 | CI26: 21.16993468 | CK26: 1936 | CL26: =E181 -> 5.811685245 | CM26: =E182 -> 0 | CN26: =E183 -> 0 | CO26: =E184 -> 0 | CP26: =E185 -> 0 | CQ26: =E186 -> 0 | CR26: =E187 -> 3.863503298 | CS26: =E188 -> 7.247825753 | CT26: =E189 -> 8.602257626 | CU26: =E190 -> 63.47086781 | CV26: =E191 -> 31.92607569 | CW26: =E192 -> 1.719350554 | CY26: 123.5609041 | CZ26: 123.5609041 | DA26: 122.641566 | DC26: 0 | DD26: 40.37644964 | DE26: 5.811685245 | DF26: 0 | DG26: 19.71358668 | DH26: 105.7185517 | DI26: 8.450373955 | DK26: 1936 | DL26: =F181 -> 14.63480061 | DM26: =F182 -> 33.43104512 | DN26: =F183 -> 0 | DO26: =F184 -> 0 | DP26: =F185 -> 0 | DQ26: =F186 -> 0 | DR26: =F187 -> 3.970333313 | DS26: =F188 -> 7.600746763 | DT26: =F189 -> 9.454304725 | DU26: =F190 -> 74.57905531 | DV26: =F191 -> 66.45550497 | DW26: =F192 -> 5.573333334 | DY26: 189.0138162 | DZ26: 189.0138162 | EA26: 215.6991242 | EC26: 33.43104512 | ED26: 80.68983024 | EE26: 48.06584574 | EF26: 0 | EG26: 21.0253848 | EH26: 156.0621983 | EI26: 26.95387113 | EK26: 1936 | EL26: =G181 ->  | EM26: =G182 ->  | EN26: =G183 ->  | EO26: =G184 ->  | EP26: =G185 ->  | EQ26: =G186 ->  | ER26: =G187 ->  | ES26: =G188 ->  | ET26: =G189 ->  | EU26: =G190 ->  | EV26: =G191 ->  | EW26: =G192 -> 
A27: 1922-12-31 | B27: =INDIRECT(CONCATENATE("'",B$1,"'!",B$4,(YEAR($A27)-1921)*12+MONTH($A27)+3+IF(ISNUMBER(FIND("PRV",B$6)),1,0)))*IF(AND(B$3>0,TRIM(B$9)="CFS"),Conversions!$C27,1) -> 0 | C27: =INDIRECT(CONCATENATE("'",C$1,"'!",C$4,(YEAR($A27)-1921)*12+MONTH($A27)+3+IF(ISNUMBER(FIND("PRV",C$6)),1,0)))*IF(AND(C$3>0,TRIM(C$9)="CFS"),Conversions!$C27,1) -> 1.66 | D27: =INDIRECT(CONCATENATE("'",D$1,"'!",D$4,(YEAR($A27)-1921)*12+MONTH($A27)+3+IF(ISNUMBER(FIND("PRV",D$6)),1,0)))*IF(AND(D$3>0,TRIM(D$9)="CFS"),Conversions!$C27,1) -> 1.66 | E27: =INDIRECT(CONCATENATE("'",E$1,"'!",E$4,(YEAR($A27)-1921)*12+MONTH($A27)+3+IF(ISNUMBER(FIND("PRV",E$6)),1,0)))*IF(AND(E$3>0,TRIM(E$9)="CFS"),Conversions!$C27,1) -> 1.66 | F27: =INDIRECT(CONCATENATE("'",F$1,"'!",F$4,(YEAR($A27)-1921)*12+MONTH($A27)+3+IF(ISNUMBER(FIND("PRV",F$6)),1,0)))*IF(AND(F$3>0,TRIM(F$9)="CFS"),Conversions!$C27,1) -> 1.66 | G27: =INDIRECT(CONCATENATE("'",G$1,"'!",G$4,(YEAR($A27)-1921)*12+MONTH($A27)+3+IF(ISNUMBER(FIND("PRV",G$6)),1,0)))*IF(AND(G$3>0,TRIM(G$9)="CFS"),Conversions!$C27,1) ->  | K27: 1937 | L27: =B193 -> 0 | M27: =B194 -> 0 | N27: =B195 -> 0 | O27: =B196 -> 0 | P27: =B197 -> 0 | Q27: =B198 -> 0 | R27: =B199 -> 0 | S27: =B200 -> 0 | T27: =B201 -> 0 | U27: =B202 -> 0 | V27: =B203 -> 0 | W27: =B204 -> 0 | Y27: 0 | Z27: 0 | AA27: 0 | AC27: 0 | AD27: 0 | AE27: 0 | AF27: 0 | AG27: 0 | AH27: 0 | AI27: 0 | AK27: 1937 | AL27: =C193 -> 10.61691162 | AM27: =C194 -> 62.97561758 | AN27: =C195 -> 0 | AO27: =C196 -> 0 | AP27: =C197 -> 0 | AQ27: =C198 -> 0 | AR27: =C199 -> 4.004378226 | AS27: =C200 -> 12.76463242 | AT27: =C201 -> 45.69242609 | AU27: =C202 -> 64.89760331 | AV27: =C203 -> 96.10510542 | AW27: =C204 -> 14.40425475 | AY27: 242.0984002 | AZ27: 242.0984002 | BA27: 311.4609294 | BC27: 62.97561758 | BD27: 112.9993602 | BE27: 73.5925292 | BF27: 0 | BG27: 62.46143673 | BH27: 221.0993896 | BI27: 18.63425475 | BK27: 1937 | BL27: =D193 -> 8.609134984 | BM27: =D194 -> 6.987466363 | BN27: =D195 -> 0 | BO27: =D196 -> 0 | BP27: =D197 -> 0 | BQ27: =D198 -> 0 | BR27: =D199 -> 4.075103449 | BS27: =D200 -> 13.24573066 | BT27: =D201 -> 34.10914323 | BU27: =D202 -> 64.89760331 | BV27: =D203 -> 58.44936854 | BW27: =D204 -> 8.669117265 | BY27: 187.6760665 | BZ27: 187.6760665 | CA27: 199.0426678 | CC27: 6.987466363 | CD27: 69.60848581 | CE27: 15.59660135 | CF27: 0 | CG27: 51.42997734 | CH27: 166.1252323 | CI27: 12.89911727 | CK27: 1937 | CL27: =E193 -> 6.731023401 | CM27: =E194 -> 0 | CN27: =E195 -> 0 | CO27: =E196 -> 0 | CP27: =E197 -> 0 | CQ27: =E198 -> 0 | CR27: =E199 -> 4.07153552 | CS27: =E200 -> 11.52045139 | CT27: =E201 -> 28.11682583 | CU27: =E202 -> 64.89760331 | CV27: =E203 -> 14.91268534 | CW27: =E204 -> 1.741618901 | CY27: 129.4907203 | CZ27: 129.4907203 | DA27: 131.9917437 | DC27: 0 | DD27: 19.14430424 | DE27: 6.731023401 | DF27: 0 | DG27: 43.70881274 | DH27: 109.6687334 | DI27: 5.971618901 | DK27: 1937 | DL27: =F193 -> 8.660991927 | DM27: =F194 -> 12.71954587 | DN27: =F195 -> 0 | DO27: =F196 -> 0 | DP27: =F197 -> 0 | DQ27: =F198 -> 0 | DR27: =F199 -> 4.070410028 | DS27: =F200 -> 13.22989173 | DT27: =F201 -> 34.28766038 | DU27: =F202 -> 64.89760331 | DV27: =F203 -> 59.43893141 | DW27: =F204 -> 9.555181726 | DY27: 189.7096786 | DZ27: 189.7096786 | EA27: 206.8602164 | EC27: 12.71954587 | ED27: 71.48411314 | EE27: 21.3805378 | EF27: 0 | EG27: 51.58796214 | EH27: 168.1793768 | EI27: 13.78518173 | EK27: 1937 | EL27: =G193 ->  | EM27: =G194 ->  | EN27: =G195 ->  | EO27: =G196 ->  | EP27: =G197 ->  | EQ27: =G198 ->  | ER27: =G199 ->  | ES27: =G200 ->  | ET27: =G201 ->  | EU27: =G202 ->  | EV27: =G203 ->  | EW27: =G204 -> 
A28: 1923-01-31 | B28: =INDIRECT(CONCATENATE("'",B$1,"'!",B$4,(YEAR($A28)-1921)*12+MONTH($A28)+3+IF(ISNUMBER(FIND("PRV",B$6)),1,0)))*IF(AND(B$3>0,TRIM(B$9)="CFS"),Conversions!$C28,1) -> 0 | C28: =INDIRECT(CONCATENATE("'",C$1,"'!",C$4,(YEAR($A28)-1921)*12+MONTH($A28)+3+IF(ISNUMBER(FIND("PRV",C$6)),1,0)))*IF(AND(C$3>0,TRIM(C$9)="CFS"),Conversions!$C28,1) -> 0 | D28: =INDIRECT(CONCATENATE("'",D$1,"'!",D$4,(YEAR($A28)-1921)*12+MONTH($A28)+3+IF(ISNUMBER(FIND("PRV",D$6)),1,0)))*IF(AND(D$3>0,TRIM(D$9)="CFS"),Conversions!$C28,1) -> 0 | E28: =INDIRECT(CONCATENATE("'",E$1,"'!",E$4,(YEAR($A28)-1921)*12+MONTH($A28)+3+IF(ISNUMBER(FIND("PRV",E$6)),1,0)))*IF(AND(E$3>0,TRIM(E$9)="CFS"),Conversions!$C28,1) -> 0 | F28: =INDIRECT(CONCATENATE("'",F$1,"'!",F$4,(YEAR($A28)-1921)*12+MONTH($A28)+3+IF(ISNUMBER(FIND("PRV",F$6)),1,0)))*IF(AND(F$3>0,TRIM(F$9)="CFS"),Conversions!$C28,1) -> 0 | G28: =INDIRECT(CONCATENATE("'",G$1,"'!",G$4,(YEAR($A28)-1921)*12+MONTH($A28)+3+IF(ISNUMBER(FIND("PRV",G$6)),1,0)))*IF(AND(G$3>0,TRIM(G$9)="CFS"),Conversions!$C28,1) ->  | K28: 1938 | L28: =B205 -> 0 | M28: =B206 -> 0 | N28: =B207 -> 0 | O28: =B208 -> 0 | P28: =B209 -> 0 | Q28: =B210 -> 0 | R28: =B211 -> 0 | S28: =B212 -> 0 | T28: =B213 -> 0 | U28: =B214 -> 0 | V28: =B215 -> 0 | W28: =B216 -> 0 | Y28: 0 | Z28: 0 | AA28: 0 | AC28: 0 | AD28: 0 | AE28: 0 | AF28: 0 | AG28: 0 | AH28: 0 | AI28: 0 | AK28: 1938 | AL28: =C205 -> 2.49 | AM28: =C206 -> 1.74 | AN28: =C207 -> 0 | AO28: =C208 -> 0 | AP28: =C209 -> 0 | AQ28: =C210 -> 0 | AR28: =C211 -> 0 | AS28: =C212 -> 0 | AT28: =C213 -> 0 | AU28: =C214 -> 2.5 | AV28: =C215 -> 27.5862069 | AW28: =C216 -> 27.5862069 | AY28: 119.5100483 | AZ28: 119.5100483 | BA28: 61.9024138 | BC28: 1.74 | BD28: 81.30756895 | BE28: 4.23 | BF28: 0 | BG28: 0 | BH28: 57.6724138 | BI28: 71.57260172 | BK28: 1938 | BL28: =D205 -> 2.49 | BM28: =D206 -> 1.74 | BN28: =D207 -> 0 | BO28: =D208 -> 0 | BP28: =D209 -> 0 | BQ28: =D210 -> 0 | BR28: =D211 -> 0 | BS28: =D212 -> 0 | BT28: =D213 -> 0 | BU28: =D214 -> 2.5 | BV28: =D215 -> 27.5862069 | BW28: =D216 -> 27.5862069 | BY28: 116.2904826 | BZ28: 116.2904826 | CA28: 61.9024138 | CC28: 1.74 | CD28: 78.08800322 | CE28: 4.23 | CF28: 0 | CG28: 0 | CH28: 57.6724138 | CI28: 68.35303599 | CK28: 1938 | CL28: =E205 -> 2.49 | CM28: =E206 -> 1.74 | CN28: =E207 -> 0 | CO28: =E208 -> 0 | CP28: =E209 -> 0 | CQ28: =E210 -> 0 | CR28: =E211 -> 0 | CS28: =E212 -> 0 | CT28: =E213 -> 0 | CU28: =E214 -> 2.5 | CV28: =E215 -> 27.5862069 | CW28: =E216 -> 27.5862069 | CY28: 120.9611 | CZ28: 120.9611 | DA28: 61.9024138 | DC28: 1.74 | DD28: 82.7586207 | DE28: 4.23 | DF28: 0 | DG28: 0 | DH28: 57.6724138 | DI28: 73.02365347 | DK28: 1938 | DL28: =F205 -> 2.49 | DM28: =F206 -> 1.74 | DN28: =F207 -> 0 | DO28: =F208 -> 0 | DP28: =F209 -> 0 | DQ28: =F210 -> 0 | DR28: =F211 -> 0 | DS28: =F212 -> 0 | DT28: =F213 -> 0 | DU28: =F214 -> 2.5 | DV28: =F215 -> 27.5862069 | DW28: =F216 -> 27.5862069 | DY28: 119.4910554 | DZ28: 119.4910554 | EA28: 61.9024138 | EC28: 1.74 | ED28: 81.28857603 | EE28: 4.23 | EF28: 0 | EG28: 0 | EH28: 57.6724138 | EI28: 71.5536088 | EK28: 1938 | EL28: =G205 ->  | EM28: =G206 ->  | EN28: =G207 ->  | EO28: =G208 ->  | EP28: =G209 ->  | EQ28: =G210 ->  | ER28: =G211 ->  | ES28: =G212 ->  | ET28: =G213 ->  | EU28: =G214 ->  | EV28: =G215 ->  | EW28: =G216 -> 
A29: 1923-02-28 | B29: =INDIRECT(CONCATENATE("'",B$1,"'!",B$4,(YEAR($A29)-1921)*12+MONTH($A29)+3+IF(ISNUMBER(FIND("PRV",B$6)),1,0)))*IF(AND(B$3>0,TRIM(B$9)="CFS"),Conversions!$C29,1) -> 0 | C29: =INDIRECT(CONCATENATE("'",C$1,"'!",C$4,(YEAR($A29)-1921)*12+MONTH($A29)+3+IF(ISNUMBER(FIND("PRV",C$6)),1,0)))*IF(AND(C$3>0,TRIM(C$9)="CFS"),Conversions!$C29,1) -> 7.010645899 | D29: =INDIRECT(CONCATENATE("'",D$1,"'!",D$4,(YEAR($A29)-1921)*12+MONTH($A29)+3+IF(ISNUMBER(FIND("PRV",D$6)),1,0)))*IF(AND(D$3>0,TRIM(D$9)="CFS"),Conversions!$C29,1) -> 0 | E29: =INDIRECT(CONCATENATE("'",E$1,"'!",E$4,(YEAR($A29)-1921)*12+MONTH($A29)+3+IF(ISNUMBER(FIND("PRV",E$6)),1,0)))*IF(AND(E$3>0,TRIM(E$9)="CFS"),Conversions!$C29,1) -> 0 | F29: =INDIRECT(CONCATENATE("'",F$1,"'!",F$4,(YEAR($A29)-1921)*12+MONTH($A29)+3+IF(ISNUMBER(FIND("PRV",F$6)),1,0)))*IF(AND(F$3>0,TRIM(F$9)="CFS"),Conversions!$C29,1) -> 7.011764291 | G29: =INDIRECT(CONCATENATE("'",G$1,"'!",G$4,(YEAR($A29)-1921)*12+MONTH($A29)+3+IF(ISNUMBER(FIND("PRV",G$6)),1,0)))*IF(AND(G$3>0,TRIM(G$9)="CFS"),Conversions!$C29,1) ->  | K29: 1939 | L29: =B217 -> 0 | M29: =B218 -> 0 | N29: =B219 -> 0 | O29: =B220 -> 0 | P29: =B221 -> 0 | Q29: =B222 -> 0 | R29: =B223 -> 0 | S29: =B224 -> 0 | T29: =B225 -> 0 | U29: =B226 -> 0 | V29: =B227 -> 0 | W29: =B228 -> 0 | Y29: 0 | Z29: 0 | AA29: 0 | AC29: 0 | AD29: 0 | AE29: 0 | AF29: 0 | AG29: 0 | AH29: 0 | AI29: 0 | AK29: 1939 | AL29: =C217 -> 26.13515515 | AM29: =C218 -> 17.85123967 | AN29: =C219 -> 17.85123967 | AO29: =C220 -> 0 | AP29: =C221 -> 0 | AQ29: =C222 -> 10.16893466 | AR29: =C223 -> 36.32396347 | AS29: =C224 -> 26.84757328 | AT29: =C225 -> 135.2621826 | AU29: =C226 -> 146.066096 | AV29: =C227 -> 73.21934765 | AW29: =C228 -> 67.14551082 | AY29: 606.4877782 | AZ29: 606.4877782 | BA29: 556.871243 | BC29: 45.871414 | BD29: 164.0509187 | BE29: 61.83763449 | BF29: 17.85123967 | BG29: 208.602654 | BH29: 421.6931371 | BI29: 169.1444278 | BK29: 1939 | BL29: =D217 -> 22.91558942 | BM29: =D218 -> 17.85123967 | BN29: =D219 -> 17.85123967 | BO29: =D220 -> 0 | BP29: =D221 -> 0 | BQ29: =D222 -> 10.16894654 | BR29: =D223 -> 36.32398362 | BS29: =D224 -> 26.20501004 | BT29: =D225 -> 135.2622041 | BU29: =D226 -> 146.0661209 | BV29: =D227 -> 70.76382848 | BW29: =D228 -> 67.14550385 | BY29: 599.0825714 | BZ29: 599.0825714 | CA29: 550.5536663 | CC29: 45.87142588 | CD29: 161.6722671 | CE29: 58.61806876 | CF29: 17.85123967 | CG29: 207.9601443 | CH29: 419.2376573 | CI29: 169.248646 | CK29: 1939 | CL29: =E217 -> 27.5862069 | CM29: =E218 -> 17.85123967 | CN29: =E219 -> 17.85123967 | CO29: =E220 -> 0 | CP29: =E221 -> 0 | CQ29: =E222 -> 10.16893945 | CR29: =E223 -> 35.54077441 | CS29: =E224 -> 16.65434568 | CT29: =E225 -> 135.2621912 | CU29: =E226 -> 136.2880101 | CV29: =E227 -> 69.90833501 | CW29: =E228 -> 67.14550801 | CY29: 563.2579829 | CZ29: 563.2579829 | DA29: 534.2567902 | DC29: 45.87141879 | DD29: 161.2156458 | DE29: 63.28868624 | DF29: 17.85123967 | DG29: 197.6262508 | DH29: 408.6040444 | DI29: 159.4353869 | DK29: 1939 | DL29: =F217 -> 26.11616223 | DM29: =F218 -> 17.85123967 | DN29: =F219 -> 17.85123967 | DO29: =F220 -> 0 | DP29: =F221 -> 0 | DQ29: =F222 -> 10.17072587 | DR29: =F223 -> 36.32700015 | DS29: =F224 -> 26.82887132 | DT29: =F225 -> 135.2654217 | DU29: =F226 -> 146.0698462 | DV29: =F227 -> 73.17540847 | DW29: =F228 -> 67.14446008 | DY29: 604.3714544 | DZ29: 604.3714544 | EA29: 556.8003753 | EC29: 45.87320521 | ED29: 164.0373354 | EE29: 61.81864157 | EF29: 17.85123967 | EG29: 208.5920191 | EH29: 421.6551364 | EI29: 169.4171252 | EK29: 1939 | EL29: =G217 ->  | EM29: =G218 ->  | EN29: =G219 ->  | EO29: =G220 ->  | EP29: =G221 ->  | EQ29: =G222 ->  | ER29: =G223 ->  | ES29: =G224 ->  | ET29: =G225 ->  | EU29: =G226 ->  | EV29: =G227 ->  | EW29: =G228 -> 
A30: 1923-03-31 | B30: =INDIRECT(CONCATENATE("'",B$1,"'!",B$4,(YEAR($A30)-1921)*12+MONTH($A30)+3+IF(ISNUMBER(FIND("PRV",B$6)),1,0)))*IF(AND(B$3>0,TRIM(B$9)="CFS"),Conversions!$C30,1) -> 0 | C30: =INDIRECT(CONCATENATE("'",C$1,"'!",C$4,(YEAR($A30)-1921)*12+MONTH($A30)+3+IF(ISNUMBER(FIND("PRV",C$6)),1,0)))*IF(AND(C$3>0,TRIM(C$9)="CFS"),Conversions!$C30,1) -> 0.5032110825 | D30: =INDIRECT(CONCATENATE("'",D$1,"'!",D$4,(YEAR($A30)-1921)*12+MONTH($A30)+3+IF(ISNUMBER(FIND("PRV",D$6)),1,0)))*IF(AND(D$3>0,TRIM(D$9)="CFS"),Conversions!$C30,1) -> 0.5094333146 | E30: =INDIRECT(CONCATENATE("'",E$1,"'!",E$4,(YEAR($A30)-1921)*12+MONTH($A30)+3+IF(ISNUMBER(FIND("PRV",E$6)),1,0)))*IF(AND(E$3>0,TRIM(E$9)="CFS"),Conversions!$C30,1) -> 0.5098766288 | F30: =INDIRECT(CONCATENATE("'",F$1,"'!",F$4,(YEAR($A30)-1921)*12+MONTH($A30)+3+IF(ISNUMBER(FIND("PRV",F$6)),1,0)))*IF(AND(F$3>0,TRIM(F$9)="CFS"),Conversions!$C30,1) -> 0.5028500952 | G30: =INDIRECT(CONCATENATE("'",G$1,"'!",G$4,(YEAR($A30)-1921)*12+MONTH($A30)+3+IF(ISNUMBER(FIND("PRV",G$6)),1,0)))*IF(AND(G$3>0,TRIM(G$9)="CFS"),Conversions!$C30,1) ->  | K30: 1940 | L30: =B229 -> 0 | M30: =B230 -> 0 | N30: =B231 -> 0 | O30: =B232 -> 0 | P30: =B233 -> 0 | Q30: =B234 -> 0 | R30: =B235 -> 0 | S30: =B236 -> 0 | T30: =B237 -> 0 | U30: =B238 -> 0 | V30: =B239 -> 0 | W30: =B240 -> 0 | Y30: 0 | Z30: 0 | AA30: 0 | AC30: 0 | AD30: 0 | AE30: 0 | AF30: 0 | AG30: 0 | AH30: 0 | AI30: 0 | AK30: 1940 | AL30: =C229 -> 23.68606019 | AM30: =C230 -> 78.31285675 | AN30: =C231 -> 9.455252742 | AO30: =C232 -> 0 | AP30: =C233 -> 0 | AQ30: =C234 -> 0 | AR30: =C235 -> 0 | AS30: =C236 -> 0 | AT30: =C237 -> 38.53100374 | AU30: =C238 -> 2.5 | AV30: =C239 -> 17.85123967 | AW30: =C240 -> 17.85123967 | AY30: 95.28211885 | AZ30: 95.28211885 | BA30: 188.1876528 | BC30: 87.76810949 | BD30: 38.19247934 | BE30: 111.4541697 | BF30: 9.455252742 | BG30: 38.53100374 | BH30: 76.73348308 | BI30: 34.73987543 | BK30: 1940 | BL30: =D229 -> 23.76293482 | BM30: =D230 -> 78.34020734 | BN30: =D231 -> 5.04383171 | BO30: =D232 -> 0 | BP30: =D233 -> 0 | BQ30: =D234 -> 0 | BR30: =D235 -> 0 | BS30: =D236 -> 0 | BT30: =D237 -> 38.46941776 | BU30: =D238 -> 2.5 | BV30: =D239 -> 17.85123967 | BW30: =D240 -> 17.85123967 | BY30: 95.20114176 | BZ30: 95.20114176 | CA30: 183.818871 | CC30: 83.38403905 | CD30: 38.19247934 | CE30: 107.1469739 | CF30: 5.04383171 | CG30: 38.46941776 | CH30: 76.6718971 | CI30: 34.72048433 | CK30: 1940 | CL30: =E229 -> 24.16180283 | CM30: =E230 -> 68.12807608 | CN30: =E231 -> 0 | CO30: =E232 -> 0 | CP30: =E233 -> 0 | CQ30: =E234 -> 0 | CR30: =E235 -> 0 | CS30: =E236 -> 0 | CT30: =E237 -> 38.15099961 | CU30: =E238 -> 2.5 | CV30: =E239 -> 17.85123967 | CW30: =E240 -> 17.85123967 | CY30: 94.69756019 | CZ30: 94.69756019 | DA30: 168.6433579 | DC30: 68.12807608 | DD30: 38.19247934 | DE30: 92.28987891 | DF30: 0 | DG30: 38.15099961 | DH30: 76.35347895 | DI30: 34.53532091 | DK30: 1940 | DL30: =F229 -> 23.71746687 | DM30: =F230 -> 78.5551983 | DN30: =F231 -> 7.117055464 | DO30: =F232 -> 0 | DP30: =F233 -> 0 | DQ30: =F234 -> 0 | DR30: =F235 -> 0 | DS30: =F236 -> 0 | DT30: =F237 -> 38.49914242 | DU30: =F238 -> 2.5 | DV30: =F239 -> 17.85123967 | DW30: =F240 -> 17.85123967 | DY30: 95.24078373 | DZ30: 95.24078373 | EA30: 186.0913424 | EC30: 85.67225377 | ED30: 38.19247934 | EE30: 109.3897206 | EF30: 7.117055464 | EG30: 38.49914242 | EH30: 76.70162176 | EI30: 34.73040164 | EK30: 1940 | EL30: =G229 ->  | EM30: =G230 ->  | EN30: =G231 ->  | EO30: =G232 ->  | EP30: =G233 ->  | EQ30: =G234 ->  | ER30: =G235 ->  | ES30: =G236 ->  | ET30: =G237 ->  | EU30: =G238 ->  | EV30: =G239 ->  | EW30: =G240 -> 
A31: 1923-04-30 | B31: =INDIRECT(CONCATENATE("'",B$1,"'!",B$4,(YEAR($A31)-1921)*12+MONTH($A31)+3+IF(ISNUMBER(FIND("PRV",B$6)),1,0)))*IF(AND(B$3>0,TRIM(B$9)="CFS"),Conversions!$C31,1) -> 0 | C31: =INDIRECT(CONCATENATE("'",C$1,"'!",C$4,(YEAR($A31)-1921)*12+MONTH($A31)+3+IF(ISNUMBER(FIND("PRV",C$6)),1,0)))*IF(AND(C$3>0,TRIM(C$9)="CFS"),Conversions!$C31,1) -> 2.442351901 | D31: =INDIRECT(CONCATENATE("'",D$1,"'!",D$4,(YEAR($A31)-1921)*12+MONTH($A31)+3+IF(ISNUMBER(FIND("PRV",D$6)),1,0)))*IF(AND(D$3>0,TRIM(D$9)="CFS"),Conversions!$C31,1) -> 2.472551713 | E31: =INDIRECT(CONCATENATE("'",E$1,"'!",E$4,(YEAR($A31)-1921)*12+MONTH($A31)+3+IF(ISNUMBER(FIND("PRV",E$6)),1,0)))*IF(AND(E$3>0,TRIM(E$9)="CFS"),Conversions!$C31,1) -> 2.474703354 | F31: =INDIRECT(CONCATENATE("'",F$1,"'!",F$4,(YEAR($A31)-1921)*12+MONTH($A31)+3+IF(ISNUMBER(FIND("PRV",F$6)),1,0)))*IF(AND(F$3>0,TRIM(F$9)="CFS"),Conversions!$C31,1) -> 2.440599837 | G31: =INDIRECT(CONCATENATE("'",G$1,"'!",G$4,(YEAR($A31)-1921)*12+MONTH($A31)+3+IF(ISNUMBER(FIND("PRV",G$6)),1,0)))*IF(AND(G$3>0,TRIM(G$9)="CFS"),Conversions!$C31,1) ->  | K31: 1941 | L31: =B241 -> 0 | M31: =B242 -> 0 | N31: =B243 -> 0 | O31: =B244 -> 0 | P31: =B245 -> 0 | Q31: =B246 -> 0 | R31: =B247 -> 0 | S31: =B248 -> 0 | T31: =B249 -> 0 | U31: =B250 -> 0 | V31: =B251 -> 0 | W31: =B252 -> 0 | Y31: 0 | Z31: 0 | AA31: 0 | AC31: 0 | AD31: 0 | AE31: 0 | AF31: 0 | AG31: 0 | AH31: 0 | AI31: 0 | AK31: 1941 | AL31: =C241 -> 2.49 | AM31: =C242 -> 14.39863576 | AN31: =C243 -> 1.66 | AO31: =C244 -> 0 | AP31: =C245 -> 0 | AQ31: =C246 -> 0 | AR31: =C247 -> 0 | AS31: =C248 -> 0 | AT31: =C249 -> 0 | AU31: =C250 -> 2.5 | AV31: =C251 -> 27.5862069 | AW31: =C252 -> 27.5862069 | AY31: 85.2586207 | AZ31: 85.2586207 | BA31: 76.22104956 | BC31: 16.05863576 | BD31: 82.7586207 | BE31: 18.54863576 | BF31: 1.66 | BG31: 0 | BH31: 57.6724138 | BI31: 55.1724138 | BK31: 1941 | BL31: =D241 -> 2.49 | BM31: =D242 -> 14.37924466 | BN31: =D243 -> 1.66 | BO31: =D244 -> 0 | BP31: =D245 -> 0 | BQ31: =D246 -> 0 | BR31: =D247 -> 0 | BS31: =D248 -> 0 | BT31: =D249 -> 0 | BU31: =D250 -> 2.5 | BV31: =D251 -> 27.5862069 | BW31: =D252 -> 27.5862069 | BY31: 85.2586207 | BZ31: 85.2586207 | CA31: 76.20165846 | CC31: 16.03924466 | CD31: 82.7586207 | CE31: 18.52924466 | CF31: 1.66 | CG31: 0 | CH31: 57.6724138 | CI31: 55.1724138 | CK31: 1941 | CL31: =E241 -> 2.49 | CM31: =E242 -> 14.19408124 | CN31: =E243 -> 1.66 | CO31: =E244 -> 0 | CP31: =E245 -> 0 | CQ31: =E246 -> 0 | CR31: =E247 -> 0 | CS31: =E248 -> 0 | CT31: =E249 -> 0 | CU31: =E250 -> 2.5 | CV31: =E251 -> 27.5862069 | CW31: =E252 -> 27.5862069 | CY31: 85.2586207 | CZ31: 85.2586207 | DA31: 76.01649504 | DC31: 15.85408124 | DD31: 82.7586207 | DE31: 18.34408124 | DF31: 1.66 | DG31: 0 | DH31: 57.6724138 | DI31: 55.1724138 | DK31: 1941 | DL31: =F241 -> 2.49 | DM31: =F242 -> 14.38916197 | DN31: =F243 -> 1.66 | DO31: =F244 -> 0 | DP31: =F245 -> 0 | DQ31: =F246 -> 0 | DR31: =F247 -> 0 | DS31: =F248 -> 0 | DT31: =F249 -> 0 | DU31: =F250 -> 2.5 | DV31: =F251 -> 27.5862069 | DW31: =F252 -> 27.5862069 | DY31: 85.2586207 | DZ31: 85.2586207 | EA31: 76.21157577 | EC31: 16.04916197 | ED31: 82.7586207 | EE31: 18.53916197 | EF31: 1.66 | EG31: 0 | EH31: 57.6724138 | EI31: 55.1724138 | EK31: 1941 | EL31: =G241 ->  | EM31: =G242 ->  | EN31: =G243 ->  | EO31: =G244 ->  | EP31: =G245 ->  | EQ31: =G246 ->  | ER31: =G247 ->  | ES31: =G248 ->  | ET31: =G249 ->  | EU31: =G250 ->  | EV31: =G251 ->  | EW31: =G252 -> 
A32: 1923-05-31 | B32: =INDIRECT(CONCATENATE("'",B$1,"'!",B$4,(YEAR($A32)-1921)*12+MONTH($A32)+3+IF(ISNUMBER(FIND("PRV",B$6)),1,0)))*IF(AND(B$3>0,TRIM(B$9)="CFS"),Conversions!$C32,1) -> 0 | C32: =INDIRECT(CONCATENATE("'",C$1,"'!",C$4,(YEAR($A32)-1921)*12+MONTH($A32)+3+IF(ISNUMBER(FIND("PRV",C$6)),1,0)))*IF(AND(C$3>0,TRIM(C$9)="CFS"),Conversions!$C32,1) -> 0 | D32: =INDIRECT(CONCATENATE("'",D$1,"'!",D$4,(YEAR($A32)-1921)*12+MONTH($A32)+3+IF(ISNUMBER(FIND("PRV",D$6)),1,0)))*IF(AND(D$3>0,TRIM(D$9)="CFS"),Conversions!$C32,1) -> 0 | E32: =INDIRECT(CONCATENATE("'",E$1,"'!",E$4,(YEAR($A32)-1921)*12+MONTH($A32)+3+IF(ISNUMBER(FIND("PRV",E$6)),1,0)))*IF(AND(E$3>0,TRIM(E$9)="CFS"),Conversions!$C32,1) -> 0 | F32: =INDIRECT(CONCATENATE("'",F$1,"'!",F$4,(YEAR($A32)-1921)*12+MONTH($A32)+3+IF(ISNUMBER(FIND("PRV",F$6)),1,0)))*IF(AND(F$3>0,TRIM(F$9)="CFS"),Conversions!$C32,1) -> 0 | G32: =INDIRECT(CONCATENATE("'",G$1,"'!",G$4,(YEAR($A32)-1921)*12+MONTH($A32)+3+IF(ISNUMBER(FIND("PRV",G$6)),1,0)))*IF(AND(G$3>0,TRIM(G$9)="CFS"),Conversions!$C32,1) ->  | K32: 1942 | L32: =B253 -> 0 | M32: =B254 -> 0 | N32: =B255 -> 0 | O32: =B256 -> 0 | P32: =B257 -> 0 | Q32: =B258 -> 0 | R32: =B259 -> 0 | S32: =B260 -> 0 | T32: =B261 -> 0 | U32: =B262 -> 0 | V32: =B263 -> 0 | W32: =B264 -> 0 | Y32: 0 | Z32: 0 | AA32: 0 | AC32: 0 | AD32: 0 | AE32: 0 | AF32: 0 | AG32: 0 | AH32: 0 | AI32: 0 | AK32: 1942 | AL32: =C253 -> 27.5862069 | AM32: =C254 -> 0 | AN32: =C255 -> 0 | AO32: =C256 -> 0 | AP32: =C257 -> 0 | AQ32: =C258 -> 0 | AR32: =C259 -> 0 | AS32: =C260 -> 0 | AT32: =C261 -> 0 | AU32: =C262 -> 2.5 | AV32: =C263 -> 27.5862069 | AW32: =C264 -> 27.5862069 | AY32: 85.2586207 | AZ32: 85.2586207 | BA32: 85.2586207 | BC32: 0 | BD32: 82.7586207 | BE32: 27.5862069 | BF32: 0 | BG32: 0 | BH32: 57.6724138 | BI32: 55.1724138 | BK32: 1942 | BL32: =D253 -> 27.5862069 | BM32: =D254 -> 0 | BN32: =D255 -> 0 | BO32: =D256 -> 0 | BP32: =D257 -> 0 | BQ32: =D258 -> 0 | BR32: =D259 -> 0 | BS32: =D260 -> 0 | BT32: =D261 -> 0 | BU32: =D262 -> 2.5 | BV32: =D263 -> 27.5862069 | BW32: =D264 -> 27.5862069 | BY32: 85.2586207 | BZ32: 85.2586207 | CA32: 85.2586207 | CC32: 0 | CD32: 82.7586207 | CE32: 27.5862069 | CF32: 0 | CG32: 0 | CH32: 57.6724138 | CI32: 55.1724138 | CK32: 1942 | CL32: =E253 -> 27.5862069 | CM32: =E254 -> 0 | CN32: =E255 -> 0 | CO32: =E256 -> 0 | CP32: =E257 -> 0 | CQ32: =E258 -> 0 | CR32: =E259 -> 0 | CS32: =E260 -> 0 | CT32: =E261 -> 0 | CU32: =E262 -> 2.5 | CV32: =E263 -> 27.5862069 | CW32: =E264 -> 27.5862069 | CY32: 85.2586207 | CZ32: 85.2586207 | DA32: 85.2586207 | DC32: 0 | DD32: 82.7586207 | DE32: 27.5862069 | DF32: 0 | DG32: 0 | DH32: 57.6724138 | DI32: 55.1724138 | DK32: 1942 | DL32: =F253 -> 27.5862069 | DM32: =F254 -> 0 | DN32: =F255 -> 0 | DO32: =F256 -> 0 | DP32: =F257 -> 0 | DQ32: =F258 -> 0 | DR32: =F259 -> 0 | DS32: =F260 -> 0 | DT32: =F261 -> 0 | DU32: =F262 -> 2.5 | DV32: =F263 -> 27.5862069 | DW32: =F264 -> 27.5862069 | DY32: 85.2586207 | DZ32: 85.2586207 | EA32: 85.2586207 | EC32: 0 | ED32: 82.7586207 | EE32: 27.5862069 | EF32: 0 | EG32: 0 | EH32: 57.6724138 | EI32: 55.1724138 | EK32: 1942 | EL32: =G253 ->  | EM32: =G254 ->  | EN32: =G255 ->  | EO32: =G256 ->  | EP32: =G257 ->  | EQ32: =G258 ->  | ER32: =G259 ->  | ES32: =G260 ->  | ET32: =G261 ->  | EU32: =G262 ->  | EV32: =G263 ->  | EW32: =G264 -> 
A33: 1923-06-30 | B33: =INDIRECT(CONCATENATE("'",B$1,"'!",B$4,(YEAR($A33)-1921)*12+MONTH($A33)+3+IF(ISNUMBER(FIND("PRV",B$6)),1,0)))*IF(AND(B$3>0,TRIM(B$9)="CFS"),Conversions!$C33,1) -> 0 | C33: =INDIRECT(CONCATENATE("'",C$1,"'!",C$4,(YEAR($A33)-1921)*12+MONTH($A33)+3+IF(ISNUMBER(FIND("PRV",C$6)),1,0)))*IF(AND(C$3>0,TRIM(C$9)="CFS"),Conversions!$C33,1) -> 2.5 | D33: =INDIRECT(CONCATENATE("'",D$1,"'!",D$4,(YEAR($A33)-1921)*12+MONTH($A33)+3+IF(ISNUMBER(FIND("PRV",D$6)),1,0)))*IF(AND(D$3>0,TRIM(D$9)="CFS"),Conversions!$C33,1) -> 2.5 | E33: =INDIRECT(CONCATENATE("'",E$1,"'!",E$4,(YEAR($A33)-1921)*12+MONTH($A33)+3+IF(ISNUMBER(FIND("PRV",E$6)),1,0)))*IF(AND(E$3>0,TRIM(E$9)="CFS"),Conversions!$C33,1) -> 2.5 | F33: =INDIRECT(CONCATENATE("'",F$1,"'!",F$4,(YEAR($A33)-1921)*12+MONTH($A33)+3+IF(ISNUMBER(FIND("PRV",F$6)),1,0)))*IF(AND(F$3>0,TRIM(F$9)="CFS"),Conversions!$C33,1) -> 2.5 | G33: =INDIRECT(CONCATENATE("'",G$1,"'!",G$4,(YEAR($A33)-1921)*12+MONTH($A33)+3+IF(ISNUMBER(FIND("PRV",G$6)),1,0)))*IF(AND(G$3>0,TRIM(G$9)="CFS"),Conversions!$C33,1) ->  | K33: 1943 | L33: =B265 -> 0 | M33: =B266 -> 0 | N33: =B267 -> 0 | O33: =B268 -> 0 | P33: =B269 -> 0 | Q33: =B270 -> 0 | R33: =B271 -> 0 | S33: =B272 -> 0 | T33: =B273 -> 0 | U33: =B274 -> 0 | V33: =B275 -> 0 | W33: =B276 -> 0 | Y33: 0 | Z33: 0 | AA33: 0 | AC33: 0 | AD33: 0 | AE33: 0 | AF33: 0 | AG33: 0 | AH33: 0 | AI33: 0 | AK33: 1943 | AL33: =C265 -> 27.5862069 | AM33: =C266 -> 0 | AN33: =C267 -> 0 | AO33: =C268 -> 0 | AP33: =C269 -> 0 | AQ33: =C270 -> 0 | AR33: =C271 -> 1.03173612 | AS33: =C272 -> 0 | AT33: =C273 -> 2.004728869 | AU33: =C274 -> 2.5 | AV33: =C275 -> 30.0862069 | AW33: =C276 -> 28.38215372 | AY33: 109.4422722 | AZ33: 109.4422722 | BA33: 91.5910325 | BC33: 0 | BD33: 86.05456752 | BE33: 27.5862069 | BF33: 0 | BG33: 3.036464988 | BH33: 62.97308949 | BI33: 73.81960029 | BK33: 1943 | BL33: =D265 -> 27.5862069 | BM33: =D266 -> 0 | BN33: =D267 -> 0 | BO33: =D268 -> 0 | BP33: =D269 -> 0 | BQ33: =D270 -> 0 | BR33: =D271 -> 1.031774437 | BS33: =D272 -> 0 | BT33: =D273 -> 2.004728869 | BU33: =D274 -> 2.5 | BV33: =D275 -> 30.0862069 | BW33: =D276 -> 28.38215372 | BY33: 109.4423105 | BZ33: 109.4423105 | CA33: 91.59107082 | CC33: 0 | CD33: 86.05456752 | CE33: 27.5862069 | CF33: 0 | CG33: 3.036503306 | CH33: 62.97308949 | CI33: 73.81960029 | CK33: 1943 | CL33: =E265 -> 27.5862069 | CM33: =E266 -> 0 | CN33: =E267 -> 0 | CO33: =E268 -> 0 | CP33: =E269 -> 0 | CQ33: =E270 -> 0 | CR33: =E271 -> 1.031773469 | CS33: =E272 -> 0 | CT33: =E273 -> 2.004728869 | CU33: =E274 -> 2.5 | CV33: =E275 -> 30.0862069 | CW33: =E276 -> 28.38215372 | CY33: 109.4423095 | CZ33: 109.4423095 | DA33: 91.59106985 | DC33: 0 | DD33: 86.05456752 | DE33: 27.5862069 | DF33: 0 | DG33: 3.036502338 | DH33: 62.97308949 | DI33: 73.81960029 | DK33: 1943 | DL33: =F265 -> 27.5862069 | DM33: =F266 -> 0 | DN33: =F267 -> 0 | DO33: =F268 -> 0 | DP33: =F269 -> 0 | DQ33: =F270 -> 0 | DR33: =F271 -> 1.031756 | DS33: =F272 -> 0 | DT33: =F273 -> 2.004728869 | DU33: =F274 -> 2.5 | DV33: =F275 -> 30.0862069 | DW33: =F276 -> 28.38215372 | DY33: 109.4422921 | DZ33: 109.4422921 | EA33: 91.59105238 | EC33: 0 | ED33: 86.05456752 | EE33: 27.5862069 | EF33: 0 | EG33: 3.036484869 | EH33: 62.97308949 | EI33: 73.81960029 | EK33: 1943 | EL33: =G265 ->  | EM33: =G266 ->  | EN33: =G267 ->  | EO33: =G268 ->  | EP33: =G269 ->  | EQ33: =G270 ->  | ER33: =G271 ->  | ES33: =G272 ->  | ET33: =G273 ->  | EU33: =G274 ->  | EV33: =G275 ->  | EW33: =G276 -> 
A34: 1923-07-31 | B34: =INDIRECT(CONCATENATE("'",B$1,"'!",B$4,(YEAR($A34)-1921)*12+MONTH($A34)+3+IF(ISNUMBER(FIND("PRV",B$6)),1,0)))*IF(AND(B$3>0,TRIM(B$9)="CFS"),Conversions!$C34,1) -> 0 | C34: =INDIRECT(CONCATENATE("'",C$1,"'!",C$4,(YEAR($A34)-1921)*12+MONTH($A34)+3+IF(ISNUMBER(FIND("PRV",C$6)),1,0)))*IF(AND(C$3>0,TRIM(C$9)="CFS"),Conversions!$C34,1) -> 47.42257665 | D34: =INDIRECT(CONCATENATE("'",D$1,"'!",D$4,(YEAR($A34)-1921)*12+MONTH($A34)+3+IF(ISNUMBER(FIND("PRV",D$6)),1,0)))*IF(AND(D$3>0,TRIM(D$9)="CFS"),Conversions!$C34,1) -> 50.9654291 | E34: =INDIRECT(CONCATENATE("'",E$1,"'!",E$4,(YEAR($A34)-1921)*12+MONTH($A34)+3+IF(ISNUMBER(FIND("PRV",E$6)),1,0)))*IF(AND(E$3>0,TRIM(E$9)="CFS"),Conversions!$C34,1) -> 49.04108902 | F34: =INDIRECT(CONCATENATE("'",F$1,"'!",F$4,(YEAR($A34)-1921)*12+MONTH($A34)+3+IF(ISNUMBER(FIND("PRV",F$6)),1,0)))*IF(AND(F$3>0,TRIM(F$9)="CFS"),Conversions!$C34,1) -> 47.42135449 | G34: =INDIRECT(CONCATENATE("'",G$1,"'!",G$4,(YEAR($A34)-1921)*12+MONTH($A34)+3+IF(ISNUMBER(FIND("PRV",G$6)),1,0)))*IF(AND(G$3>0,TRIM(G$9)="CFS"),Conversions!$C34,1) ->  | K34: 1944 | L34: =B277 -> 0 | M34: =B278 -> 0 | N34: =B279 -> 0 | O34: =B280 -> 0 | P34: =B281 -> 0 | Q34: =B282 -> 0 | R34: =B283 -> 0 | S34: =B284 -> 0 | T34: =B285 -> 0 | U34: =B286 -> 0 | V34: =B287 -> 0 | W34: =B288 -> 0 | Y34: 0 | Z34: 0 | AA34: 0 | AC34: 0 | AD34: 0 | AE34: 0 | AF34: 0 | AG34: 0 | AH34: 0 | AI34: 0 | AK34: 1944 | AL34: =C277 -> 27.5862069 | AM34: =C278 -> 17.85123967 | AN34: =C279 -> 0 | AO34: =C280 -> 0 | AP34: =C281 -> 0 | AQ34: =C282 -> 0.1271663749 | AR34: =C283 -> 7.757116483 | AS34: =C284 -> 73.97160529 | AT34: =C285 -> 110.4097912 | AU34: =C286 -> 108.3114758 | AV34: =C287 -> 90.1823919 | AW34: =C288 -> 86.21374975 | AY34: 570.3568748 | AZ34: 570.3568748 | BA34: 522.4107434 | BC34: 17.97840604 | BD34: 257.7297197 | BE34: 45.43744657 | BF34: 0 | BG34: 192.2656794 | BH34: 395.1174087 | BI34: 169.2873278 | BK34: 1944 | BL34: =D277 -> 27.5862069 | BM34: =D278 -> 17.85123967 | BN34: =D279 -> 0 | BO34: =D280 -> 0 | BP34: =D281 -> 0 | BQ34: =D282 -> 0.1271676118 | BR34: =D283 -> 7.757191934 | BS34: =D284 -> 73.9770267 | BT34: =D285 -> 110.3567269 | BU34: =D286 -> 108.2964182 | BV34: =D287 -> 90.16988826 | BW34: =D288 -> 86.2170245 | BY34: 545.4549132 | BZ34: 545.4549132 | CA34: 522.3388907 | CC34: 17.97840728 | CD34: 232.8903818 | CE34: 45.43744657 | CF34: 0 | CG34: 192.2181132 | CH34: 395.0400579 | CI34: 144.4604936 | CK34: 1944 | CL34: =E277 -> 27.5862069 | CM34: =E278 -> 17.85123967 | CN34: =E279 -> 0 | CO34: =E280 -> 0 | CP34: =E281 -> 0 | CQ34: =E282 -> 0.1271677092 | CR34: =E283 -> 7.757197872 | CS34: =E284 -> 73.97752353 | CT34: =E285 -> 96.14633272 | CU34: =E286 -> 108.2944088 | CV34: =E287 -> 90.16874225 | CW34: =E288 -> 85.82807754 | CY34: 530.3953322 | CZ34: 530.3953322 | DA34: 507.7368969 | DC34: 17.97840738 | DD34: 232.0427016 | DE34: 45.43744657 | DF34: 0 | DG34: 178.0082218 | DH34: 380.4375613 | DI34: 143.6139594 | DK34: 1944 | DL34: =F277 -> 27.5862069 | DM34: =F278 -> 17.85123967 | DN34: =F279 -> 0 | DO34: =F280 -> 0 | DP34: =F281 -> 0 | DQ34: =F282 -> 0.1271667251 | DR34: =F283 -> 7.757137841 | DS34: =F284 -> 73.97709351 | DT34: =F285 -> 110.3569231 | DU34: =F286 -> 108.2962296 | DV34: =F287 -> 90.16973416 | DW34: =F288 -> 86.21706485 | DY34: 545.4553366 | DZ34: 545.4553366 | EA34: 522.3387963 | EC34: 17.97840639 | ED34: 232.8907859 | EE34: 45.43744657 | EF34: 0 | EG34: 192.2183211 | EH34: 395.0399516 | EI34: 144.4610517 | EK34: 1944 | EL34: =G277 ->  | EM34: =G278 ->  | EN34: =G279 ->  | EO34: =G280 ->  | EP34: =G281 ->  | EQ34: =G282 ->  | ER34: =G283 ->  | ES34: =G284 ->  | ET34: =G285 ->  | EU34: =G286 ->  | EV34: =G287 ->  | EW34: =G288 -> 
A35: 1923-08-31 | B35: =INDIRECT(CONCATENATE("'",B$1,"'!",B$4,(YEAR($A35)-1921)*12+MONTH($A35)+3+IF(ISNUMBER(FIND("PRV",B$6)),1,0)))*IF(AND(B$3>0,TRIM(B$9)="CFS"),Conversions!$C35,1) -> 0 | C35: =INDIRECT(CONCATENATE("'",C$1,"'!",C$4,(YEAR($A35)-1921)*12+MONTH($A35)+3+IF(ISNUMBER(FIND("PRV",C$6)),1,0)))*IF(AND(C$3>0,TRIM(C$9)="CFS"),Conversions!$C35,1) -> 69.90840515 | D35: =INDIRECT(CONCATENATE("'",D$1,"'!",D$4,(YEAR($A35)-1921)*12+MONTH($A35)+3+IF(ISNUMBER(FIND("PRV",D$6)),1,0)))*IF(AND(D$3>0,TRIM(D$9)="CFS"),Conversions!$C35,1) -> 69.90873235 | E35: =INDIRECT(CONCATENATE("'",E$1,"'!",E$4,(YEAR($A35)-1921)*12+MONTH($A35)+3+IF(ISNUMBER(FIND("PRV",E$6)),1,0)))*IF(AND(E$3>0,TRIM(E$9)="CFS"),Conversions!$C35,1) -> 69.83136143 | F35: =INDIRECT(CONCATENATE("'",F$1,"'!",F$4,(YEAR($A35)-1921)*12+MONTH($A35)+3+IF(ISNUMBER(FIND("PRV",F$6)),1,0)))*IF(AND(F$3>0,TRIM(F$9)="CFS"),Conversions!$C35,1) -> 69.90842445 | G35: =INDIRECT(CONCATENATE("'",G$1,"'!",G$4,(YEAR($A35)-1921)*12+MONTH($A35)+3+IF(ISNUMBER(FIND("PRV",G$6)),1,0)))*IF(AND(G$3>0,TRIM(G$9)="CFS"),Conversions!$C35,1) ->  | K35: 1945 | L35: =B289 -> 0 | M35: =B290 -> 0 | N35: =B291 -> 0 | O35: =B292 -> 0 | P35: =B293 -> 0 | Q35: =B294 -> 0 | R35: =B295 -> 0 | S35: =B296 -> 0 | T35: =B297 -> 0 | U35: =B298 -> 0 | V35: =B299 -> 0 | W35: =B300 -> 0 | Y35: 0 | Z35: 0 | AA35: 0 | AC35: 0 | AD35: 0 | AE35: 0 | AF35: 0 | AG35: 0 | AH35: 0 | AI35: 0 | AK35: 1945 | AL35: =C289 -> 81.33357801 | AM35: =C290 -> 1.74 | AN35: =C291 -> 10.31 | AO35: =C292 -> 2.980253863e-08 | AP35: =C293 -> 0 | AQ35: =C294 -> 0 | AR35: =C295 -> 2.127231992 | AS35: =C296 -> 0 | AT35: =C297 -> 47.41580964 | AU35: =C298 -> 26.87722478 | AV35: =C299 -> 106.5578602 | AW35: =C300 -> 52.62387234 | AY35: 249.998961 | AZ35: 249.998961 | BA35: 328.985577 | BC35: 12.05000003 | BD35: 170.1786945 | BE35: 93.38357804 | BF35: 10.31000003 | BG35: 49.54304163 | BH35: 233.474767 | BI35: 65.36083432 | BK35: 1945 | BL35: =D289 -> 56.50346906 | BM35: =D290 -> 1.74 | BN35: =D291 -> 10.31 | BO35: =D292 -> 0 | BP35: =D293 -> 0 | BQ35: =D294 -> 0 | BR35: =D295 -> 2.126885074 | BS35: =D296 -> 0 | BT35: =D297 -> 39.99187778 | BU35: =D298 -> 26.87591078 | BV35: =D299 -> 79.68282476 | BW35: =D300 -> 23.39399812 | BY35: 187.6834806 | BZ35: 187.6834806 | CA35: 240.6249656 | CC35: 12.05 | CD35: 115.2888069 | CE35: 68.55346906 | CF35: 10.31 | CG35: 42.11876286 | CH35: 169.9446114 | CI35: 37.34598218 | CK35: 1945 | CL35: =E289 -> 56.04588182 | CM35: =E290 -> 1.74 | CN35: =E291 -> 10.31 | CO35: =E292 -> 0 | CP35: =E293 -> 0 | CQ35: =E294 -> 0 | CR35: =E295 -> 2.127226579 | CS35: =E296 -> 0 | CT35: =E297 -> 40.34929851 | CU35: =E298 -> 26.87591333 | CV35: =E299 -> 81.90080428 | CW35: =E300 -> 20.42920966 | CY35: 187.139243 | CZ35: 187.139243 | DA35: 239.7783342 | DC35: 12.05 | DD35: 114.3868046 | DE35: 68.09588182 | DF35: 10.31 | DG35: 42.47652509 | DH35: 169.5552258 | DI35: 34.2260003 | DK35: 1945 | DL35: =F289 -> 56.50398685 | DM35: =F290 -> 1.74 | DN35: =F291 -> 10.31 | DO35: =F292 -> 2.978911719e-08 | DP35: =F293 -> 0 | DQ35: =F294 -> 0 | DR35: =F295 -> 2.127440251 | DS35: =F296 -> 0 | DT35: =F297 -> 40.20347861 | DU35: =F298 -> 26.87591415 | DV35: =F299 -> 82.06362392 | DW35: =F300 -> 21.12171362 | DY35: 187.8710684 | DZ35: 187.8710684 | EA35: 240.9461574 | EC35: 12.05000003 | ED35: 115.2642354 | EE35: 68.55398688 | EF35: 10.31000003 | EG35: 42.33091886 | EH35: 170.2647303 | EI35: 34.94061146 | EK35: 1945 | EL35: =G289 ->  | EM35: =G290 ->  | EN35: =G291 ->  | EO35: =G292 ->  | EP35: =G293 ->  | EQ35: =G294 ->  | ER35: =G295 ->  | ES35: =G296 ->  | ET35: =G297 ->  | EU35: =G298 ->  | EV35: =G299 ->  | EW35: =G300 -> 
A36: 1923-09-30 | B36: =INDIRECT(CONCATENATE("'",B$1,"'!",B$4,(YEAR($A36)-1921)*12+MONTH($A36)+3+IF(ISNUMBER(FIND("PRV",B$6)),1,0)))*IF(AND(B$3>0,TRIM(B$9)="CFS"),Conversions!$C36,1) -> 0 | C36: =INDIRECT(CONCATENATE("'",C$1,"'!",C$4,(YEAR($A36)-1921)*12+MONTH($A36)+3+IF(ISNUMBER(FIND("PRV",C$6)),1,0)))*IF(AND(C$3>0,TRIM(C$9)="CFS"),Conversions!$C36,1) -> 3.985617379 | D36: =INDIRECT(CONCATENATE("'",D$1,"'!",D$4,(YEAR($A36)-1921)*12+MONTH($A36)+3+IF(ISNUMBER(FIND("PRV",D$6)),1,0)))*IF(AND(D$3>0,TRIM(D$9)="CFS"),Conversions!$C36,1) -> 3.985617379 | E36: =INDIRECT(CONCATENATE("'",E$1,"'!",E$4,(YEAR($A36)-1921)*12+MONTH($A36)+3+IF(ISNUMBER(FIND("PRV",E$6)),1,0)))*IF(AND(E$3>0,TRIM(E$9)="CFS"),Conversions!$C36,1) -> 3.985617379 | F36: =INDIRECT(CONCATENATE("'",F$1,"'!",F$4,(YEAR($A36)-1921)*12+MONTH($A36)+3+IF(ISNUMBER(FIND("PRV",F$6)),1,0)))*IF(AND(F$3>0,TRIM(F$9)="CFS"),Conversions!$C36,1) -> 3.985617379 | G36: =INDIRECT(CONCATENATE("'",G$1,"'!",G$4,(YEAR($A36)-1921)*12+MONTH($A36)+3+IF(ISNUMBER(FIND("PRV",G$6)),1,0)))*IF(AND(G$3>0,TRIM(G$9)="CFS"),Conversions!$C36,1) ->  | K36: 1946 | L36: =B301 -> 0 | M36: =B302 -> 0 | N36: =B303 -> 0 | O36: =B304 -> 0 | P36: =B305 -> 0 | Q36: =B306 -> 0 | R36: =B307 -> 0 | S36: =B308 -> 0 | T36: =B309 -> 0 | U36: =B310 -> 0 | V36: =B311 -> 0 | W36: =B312 -> 0 | Y36: 0 | Z36: 0 | AA36: 0 | AC36: 0 | AD36: 0 | AE36: 0 | AF36: 0 | AG36: 0 | AH36: 0 | AI36: 0 | AK36: 1946 | AL36: =C301 -> 10.99696198 | AM36: =C302 -> 1.74 | AN36: =C303 -> 1.66 | AO36: =C304 -> 0 | AP36: =C305 -> 0 | AQ36: =C306 -> 0.07005190218 | AR36: =C307 -> 0 | AS36: =C308 -> 0 | AT36: =C309 -> 22.5871191 | AU36: =C310 -> 15.79134395 | AV36: =C311 -> 48.02473568 | AW36: =C312 -> 5.269231541 | AY36: 109.8812096 | AZ36: 109.8812096 | BA36: 106.1394442 | BC36: 3.470051902 | BD36: 64.77719216 | BE36: 14.39696198 | BF36: 1.66 | BG36: 22.657171 | BH36: 91.67243026 | BI36: 23.40795896 | BK36: 1946 | BL36: =D301 -> 12.21198406 | BM36: =D302 -> 1.74 | BN36: =D303 -> 1.66 | BO36: =D304 -> 0 | BP36: =D305 -> 0 | BQ36: =D306 -> 0.07005190218 | BR36: =D307 -> 0 | BS36: =D308 -> 0 | BT36: =D309 -> 22.57097065 | BU36: =D310 -> 15.79134395 | BV36: =D311 -> 47.12667362 | BW36: =D312 -> 5.269231541 | BY36: 102.6774969 | BZ36: 102.6774969 | CA36: 106.4402557 | CC36: 3.470051902 | CD36: 61.23197207 | CE36: 15.61198406 | CF36: 1.66 | CG36: 22.64102256 | CH36: 90.75821976 | CI36: 17.11845673 | CK36: 1946 | CL36: =E301 -> 12.05679063 | CM36: =E302 -> 1.74 | CN36: =E303 -> 1.66 | CO36: =E304 -> 0 | CP36: =E305 -> 0 | CQ36: =E306 -> 0.07005190218 | CR36: =E307 -> 0 | CS36: =E308 -> 0 | CT36: =E309 -> 22.57003038 | CU36: =E310 -> 15.79134395 | CV36: =E311 -> 46.99026821 | CW36: =E312 -> 5.269231541 | CY36: 101.651145 | CZ36: 101.651145 | DA36: 106.1477166 | DC36: 3.470051902 | DD36: 60.71568479 | DE36: 15.45679063 | DF36: 1.66 | DG36: 22.64008229 | DH36: 90.62087408 | DI36: 16.22945059 | DK36: 1946 | DL36: =F301 -> 12.07889784 | DM36: =F302 -> 1.74 | DN36: =F303 -> 1.66 | DO36: =F304 -> 0 | DP36: =F305 -> 0 | DQ36: =F306 -> 0.07005190218 | DR36: =F307 -> 0 | DS36: =F308 -> 0 | DT36: =F309 -> 22.57133426 | DU36: =F310 -> 15.79134395 | DV36: =F311 -> 47.16669605 | DW36: =F312 -> 5.269231541 | DY36: 102.9792863 | DZ36: 102.9792863 | EA36: 106.3475555 | EC36: 3.470051902 | ED36: 61.38338541 | EE36: 15.47889784 | EF36: 1.66 | EG36: 22.64138616 | EH36: 90.7986058 | EI36: 17.3798601 | EK36: 1946 | EL36: =G301 ->  | EM36: =G302 ->  | EN36: =G303 ->  | EO36: =G304 ->  | EP36: =G305 ->  | EQ36: =G306 ->  | ER36: =G307 ->  | ES36: =G308 ->  | ET36: =G309 ->  | EU36: =G310 ->  | EV36: =G311 ->  | EW36: =G312 -> 
A37: 1923-10-31 | B37: =INDIRECT(CONCATENATE("'",B$1,"'!",B$4,(YEAR($A37)-1921)*12+MONTH($A37)+3+IF(ISNUMBER(FIND("PRV",B$6)),1,0)))*IF(AND(B$3>0,TRIM(B$9)="CFS"),Conversions!$C37,1) -> 0 | C37: =INDIRECT(CONCATENATE("'",C$1,"'!",C$4,(YEAR($A37)-1921)*12+MONTH($A37)+3+IF(ISNUMBER(FIND("PRV",C$6)),1,0)))*IF(AND(C$3>0,TRIM(C$9)="CFS"),Conversions!$C37,1) -> 47.18008112 | D37: =INDIRECT(CONCATENATE("'",D$1,"'!",D$4,(YEAR($A37)-1921)*12+MONTH($A37)+3+IF(ISNUMBER(FIND("PRV",D$6)),1,0)))*IF(AND(D$3>0,TRIM(D$9)="CFS"),Conversions!$C37,1) -> 47.79481943 | E37: =INDIRECT(CONCATENATE("'",E$1,"'!",E$4,(YEAR($A37)-1921)*12+MONTH($A37)+3+IF(ISNUMBER(FIND("PRV",E$6)),1,0)))*IF(AND(E$3>0,TRIM(E$9)="CFS"),Conversions!$C37,1) -> 47.92284641 | F37: =INDIRECT(CONCATENATE("'",F$1,"'!",F$4,(YEAR($A37)-1921)*12+MONTH($A37)+3+IF(ISNUMBER(FIND("PRV",F$6)),1,0)))*IF(AND(F$3>0,TRIM(F$9)="CFS"),Conversions!$C37,1) -> 47.79540307 | G37: =INDIRECT(CONCATENATE("'",G$1,"'!",G$4,(YEAR($A37)-1921)*12+MONTH($A37)+3+IF(ISNUMBER(FIND("PRV",G$6)),1,0)))*IF(AND(G$3>0,TRIM(G$9)="CFS"),Conversions!$C37,1) ->  | K37: 1947 | L37: =B313 -> 0 | M37: =B314 -> 0 | N37: =B315 -> 0 | O37: =B316 -> 0 | P37: =B317 -> 0 | Q37: =B318 -> 0 | R37: =B319 -> 0 | S37: =B320 -> 0 | T37: =B321 -> 0 | U37: =B322 -> 0 | V37: =B323 -> 0 | W37: =B324 -> 0 | Y37: 0 | Z37: 0 | AA37: 0 | AC37: 0 | AD37: 0 | AE37: 0 | AF37: 0 | AG37: 0 | AH37: 0 | AI37: 0 | AK37: 1947 | AL37: =C313 -> 11.48322494 | AM37: =C314 -> 6.655502478 | AN37: =C315 -> 0 | AO37: =C316 -> 0 | AP37: =C317 -> 0 | AQ37: =C318 -> 0 | AR37: =C319 -> 10.57058358 | AS37: =C320 -> 5.97888769 | AT37: =C321 -> 80.40411472 | AU37: =C322 -> 133.3634467 | AV37: =C323 -> 119.4751546 | AW37: =C324 -> 81.53503348 | AY37: 453.3557695 | AZ37: 453.5550832 | BA37: 449.4659482 | BC37: 6.655502478 | BD37: 201.0322688 | BE37: 18.13872742 | BF37: 0 | BG37: 96.95358599 | BH37: 414.7777495 | BI37: 103.5635822 | BK37: 1947 | BL37: =D313 -> 8.836066911 | BM37: =D314 -> 3.013158281 | BN37: =D315 -> 0 | BO37: =D316 -> 0 | BP37: =D317 -> 0 | BQ37: =D318 -> 0 | BR37: =D319 -> 10.60316103 | BS37: =D320 -> 6.089518409 | BT37: =D321 -> 73.17613725 | BU37: =D322 -> 128.1000983 | BV37: =D323 -> 119.0885547 | BW37: =D324 -> 78.48932846 | BY37: 444.5215954 | BZ37: 444.7245971 | CA37: 427.3960233 | CC37: 3.013158281 | CD37: 197.6003723 | CE37: 11.84922519 | CF37: 0 | CG37: 89.86881668 | CH37: 398.8541186 | CI37: 107.4641258 | CK37: 1947 | CL37: =E313 -> 8.456185047 | CM37: =E314 -> 2.504034002 | CN37: =E315 -> 0 | CO37: =E316 -> 0 | CP37: =E317 -> 0 | CQ37: =E318 -> 0 | CR37: =E319 -> 10.50906375 | CS37: =E320 -> 5.769970688 | CT37: =E321 -> 72.16294416 | CU37: =E322 -> 127.6397005 | CV37: =E323 -> 118.7134155 | CW37: =E324 -> 78.33310893 | CY37: 437.3757753 | CZ37: 437.5681245 | DA37: 424.0884226 | DC37: 2.504034002 | DD37: 197.0678335 | DE37: 10.96021905 | DF37: 0 | DG37: 88.4419786 | DH37: 396.8491691 | DI37: 102.5806807 | DK37: 1947 | DL37: =F313 -> 8.947457821 | DM37: =F314 -> 3.163170736 | DN37: =F315 -> 0 | DO37: =F316 -> 0 | DP37: =F317 -> 0 | DQ37: =F318 -> 0 | DR37: =F319 -> 10.49828457 | DS37: =F320 -> 5.733365353 | DT37: =F321 -> 74.48849851 | DU37: =F322 -> 127.5869603 | DV37: =F323 -> 118.7280281 | DW37: =F324 -> 78.39537331 | DY37: 438.4075081 | DZ37: 438.598637 | EA37: 427.5411387 | EC37: 3.163170736 | ED37: 197.1445753 | EE37: 12.11062856 | EF37: 0 | EG37: 90.72014843 | EH37: 399.1988602 | EI37: 101.3723713 | EK37: 1947 | EL37: =G313 ->  | EM37: =G314 ->  | EN37: =G315 ->  | EO37: =G316 ->  | EP37: =G317 ->  | EQ37: =G318 ->  | ER37: =G319 ->  | ES37: =G320 ->  | ET37: =G321 ->  | EU37: =G322 ->  | EV37: =G323 ->  | EW37: =G324 -> 
A38: 1923-11-30 | B38: =INDIRECT(CONCATENATE("'",B$1,"'!",B$4,(YEAR($A38)-1921)*12+MONTH($A38)+3+IF(ISNUMBER(FIND("PRV",B$6)),1,0)))*IF(AND(B$3>0,TRIM(B$9)="CFS"),Conversions!$C38,1) -> 0 | C38: =INDIRECT(CONCATENATE("'",C$1,"'!",C$4,(YEAR($A38)-1921)*12+MONTH($A38)+3+IF(ISNUMBER(FIND("PRV",C$6)),1,0)))*IF(AND(C$3>0,TRIM(C$9)="CFS"),Conversions!$C38,1) -> 32.78817252 | D38: =INDIRECT(CONCATENATE("'",D$1,"'!",D$4,(YEAR($A38)-1921)*12+MONTH($A38)+3+IF(ISNUMBER(FIND("PRV",D$6)),1,0)))*IF(AND(D$3>0,TRIM(D$9)="CFS"),Conversions!$C38,1) -> 32.17343578 | E38: =INDIRECT(CONCATENATE("'",E$1,"'!",E$4,(YEAR($A38)-1921)*12+MONTH($A38)+3+IF(ISNUMBER(FIND("PRV",E$6)),1,0)))*IF(AND(E$3>0,TRIM(E$9)="CFS"),Conversions!$C38,1) -> 32.04541173 | F38: =INDIRECT(CONCATENATE("'",F$1,"'!",F$4,(YEAR($A38)-1921)*12+MONTH($A38)+3+IF(ISNUMBER(FIND("PRV",F$6)),1,0)))*IF(AND(F$3>0,TRIM(F$9)="CFS"),Conversions!$C38,1) -> 32.17284794 | G38: =INDIRECT(CONCATENATE("'",G$1,"'!",G$4,(YEAR($A38)-1921)*12+MONTH($A38)+3+IF(ISNUMBER(FIND("PRV",G$6)),1,0)))*IF(AND(G$3>0,TRIM(G$9)="CFS"),Conversions!$C38,1) ->  | K38: 1948 | L38: =B325 -> 0 | M38: =B326 -> 0 | N38: =B327 -> 0 | O38: =B328 -> 0 | P38: =B329 -> 0 | Q38: =B330 -> 0 | R38: =B331 -> 0 | S38: =B332 -> 0 | T38: =B333 -> 0 | U38: =B334 -> 0 | V38: =B335 -> 0 | W38: =B336 -> 0 | Y38: 0 | Z38: 0 | AA38: 0 | AC38: 0 | AD38: 0 | AE38: 0 | AF38: 0 | AG38: 0 | AH38: 0 | AI38: 0 | AK38: 1948 | AL38: =C325 -> 0.0220806396 | AM38: =C326 -> 22.00646811 | AN38: =C327 -> 0 | AO38: =C328 -> 0 | AP38: =C329 -> 0.199313667 | AQ38: =C330 -> 1.950140947 | AR38: =C331 -> 1.817685442 | AS38: =C332 -> 0 | AT38: =C333 -> 0 | AU38: =C334 -> 26.64169322 | AV38: =C335 -> 43.14803003 | AW38: =C336 -> 9.062167051 | AY38: 97.04158632 | AZ38: 96.84227265 | BA38: 104.8475791 | BC38: 24.15592273 | BD38: 61.96825422 | BE38: 22.02854875 | BF38: 0.199313667 | BG38: 3.76782639 | BH38: 78.85189029 | BI38: 23.28472302 | BK38: 1948 | BL38: =D325 -> 0.02248921009 | BM38: =D326 -> 28.95230811 | BN38: =D327 -> 0 | BO38: =D328 -> 0 | BP38: =D329 -> 0.2030016798 | BQ38: =D330 -> 1.974706558 | BR38: =D331 -> 1.826730323 | BS38: =D332 -> 0 | BT38: =D333 -> 0 | BU38: =D334 -> 6.349430014 | BV38: =D335 -> 20.04527695 | BW38: =D336 -> 1.333333333 | BY38: 41.14982438 | BZ38: 40.9468227 | CA38: 60.70727618 | CC38: 31.13001634 | CD38: 30.79595568 | CE38: 28.97479732 | CF38: 0.2030016798 | CG38: 3.801436881 | CH38: 27.7280403 | CI38: 10.75067873 | CK38: 1948 | CL38: =E325 -> 0.02130908789 | CM38: =E326 -> 24.22626268 | CN38: =E327 -> 0 | CO38: =E328 -> 0 | CP38: =E329 -> 0.1923491586 | CQ38: =E330 -> 1.934583697 | CR38: =E331 -> 1.814164676 | CS38: =E332 -> 0 | CT38: =E333 -> 0 | CU38: =E334 -> 6.349430014 | CV38: =E335 -> 20.2490588 | CW38: =E336 -> 1.333333333 | CY38: 41.09894896 | CZ38: 40.9065998 | DA38: 56.12049144 | DC38: 26.35319553 | DD38: 30.80842129 | DE38: 24.24757177 | DF38: 0.1923491586 | DG38: 3.748748372 | DH38: 27.93182215 | DI38: 10.5593625 | DK38: 1948 | DL38: =F325 -> 0.02117390067 | DM38: =F326 -> 22.95582407 | DN38: =F327 -> 0 | DO38: =F328 -> 0 | DP38: =F329 -> 0.1911288741 | DQ38: =F330 -> 1.93323411 | DR38: =F331 -> 1.813742018 | DS38: =F332 -> 0 | DT38: =F333 -> 0 | DU38: =F334 -> 21.31026559 | DV38: =F335 -> 42.20265326 | DW38: =F336 -> 1.333333333 | DY38: 70.48616713 | DZ38: 70.29503826 | EA38: 91.76135516 | EC38: 25.08018706 | ED38: 45.23779642 | EE38: 22.97699797 | EF38: 0.1911288741 | EG38: 3.746976129 | EH38: 64.84625219 | EI38: 3.035143157 | EK38: 1948 | EL38: =G325 ->  | EM38: =G326 ->  | EN38: =G327 ->  | EO38: =G328 ->  | EP38: =G329 ->  | EQ38: =G330 ->  | ER38: =G331 ->  | ES38: =G332 ->  | ET38: =G333 ->  | EU38: =G334 ->  | EV38: =G335 ->  | EW38: =G336 -> 
A39: 1923-12-31 | B39: =INDIRECT(CONCATENATE("'",B$1,"'!",B$4,(YEAR($A39)-1921)*12+MONTH($A39)+3+IF(ISNUMBER(FIND("PRV",B$6)),1,0)))*IF(AND(B$3>0,TRIM(B$9)="CFS"),Conversions!$C39,1) -> 0 | C39: =INDIRECT(CONCATENATE("'",C$1,"'!",C$4,(YEAR($A39)-1921)*12+MONTH($A39)+3+IF(ISNUMBER(FIND("PRV",C$6)),1,0)))*IF(AND(C$3>0,TRIM(C$9)="CFS"),Conversions!$C39,1) -> 16.56793208 | D39: =INDIRECT(CONCATENATE("'",D$1,"'!",D$4,(YEAR($A39)-1921)*12+MONTH($A39)+3+IF(ISNUMBER(FIND("PRV",D$6)),1,0)))*IF(AND(D$3>0,TRIM(D$9)="CFS"),Conversions!$C39,1) -> 13.01458634 | E39: =INDIRECT(CONCATENATE("'",E$1,"'!",E$4,(YEAR($A39)-1921)*12+MONTH($A39)+3+IF(ISNUMBER(FIND("PRV",E$6)),1,0)))*IF(AND(E$3>0,TRIM(E$9)="CFS"),Conversions!$C39,1) -> 10.44094486 | F39: =INDIRECT(CONCATENATE("'",F$1,"'!",F$4,(YEAR($A39)-1921)*12+MONTH($A39)+3+IF(ISNUMBER(FIND("PRV",F$6)),1,0)))*IF(AND(F$3>0,TRIM(F$9)="CFS"),Conversions!$C39,1) -> 16.56710083 | G39: =INDIRECT(CONCATENATE("'",G$1,"'!",G$4,(YEAR($A39)-1921)*12+MONTH($A39)+3+IF(ISNUMBER(FIND("PRV",G$6)),1,0)))*IF(AND(G$3>0,TRIM(G$9)="CFS"),Conversions!$C39,1) ->  | K39: 1949 | L39: =B337 -> 0 | M39: =B338 -> 0 | N39: =B339 -> 0 | O39: =B340 -> 0 | P39: =B341 -> 0 | Q39: =B342 -> 0 | R39: =B343 -> 0 | S39: =B344 -> 0 | T39: =B345 -> 0 | U39: =B346 -> 0 | V39: =B347 -> 0 | W39: =B348 -> 0 | Y39: 0 | Z39: 0 | AA39: 0 | AC39: 0 | AD39: 0 | AE39: 0 | AF39: 0 | AG39: 0 | AH39: 0 | AI39: 0 | AK39: 1949 | AL39: =C337 -> 9.758057143 | AM39: =C338 -> 4.464498826 | AN39: =C339 -> 0 | AO39: =C340 -> 0 | AP39: =C341 -> 0 | AQ39: =C342 -> 0 | AR39: =C343 -> 3.262866349 | AS39: =C344 -> 15.93861057 | AT39: =C345 -> 60.70197624 | AU39: =C346 -> 126.3075609 | AV39: =C347 -> 104.0608969 | AW39: =C348 -> 68.75279549 | AY39: 396.0654554 | AZ39: 396.0654554 | BA39: 393.2472625 | BC39: 4.464498826 | BD39: 189.8544413 | BE39: 14.22255597 | BF39: 0 | BG39: 79.90345316 | BH39: 359.8232296 | BI39: 85.7935444 | BK39: 1949 | BL39: =D337 -> 9.417345398 | BM39: =D338 -> 0 | BN39: =D339 -> 1.192092895e-07 | BO39: =D340 -> 0 | BP39: =D341 -> 0 | BQ39: =D342 -> 0 | BR39: =D343 -> 3.253823082 | BS39: =D344 -> 23.26178579 | BT39: =D345 -> 32.86056787 | BU39: =D346 -> 126.2640414 | BV39: =D347 -> 51.58928337 | BW39: =D348 -> 20.58150273 | BY39: 262.8713801 | BZ39: 262.8713801 | CA39: 267.2283498 | CC39: 1.192092895e-07 | CD39: 77.23116201 | CE39: 9.417345517 | CF39: 1.192092895e-07 | CG39: 59.37617674 | CH39: 231.2953954 | CI39: 25.64187865 | CK39: 1949 | CL39: =E337 -> 9.226029163 | CM39: =E338 -> 0 | CN39: =E339 -> 1.192092895e-07 | CO39: =E340 -> 0 | CP39: =E341 -> 0 | CQ39: =E342 -> 0 | CR39: =E343 -> 3.25420969 | CS39: =E344 -> 23.26617532 | CT39: =E345 -> 33.04823801 | CU39: =E346 -> 126.2659019 | CV39: =E347 -> 52.64947294 | CW39: =E348 -> 20.97142144 | CY39: 264.9619978 | CZ39: 264.9619978 | DA39: 268.6814486 | DC39: 1.192092895e-07 | DD39: 79.12747287 | DE39: 9.226029282 | DF39: 1.192092895e-07 | DG39: 59.56862302 | DH39: 232.9350343 | DI39: 26.47799993 | DK39: 1949 | DL39: =F337 -> 1.701809824 | DM39: =F338 -> 0 | DN39: =F339 -> 1.192092895e-07 | DO39: =F340 -> 0 | DP39: =F341 -> 0 | DQ39: =F342 -> 0 | DR39: =F343 -> 3.252129554 | DS39: =F344 -> 23.25650765 | DT39: =F345 -> 35.09690517 | DU39: =F346 -> 126.2558915 | DV39: =F347 -> 35.8741427 | DW39: =F348 -> 9.36789621 | DY39: 238.5956959 | DZ39: 238.5956959 | EA39: 234.8052827 | EC39: 1.192092895e-07 | ED39: 50.73426198 | EE39: 1.701809943 | EF39: 1.192092895e-07 | EG39: 61.60554237 | EH39: 206.5948356 | EI39: 14.86011928 | EK39: 1949 | EL39: =G337 ->  | EM39: =G338 ->  | EN39: =G339 ->  | EO39: =G340 ->  | EP39: =G341 ->  | EQ39: =G342 ->  | ER39: =G343 ->  | ES39: =G344 ->  | ET39: =G345 ->  | EU39: =G346 ->  | EV39: =G347 ->  | EW39: =G348 -> 
A40: 1924-01-31 | B40: =INDIRECT(CONCATENATE("'",B$1,"'!",B$4,(YEAR($A40)-1921)*12+MONTH($A40)+3+IF(ISNUMBER(FIND("PRV",B$6)),1,0)))*IF(AND(B$3>0,TRIM(B$9)="CFS"),Conversions!$C40,1) -> 0 | C40: =INDIRECT(CONCATENATE("'",C$1,"'!",C$4,(YEAR($A40)-1921)*12+MONTH($A40)+3+IF(ISNUMBER(FIND("PRV",C$6)),1,0)))*IF(AND(C$3>0,TRIM(C$9)="CFS"),Conversions!$C40,1) -> 0 | D40: =INDIRECT(CONCATENATE("'",D$1,"'!",D$4,(YEAR($A40)-1921)*12+MONTH($A40)+3+IF(ISNUMBER(FIND("PRV",D$6)),1,0)))*IF(AND(D$3>0,TRIM(D$9)="CFS"),Conversions!$C40,1) -> 0 | E40: =INDIRECT(CONCATENATE("'",E$1,"'!",E$4,(YEAR($A40)-1921)*12+MONTH($A40)+3+IF(ISNUMBER(FIND("PRV",E$6)),1,0)))*IF(AND(E$3>0,TRIM(E$9)="CFS"),Conversions!$C40,1) -> 0 | F40: =INDIRECT(CONCATENATE("'",F$1,"'!",F$4,(YEAR($A40)-1921)*12+MONTH($A40)+3+IF(ISNUMBER(FIND("PRV",F$6)),1,0)))*IF(AND(F$3>0,TRIM(F$9)="CFS"),Conversions!$C40,1) -> 0 | G40: =INDIRECT(CONCATENATE("'",G$1,"'!",G$4,(YEAR($A40)-1921)*12+MONTH($A40)+3+IF(ISNUMBER(FIND("PRV",G$6)),1,0)))*IF(AND(G$3>0,TRIM(G$9)="CFS"),Conversions!$C40,1) ->  | K40: 1950 | L40: =B349 -> 0 | M40: =B350 -> 0 | N40: =B351 -> 0 | O40: =B352 -> 0 | P40: =B353 -> 0 | Q40: =B354 -> 0 | R40: =B355 -> 0 | S40: =B356 -> 0 | T40: =B357 -> 0 | U40: =B358 -> 0 | V40: =B359 -> 0 | W40: =B360 -> 0 | Y40: 0 | Z40: 0 | AA40: 0 | AC40: 0 | AD40: 0 | AE40: 0 | AF40: 0 | AG40: 0 | AH40: 0 | AI40: 0 | AK40: 1950 | AL40: =C349 -> 17.04074891 | AM40: =C350 -> 0 | AN40: =C351 -> 0 | AO40: =C352 -> 0 | AP40: =C353 -> 0 | AQ40: =C354 -> 0.186657161 | AR40: =C355 -> 8.928883417 | AS40: =C356 -> 14.68516824 | AT40: =C357 -> 15.26282058 | AU40: =C358 -> 77.17358235 | AV40: =C359 -> 30.22477213 | AW40: =C360 -> 4.897233776 | AY40: 156.8399599 | AZ40: 156.8399599 | BA40: 168.3998666 | BC40: 0.186657161 | BD40: 40.6028482 | BE40: 17.04074891 | BF40: 0 | BG40: 39.0635294 | BH40: 127.5584088 | BI40: 10.37807607 | BK40: 1950 | BL40: =D349 -> 5.060375916 | BM40: =D350 -> 0 | BN40: =D351 -> 0 | BO40: =D352 -> 0 | BP40: =D353 -> 0 | BQ40: =D354 -> 0.1861566802 | BR40: =D355 -> 6.908790039 | BS40: =D356 -> 0 | BT40: =D357 -> 2.5 | BU40: =D358 -> 46.48895914 | BV40: =D359 -> 9.526590242 | BW40: =D360 -> 2.5 | BY40: 68.1104961 | BZ40: 68.1104961 | CA40: 73.17087202 | CC40: 0.1861566802 | CD40: 12.02659024 | CE40: 5.060375916 | CF40: 0 | CG40: 9.59494672 | CH40: 61.01554938 | CI40: 2.5 | CK40: 1950 | CL40: =E349 -> 5.50657849 | CM40: =E350 -> 0 | CN40: =E351 -> 0 | CO40: =E352 -> 0 | CP40: =E353 -> 0 | CQ40: =E354 -> 0.1861779559 | CR40: =E355 -> 1.306446802 | CS40: =E356 -> 0 | CT40: =E357 -> 2.5 | CU40: =E358 -> 10.62984144 | CV40: =E359 -> 5.984175628 | CW40: =E360 -> 2.003734666 | CY40: 22.61037649 | CZ40: 22.61037649 | DA40: 28.11695498 | DC40: 0.1861779559 | DD40: 7.987910294 | DE40: 5.50657849 | DF40: 0 | DG40: 3.992624758 | DH40: 21.11775173 | DI40: 2.003734666 | DK40: 1950 | DL40: =F349 -> 5.492223071 | DM40: =F350 -> 0 | DN40: =F351 -> 0 | DO40: =F352 -> 0 | DP40: =F353 -> 0 | DQ40: =F354 -> 0.1846710225 | DR40: =F355 -> 8.665509361 | DS40: =F356 -> 4.106564747 | DT40: =F357 -> 2.5 | DU40: =F358 -> 75.38368344 | DV40: =F359 -> 17.90125012 | DW40: =F360 -> 4.546297869 | DY40: 117.9612936 | DZ40: 117.9612936 | EA40: 118.7801996 | EC40: 0.1846710225 | ED40: 27.120865 | EE40: 5.492223071 | EF40: 0 | EG40: 15.45674513 | EH40: 100.3312314 | EI40: 9.219614878 | EK40: 1950 | EL40: =G349 ->  | EM40: =G350 ->  | EN40: =G351 ->  | EO40: =G352 ->  | EP40: =G353 ->  | EQ40: =G354 ->  | ER40: =G355 ->  | ES40: =G356 ->  | ET40: =G357 ->  | EU40: =G358 ->  | EV40: =G359 ->  | EW40: =G360 -> 
A41: 1924-02-29 | B41: =INDIRECT(CONCATENATE("'",B$1,"'!",B$4,(YEAR($A41)-1921)*12+MONTH($A41)+3+IF(ISNUMBER(FIND("PRV",B$6)),1,0)))*IF(AND(B$3>0,TRIM(B$9)="CFS"),Conversions!$C41,1) -> 0 | C41: =INDIRECT(CONCATENATE("'",C$1,"'!",C$4,(YEAR($A41)-1921)*12+MONTH($A41)+3+IF(ISNUMBER(FIND("PRV",C$6)),1,0)))*IF(AND(C$3>0,TRIM(C$9)="CFS"),Conversions!$C41,1) -> 0 | D41: =INDIRECT(CONCATENATE("'",D$1,"'!",D$4,(YEAR($A41)-1921)*12+MONTH($A41)+3+IF(ISNUMBER(FIND("PRV",D$6)),1,0)))*IF(AND(D$3>0,TRIM(D$9)="CFS"),Conversions!$C41,1) -> 0 | E41: =INDIRECT(CONCATENATE("'",E$1,"'!",E$4,(YEAR($A41)-1921)*12+MONTH($A41)+3+IF(ISNUMBER(FIND("PRV",E$6)),1,0)))*IF(AND(E$3>0,TRIM(E$9)="CFS"),Conversions!$C41,1) -> 0 | F41: =INDIRECT(CONCATENATE("'",F$1,"'!",F$4,(YEAR($A41)-1921)*12+MONTH($A41)+3+IF(ISNUMBER(FIND("PRV",F$6)),1,0)))*IF(AND(F$3>0,TRIM(F$9)="CFS"),Conversions!$C41,1) -> 0 | G41: =INDIRECT(CONCATENATE("'",G$1,"'!",G$4,(YEAR($A41)-1921)*12+MONTH($A41)+3+IF(ISNUMBER(FIND("PRV",G$6)),1,0)))*IF(AND(G$3>0,TRIM(G$9)="CFS"),Conversions!$C41,1) ->  | K41: 1951 | L41: =B361 -> 0 | M41: =B362 -> 0 | N41: =B363 -> 0 | O41: =B364 -> 0 | P41: =B365 -> 0 | Q41: =B366 -> 0 | R41: =B367 -> 0 | S41: =B368 -> 0 | T41: =B369 -> 0 | U41: =B370 -> 0 | V41: =B371 -> 0 | W41: =B372 -> 0 | Y41: 0 | Z41: 0 | AA41: 0 | AC41: 0 | AD41: 0 | AE41: 0 | AF41: 0 | AG41: 0 | AH41: 0 | AI41: 0 | AK41: 1951 | AL41: =C361 -> 5.480842295 | AM41: =C362 -> 0 | AN41: =C363 -> 0 | AO41: =C364 -> 0 | AP41: =C365 -> 0 | AQ41: =C366 -> 0 | AR41: =C367 -> 0 | AS41: =C368 -> 0 | AT41: =C369 -> 51.91645937 | AU41: =C370 -> 2.5 | AV41: =C371 -> 35.81409843 | AW41: =C372 -> 30.5021958 | AY41: 141.9839933 | AZ41: 141.9839933 | BA41: 126.2135959 | BC41: 0 | BD41: 84.16753389 | BE41: 5.480842295 | BF41: 0 | BG41: 51.91645937 | BH41: 120.7327536 | BI41: 50.09343546 | BK41: 1951 | BL41: =D361 -> 0 | BM41: =D362 -> 0 | BN41: =D363 -> 0 | BO41: =D364 -> 0 | BP41: =D365 -> 0 | BQ41: =D366 -> 0 | BR41: =D367 -> 0 | BS41: =D368 -> 0 | BT41: =D369 -> 45.56508292 | BU41: =D370 -> 2.5 | BV41: =D371 -> 35.18806635 | BW41: =D372 -> 30.47692691 | BY41: 119.6200762 | BZ41: 119.6200762 | CA41: 113.7300762 | CC41: 0 | CD41: 68.15499326 | CE41: 0 | CF41: 0 | CG41: 45.56508292 | CH41: 113.7300762 | CI41: 34.70692691 | CK41: 1951 | CL41: =E361 -> 0 | CM41: =E362 -> 0 | CN41: =E363 -> 0 | CO41: =E364 -> 0 | CP41: =E365 -> 0 | CQ41: =E366 -> 0 | CR41: =E367 -> 0 | CS41: =E368 -> 0 | CT41: =E369 -> 43.60197846 | CU41: =E370 -> 2.5 | CV41: =E371 -> 35.23439509 | CW41: =E372 -> 25.99182264 | CY41: 113.2181962 | CZ41: 113.2181962 | DA41: 107.3281962 | DC41: 0 | DD41: 63.71621773 | DE41: 0 | DF41: 0 | DG41: 43.60197846 | DH41: 107.3281962 | DI41: 30.22182264 | DK41: 1951 | DL41: =F361 -> 4.673317009 | DM41: =F362 -> 0 | DN41: =F363 -> 0 | DO41: =F364 -> 0 | DP41: =F365 -> 0 | DQ41: =F366 -> 0 | DR41: =F367 -> 0 | DS41: =F368 -> 0 | DT41: =F369 -> 48.77525049 | DU41: =F370 -> 2.5 | DV41: =F371 -> 35.35394187 | DW41: =F372 -> 30.5021958 | DY41: 138.3826278 | DZ41: 138.3826278 | EA41: 121.8047052 | EC41: 0 | ED41: 83.70737733 | EE41: 4.673317009 | EF41: 0 | EG41: 48.77525049 | EH41: 117.1313882 | EI41: 50.09343546 | EK41: 1951 | EL41: =G361 ->  | EM41: =G362 ->  | EN41: =G363 ->  | EO41: =G364 ->  | EP41: =G365 ->  | EQ41: =G366 ->  | ER41: =G367 ->  | ES41: =G368 ->  | ET41: =G369 ->  | EU41: =G370 ->  | EV41: =G371 ->  | EW41: =G372 -> 
A42: 1924-03-31 | B42: =INDIRECT(CONCATENATE("'",B$1,"'!",B$4,(YEAR($A42)-1921)*12+MONTH($A42)+3+IF(ISNUMBER(FIND("PRV",B$6)),1,0)))*IF(AND(B$3>0,TRIM(B$9)="CFS"),Conversions!$C42,1) -> 0 | C42: =INDIRECT(CONCATENATE("'",C$1,"'!",C$4,(YEAR($A42)-1921)*12+MONTH($A42)+3+IF(ISNUMBER(FIND("PRV",C$6)),1,0)))*IF(AND(C$3>0,TRIM(C$9)="CFS"),Conversions!$C42,1) -> 3.989358421 | D42: =INDIRECT(CONCATENATE("'",D$1,"'!",D$4,(YEAR($A42)-1921)*12+MONTH($A42)+3+IF(ISNUMBER(FIND("PRV",D$6)),1,0)))*IF(AND(D$3>0,TRIM(D$9)="CFS"),Conversions!$C42,1) -> 3.992721306 | E42: =INDIRECT(CONCATENATE("'",E$1,"'!",E$4,(YEAR($A42)-1921)*12+MONTH($A42)+3+IF(ISNUMBER(FIND("PRV",E$6)),1,0)))*IF(AND(E$3>0,TRIM(E$9)="CFS"),Conversions!$C42,1) -> 3.994928873 | F42: =INDIRECT(CONCATENATE("'",F$1,"'!",F$4,(YEAR($A42)-1921)*12+MONTH($A42)+3+IF(ISNUMBER(FIND("PRV",F$6)),1,0)))*IF(AND(F$3>0,TRIM(F$9)="CFS"),Conversions!$C42,1) -> 3.989704166 | G42: =INDIRECT(CONCATENATE("'",G$1,"'!",G$4,(YEAR($A42)-1921)*12+MONTH($A42)+3+IF(ISNUMBER(FIND("PRV",G$6)),1,0)))*IF(AND(G$3>0,TRIM(G$9)="CFS"),Conversions!$C42,1) ->  | K42: 1952 | L42: =B373 -> 0 | M42: =B374 -> 0 | N42: =B375 -> 0 | O42: =B376 -> 0 | P42: =B377 -> 0 | Q42: =B378 -> 0 | R42: =B379 -> 0 | S42: =B380 -> 0 | T42: =B381 -> 0 | U42: =B382 -> 0 | V42: =B383 -> 0 | W42: =B384 -> 0 | Y42: 0 | Z42: 0 | AA42: 0 | AC42: 0 | AD42: 0 | AE42: 0 | AF42: 0 | AG42: 0 | AH42: 0 | AI42: 0 | AK42: 1952 | AL42: =C373 -> 17.85123967 | AM42: =C374 -> 1.74 | AN42: =C375 -> 1.66 | AO42: =C376 -> 0 | AP42: =C377 -> 0 | AQ42: =C378 -> 0 | AR42: =C379 -> 0 | AS42: =C380 -> 0 | AT42: =C381 -> 1.852375478 | AU42: =C382 -> 2.345336251 | AV42: =C383 -> 29.53744166 | AW42: =C384 -> 28.39260313 | AY42: 107.5652031 | AZ42: 107.5652031 | BA42: 83.37899618 | BC42: 3.4 | BD42: 85.51625168 | BE42: 21.25123967 | BF42: 1.66 | BG42: 1.852375478 | BH42: 62.12775651 | BI42: 73.8300497 | BK42: 1952 | BL42: =D373 -> 2.49 | BM42: =D374 -> 1.74 | BN42: =D375 -> 1.66 | BO42: =D376 -> 0 | BP42: =D377 -> 0 | BQ42: =D378 -> 0 | BR42: =D379 -> 0 | BS42: =D380 -> 0 | BT42: =D381 -> 1.852375478 | BU42: =D382 -> 2.345336251 | BV42: =D383 -> 29.53744166 | BW42: =D384 -> 28.39260313 | BY42: 107.5652031 | BZ42: 107.5652031 | CA42: 68.01775652 | CC42: 3.4 | CD42: 85.51625168 | CE42: 5.89 | CF42: 1.66 | CG42: 1.852375478 | CH42: 62.12775651 | CI42: 73.8300497 | CK42: 1952 | CL42: =E373 -> 2.49 | CM42: =E374 -> 1.74 | CN42: =E375 -> 1.66 | CO42: =E376 -> 0 | CP42: =E377 -> 0 | CQ42: =E378 -> 0 | CR42: =E379 -> 0 | CS42: =E380 -> 0 | CT42: =E381 -> 1.852375478 | CU42: =E382 -> 2.345336251 | CV42: =E383 -> 29.53744166 | CW42: =E384 -> 28.39260313 | CY42: 107.5652031 | CZ42: 107.5652031 | DA42: 68.01775652 | DC42: 3.4 | DD42: 85.51625168 | DE42: 5.89 | DF42: 1.66 | DG42: 1.852375478 | DH42: 62.12775651 | DI42: 73.8300497 | DK42: 1952 | DL42: =F373 -> 17.85123967 | DM42: =F374 -> 1.74 | DN42: =F375 -> 1.66 | DO42: =F376 -> 0 | DP42: =F377 -> 0 | DQ42: =F378 -> 0 | DR42: =F379 -> 0 | DS42: =F380 -> 0 | DT42: =F381 -> 1.852375478 | DU42: =F382 -> 2.345336251 | DV42: =F383 -> 29.53744166 | DW42: =F384 -> 28.39260313 | DY42: 107.5652031 | DZ42: 107.5652031 | EA42: 83.37899618 | EC42: 3.4 | ED42: 85.51625168 | EE42: 21.25123967 | EF42: 1.66 | EG42: 1.852375478 | EH42: 62.12775651 | EI42: 73.8300497 | EK42: 1952 | EL42: =G373 ->  | EM42: =G374 ->  | EN42: =G375 ->  | EO42: =G376 ->  | EP42: =G377 ->  | EQ42: =G378 ->  | ER42: =G379 ->  | ES42: =G380 ->  | ET42: =G381 ->  | EU42: =G382 ->  | EV42: =G383 ->  | EW42: =G384 -> 
A43: 1924-04-30 | B43: =INDIRECT(CONCATENATE("'",B$1,"'!",B$4,(YEAR($A43)-1921)*12+MONTH($A43)+3+IF(ISNUMBER(FIND("PRV",B$6)),1,0)))*IF(AND(B$3>0,TRIM(B$9)="CFS"),Conversions!$C43,1) -> 0 | C43: =INDIRECT(CONCATENATE("'",C$1,"'!",C$4,(YEAR($A43)-1921)*12+MONTH($A43)+3+IF(ISNUMBER(FIND("PRV",C$6)),1,0)))*IF(AND(C$3>0,TRIM(C$9)="CFS"),Conversions!$C43,1) -> 26.27248351 | D43: =INDIRECT(CONCATENATE("'",D$1,"'!",D$4,(YEAR($A43)-1921)*12+MONTH($A43)+3+IF(ISNUMBER(FIND("PRV",D$6)),1,0)))*IF(AND(D$3>0,TRIM(D$9)="CFS"),Conversions!$C43,1) -> 24.23036909 | E43: =INDIRECT(CONCATENATE("'",E$1,"'!",E$4,(YEAR($A43)-1921)*12+MONTH($A43)+3+IF(ISNUMBER(FIND("PRV",E$6)),1,0)))*IF(AND(E$3>0,TRIM(E$9)="CFS"),Conversions!$C43,1) -> 24.24107324 | F43: =INDIRECT(CONCATENATE("'",F$1,"'!",F$4,(YEAR($A43)-1921)*12+MONTH($A43)+3+IF(ISNUMBER(FIND("PRV",F$6)),1,0)))*IF(AND(F$3>0,TRIM(F$9)="CFS"),Conversions!$C43,1) -> 25.94645865 | G43: =INDIRECT(CONCATENATE("'",G$1,"'!",G$4,(YEAR($A43)-1921)*12+MONTH($A43)+3+IF(ISNUMBER(FIND("PRV",G$6)),1,0)))*IF(AND(G$3>0,TRIM(G$9)="CFS"),Conversions!$C43,1) ->  | K43: 1953 | L43: =B385 -> 0 | M43: =B386 -> 0 | N43: =B387 -> 0 | O43: =B388 -> 0 | P43: =B389 -> 0 | Q43: =B390 -> 0 | R43: =B391 -> 0 | S43: =B392 -> 0 | T43: =B393 -> 0 | U43: =B394 -> 0 | V43: =B395 -> 0 | W43: =B396 -> 0 | Y43: 0 | Z43: 0 | AA43: 0 | AC43: 0 | AD43: 0 | AE43: 0 | AF43: 0 | AG43: 0 | AH43: 0 | AI43: 0 | AK43: 1953 | AL43: =C385 -> 27.5862069 | AM43: =C386 -> 17.85123967 | AN43: =C387 -> 0 | AO43: =C388 -> 0 | AP43: =C389 -> 0 | AQ43: =C390 -> 0.2906181931 | AR43: =C391 -> 0 | AS43: =C392 -> 0 | AT43: =C393 -> 2.157159989 | AU43: =C394 -> 2.5 | AV43: =C395 -> 29.54600691 | AW43: =C396 -> 28.48844168 | AY43: 90.56843366 | AZ43: 90.56843366 | BA43: 108.4196733 | BC43: 18.14185786 | BD43: 85.62065548 | BE43: 45.43744657 | BF43: 0 | BG43: 2.447778182 | BH43: 62.69160857 | BI43: 56.07464857 | BK43: 1953 | BL43: =D385 -> 27.5862069 | BM43: =D386 -> 17.85123967 | BN43: =D387 -> 0 | BO43: =D388 -> 0 | BP43: =D389 -> 0 | BQ43: =D390 -> 0.2906181931 | BR43: =D391 -> 0 | BS43: =D392 -> 0 | BT43: =D393 -> 2.157159989 | BU43: =D394 -> 2.5 | BV43: =D395 -> 29.54600691 | BW43: =D396 -> 28.48844168 | BY43: 90.56843366 | BZ43: 90.56843366 | CA43: 108.4196733 | CC43: 18.14185786 | CD43: 85.62065548 | CE43: 45.43744657 | CF43: 0 | CG43: 2.447778182 | CH43: 62.69160857 | CI43: 56.07464857 | CK43: 1953 | CL43: =E385 -> 27.5862069 | CM43: =E386 -> 17.85123967 | CN43: =E387 -> 0 | CO43: =E388 -> 0 | CP43: =E389 -> 0 | CQ43: =E390 -> 0.2906181931 | CR43: =E391 -> 0 | CS43: =E392 -> 0 | CT43: =E393 -> 2.157159989 | CU43: =E394 -> 2.5 | CV43: =E395 -> 29.54600691 | CW43: =E396 -> 28.48844168 | CY43: 90.56843366 | CZ43: 90.56843366 | DA43: 108.4196733 | DC43: 18.14185786 | DD43: 85.62065548 | DE43: 45.43744657 | DF43: 0 | DG43: 2.447778182 | DH43: 62.69160857 | DI43: 56.07464857 | DK43: 1953 | DL43: =F385 -> 27.5862069 | DM43: =F386 -> 17.85123967 | DN43: =F387 -> 0 | DO43: =F388 -> 0 | DP43: =F389 -> 0 | DQ43: =F390 -> 0.2906181931 | DR43: =F391 -> 0 | DS43: =F392 -> 0 | DT43: =F393 -> 2.157159989 | DU43: =F394 -> 2.5 | DV43: =F395 -> 29.54600691 | DW43: =F396 -> 28.48844168 | DY43: 90.56843366 | DZ43: 90.56843366 | EA43: 108.4196733 | EC43: 18.14185786 | ED43: 85.62065548 | EE43: 45.43744657 | EF43: 0 | EG43: 2.447778182 | EH43: 62.69160857 | EI43: 56.07464857 | EK43: 1953 | EL43: =G385 ->  | EM43: =G386 ->  | EN43: =G387 ->  | EO43: =G388 ->  | EP43: =G389 ->  | EQ43: =G390 ->  | ER43: =G391 ->  | ES43: =G392 ->  | ET43: =G393 ->  | EU43: =G394 ->  | EV43: =G395 ->  | EW43: =G396 -> 
A44: 1924-05-31 | B44: =INDIRECT(CONCATENATE("'",B$1,"'!",B$4,(YEAR($A44)-1921)*12+MONTH($A44)+3+IF(ISNUMBER(FIND("PRV",B$6)),1,0)))*IF(AND(B$3>0,TRIM(B$9)="CFS"),Conversions!$C44,1) -> 0 | C44: =INDIRECT(CONCATENATE("'",C$1,"'!",C$4,(YEAR($A44)-1921)*12+MONTH($A44)+3+IF(ISNUMBER(FIND("PRV",C$6)),1,0)))*IF(AND(C$3>0,TRIM(C$9)="CFS"),Conversions!$C44,1) -> 29.22974294 | D44: =INDIRECT(CONCATENATE("'",D$1,"'!",D$4,(YEAR($A44)-1921)*12+MONTH($A44)+3+IF(ISNUMBER(FIND("PRV",D$6)),1,0)))*IF(AND(D$3>0,TRIM(D$9)="CFS"),Conversions!$C44,1) -> 28.99024361 | E44: =INDIRECT(CONCATENATE("'",E$1,"'!",E$4,(YEAR($A44)-1921)*12+MONTH($A44)+3+IF(ISNUMBER(FIND("PRV",E$6)),1,0)))*IF(AND(E$3>0,TRIM(E$9)="CFS"),Conversions!$C44,1) -> 29.00370128 | F44: =INDIRECT(CONCATENATE("'",F$1,"'!",F$4,(YEAR($A44)-1921)*12+MONTH($A44)+3+IF(ISNUMBER(FIND("PRV",F$6)),1,0)))*IF(AND(F$3>0,TRIM(F$9)="CFS"),Conversions!$C44,1) -> 28.97185066 | G44: =INDIRECT(CONCATENATE("'",G$1,"'!",G$4,(YEAR($A44)-1921)*12+MONTH($A44)+3+IF(ISNUMBER(FIND("PRV",G$6)),1,0)))*IF(AND(G$3>0,TRIM(G$9)="CFS"),Conversions!$C44,1) ->  | K44: 1954 | L44: =B397 -> 0 | M44: =B398 -> 0 | N44: =B399 -> 0 | O44: =B400 -> 0 | P44: =B401 -> 0 | Q44: =B402 -> 0 | R44: =B403 -> 0 | S44: =B404 -> 0 | T44: =B405 -> 0 | U44: =B406 -> 0 | V44: =B407 -> 0 | W44: =B408 -> 0 | Y44: 0 | Z44: 0 | AA44: 0 | AC44: 0 | AD44: 0 | AE44: =IF(AE$11="AVG",IF(AE$1="INST-VAL",AVERAGE(W43,L44:N44,L44:O44),AVERAGE(L44:O44)),SUM(L44:O44)) -> 0 | AF44: 0 | AG44: 0 | AH44: 0 | AI44: 0 | AK44: 1954 | AL44: =C397 -> 27.5862069 | AM44: =C398 -> 0 | AN44: =C399 -> 0 | AO44: =C400 -> 0 | AP44: =C401 -> 0 | AQ44: =C402 -> 0 | AR44: =C403 -> 0 | AS44: =C404 -> 17.85123967 | AT44: =C405 -> 75.19997301 | AU44: =C406 -> 2.5 | AV44: =C407 -> 34.2246173 | AW44: =C408 -> 29.5876555 | AY44: 191.0996924 | AZ44: 208.9509321 | BA44: 186.9496924 | BC44: 0 | BD44: 93.88847971 | BE44: 27.5862069 | BF44: 0 | BG44: 93.05121268 | BH44: 141.5122458 | BI44: 59.6638624 | BK44: 1954 | BL44: =D397 -> 27.5862069 | BM44: =D398 -> 0 | BN44: =D399 -> 0 | BO44: =D400 -> 0 | BP44: =D401 -> 0 | BQ44: =D402 -> 0 | BR44: =D403 -> 0 | BS44: =D404 -> 0 | BT44: =D405 -> 92.95013774 | BU44: =D406 -> 2.5 | BV44: =D407 -> 34.22461804 | BW44: =D408 -> 29.5876555 | BY44: 192.7386182 | BZ44: 206.3441357 | CA44: 186.8486182 | CC44: 0 | CD44: 93.88848045 | CE44: =IF(CE$11="AVG",IF(CE$1="INST-VAL",AVERAGE(BW43,BL44:BN44,BL44:BO44),AVERAGE(BL44:BO44)),SUM(BL44:BO44)) -> 27.5862069 | CF44: =IF(CF$11="AVG",IF(CE$1="INST-VAL",AVERAGE(BM44:BO44,BN44:BP44),AVERAGE(BN44:BP44)),SUM(BN44:BP44)) -> 0 | CG44: =IF(CG$11="AVG",IF(CE$1="INST-VAL",AVERAGE(BP44:BS44,BQ44:BT44),AVERAGE(BQ44:BT44)),SUM(BQ44:BT44)) -> 92.95013774 | CH44: =IF(CH$11="AVG",IF(CE$1="INST-VAL",AVERAGE(BS44:BV44,BT44:BW44),AVERAGE(BT44:BW44)),SUM(BT44:BW44)) -> 159.2624113 | CI44: =IF(CI$11="AVG",IF(CE$1="INST-VAL",AVERAGE(BV44:BW44,BL45,BW44,BL45:BM45),AVERAGE(BW44,BL45:BM45)),SUM(BW44,BL45:BM45)) -> 61.4038624 | CK44: 1954 | CL44: =E397 -> 27.5862069 | CM44: =E398 -> 0 | CN44: =E399 -> 0 | CO44: =E400 -> 0 | CP44: =E401 -> 0 | CQ44: =E402 -> 0 | CR44: =E403 -> 0 | CS44: =E404 -> 0 | CT44: =E405 -> 92.99095303 | CU44: =E406 -> 2.5 | CV44: =E407 -> 34.22461757 | CW44: =E408 -> 29.5876555 | CY44: 192.779433 | CZ44: 192.779433 | DA44: 186.889433 | DC44: 0 | DD44: 93.88847997 | DE44: 27.5862069 | DF44: 0 | DG44: 92.99095303 | DH44: 159.3032261 | DI44: 61.4038624 | DK44: 1954 | DL44: =F397 -> 27.5862069 | DM44: =F398 -> 0 | DN44: =F399 -> 0 | DO44: =F400 -> 0 | DP44: =F401 -> 0 | DQ44: =F402 -> 0 | DR44: =F403 -> 0 | DS44: =F404 -> 17.85123967 | DT44: =F405 -> 74.63119873 | DU44: =F406 -> 2.5 | DV44: =F407 -> 34.22462391 | DW44: =F408 -> 29.5876555 | DY44: 190.5309247 | DZ44: 208.3821644 | EA44: 186.3809247 | EC44: 0 | ED44: 93.88848631 | EE44: 27.5862069 | EF44: 0 | EG44: 92.4824384 | EH44: 140.9434781 | EI44: 59.6638624 | EK44: 1954 | EL44: =G397 ->  | EM44: =G398 ->  | EN44: =G399 ->  | EO44: =G400 ->  | EP44: =G401 ->  | EQ44: =G402 ->  | ER44: =G403 ->  | ES44: =G404 ->  | ET44: =G405 ->  | EU44: =G406 ->  | EV44: =G407 ->  | EW44: =G408 -> 
A45: 1924-06-30 | B45: =INDIRECT(CONCATENATE("'",B$1,"'!",B$4,(YEAR($A45)-1921)*12+MONTH($A45)+3+IF(ISNUMBER(FIND("PRV",B$6)),1,0)))*IF(AND(B$3>0,TRIM(B$9)="CFS"),Conversions!$C45,1) -> 0 | C45: =INDIRECT(CONCATENATE("'",C$1,"'!",C$4,(YEAR($A45)-1921)*12+MONTH($A45)+3+IF(ISNUMBER(FIND("PRV",C$6)),1,0)))*IF(AND(C$3>0,TRIM(C$9)="CFS"),Conversions!$C45,1) -> 92.69625478 | D45: =INDIRECT(CONCATENATE("'",D$1,"'!",D$4,(YEAR($A45)-1921)*12+MONTH($A45)+3+IF(ISNUMBER(FIND("PRV",D$6)),1,0)))*IF(AND(D$3>0,TRIM(D$9)="CFS"),Conversions!$C45,1) -> 88.14341695 | E45: =INDIRECT(CONCATENATE("'",E$1,"'!",E$4,(YEAR($A45)-1921)*12+MONTH($A45)+3+IF(ISNUMBER(FIND("PRV",E$6)),1,0)))*IF(AND(E$3>0,TRIM(E$9)="CFS"),Conversions!$C45,1) -> 85.49299636 | F45: =INDIRECT(CONCATENATE("'",F$1,"'!",F$4,(YEAR($A45)-1921)*12+MONTH($A45)+3+IF(ISNUMBER(FIND("PRV",F$6)),1,0)))*IF(AND(F$3>0,TRIM(F$9)="CFS"),Conversions!$C45,1) -> 92.16849548 | G45: =INDIRECT(CONCATENATE("'",G$1,"'!",G$4,(YEAR($A45)-1921)*12+MONTH($A45)+3+IF(ISNUMBER(FIND("PRV",G$6)),1,0)))*IF(AND(G$3>0,TRIM(G$9)="CFS"),Conversions!$C45,1) ->  | K45: 1955 | L45: =B409 -> 0 | M45: =B410 -> 0 | N45: =B411 -> 0 | O45: =B412 -> 0 | P45: =B413 -> 0 | Q45: =B414 -> 0 | R45: =B415 -> 0 | S45: =B416 -> 0 | T45: =B417 -> 0 | U45: =B418 -> 0 | V45: =B419 -> 0 | W45: =B420 -> 0 | Y45: 0 | Z45: 0 | AA45: 0 | AC45: 0 | AD45: 0 | AE45: 0 | AF45: 0 | AG45: 0 | AH45: 0 | AI45: 0 | AK45: 1955 | AL45: =C409 -> 30.0762069 | AM45: =C410 -> 0 | AN45: =C411 -> 1.66 | AO45: =C412 -> 0 | AP45: =C413 -> 17.85123967 | AQ45: =C414 -> 1.008229035 | AR45: =C415 -> 7.763871454 | AS45: =C416 -> 13.36058751 | AT45: =C417 -> 78.45463085 | AU45: =C418 -> 142.5480132 | AV45: =C419 -> 128.6798582 | AW45: =C420 -> 75.55535397 | AY45: 577.897407 | AZ45: 560.0461674 | BA45: 496.9579908 | BC45: 20.5194687 | BD45: 280.5134535 | BE45: 31.7362069 | BF45: 19.51123967 | BG45: 100.5873189 | BH45: 425.2378562 | BI45: 186.5709771 | BK45: 1955 | BL45: =D409 -> 30.0762069 | BM45: =D410 -> 1.74 | BN45: =D411 -> 1.66 | BO45: =D412 -> 0 | BP45: =D413 -> 13.60551748 | BQ45: =D414 -> 1.011042861 | BR45: =D415 -> 7.785539329 | BS45: =D416 -> 13.4003604 | BT45: =D417 -> 78.50103331 | BU45: =D418 -> 141.9432526 | BV45: =D419 -> 129.3938014 | BW45: =D420 -> 75.55535397 | BY45: 574.3643872 | BZ45: 560.7588698 | CA45: 494.6721082 | CC45: 18.01656034 | CD45: 281.6339001 | CE45: 33.4762069 | CF45: 15.26551748 | CG45: 100.6979759 | CH45: 425.3934413 | CI45: 187.0638399 | CK45: 1955 | CL45: =E409 -> 30.0762069 | CM45: =E410 -> 1.74 | CN45: =E411 -> 1.66 | CO45: =E412 -> 0 | CP45: =E413 -> 0 | CQ45: =E414 -> 1.010144567 | CR45: =E415 -> 7.778622014 | CS45: =E416 -> 13.38174421 | CT45: =E417 -> 78.47931407 | CU45: =E418 -> 143.6103533 | CV45: =E419 -> 129.296137 | CW45: =E420 -> 75.55535397 | CY45: 562.2563679 | CZ45: 562.2563679 | DA45: 482.587876 | DC45: 4.410144567 | DD45: 281.4982736 | DE45: 33.4762069 | DF45: 1.66 | DG45: 100.6498249 | DH45: 426.9411583 | DI45: 187.0400528 | DK45: 1955 | DL45: =F409 -> 30.0762069 | DM45: =F410 -> 0 | DN45: =F411 -> 1.66 | DO45: =F412 -> 0 | DP45: =F413 -> 17.85123967 | DQ45: =F414 -> 1.007754917 | DR45: =F415 -> 7.760220506 | DS45: =F416 -> 13.36122897 | DT45: =F417 -> 78.45537923 | DU45: =F418 -> 142.5217373 | DV45: =F419 -> 128.3856017 | DW45: =F420 -> 81.40917665 | DY45: 623.2360824 | DZ45: 605.3848427 | EA45: 502.4885459 | EC45: 20.51899459 | ED45: 293.2784609 | EE45: 31.7362069 | EF45: 19.51123967 | EG45: 100.5845836 | EH45: 430.7718949 | EI45: 232.2329201 | EK45: 1955 | EL45: =G409 ->  | EM45: =G410 ->  | EN45: =G411 ->  | EO45: =G412 ->  | EP45: =G413 ->  | EQ45: =G414 ->  | ER45: =G415 ->  | ES45: =G416 ->  | ET45: =G417 ->  | EU45: =G418 ->  | EV45: =G419 ->  | EW45: =G420 -> 
A46: 1924-07-31 | B46: =INDIRECT(CONCATENATE("'",B$1,"'!",B$4,(YEAR($A46)-1921)*12+MONTH($A46)+3+IF(ISNUMBER(FIND("PRV",B$6)),1,0)))*IF(AND(B$3>0,TRIM(B$9)="CFS"),Conversions!$C46,1) -> 0 | C46: =INDIRECT(CONCATENATE("'",C$1,"'!",C$4,(YEAR($A46)-1921)*12+MONTH($A46)+3+IF(ISNUMBER(FIND("PRV",C$6)),1,0)))*IF(AND(C$3>0,TRIM(C$9)="CFS"),Conversions!$C46,1) -> 149.1699158 | D46: =INDIRECT(CONCATENATE("'",D$1,"'!",D$4,(YEAR($A46)-1921)*12+MONTH($A46)+3+IF(ISNUMBER(FIND("PRV",D$6)),1,0)))*IF(AND(D$3>0,TRIM(D$9)="CFS"),Conversions!$C46,1) -> 149.1950728 | E46: =INDIRECT(CONCATENATE("'",E$1,"'!",E$4,(YEAR($A46)-1921)*12+MONTH($A46)+3+IF(ISNUMBER(FIND("PRV",E$6)),1,0)))*IF(AND(E$3>0,TRIM(E$9)="CFS"),Conversions!$C46,1) -> 149.2115871 | F46: =INDIRECT(CONCATENATE("'",F$1,"'!",F$4,(YEAR($A46)-1921)*12+MONTH($A46)+3+IF(ISNUMBER(FIND("PRV",F$6)),1,0)))*IF(AND(F$3>0,TRIM(F$9)="CFS"),Conversions!$C46,1) -> 149.1725022 | G46: =INDIRECT(CONCATENATE("'",G$1,"'!",G$4,(YEAR($A46)-1921)*12+MONTH($A46)+3+IF(ISNUMBER(FIND("PRV",G$6)),1,0)))*IF(AND(G$3>0,TRIM(G$9)="CFS"),Conversions!$C46,1) ->  | K46: 1956 | L46: =B421 -> 0 | M46: =B422 -> 0 | N46: =B423 -> 0 | O46: =B424 -> 0 | P46: =B425 -> 0 | Q46: =B426 -> 0 | R46: =B427 -> 0 | S46: =B428 -> 0 | T46: =B429 -> 0 | U46: =B430 -> 0 | V46: =B431 -> 0 | W46: =B432 -> 0 | Y46: 0 | Z46: 0 | AA46: 0 | AC46: 0 | AD46: 0 | AE46: 0 | AF46: 0 | AG46: 0 | AH46: 0 | AI46: 0 | AK46: 1956 | AL46: =C421 -> 76.27824135 | AM46: =C422 -> 34.73738179 | AN46: =C423 -> 1.66 | AO46: =C424 -> 0 | AP46: =C425 -> 0 | AQ46: =C426 -> 0 | AR46: =C427 -> 0 | AS46: =C428 -> 0 | AT46: =C429 -> 2.01210152 | AU46: =C430 -> 2.5 | AV46: =C431 -> 29.63076823 | AW46: =C432 -> 17.03513914 | AY46: 69.02924856 | AZ46: 69.02924856 | BA46: 163.853632 | BC46: 36.39738179 | BD46: 46.66590737 | BE46: 112.6756231 | BF46: 1.66 | BG46: 2.01210152 | BH46: 51.17800889 | BI46: 34.88637881 | BK46: 1956 | BL46: =D421 -> 76.68474478 | BM46: =D422 -> 34.82374113 | BN46: =D423 -> 1.66 | BO46: =D424 -> 0 | BP46: =D425 -> 0 | BQ46: =D426 -> 0 | BR46: =D427 -> 0 | BS46: =D428 -> 0 | BT46: =D429 -> 2.01210152 | BU46: =D430 -> 2.5 | BV46: =D431 -> 29.63076823 | BW46: =D432 -> 12.45162522 | BY46: 64.44573463 | BZ46: 64.44573463 | CA46: 159.7629809 | CC46: 36.48374113 | CD46: 42.08239344 | CE46: 113.1684859 | CF46: 1.66 | CG46: 2.01210152 | CH46: 46.59449496 | CI46: 30.30286489 | CK46: 1956 | CL46: =E421 -> 76.64678259 | CM46: =E422 -> 34.83791624 | CN46: =E423 -> 1.66 | CO46: =E424 -> 0 | CP46: =E425 -> 0 | CQ46: =E426 -> 0 | CR46: =E427 -> 0 | CS46: =E428 -> 0 | CT46: =E429 -> 2.01210152 | CU46: =E430 -> 2.5 | CV46: =E431 -> 29.63076823 | CW46: =E432 -> 13.39598709 | CY46: 65.39009651 | CZ46: 65.39009651 | DA46: 160.6835557 | DC46: 36.49791624 | DD46: 43.02675532 | DE46: 113.1446988 | DF46: 1.66 | DG46: 2.01210152 | DH46: 47.53885684 | DI46: 31.24722676 | DK46: 1956 | DL46: =F421 -> 83.48368251 | DM46: =F422 -> 67.34006092 | DN46: =F423 -> 1.66 | DO46: =F424 -> 0 | DP46: =F425 -> 0 | DQ46: =F426 -> 0 | DR46: =F427 -> 0 | DS46: =F428 -> 0 | DT46: =F429 -> 2.01210152 | DU46: =F430 -> 2.5 | DV46: =F431 -> 29.63076823 | DW46: =F432 -> 12.36812418 | DY46: 64.36223359 | DZ46: 64.36223359 | EA46: 198.9947374 | EC46: 69.00006092 | ED46: 41.9988924 | EE46: 152.4837434 | EF46: 1.66 | EG46: 2.01210152 | EH46: 46.51099392 | EI46: 30.21936385 | EK46: 1956 | EL46: =G421 ->  | EM46: =G422 ->  | EN46: =G423 ->  | EO46: =G424 ->  | EP46: =G425 ->  | EQ46: =G426 ->  | ER46: =G427 ->  | ES46: =G428 ->  | ET46: =G429 ->  | EU46: =G430 ->  | EV46: =G431 ->  | EW46: =G432 -> 
A47: 1924-08-31 | B47: =INDIRECT(CONCATENATE("'",B$1,"'!",B$4,(YEAR($A47)-1921)*12+MONTH($A47)+3+IF(ISNUMBER(FIND("PRV",B$6)),1,0)))*IF(AND(B$3>0,TRIM(B$9)="CFS"),Conversions!$C47,1) -> 0 | C47: =INDIRECT(CONCATENATE("'",C$1,"'!",C$4,(YEAR($A47)-1921)*12+MONTH($A47)+3+IF(ISNUMBER(FIND("PRV",C$6)),1,0)))*IF(AND(C$3>0,TRIM(C$9)="CFS"),Conversions!$C47,1) -> 112.219391 | D47: =INDIRECT(CONCATENATE("'",D$1,"'!",D$4,(YEAR($A47)-1921)*12+MONTH($A47)+3+IF(ISNUMBER(FIND("PRV",D$6)),1,0)))*IF(AND(D$3>0,TRIM(D$9)="CFS"),Conversions!$C47,1) -> 130.5631958 | E47: =INDIRECT(CONCATENATE("'",E$1,"'!",E$4,(YEAR($A47)-1921)*12+MONTH($A47)+3+IF(ISNUMBER(FIND("PRV",E$6)),1,0)))*IF(AND(E$3>0,TRIM(E$9)="CFS"),Conversions!$C47,1) -> 127.7249544 | F47: =INDIRECT(CONCATENATE("'",F$1,"'!",F$4,(YEAR($A47)-1921)*12+MONTH($A47)+3+IF(ISNUMBER(FIND("PRV",F$6)),1,0)))*IF(AND(F$3>0,TRIM(F$9)="CFS"),Conversions!$C47,1) -> 133.6333614 | G47: =INDIRECT(CONCATENATE("'",G$1,"'!",G$4,(YEAR($A47)-1921)*12+MONTH($A47)+3+IF(ISNUMBER(FIND("PRV",G$6)),1,0)))*IF(AND(G$3>0,TRIM(G$9)="CFS"),Conversions!$C47,1) ->  | K47: 1957 | L47: =B433 -> 0 | M47: =B434 -> 0 | N47: =B435 -> 0 | O47: =B436 -> 0 | P47: =B437 -> 0 | Q47: =B438 -> 0 | R47: =B439 -> 0 | S47: =B440 -> 0 | T47: =B441 -> 0 | U47: =B442 -> 0 | V47: =B443 -> 0 | W47: =B444 -> 0 | Y47: 0 | Z47: 0 | AA47: 0 | AC47: 0 | AD47: 0 | AE47: 0 | AF47: 0 | AG47: 0 | AH47: 0 | AI47: 0 | AK47: 1957 | AL47: =C433 -> 0 | AM47: =C434 -> 17.85123967 | AN47: =C435 -> 0 | AO47: =C436 -> 0 | AP47: =C437 -> 0 | AQ47: =C438 -> 0.9877550607 | AR47: =C439 -> 2.889301095 | AS47: =C440 -> 0 | AT47: =C441 -> 92.77635276 | AU47: =C442 -> 2.5 | AV47: =C443 -> 36.14014923 | AW47: =C444 -> 0.4398327978 | AY47: 137.3933909 | AZ47: 137.3933909 | BA47: 153.5846306 | BC47: 18.83899473 | BD47: 36.57998203 | BE47: 17.85123967 | BF47: 0 | BG47: 96.65340892 | BH47: 131.8563348 | BI47: 0.4398327978 | BK47: 1957 | BL47: =D433 -> 0 | BM47: =D434 -> 17.85123967 | BN47: =D435 -> 0 | BO47: =D436 -> 0 | BP47: =D437 -> 0 | BQ47: =D438 -> 0.9877550601 | BR47: =D439 -> 2.889301099 | BS47: =D440 -> 0 | BT47: =D441 -> 92.75068159 | BU47: =D442 -> 2.5 | BV47: =D443 -> 36.13933313 | BW47: =D444 -> 20.12692134 | BY47: 157.0539922 | BZ47: 157.0539922 | CA47: 173.2452319 | CC47: 18.83899473 | CD47: 56.26625447 | CE47: 17.85123967 | CF47: 0 | CG47: 96.62773775 | CH47: 151.5169361 | CI47: 20.12692134 | CK47: 1957 | CL47: =E433 -> 0 | CM47: =E434 -> 17.85123967 | CN47: =E435 -> 0 | CO47: =E436 -> 0 | CP47: =E437 -> 0 | CQ47: =E438 -> 0.9877550602 | CR47: =E439 -> 2.8893011 | CS47: =E440 -> 0 | CT47: =E441 -> 92.74891296 | CU47: =E442 -> 2.5 | CV47: =E443 -> 36.13927973 | CW47: =E444 -> 19.64328524 | CY47: 158.3085341 | CZ47: 158.3085341 | DA47: 172.7597738 | DC47: 18.83899473 | DD47: 55.78256497 | DE47: 17.85123967 | DF47: 0 | DG47: 96.62596912 | DH47: 151.0314779 | DI47: 21.38328524 | DK47: 1957 | DL47: =F433 -> 0 | DM47: =F434 -> 17.85123967 | DN47: =F435 -> 0 | DO47: =F436 -> 0 | DP47: =F437 -> 0 | DQ47: =F438 -> 0.9877550609 | DR47: =F439 -> 2.889301095 | DS47: =F440 -> 0 | DT47: =F441 -> 91.88908515 | DU47: =F442 -> 2.5 | DV47: =F443 -> 8.552220451 | DW47: =F444 -> 0.4398327978 | DY47: 108.9181946 | DZ47: 108.9181946 | EA47: 125.1094342 | EC47: 18.83899473 | ED47: 8.992053249 | EE47: 17.85123967 | EF47: 0 | EG47: 95.7661413 | EH47: 103.3811384 | EI47: 0.4398327978 | EK47: 1957 | EL47: =G433 ->  | EM47: =G434 ->  | EN47: =G435 ->  | EO47: =G436 ->  | EP47: =G437 ->  | EQ47: =G438 ->  | ER47: =G439 ->  | ES47: =G440 ->  | ET47: =G441 ->  | EU47: =G442 ->  | EV47: =G443 ->  | EW47: =G444 -> 
A48: 1924-09-30 | B48: =INDIRECT(CONCATENATE("'",B$1,"'!",B$4,(YEAR($A48)-1921)*12+MONTH($A48)+3+IF(ISNUMBER(FIND("PRV",B$6)),1,0)))*IF(AND(B$3>0,TRIM(B$9)="CFS"),Conversions!$C48,1) -> 0 | C48: =INDIRECT(CONCATENATE("'",C$1,"'!",C$4,(YEAR($A48)-1921)*12+MONTH($A48)+3+IF(ISNUMBER(FIND("PRV",C$6)),1,0)))*IF(AND(C$3>0,TRIM(C$9)="CFS"),Conversions!$C48,1) -> 76.05948421 | D48: =INDIRECT(CONCATENATE("'",D$1,"'!",D$4,(YEAR($A48)-1921)*12+MONTH($A48)+3+IF(ISNUMBER(FIND("PRV",D$6)),1,0)))*IF(AND(D$3>0,TRIM(D$9)="CFS"),Conversions!$C48,1) -> 72.02654821 | E48: =INDIRECT(CONCATENATE("'",E$1,"'!",E$4,(YEAR($A48)-1921)*12+MONTH($A48)+3+IF(ISNUMBER(FIND("PRV",E$6)),1,0)))*IF(AND(E$3>0,TRIM(E$9)="CFS"),Conversions!$C48,1) -> 72.02654821 | F48: =INDIRECT(CONCATENATE("'",F$1,"'!",F$4,(YEAR($A48)-1921)*12+MONTH($A48)+3+IF(ISNUMBER(FIND("PRV",F$6)),1,0)))*IF(AND(F$3>0,TRIM(F$9)="CFS"),Conversions!$C48,1) -> 74.98523012 | G48: =INDIRECT(CONCATENATE("'",G$1,"'!",G$4,(YEAR($A48)-1921)*12+MONTH($A48)+3+IF(ISNUMBER(FIND("PRV",G$6)),1,0)))*IF(AND(G$3>0,TRIM(G$9)="CFS"),Conversions!$C48,1) ->  | K48: 1958 | L48: =B445 -> 0 | M48: =B446 -> 0 | N48: =B447 -> 0 | O48: =B448 -> 0 | P48: =B449 -> 0 | Q48: =B450 -> 0 | R48: =B451 -> 0 | S48: =B452 -> 0 | T48: =B453 -> 0 | U48: =B454 -> 0 | V48: =B455 -> 0 | W48: =B456 -> 0 | Y48: 0 | Z48: 0 | AA48: 0 | AC48: 0 | AD48: 0 | AE48: 0 | AF48: 0 | AG48: 0 | AH48: 0 | AI48: 0 | AK48: 1958 | AL48: =C445 -> 0 | AM48: =C446 -> 0 | AN48: =C447 -> 1.66 | AO48: =C448 -> 0 | AP48: =C449 -> 0 | AQ48: =C450 -> 0 | AR48: =C451 -> 0 | AS48: =C452 -> 0 | AT48: =C453 -> 0 | AU48: =C454 -> 2.5 | AV48: =C455 -> 27.5862069 | AW48: =C456 -> 27.5862069 | AY48: 103.1098604 | AZ48: 103.1098604 | BA48: 59.3324138 | BC48: 1.66 | BD48: 82.7586207 | BE48: 1.66 | BF48: 1.66 | BG48: 0 | BH48: 57.6724138 | BI48: 73.02365347 | BK48: 1958 | BL48: =D445 -> 0 | BM48: =D446 -> 0 | BN48: =D447 -> 1.66 | BO48: =D448 -> 0 | BP48: =D449 -> 0 | BQ48: =D450 -> 0 | BR48: =D451 -> 0 | BS48: =D452 -> 0 | BT48: =D453 -> 0 | BU48: =D454 -> 2.5 | BV48: =D455 -> 27.5862069 | BW48: =D456 -> 27.5862069 | BY48: 103.1098604 | BZ48: 103.1098604 | CA48: 59.3324138 | CC48: 1.66 | CD48: 82.7586207 | CE48: 1.66 | CF48: 1.66 | CG48: 0 | CH48: 57.6724138 | CI48: 73.02365347 | CK48: 1958 | CL48: =E445 -> 0 | CM48: =E446 -> 1.74 | CN48: =E447 -> 1.66 | CO48: =E448 -> 0 | CP48: =E449 -> 0 | CQ48: =E450 -> 0 | CR48: =E451 -> 0 | CS48: =E452 -> 0 | CT48: =E453 -> 0 | CU48: =E454 -> 2.5 | CV48: =E455 -> 27.5862069 | CW48: =E456 -> 27.5862069 | CY48: 103.1098604 | CZ48: 103.1098604 | DA48: 61.0724138 | DC48: 3.4 | DD48: 82.7586207 | DE48: 3.4 | DF48: 1.66 | DG48: 0 | DH48: 57.6724138 | DI48: 73.02365347 | DK48: 1958 | DL48: =F445 -> 0 | DM48: =F446 -> 0 | DN48: =F447 -> 1.66 | DO48: =F448 -> 0 | DP48: =F449 -> 0 | DQ48: =F450 -> 0 | DR48: =F451 -> 0 | DS48: =F452 -> 0 | DT48: =F453 -> 0 | DU48: =F454 -> 2.5 | DV48: =F455 -> 27.5862069 | DW48: =F456 -> 27.5862069 | DY48: 103.1098604 | DZ48: 103.1098604 | EA48: 59.3324138 | EC48: 1.66 | ED48: 82.7586207 | EE48: 1.66 | EF48: 1.66 | EG48: 0 | EH48: 57.6724138 | EI48: 73.02365347 | EK48: 1958 | EL48: =G445 ->  | EM48: =G446 ->  | EN48: =G447 ->  | EO48: =G448 ->  | EP48: =G449 ->  | EQ48: =G450 ->  | ER48: =G451 ->  | ES48: =G452 ->  | ET48: =G453 ->  | EU48: =G454 ->  | EV48: =G455 ->  | EW48: =G456 -> 
A49: 1924-10-31 | B49: =INDIRECT(CONCATENATE("'",B$1,"'!",B$4,(YEAR($A49)-1921)*12+MONTH($A49)+3+IF(ISNUMBER(FIND("PRV",B$6)),1,0)))*IF(AND(B$3>0,TRIM(B$9)="CFS"),Conversions!$C49,1) -> 0 | C49: =INDIRECT(CONCATENATE("'",C$1,"'!",C$4,(YEAR($A49)-1921)*12+MONTH($A49)+3+IF(ISNUMBER(FIND("PRV",C$6)),1,0)))*IF(AND(C$3>0,TRIM(C$9)="CFS"),Conversions!$C49,1) -> 68.91456298 | D49: =INDIRECT(CONCATENATE("'",D$1,"'!",D$4,(YEAR($A49)-1921)*12+MONTH($A49)+3+IF(ISNUMBER(FIND("PRV",D$6)),1,0)))*IF(AND(D$3>0,TRIM(D$9)="CFS"),Conversions!$C49,1) -> 28.2709607 | E49: =INDIRECT(CONCATENATE("'",E$1,"'!",E$4,(YEAR($A49)-1921)*12+MONTH($A49)+3+IF(ISNUMBER(FIND("PRV",E$6)),1,0)))*IF(AND(E$3>0,TRIM(E$9)="CFS"),Conversions!$C49,1) -> 13.6421866 | F49: =INDIRECT(CONCATENATE("'",F$1,"'!",F$4,(YEAR($A49)-1921)*12+MONTH($A49)+3+IF(ISNUMBER(FIND("PRV",F$6)),1,0)))*IF(AND(F$3>0,TRIM(F$9)="CFS"),Conversions!$C49,1) -> 61.70003124 | G49: =INDIRECT(CONCATENATE("'",G$1,"'!",G$4,(YEAR($A49)-1921)*12+MONTH($A49)+3+IF(ISNUMBER(FIND("PRV",G$6)),1,0)))*IF(AND(G$3>0,TRIM(G$9)="CFS"),Conversions!$C49,1) ->  | K49: 1959 | L49: =B457 -> 0 | M49: =B458 -> 0 | N49: =B459 -> 0 | O49: =B460 -> 0 | P49: =B461 -> 0 | Q49: =B462 -> 0 | R49: =B463 -> 0 | S49: =B464 -> 0 | T49: =B465 -> 0 | U49: =B466 -> 0 | V49: =B467 -> 0 | W49: =B468 -> 0 | Y49: 0 | Z49: 0 | AA49: 0 | AC49: 0 | AD49: 0 | AE49: 0 | AF49: 0 | AG49: 0 | AH49: 0 | AI49: 0 | AK49: 1959 | AL49: =C457 -> 27.5862069 | AM49: =C458 -> 17.85123967 | AN49: =C459 -> 0 | AO49: =C460 -> 0 | AP49: =C461 -> 0 | AQ49: =C462 -> 0.09164526197 | AR49: =C463 -> 25.5644997 | AS49: =C464 -> 68.30510068 | AT49: =C465 -> 7.873473227 | AU49: =C466 -> 31.7430166 | AV49: =C467 -> 32.66955412 | AW49: =C468 -> 39.49774898 | AY49: 291.4105858 | AZ49: 291.4105858 | BA49: 251.1824851 | BC49: 17.94288493 | BD49: 122.456185 | BE49: 45.43744657 | BF49: 0 | BG49: 101.8347189 | BH49: 111.7837929 | BI49: 111.7087834 | BK49: 1959 | BL49: =D457 -> 27.5862069 | BM49: =D458 -> 17.85123967 | BN49: =D459 -> 0 | BO49: =D460 -> 0 | BP49: =D461 -> 0 | BQ49: =D462 -> 0.09152459491 | BR49: =D463 -> 25.59764169 | BS49: =D464 -> 68.26678992 | BT49: =D465 -> 7.873473227 | BU49: =D466 -> 31.78533877 | BV49: =D467 -> 32.66955414 | BW49: =D468 -> 39.45542682 | BY49: 291.4052964 | BZ49: 291.4052964 | CA49: 251.1771957 | CC49: 17.94276426 | CD49: 122.4138629 | CE49: 45.43744657 | CF49: 0 | CG49: 101.8294294 | CH49: 111.783793 | CI49: 111.6664613 | CK49: 1959 | CL49: =E457 -> 27.5862069 | CM49: =E458 -> 17.85123967 | CN49: =E459 -> 0 | CO49: =E460 -> 0 | CP49: =E461 -> 0 | CQ49: =E462 -> 0.09165102411 | CR49: =E463 -> 25.60151975 | CS49: =E464 -> 68.26717987 | CT49: =E465 -> 7.873473227 | CU49: =E466 -> 31.55289296 | CV49: =E467 -> 32.66955401 | CW49: =E468 -> 39.68787262 | CY49: 291.4096907 | CZ49: 291.4096907 | DA49: 251.18159 | DC49: 17.94289069 | DD49: 122.6463086 | DE49: 45.43744657 | DF49: 0 | DG49: 101.8338239 | DH49: 111.7837928 | DI49: 111.8989071 | DK49: 1959 | DL49: =F457 -> 27.5862069 | DM49: =F458 -> 17.85123967 | DN49: =F459 -> 0 | DO49: =F460 -> 0 | DP49: =F461 -> 0 | DQ49: =F462 -> 0.09164949095 | DR49: =F463 -> 25.59719682 | DS49: =F464 -> 68.271563 | DT49: =F465 -> 7.873473227 | DU49: =F466 -> 31.75359124 | DV49: =F467 -> 32.66955412 | DW49: =F468 -> 39.48717434 | DY49: 291.4097495 | DZ49: 291.4097495 | EA49: 251.1816488 | EC49: 17.94288916 | ED49: 122.4456104 | EE49: 45.43744657 | EF49: 0 | EG49: 101.8338825 | EH49: 111.7837929 | EI49: 111.6982088 | EK49: 1959 | EL49: =G457 ->  | EM49: =G458 ->  | EN49: =G459 ->  | EO49: =G460 ->  | EP49: =G461 ->  | EQ49: =G462 ->  | ER49: =G463 ->  | ES49: =G464 ->  | ET49: =G465 ->  | EU49: =G466 ->  | EV49: =G467 ->  | EW49: =G468 -> 
A50: 1924-11-30 | B50: =INDIRECT(CONCATENATE("'",B$1,"'!",B$4,(YEAR($A50)-1921)*12+MONTH($A50)+3+IF(ISNUMBER(FIND("PRV",B$6)),1,0)))*IF(AND(B$3>0,TRIM(B$9)="CFS"),Conversions!$C50,1) -> 0 | C50: =INDIRECT(CONCATENATE("'",C$1,"'!",C$4,(YEAR($A50)-1921)*12+MONTH($A50)+3+IF(ISNUMBER(FIND("PRV",C$6)),1,0)))*IF(AND(C$3>0,TRIM(C$9)="CFS"),Conversions!$C50,1) -> 9.132656497 | D50: =INDIRECT(CONCATENATE("'",D$1,"'!",D$4,(YEAR($A50)-1921)*12+MONTH($A50)+3+IF(ISNUMBER(FIND("PRV",D$6)),1,0)))*IF(AND(D$3>0,TRIM(D$9)="CFS"),Conversions!$C50,1) -> 0.0457224346 | E50: =INDIRECT(CONCATENATE("'",E$1,"'!",E$4,(YEAR($A50)-1921)*12+MONTH($A50)+3+IF(ISNUMBER(FIND("PRV",E$6)),1,0)))*IF(AND(E$3>0,TRIM(E$9)="CFS"),Conversions!$C50,1) -> 0.03222906423 | F50: =INDIRECT(CONCATENATE("'",F$1,"'!",F$4,(YEAR($A50)-1921)*12+MONTH($A50)+3+IF(ISNUMBER(FIND("PRV",F$6)),1,0)))*IF(AND(F$3>0,TRIM(F$9)="CFS"),Conversions!$C50,1) -> 0.06204349827 | G50: =INDIRECT(CONCATENATE("'",G$1,"'!",G$4,(YEAR($A50)-1921)*12+MONTH($A50)+3+IF(ISNUMBER(FIND("PRV",G$6)),1,0)))*IF(AND(G$3>0,TRIM(G$9)="CFS"),Conversions!$C50,1) ->  | K50: 1960 | L50: =B469 -> 0 | M50: =B470 -> 0 | N50: =B471 -> 0 | O50: =B472 -> 0 | P50: =B473 -> 0 | Q50: =B474 -> 0 | R50: =B475 -> 0 | S50: =B476 -> 0 | T50: =B477 -> 0 | U50: =B478 -> 0 | V50: =B479 -> 0 | W50: =B480 -> 0 | Y50: 0 | Z50: 0 | AA50: 0 | AC50: 0 | AD50: 0 | AE50: 0 | AF50: 0 | AG50: 0 | AH50: 0 | AI50: 0 | AK50: 1960 | AL50: =C469 -> 50.28888193 | AM50: =C470 -> 21.9221525 | AN50: =C471 -> 13.4545128 | AO50: =C472 -> 0 | AP50: =C473 -> 0 | AQ50: =C474 -> 0 | AR50: =C475 -> 77.67407877 | AS50: =C476 -> 14.48844068 | AT50: =C477 -> 81.86977215 | AU50: =C478 -> 76.55906059 | AV50: =C479 -> 139.4853716 | AW50: =C480 -> 84.8566694 | AY50: 591.6584216 | AZ50: 591.6584216 | BA50: 560.5989404 | BC50: 35.3766653 | BD50: 309.0470383 | BE50: 85.66554723 | BF50: 13.4545128 | BG50: 174.0322916 | BH50: 382.7708737 | BI50: 191.2716978 | BK50: 1960 | BL50: =D469 -> 50.28888193 | BM50: =D470 -> 21.9221525 | BN50: =D471 -> 13.45451281 | BO50: =D472 -> 0 | BP50: =D473 -> 0 | BQ50: =D474 -> 0 | BR50: =D475 -> 26.79586532 | BS50: =D476 -> 14.48984938 | BT50: =D477 -> 105.1547233 | BU50: =D478 -> 79.38118617 | BV50: =D479 -> 136.10212 | BW50: =D480 -> 84.85618595 | BY50: 510.6061379 | BZ50: 510.6061379 | CA50: 532.4454773 | CC50: 35.37666532 | CD50: 273.4893861 | CE50: 85.66554724 | CF50: 13.45451281 | CG50: 146.440438 | CH50: 405.4942154 | CI50: 148.6823938 | CK50: 1960 | CL50: =E469 -> 50.28888193 | CM50: =E470 -> 21.9221525 | CN50: =E471 -> 13.4545128 | CO50: =E472 -> 0 | CP50: =E473 -> 0 | CQ50: =E474 -> 0 | CR50: =E475 -> 26.79147302 | CS50: =E476 -> 14.48273407 | CT50: =E477 -> 99.63213507 | CU50: =E478 -> 79.37075541 | CV50: =E479 -> 136.0411667 | CW50: =E480 -> 84.85862784 | CY50: 502.5195342 | CZ50: 502.5195342 | DA50: 526.8424394 | DC50: 35.3766653 | DD50: 271.6193559 | DE50: 85.66554723 | DF50: 13.4545128 | DG50: 140.9063422 | DH50: 399.902685 | DI50: 146.2012699 | DK50: 1960 | DL50: =F469 -> 50.28888193 | DM50: =F470 -> 21.9221525 | DN50: =F471 -> 13.4545128 | DO50: =F472 -> 0 | DP50: =F473 -> 0 | DQ50: =F474 -> 0 | DR50: =F475 -> 26.79550434 | DS50: =F476 -> 14.48926462 | DT50: =F477 -> 105.1532353 | DU50: =F478 -> 79.38093615 | DV50: =F479 -> 136.1013477 | DW50: =F480 -> 84.85638664 | DY50: 510.6014633 | DZ50: 510.6014633 | EA50: 532.442222 | EC50: 35.3766653 | ED50: 273.488749 | EE50: 85.66554723 | EF50: 13.4545128 | EG50: 146.4380043 | EH50: 405.4919058 | EI50: 148.6811752 | EK50: 1960 | EL50: =G469 ->  | EM50: =G470 ->  | EN50: =G471 ->  | EO50: =G472 ->  | EP50: =G473 ->  | EQ50: =G474 ->  | ER50: =G475 ->  | ES50: =G476 ->  | ET50: =G477 ->  | EU50: =G478 ->  | EV50: =G479 ->  | EW50: =G480 -> 
A51: 1924-12-31 | B51: =INDIRECT(CONCATENATE("'",B$1,"'!",B$4,(YEAR($A51)-1921)*12+MONTH($A51)+3+IF(ISNUMBER(FIND("PRV",B$6)),1,0)))*IF(AND(B$3>0,TRIM(B$9)="CFS"),Conversions!$C51,1) -> 0 | C51: =INDIRECT(CONCATENATE("'",C$1,"'!",C$4,(YEAR($A51)-1921)*12+MONTH($A51)+3+IF(ISNUMBER(FIND("PRV",C$6)),1,0)))*IF(AND(C$3>0,TRIM(C$9)="CFS"),Conversions!$C51,1) -> 0 | D51: =INDIRECT(CONCATENATE("'",D$1,"'!",D$4,(YEAR($A51)-1921)*12+MONTH($A51)+3+IF(ISNUMBER(FIND("PRV",D$6)),1,0)))*IF(AND(D$3>0,TRIM(D$9)="CFS"),Conversions!$C51,1) -> 0 | E51: =INDIRECT(CONCATENATE("'",E$1,"'!",E$4,(YEAR($A51)-1921)*12+MONTH($A51)+3+IF(ISNUMBER(FIND("PRV",E$6)),1,0)))*IF(AND(E$3>0,TRIM(E$9)="CFS"),Conversions!$C51,1) -> 0 | F51: =INDIRECT(CONCATENATE("'",F$1,"'!",F$4,(YEAR($A51)-1921)*12+MONTH($A51)+3+IF(ISNUMBER(FIND("PRV",F$6)),1,0)))*IF(AND(F$3>0,TRIM(F$9)="CFS"),Conversions!$C51,1) -> 0 | G51: =INDIRECT(CONCATENATE("'",G$1,"'!",G$4,(YEAR($A51)-1921)*12+MONTH($A51)+3+IF(ISNUMBER(FIND("PRV",G$6)),1,0)))*IF(AND(G$3>0,TRIM(G$9)="CFS"),Conversions!$C51,1) ->  | K51: 1961 | L51: =B481 -> 0 | M51: =B482 -> 0 | N51: =B483 -> 0 | O51: =B484 -> 0 | P51: =B485 -> 0 | Q51: =B486 -> 0 | R51: =B487 -> 0 | S51: =B488 -> 0 | T51: =B489 -> 0 | U51: =B490 -> 0 | V51: =B491 -> 0 | W51: =B492 -> 0 | Y51: 0 | Z51: 0 | AA51: 0 | AC51: 0 | AD51: 0 | AE51: 0 | AF51: 0 | AG51: 0 | AH51: 0 | AI51: 0 | AK51: 1961 | AL51: =C481 -> 84.70499735 | AM51: =C482 -> 21.71003107 | AN51: =C483 -> 10.31 | AO51: =C484 -> 0 | AP51: =C485 -> 0 | AQ51: =C486 -> 0 | AR51: =C487 -> 4.691234084 | AS51: =C488 -> 32.53295336 | AT51: =C489 -> 86.67822292 | AU51: =C490 -> 130.4850889 | AV51: =C491 -> 120.5668163 | AW51: =C492 -> 80.67006856 | AY51: 591.0117603 | AZ51: 608.8629999 | BA51: 572.3494125 | BC51: 32.02003107 | BD51: 268.1176784 | BE51: 116.7250284 | BF51: 10.31 | BG51: 123.9024104 | BH51: 418.4001966 | BI51: 216.0574447 | BK51: 1961 | BL51: =D481 -> 52.53108016 | BM51: =D482 -> 11.29512764 | BN51: =D483 -> 0 | BO51: =D484 -> 0 | BP51: =D485 -> 0 | BQ51: =D486 -> 0 | BR51: =D487 -> 4.696057532 | BS51: =D488 -> 13.93997658 | BT51: =D489 -> 86.47561658 | BU51: =D490 -> 130.5055577 | BV51: =D491 -> 117.919013 | BW51: =D492 -> 79.73196218 | BY51: 560.9960428 | BZ51: 560.9960428 | CA51: 497.0943914 | CC51: 11.29512764 | CD51: 259.1930516 | CE51: 63.8262078 | CF51: 0 | CG51: 105.1116507 | CH51: 414.6321495 | CI51: 207.4598214 | CK51: 1961 | CL51: =E481 -> 50.71956129 | CM51: =E482 -> 10.62308076 | CN51: =E483 -> 0 | CO51: =E484 -> 0 | CP51: =E485 -> 0 | CQ51: =E486 -> 0 | CR51: =E487 -> 4.680150058 | CS51: =E488 -> 7.455173317 | CT51: =E489 -> 86.33378703 | CU51: =E490 -> 135.58605 | CV51: =E491 -> 115.7452788 | CW51: =E492 -> 76.73381972 | CY51: 540.9557256 | CZ51: 540.9557256 | DA51: 487.876901 | DC51: 10.62308076 | DD51: 255.0157412 | DE51: 61.34264205 | DF51: 0 | DG51: 98.4691104 | DH51: 414.3989356 | DI51: 191.1552864 | DK51: 1961 | DL51: =F481 -> 52.53101467 | DM51: =F482 -> 11.29377388 | DN51: =F483 -> 0 | DO51: =F484 -> 0 | DP51: =F485 -> 0 | DQ51: =F486 -> 0 | DR51: =F487 -> 4.695998663 | DS51: =F488 -> 13.33250511 | DT51: =F489 -> 86.41504464 | DU51: =F490 -> 130.5053079 | DV51: =F491 -> 115.865181 | DW51: =F492 -> 76.79793919 | DY51: 548.8879927 | DZ51: 548.8879927 | EA51: 491.436765 | EC51: 11.29377388 | ED51: 256.9080201 | EE51: 63.82478854 | EF51: 0 | EG51: 104.4435484 | EH51: 409.5834727 | EI51: 198.0739554 | EK51: 1961 | EL51: =G481 ->  | EM51: =G482 ->  | EN51: =G483 ->  | EO51: =G484 ->  | EP51: =G485 ->  | EQ51: =G486 ->  | ER51: =G487 ->  | ES51: =G488 ->  | ET51: =G489 ->  | EU51: =G490 ->  | EV51: =G491 ->  | EW51: =G492 -> 
A52: 1925-01-31 | B52: =INDIRECT(CONCATENATE("'",B$1,"'!",B$4,(YEAR($A52)-1921)*12+MONTH($A52)+3+IF(ISNUMBER(FIND("PRV",B$6)),1,0)))*IF(AND(B$3>0,TRIM(B$9)="CFS"),Conversions!$C52,1) -> 0 | C52: =INDIRECT(CONCATENATE("'",C$1,"'!",C$4,(YEAR($A52)-1921)*12+MONTH($A52)+3+IF(ISNUMBER(FIND("PRV",C$6)),1,0)))*IF(AND(C$3>0,TRIM(C$9)="CFS"),Conversions!$C52,1) -> 0 | D52: =INDIRECT(CONCATENATE("'",D$1,"'!",D$4,(YEAR($A52)-1921)*12+MONTH($A52)+3+IF(ISNUMBER(FIND("PRV",D$6)),1,0)))*IF(AND(D$3>0,TRIM(D$9)="CFS"),Conversions!$C52,1) -> 0 | E52: =INDIRECT(CONCATENATE("'",E$1,"'!",E$4,(YEAR($A52)-1921)*12+MONTH($A52)+3+IF(ISNUMBER(FIND("PRV",E$6)),1,0)))*IF(AND(E$3>0,TRIM(E$9)="CFS"),Conversions!$C52,1) -> 0 | F52: =INDIRECT(CONCATENATE("'",F$1,"'!",F$4,(YEAR($A52)-1921)*12+MONTH($A52)+3+IF(ISNUMBER(FIND("PRV",F$6)),1,0)))*IF(AND(F$3>0,TRIM(F$9)="CFS"),Conversions!$C52,1) -> 0 | G52: =INDIRECT(CONCATENATE("'",G$1,"'!",G$4,(YEAR($A52)-1921)*12+MONTH($A52)+3+IF(ISNUMBER(FIND("PRV",G$6)),1,0)))*IF(AND(G$3>0,TRIM(G$9)="CFS"),Conversions!$C52,1) ->  | K52: 1962 | L52: =B493 -> 0 | M52: =B494 -> 0 | N52: =B495 -> 0 | O52: =B496 -> 0 | P52: =B497 -> 0 | Q52: =B498 -> 0 | R52: =B499 -> 0 | S52: =B500 -> 0 | T52: =B501 -> 0 | U52: =B502 -> 0 | V52: =B503 -> 0 | W52: =B504 -> 0 | Y52: 0 | Z52: 0 | AA52: 0 | AC52: 0 | AD52: 0 | AE52: 0 | AF52: 0 | AG52: 0 | AH52: 0 | AI52: 0 | AK52: 1962 | AL52: =C493 -> 66.88079362 | AM52: =C494 -> 68.50658256 | AN52: =C495 -> 0 | AO52: =C496 -> 17.85123967 | AP52: =C497 -> 0 | AQ52: =C498 -> 0 | AR52: =C499 -> 2.702434661 | AS52: =C500 -> 24.61505733 | AT52: =C501 -> 19.34816066 | AU52: =C502 -> 28.13822025 | AV52: =C503 -> 67.98824339 | AW52: =C504 -> 49.15389627 | AY52: 212.2872522 | AZ52: 194.4360126 | BA52: 345.1846284 | BC52: 86.35782223 | BD52: 119.6321397 | BE52: 153.2386159 | BF52: 17.85123967 | BG52: 46.66565265 | BH52: 164.6285206 | BI52: 51.64389627 | BK52: 1962 | BL52: =D493 -> 61.54207643 | BM52: =D494 -> 66.18578283 | BN52: =D495 -> 0 | BO52: =D496 -> 0 | BP52: =D497 -> 0 | BQ52: =D498 -> 0 | BR52: =D499 -> 2.553556857 | BS52: =D500 -> 15.45129588 | BT52: =D501 -> 19.34816066 | BU52: =D502 -> 27.70636259 | BV52: =D503 -> 67.16794341 | BW52: =D504 -> 18.02953346 | BY52: 155.2581261 | BZ52: 155.2581261 | CA52: 277.9847121 | CC52: 66.18578283 | CD52: 87.68747687 | CE52: 127.7278593 | CF52: 0 | CG52: 37.3530134 | CH52: 132.2520001 | CI52: 23.03080671 | CK52: 1962 | CL52: =E493 -> 62.53664268 | CM52: =E494 -> 51.88482396 | CN52: =E495 -> 0 | CO52: =E496 -> 0 | CP52: =E497 -> 0 | CQ52: =E498 -> 0 | CR52: =E499 -> 2.603710848 | CS52: =E500 -> 13.76897372 | CT52: =E501 -> 19.34816066 | CU52: =E502 -> 27.75743138 | CV52: =E503 -> 67.14902142 | CW52: =E504 -> 13.55496606 | CY52: 149.0943677 | CZ52: 149.0943677 | DA52: 258.6037307 | DC52: 51.88482396 | DD52: 83.19398747 | DE52: 114.4214666 | DF52: 0 | DG52: 35.72084523 | DH52: 127.8095795 | DI52: 18.46706963 | DK52: 1962 | DL52: =F493 -> 64.24489993 | DM52: =F494 -> 57.03111628 | DN52: =F495 -> 0 | DO52: =F496 -> 0 | DP52: =F497 -> 0 | DQ52: =F498 -> 0 | DR52: =F499 -> 2.586847064 | DS52: =F500 -> 13.68272981 | DT52: =F501 -> 19.34816066 | DU52: =F502 -> 27.70174829 | DV52: =F503 -> 67.85445335 | DW52: =F504 -> 43.46388398 | DY52: 177.1278231 | DZ52: 177.1278231 | EA52: 295.9138394 | EC52: 57.03111628 | ED52: 113.8083373 | EE52: 121.2760162 | EF52: 0 | EG52: 35.61773753 | EH52: 158.3682463 | EI52: 45.95388398 | EK52: 1962 | EL52: =G493 ->  | EM52: =G494 ->  | EN52: =G495 ->  | EO52: =G496 ->  | EP52: =G497 ->  | EQ52: =G498 ->  | ER52: =G499 ->  | ES52: =G500 ->  | ET52: =G501 ->  | EU52: =G502 ->  | EV52: =G503 ->  | EW52: =G504 -> 
A53: 1925-02-28 | B53: =INDIRECT(CONCATENATE("'",B$1,"'!",B$4,(YEAR($A53)-1921)*12+MONTH($A53)+3+IF(ISNUMBER(FIND("PRV",B$6)),1,0)))*IF(AND(B$3>0,TRIM(B$9)="CFS"),Conversions!$C53,1) -> 0 | C53: =INDIRECT(CONCATENATE("'",C$1,"'!",C$4,(YEAR($A53)-1921)*12+MONTH($A53)+3+IF(ISNUMBER(FIND("PRV",C$6)),1,0)))*IF(AND(C$3>0,TRIM(C$9)="CFS"),Conversions!$C53,1) -> 0 | D53: =INDIRECT(CONCATENATE("'",D$1,"'!",D$4,(YEAR($A53)-1921)*12+MONTH($A53)+3+IF(ISNUMBER(FIND("PRV",D$6)),1,0)))*IF(AND(D$3>0,TRIM(D$9)="CFS"),Conversions!$C53,1) -> 0 | E53: =INDIRECT(CONCATENATE("'",E$1,"'!",E$4,(YEAR($A53)-1921)*12+MONTH($A53)+3+IF(ISNUMBER(FIND("PRV",E$6)),1,0)))*IF(AND(E$3>0,TRIM(E$9)="CFS"),Conversions!$C53,1) -> 0 | F53: =INDIRECT(CONCATENATE("'",F$1,"'!",F$4,(YEAR($A53)-1921)*12+MONTH($A53)+3+IF(ISNUMBER(FIND("PRV",F$6)),1,0)))*IF(AND(F$3>0,TRIM(F$9)="CFS"),Conversions!$C53,1) -> 0 | G53: =INDIRECT(CONCATENATE("'",G$1,"'!",G$4,(YEAR($A53)-1921)*12+MONTH($A53)+3+IF(ISNUMBER(FIND("PRV",G$6)),1,0)))*IF(AND(G$3>0,TRIM(G$9)="CFS"),Conversions!$C53,1) ->  | K53: 1963 | L53: =B505 -> 0 | M53: =B506 -> 0 | N53: =B507 -> 0 | O53: =B508 -> 0 | P53: =B509 -> 0 | Q53: =B510 -> 0 | R53: =B511 -> 0 | S53: =B512 -> 0 | T53: =B513 -> 0 | U53: =B514 -> 0 | V53: =B515 -> 0 | W53: =B516 -> 0 | Y53: 0 | Z53: 0 | AA53: 0 | AC53: 0 | AD53: 0 | AE53: 0 | AF53: 0 | AG53: 0 | AH53: 0 | AI53: 0 | AK53: 1963 | AL53: =C505 -> 2.49 | AM53: =C506 -> 0 | AN53: =C507 -> 0 | AO53: =C508 -> 0 | AP53: =C509 -> 0 | AQ53: =C510 -> 0 | AR53: =C511 -> 0 | AS53: =C512 -> 0 | AT53: =C513 -> 0 | AU53: =C514 -> 2.5 | AV53: =C515 -> 27.5862069 | AW53: =C516 -> 24.94770062 | AY53: 72.88514719 | AZ53: 72.88514719 | BA53: 57.52390752 | BC53: 0 | BD53: 52.53390752 | BE53: 2.49 | BF53: 0 | BG53: 0 | BH53: 55.03390752 | BI53: 24.94770062 | BK53: 1963 | BL53: =D505 -> 2.49 | BM53: =D506 -> 2.511273244 | BN53: =D507 -> 0 | BO53: =D508 -> 0 | BP53: =D509 -> 0 | BQ53: =D510 -> 0 | BR53: =D511 -> 0 | BS53: =D512 -> 0 | BT53: =D513 -> 0 | BU53: =D514 -> 2.5 | BV53: =D515 -> 27.5862069 | BW53: =D516 -> 27.5862069 | BY53: 79.14562979 | BZ53: 79.14562979 | CA53: 62.67368704 | CC53: 2.511273244 | CD53: 58.79439012 | CE53: 5.001273244 | CF53: 0 | CG53: 0 | CH53: 57.6724138 | CI53: 31.20818323 | CK53: 1963 | CL53: =E505 -> 2.49 | CM53: =E506 -> 2.422103575 | CN53: =E507 -> 0 | CO53: =E508 -> 0 | CP53: =E509 -> 0 | CQ53: =E510 -> 0 | CR53: =E511 -> 0 | CS53: =E512 -> 0 | CT53: =E513 -> 0 | CU53: =E514 -> 2.5 | CV53: =E515 -> 27.5862069 | CW53: =E516 -> 27.5862069 | CY53: 75.52365347 | CZ53: 75.52365347 | DA53: 62.58451737 | DC53: 2.422103575 | DD53: 55.1724138 | DE53: 4.912103575 | DF53: 0 | DG53: 0 | DH53: 57.6724138 | DI53: 27.5862069 | DK53: 1963 | DL53: =F505 -> 2.49 | DM53: =F506 -> 0 | DN53: =F507 -> 0 | DO53: =F508 -> 0 | DP53: =F509 -> 0 | DQ53: =F510 -> 0 | DR53: =F511 -> 0 | DS53: =F512 -> 0 | DT53: =F513 -> 0 | DU53: =F514 -> 2.5 | DV53: =F515 -> 27.5862069 | DW53: =F516 -> 6.064344658 | DY53: 54.00179123 | DZ53: 54.00179123 | EA53: 38.64055156 | EC53: 0 | ED53: 33.65055156 | EE53: 2.49 | EF53: 0 | EG53: 0 | EH53: 36.15055156 | EI53: 6.064344658 | EK53: 1963 | EL53: =G505 ->  | EM53: =G506 ->  | EN53: =G507 ->  | EO53: =G508 ->  | EP53: =G509 ->  | EQ53: =G510 ->  | ER53: =G511 ->  | ES53: =G512 ->  | ET53: =G513 ->  | EU53: =G514 ->  | EV53: =G515 ->  | EW53: =G516 -> 
A54: 1925-03-31 | B54: =INDIRECT(CONCATENATE("'",B$1,"'!",B$4,(YEAR($A54)-1921)*12+MONTH($A54)+3+IF(ISNUMBER(FIND("PRV",B$6)),1,0)))*IF(AND(B$3>0,TRIM(B$9)="CFS"),Conversions!$C54,1) -> 0 | C54: =INDIRECT(CONCATENATE("'",C$1,"'!",C$4,(YEAR($A54)-1921)*12+MONTH($A54)+3+IF(ISNUMBER(FIND("PRV",C$6)),1,0)))*IF(AND(C$3>0,TRIM(C$9)="CFS"),Conversions!$C54,1) -> 0 | D54: =INDIRECT(CONCATENATE("'",D$1,"'!",D$4,(YEAR($A54)-1921)*12+MONTH($A54)+3+IF(ISNUMBER(FIND("PRV",D$6)),1,0)))*IF(AND(D$3>0,TRIM(D$9)="CFS"),Conversions!$C54,1) -> 0 | E54: =INDIRECT(CONCATENATE("'",E$1,"'!",E$4,(YEAR($A54)-1921)*12+MONTH($A54)+3+IF(ISNUMBER(FIND("PRV",E$6)),1,0)))*IF(AND(E$3>0,TRIM(E$9)="CFS"),Conversions!$C54,1) -> 0 | F54: =INDIRECT(CONCATENATE("'",F$1,"'!",F$4,(YEAR($A54)-1921)*12+MONTH($A54)+3+IF(ISNUMBER(FIND("PRV",F$6)),1,0)))*IF(AND(F$3>0,TRIM(F$9)="CFS"),Conversions!$C54,1) -> 0 | G54: =INDIRECT(CONCATENATE("'",G$1,"'!",G$4,(YEAR($A54)-1921)*12+MONTH($A54)+3+IF(ISNUMBER(FIND("PRV",G$6)),1,0)))*IF(AND(G$3>0,TRIM(G$9)="CFS"),Conversions!$C54,1) ->  | K54: 1964 | L54: =B517 -> 0 | M54: =B518 -> 0 | N54: =B519 -> 0 | O54: =B520 -> 0 | P54: =B521 -> 0 | Q54: =B522 -> 0 | R54: =B523 -> 0 | S54: =B524 -> 0 | T54: =B525 -> 0 | U54: =B526 -> 0 | V54: =B527 -> 0 | W54: =B528 -> 0 | Y54: 0 | Z54: 0 | AA54: 0 | AC54: 0 | AD54: 0 | AE54: 0 | AF54: 0 | AG54: 0 | AH54: 0 | AI54: 0 | AK54: 1964 | AL54: =C517 -> 0 | AM54: =C518 -> 0 | AN54: =C519 -> 17.85123967 | AO54: =C520 -> 0 | AP54: =C521 -> 0 | AQ54: =C522 -> 1.431599209 | AR54: =C523 -> 86.19516811 | AS54: =C524 -> 119.4891551 | AT54: =C525 -> 130.0142514 | AU54: =C526 -> 91.08043206 | AV54: =C527 -> 64.98787836 | AW54: =C528 -> 61.05298158 | AY54: 570.8930373 | AZ54: 570.8930373 | BA54: 572.1027055 | BC54: 19.28283888 | BD54: 142.6824314 | BE54: 17.85123967 | BF54: 17.85123967 | BG54: 337.1301738 | BH54: 347.1355434 | BI54: 77.69455307 | BK54: 1964 | BL54: =D517 -> 3.621976327 | BM54: =D518 -> 0 | BN54: =D519 -> 17.85123967 | BO54: =D520 -> 0 | BP54: =D521 -> 0 | BQ54: =D522 -> 1.426788214 | BR54: =D523 -> 84.32155172 | BS54: =D524 -> 120.1585416 | BT54: =D525 -> 116.3608162 | BU54: =D526 -> 17.03457899 | BV54: =D527 -> 8.347578952 | BW54: =D528 -> 12.87161298 | BY54: 372.4672265 | BZ54: 372.4672265 | CA54: 381.9946847 | CC54: 19.27802788 | CD54: 33.16494972 | CE54: 21.473216 | CF54: 17.85123967 | CG54: 322.2676978 | CH54: 154.6145872 | CI54: 24.81737077 | CK54: 1964 | CL54: =E517 -> 0 | CM54: =E518 -> 0 | CN54: =E519 -> 17.85123967 | CO54: =E520 -> 0 | CP54: =E521 -> 0 | CQ54: =E522 -> 1.427661882 | CR54: =E523 -> 84.32666755 | CS54: =E524 -> 120.1066704 | CT54: =E525 -> 110.6015212 | CU54: =E526 -> 15.83525212 | CV54: =E527 -> 8.365792298 | CW54: =E528 -> 12.91451422 | CY54: 365.5904042 | CZ54: 365.5904042 | DA54: 371.4293194 | DC54: 19.27890155 | DD54: 33.29263097 | DE54: 17.85123967 | DF54: 17.85123967 | DG54: 316.4625211 | DH54: 147.7170799 | DI54: 24.92683867 | DK54: 1964 | DL54: =F517 -> 0 | DM54: =F518 -> 0 | DN54: =F519 -> 17.85123967 | DO54: =F520 -> 0 | DP54: =F521 -> 0 | DQ54: =F522 -> 1.426643727 | DR54: =F523 -> 85.99976851 | DS54: =F524 -> 119.9039567 | DT54: =F525 -> 129.9642105 | DU54: =F526 -> 60.22190318 | DV54: =F527 -> 11.68933715 | DW54: =F528 -> 13.31065857 | DY54: 435.3254605 | DZ54: 435.3254605 | EA54: 440.367718 | EC54: 19.2778834 | ED54: 37.80897792 | EE54: 17.85123967 | EF54: 17.85123967 | EG54: 337.2945794 | EH54: 215.1861095 | EI54: 26.11964077 | EK54: 1964 | EL54: =G517 ->  | EM54: =G518 ->  | EN54: =G519 ->  | EO54: =G520 ->  | EP54: =G521 ->  | EQ54: =G522 ->  | ER54: =G523 ->  | ES54: =G524 ->  | ET54: =G525 ->  | EU54: =G526 ->  | EV54: =G527 ->  | EW54: =G528 -> 
A55: 1925-04-30 | B55: =INDIRECT(CONCATENATE("'",B$1,"'!",B$4,(YEAR($A55)-1921)*12+MONTH($A55)+3+IF(ISNUMBER(FIND("PRV",B$6)),1,0)))*IF(AND(B$3>0,TRIM(B$9)="CFS"),Conversions!$C55,1) -> 0 | C55: =INDIRECT(CONCATENATE("'",C$1,"'!",C$4,(YEAR($A55)-1921)*12+MONTH($A55)+3+IF(ISNUMBER(FIND("PRV",C$6)),1,0)))*IF(AND(C$3>0,TRIM(C$9)="CFS"),Conversions!$C55,1) -> 0 | D55: =INDIRECT(CONCATENATE("'",D$1,"'!",D$4,(YEAR($A55)-1921)*12+MONTH($A55)+3+IF(ISNUMBER(FIND("PRV",D$6)),1,0)))*IF(AND(D$3>0,TRIM(D$9)="CFS"),Conversions!$C55,1) -> 0 | E55: =INDIRECT(CONCATENATE("'",E$1,"'!",E$4,(YEAR($A55)-1921)*12+MONTH($A55)+3+IF(ISNUMBER(FIND("PRV",E$6)),1,0)))*IF(AND(E$3>0,TRIM(E$9)="CFS"),Conversions!$C55,1) -> 0 | F55: =INDIRECT(CONCATENATE("'",F$1,"'!",F$4,(YEAR($A55)-1921)*12+MONTH($A55)+3+IF(ISNUMBER(FIND("PRV",F$6)),1,0)))*IF(AND(F$3>0,TRIM(F$9)="CFS"),Conversions!$C55,1) -> 0 | G55: =INDIRECT(CONCATENATE("'",G$1,"'!",G$4,(YEAR($A55)-1921)*12+MONTH($A55)+3+IF(ISNUMBER(FIND("PRV",G$6)),1,0)))*IF(AND(G$3>0,TRIM(G$9)="CFS"),Conversions!$C55,1) ->  | K55: 1965 | L55: =B529 -> 0 | M55: =B530 -> 0 | N55: =B531 -> 0 | O55: =B532 -> 0 | P55: =B533 -> 0 | Q55: =B534 -> 0 | R55: =B535 -> 0 | S55: =B536 -> 0 | T55: =B537 -> 0 | U55: =B538 -> 0 | V55: =B539 -> 0 | W55: =B540 -> 0 | Y55: 0 | Z55: 0 | AA55: 0 | AC55: 0 | AD55: 0 | AE55: 0 | AF55: 0 | AG55: 0 | AH55: 0 | AI55: 0 | AK55: 1965 | AL55: =C529 -> 16.64157148 | AM55: =C530 -> 0 | AN55: =C531 -> 0 | AO55: =C532 -> 0 | AP55: =C533 -> 0 | AQ55: =C534 -> 0.789012593 | AR55: =C535 -> 4.73495947 | AS55: =C536 -> 0 | AT55: =C537 -> 2.5 | AU55: =C538 -> 2.5 | AV55: =C539 -> 29.69555663 | AW55: =C540 -> 22.03417109 | AY55: 62.25369978 | AZ55: 62.25369978 | BA55: 78.89527126 | BC55: 0.789012593 | BD55: 51.72972772 | BE55: 16.64157148 | BF55: 0 | BG55: 8.023972064 | BH55: 56.72972772 | BI55: 22.03417109 | BK55: 1965 | BL55: =D529 -> 11.94575778 | BM55: =D530 -> 0 | BN55: =D531 -> 0 | BO55: =D532 -> 0 | BP55: =D533 -> 0 | BQ55: =D534 -> 0.7638010423 | BR55: =D535 -> 4.583661922 | BS55: =D536 -> 0 | BT55: =D537 -> 2.5 | BU55: =D538 -> 2.5 | BV55: =D539 -> 29.69555663 | BW55: =D540 -> 11.66536811 | BY55: 51.7083877 | BZ55: 51.7083877 | CA55: 63.65414548 | CC55: 0.7638010423 | CD55: 41.36092474 | CE55: 11.94575778 | CF55: 0 | CG55: 7.847462965 | CH55: 46.36092474 | CI55: 11.66536811 | CK55: 1965 | CL55: =E529 -> 12.01232445 | CM55: =E530 -> 0 | CN55: =E531 -> 0 | CO55: =E532 -> 0 | CP55: =E533 -> 0 | CQ55: =E534 -> 0.7944259307 | CR55: =E535 -> 4.767445561 | CS55: =E536 -> 0 | CT55: =E537 -> 2.5 | CU55: =E538 -> 2.5 | CV55: =E539 -> 29.69555663 | CW55: =E540 -> 10.64391829 | CY55: 50.90134641 | CZ55: 50.90134641 | DA55: 62.91367086 | DC55: 0.7944259307 | DD55: 40.33947492 | DE55: 12.01232445 | DF55: 0 | DG55: 8.061871492 | DH55: 45.33947492 | DI55: 10.64391829 | DK55: 1965 | DL55: =F529 -> 12.8089822 | DM55: =F530 -> 0 | DN55: =F531 -> 0 | DO55: =F532 -> 0 | DP55: =F533 -> 0 | DQ55: =F534 -> 0.7646803034 | DR55: =F535 -> 4.588938474 | DS55: =F536 -> 0 | DT55: =F537 -> 2.5 | DU55: =F538 -> 2.5 | DV55: =F539 -> 29.69555663 | DW55: =F540 -> 13.1588599 | DY55: 53.2080353 | DZ55: 53.2080353 | EA55: 66.0170175 | EC55: 0.7646803034 | ED55: 42.85441653 | EE55: 12.8089822 | EF55: 0 | EG55: 7.853618778 | EH55: 47.85441653 | EI55: 13.1588599 | EK55: 1965 | EL55: =G529 ->  | EM55: =G530 ->  | EN55: =G531 ->  | EO55: =G532 ->  | EP55: =G533 ->  | EQ55: =G534 ->  | ER55: =G535 ->  | ES55: =G536 ->  | ET55: =G537 ->  | EU55: =G538 ->  | EV55: =G539 ->  | EW55: =G540 -> 
A56: 1925-05-31 | B56: =INDIRECT(CONCATENATE("'",B$1,"'!",B$4,(YEAR($A56)-1921)*12+MONTH($A56)+3+IF(ISNUMBER(FIND("PRV",B$6)),1,0)))*IF(AND(B$3>0,TRIM(B$9)="CFS"),Conversions!$C56,1) -> 0 | C56: =INDIRECT(CONCATENATE("'",C$1,"'!",C$4,(YEAR($A56)-1921)*12+MONTH($A56)+3+IF(ISNUMBER(FIND("PRV",C$6)),1,0)))*IF(AND(C$3>0,TRIM(C$9)="CFS"),Conversions!$C56,1) -> 0 | D56: =INDIRECT(CONCATENATE("'",D$1,"'!",D$4,(YEAR($A56)-1921)*12+MONTH($A56)+3+IF(ISNUMBER(FIND("PRV",D$6)),1,0)))*IF(AND(D$3>0,TRIM(D$9)="CFS"),Conversions!$C56,1) -> 0 | E56: =INDIRECT(CONCATENATE("'",E$1,"'!",E$4,(YEAR($A56)-1921)*12+MONTH($A56)+3+IF(ISNUMBER(FIND("PRV",E$6)),1,0)))*IF(AND(E$3>0,TRIM(E$9)="CFS"),Conversions!$C56,1) -> 0 | F56: =INDIRECT(CONCATENATE("'",F$1,"'!",F$4,(YEAR($A56)-1921)*12+MONTH($A56)+3+IF(ISNUMBER(FIND("PRV",F$6)),1,0)))*IF(AND(F$3>0,TRIM(F$9)="CFS"),Conversions!$C56,1) -> 0 | G56: =INDIRECT(CONCATENATE("'",G$1,"'!",G$4,(YEAR($A56)-1921)*12+MONTH($A56)+3+IF(ISNUMBER(FIND("PRV",G$6)),1,0)))*IF(AND(G$3>0,TRIM(G$9)="CFS"),Conversions!$C56,1) ->  | K56: 1966 | L56: =B541 -> 0 | M56: =B542 -> 0 | N56: =B543 -> 0 | O56: =B544 -> 0 | P56: =B545 -> 0 | Q56: =B546 -> 0 | R56: =B547 -> 0 | S56: =B548 -> 0 | T56: =B549 -> 0 | U56: =B550 -> 0 | V56: =B551 -> 0 | W56: =B552 -> 0 | Y56: 0 | Z56: 0 | AA56: 0 | AC56: 0 | AD56: 0 | AE56: 0 | AF56: 0 | AG56: 0 | AH56: 0 | AI56: 0 | AK56: 1966 | AL56: =C541 -> 0 | AM56: =C542 -> 0 | AN56: =C543 -> 0 | AO56: =C544 -> 0 | AP56: =C545 -> 0 | AQ56: =C546 -> 0.003726875122 | AR56: =C547 -> 0.1285609202 | AS56: =C548 -> 55.68110618 | AT56: =C549 -> 10.68495008 | AU56: =C550 -> 14.74660011 | AV56: =C551 -> 32.70404743 | AW56: =C552 -> 61.22840488 | AY56: 213.2337513 | AZ56: 213.2337513 | BA56: 175.1773965 | BC56: 0.003726875122 | BD56: 117.749047 | BE56: 0 | BF56: 0 | BG56: 66.49834406 | BH56: 119.3640025 | BI56: 99.28475971 | BK56: 1966 | BL56: =D541 -> 0 | BM56: =D542 -> 0 | BN56: =D543 -> 0 | BO56: =D544 -> 0 | BP56: =D545 -> 0 | BQ56: =D546 -> 0.005080083439 | BR56: =D547 -> 0.1752406989 | BS56: =D548 -> 46.7989929 | BT56: =D549 -> 10.68495008 | BU56: =D550 -> 16.94466304 | BV56: =D551 -> 31.80868246 | BW56: =D552 -> 54.06527092 | BY56: 188.4488478 | BZ56: 188.4488478 | CA56: 160.4828802 | CC56: 0.005080083439 | CD56: 107.7315998 | CE56: 0 | CF56: 0 | CG56: 57.66426377 | CH56: 113.5035665 | CI56: 82.03123849 | CK56: 1966 | CL56: =E541 -> 0 | CM56: =E542 -> 0 | CN56: =E543 -> 0 | CO56: =E544 -> 0 | CP56: =E545 -> 0 | CQ56: =E546 -> 0.002437930561 | CR56: =E547 -> 0.08409796032 | CS56: =E548 -> 45.25327181 | CT56: =E549 -> 10.68495008 | CU56: =E550 -> 14.74660011 | CV56: =E551 -> 32.69404171 | CW56: =E552 -> 54.76427879 | CY56: 185.0055239 | CZ56: 185.0055239 | DA56: 158.2296784 | DC56: 0.002437930561 | DD56: 108.6090046 | DE56: 0 | DF56: 0 | DG56: 56.02475778 | DH56: 112.8898707 | DI56: 81.54012426 | DK56: 1966 | DL56: =F541 -> 0 | DM56: =F542 -> 0 | DN56: =F543 -> 0 | DO56: =F544 -> 0 | DP56: =F545 -> 0 | DQ56: =F546 -> 0.005014504966 | DR56: =F547 -> 0.172978528 | DS56: =F548 -> 47.73190657 | DT56: =F549 -> 10.68495008 | DU56: =F550 -> 16.94466961 | DV56: =F551 -> 31.80844967 | DW56: =F552 -> 54.27873581 | DY56: 189.8904136 | DZ56: 189.8904136 | EA56: 161.6267048 | EC56: 0.005014504966 | ED56: 108.1110913 | EE56: 0 | EF56: 0 | EG56: 58.59484968 | EH56: 113.7168052 | EI56: 82.54244469 | EK56: 1966 | EL56: =G541 ->  | EM56: =G542 ->  | EN56: =G543 ->  | EO56: =G544 ->  | EP56: =G545 ->  | EQ56: =G546 ->  | ER56: =G547 ->  | ES56: =G548 ->  | ET56: =G549 ->  | EU56: =G550 ->  | EV56: =G551 ->  | EW56: =G552 -> 
A57: 1925-06-30 | B57: =INDIRECT(CONCATENATE("'",B$1,"'!",B$4,(YEAR($A57)-1921)*12+MONTH($A57)+3+IF(ISNUMBER(FIND("PRV",B$6)),1,0)))*IF(AND(B$3>0,TRIM(B$9)="CFS"),Conversions!$C57,1) -> 0 | C57: =INDIRECT(CONCATENATE("'",C$1,"'!",C$4,(YEAR($A57)-1921)*12+MONTH($A57)+3+IF(ISNUMBER(FIND("PRV",C$6)),1,0)))*IF(AND(C$3>0,TRIM(C$9)="CFS"),Conversions!$C57,1) -> 49.36878788 | D57: =INDIRECT(CONCATENATE("'",D$1,"'!",D$4,(YEAR($A57)-1921)*12+MONTH($A57)+3+IF(ISNUMBER(FIND("PRV",D$6)),1,0)))*IF(AND(D$3>0,TRIM(D$9)="CFS"),Conversions!$C57,1) -> 23.25782465 | E57: =INDIRECT(CONCATENATE("'",E$1,"'!",E$4,(YEAR($A57)-1921)*12+MONTH($A57)+3+IF(ISNUMBER(FIND("PRV",E$6)),1,0)))*IF(AND(E$3>0,TRIM(E$9)="CFS"),Conversions!$C57,1) -> 23.24928945 | F57: =INDIRECT(CONCATENATE("'",F$1,"'!",F$4,(YEAR($A57)-1921)*12+MONTH($A57)+3+IF(ISNUMBER(FIND("PRV",F$6)),1,0)))*IF(AND(F$3>0,TRIM(F$9)="CFS"),Conversions!$C57,1) -> 36.69400145 | G57: =INDIRECT(CONCATENATE("'",G$1,"'!",G$4,(YEAR($A57)-1921)*12+MONTH($A57)+3+IF(ISNUMBER(FIND("PRV",G$6)),1,0)))*IF(AND(G$3>0,TRIM(G$9)="CFS"),Conversions!$C57,1) ->  | K57: 1967 | L57: =B553 -> 0 | M57: =B554 -> 0 | N57: =B555 -> 0 | O57: =B556 -> 0 | P57: =B557 -> 0 | Q57: =B558 -> 0 | R57: =B559 -> 0 | S57: =B560 -> 0 | T57: =B561 -> 0 | U57: =B562 -> 0 | V57: =B563 -> 0 | W57: =B564 -> 0 | Y57: 0 | Z57: 0 | AA57: 0 | AC57: 0 | AD57: 0 | AE57: 0 | AF57: 0 | AG57: 0 | AH57: 0 | AI57: 0 | AK57: 1967 | AL57: =C553 -> 23.81659466 | AM57: =C554 -> 14.23976017 | AN57: =C555 -> 0 | AO57: =C556 -> 0 | AP57: =C557 -> 0 | AQ57: =C558 -> 0 | AR57: =C559 -> 0 | AS57: =C560 -> 0 | AT57: =C561 -> 0 | AU57: =C562 -> 0 | AV57: =C563 -> 27.5862069 | AW57: =C564 -> 0 | AY57: 73.02365347 | AZ57: 73.02365347 | BA57: 65.64256173 | BC57: 14.23976017 | BD57: 55.1724138 | BE57: 38.05635483 | BF57: 0 | BG57: 0 | BH57: 27.5862069 | BI57: 27.5862069 | BK57: 1967 | BL57: =D553 -> 21.85764638 | BM57: =D554 -> 6.108321188 | BN57: =D555 -> 0 | BO57: =D556 -> 0 | BP57: =D557 -> 0 | BQ57: =D558 -> 0 | BR57: =D559 -> 0 | BS57: =D560 -> 0 | BT57: =D561 -> 0 | BU57: =D562 -> 0 | BV57: =D563 -> 27.5862069 | BW57: =D564 -> 27.5862069 | BY57: 118.4611 | BZ57: 118.4611 | CA57: 83.13838137 | CC57: 6.108321188 | CD57: 82.7586207 | CE57: 27.96596757 | CF57: 0 | CG57: 0 | CH57: 55.1724138 | CI57: 73.02365347 | CK57: 1967 | CL57: =E553 -> 21.15068415 | CM57: =E554 -> 5.625161322 | CN57: =E555 -> 0 | CO57: =E556 -> 0 | CP57: =E557 -> 0 | CQ57: =E558 -> 0 | CR57: =E559 -> 0 | CS57: =E560 -> 0 | CT57: =E561 -> 0 | CU57: =E562 -> 0 | CV57: =E563 -> 27.5862069 | CW57: =E564 -> 27.5862069 | CY57: 118.4611 | CZ57: 118.4611 | DA57: 81.94825927 | DC57: 5.625161322 | DD57: 82.7586207 | DE57: 26.77584547 | DF57: 0 | DG57: 0 | DH57: 55.1724138 | DI57: 73.02365347 | DK57: 1967 | DL57: =F553 -> 22.02390586 | DM57: =F554 -> 6.23980301 | DN57: =F555 -> 0 | DO57: =F556 -> 0 | DP57: =F557 -> 0 | DQ57: =F558 -> 0 | DR57: =F559 -> 0 | DS57: =F560 -> 0 | DT57: =F561 -> 0 | DU57: =F562 -> 0 | DV57: =F563 -> 27.5862069 | DW57: =F564 -> 27.5862069 | DY57: 118.4611 | DZ57: 118.4611 | EA57: 83.43612267 | EC57: 6.23980301 | ED57: 82.7586207 | EE57: 28.26370887 | EF57: 0 | EG57: 0 | EH57: 55.1724138 | EI57: 73.02365347 | EK57: 1967 | EL57: =G553 ->  | EM57: =G554 ->  | EN57: =G555 ->  | EO57: =G556 ->  | EP57: =G557 ->  | EQ57: =G558 ->  | ER57: =G559 ->  | ES57: =G560 ->  | ET57: =G561 ->  | EU57: =G562 ->  | EV57: =G563 ->  | EW57: =G564 -> 
A58: 1925-07-31 | B58: =INDIRECT(CONCATENATE("'",B$1,"'!",B$4,(YEAR($A58)-1921)*12+MONTH($A58)+3+IF(ISNUMBER(FIND("PRV",B$6)),1,0)))*IF(AND(B$3>0,TRIM(B$9)="CFS"),Conversions!$C58,1) -> 0 | C58: =INDIRECT(CONCATENATE("'",C$1,"'!",C$4,(YEAR($A58)-1921)*12+MONTH($A58)+3+IF(ISNUMBER(FIND("PRV",C$6)),1,0)))*IF(AND(C$3>0,TRIM(C$9)="CFS"),Conversions!$C58,1) -> 117.0700205 | D58: =INDIRECT(CONCATENATE("'",D$1,"'!",D$4,(YEAR($A58)-1921)*12+MONTH($A58)+3+IF(ISNUMBER(FIND("PRV",D$6)),1,0)))*IF(AND(D$3>0,TRIM(D$9)="CFS"),Conversions!$C58,1) -> 74.93324299 | E58: =INDIRECT(CONCATENATE("'",E$1,"'!",E$4,(YEAR($A58)-1921)*12+MONTH($A58)+3+IF(ISNUMBER(FIND("PRV",E$6)),1,0)))*IF(AND(E$3>0,TRIM(E$9)="CFS"),Conversions!$C58,1) -> 74.82670557 | F58: =INDIRECT(CONCATENATE("'",F$1,"'!",F$4,(YEAR($A58)-1921)*12+MONTH($A58)+3+IF(ISNUMBER(FIND("PRV",F$6)),1,0)))*IF(AND(F$3>0,TRIM(F$9)="CFS"),Conversions!$C58,1) -> 95.01172663 | G58: =INDIRECT(CONCATENATE("'",G$1,"'!",G$4,(YEAR($A58)-1921)*12+MONTH($A58)+3+IF(ISNUMBER(FIND("PRV",G$6)),1,0)))*IF(AND(G$3>0,TRIM(G$9)="CFS"),Conversions!$C58,1) ->  | K58: 1968 | L58: =B565 -> 0 | M58: =B566 -> 0 | N58: =B567 -> 0 | O58: =B568 -> 0 | P58: =B569 -> 0 | Q58: =B570 -> 0 | R58: =B571 -> 0 | S58: =B572 -> 0 | T58: =B573 -> 0 | U58: =B574 -> 0 | V58: =B575 -> 0 | W58: =B576 -> 0 | Y58: 0 | Z58: 0 | AA58: 0 | AC58: 0 | AD58: 0 | AE58: 0 | AF58: 0 | AG58: 0 | AH58: 0 | AI58: 0 | AK58: 1968 | AL58: =C565 -> 27.5862069 | AM58: =C566 -> 0 | AN58: =C567 -> 17.85123967 | AO58: =C568 -> 0 | AP58: =C569 -> 0 | AQ58: =C570 -> 0 | AR58: =C571 -> 2.375913811 | AS58: =C572 -> 82.61495093 | AT58: =C573 -> 19.84433525 | AU58: =C574 -> 18.45649553 | AV58: =C575 -> 69.94215279 | AW58: =C576 -> 3.68162089 | AY58: 273.1211991 | AZ58: 273.1211991 | BA58: 242.3529158 | BC58: 17.85123967 | BD58: 121.8130276 | BE58: 45.43744657 | BF58: 17.85123967 | BG58: 104.8352 | BH58: 111.9246045 | BI58: 78.22735075 | BK58: 1968 | BL58: =D565 -> 27.5862069 | BM58: =D566 -> 17.85123967 | BN58: =D567 -> 17.85123967 | BO58: =D568 -> 0 | BP58: =D569 -> 0 | BQ58: =D570 -> 0 | BR58: =D571 -> 2.375913811 | BS58: =D572 -> 82.61495093 | BT58: =D573 -> 19.52561276 | BU58: =D574 -> 18.45657838 | BV58: =D575 -> 69.94223294 | BW58: =D576 -> 3.68162089 | BY58: 272.8025567 | BZ58: 272.8025567 | CA58: 259.8855959 | CC58: 35.70247934 | CD58: 121.3529455 | CE58: 63.28868624 | CF58: 17.85123967 | CG58: 104.5164775 | CH58: 111.606045 | CI58: 78.22726792 | CK58: 1968 | CL58: =E565 -> 27.5862069 | CM58: =E566 -> 17.85123967 | CN58: =E567 -> 17.85123967 | CO58: =E568 -> 0 | CP58: =E569 -> 0 | CQ58: =E570 -> 0 | CR58: =E571 -> 2.375913811 | CS58: =E572 -> 82.61495093 | CT58: =E573 -> 19.46181318 | CU58: =E574 -> 18.45733386 | CV58: =E575 -> 69.94291316 | CW58: =E576 -> 3.68162089 | CY58: 272.7394374 | CZ58: 272.7394374 | DA58: 259.8232321 | DC58: 35.70247934 | DD58: 121.2933641 | DE58: 63.28868624 | DF58: 17.85123967 | DG58: 104.4526779 | DH58: 111.5436811 | DI58: 78.22651245 | DK58: 1968 | DL58: =F565 -> 27.5862069 | DM58: =F566 -> 17.85123967 | DN58: =F567 -> 17.85123967 | DO58: =F568 -> 0 | DP58: =F569 -> 0 | DQ58: =F570 -> 0 | DR58: =F571 -> 2.375913811 | DS58: =F572 -> 82.61495093 | DT58: =F573 -> 19.52514756 | DU58: =F574 -> 18.45676453 | DV58: =F575 -> 69.94241781 | DW58: =F576 -> 3.68162089 | DY58: 272.8022764 | DZ58: 272.8022764 | EA58: 259.8855018 | EC58: 35.70247934 | ED58: 121.7351071 | EE58: 63.28868624 | EF58: 17.85123967 | EG58: 104.5160123 | EH58: 111.6059508 | EI58: 78.22708174 | EK58: 1968 | EL58: =G565 ->  | EM58: =G566 ->  | EN58: =G567 ->  | EO58: =G568 ->  | EP58: =G569 ->  | EQ58: =G570 ->  | ER58: =G571 ->  | ES58: =G572 ->  | ET58: =G573 ->  | EU58: =G574 ->  | EV58: =G575 ->  | EW58: =G576 -> 
